Workbook

Sheet Feuil1 (hidden)
A1: nom onglet TALEND IORGA | B1: nom mapping | C1: nom onglet TALEND IORGA | F1: nom onglet TALEND IORGA
A2: 110 | B2: 110 | C2: 110 | F2: 110 | G2: =VLOOKUP(F2,B:B,1,FALSE) -> 110
A3: 111 | B3: 111 | C3: 111 | F3: 111 | G3: =VLOOKUP(F3,B:B,1,FALSE) -> 111
A4: 114 | B4: 114 | C4: 114 | F4: 114 | G4: 114
A5: 121 | B5: 121 | C5: 121 | F5: 124 | G5: 124
A6: 124 | B6: 124 | C6: 124 | F6: 132 | G6: 132
A7: 125 | B7: 125 | C7: 125 | F7: 161 | G7: 161
A8: 131 | B8: 131 | C8: 131 | F8: 191 | G8: 191
A9: 132 | B9: 132 | C9: 132 | F9: 197 | G9: 197
A10: 140 | B10: 140 | C10: 140 | F10: 121 | G10: 121
A11: 141 | B11: 141 | C11: 141 | F11: 125 | G11: 125
A12: 142_143_144 | B12: 142_143_144 | C12: 142_143_144 | F12: 131 | G12: 131
A13: 161 | B13: 161 | C13: 161 | F13: 140 | G13: 140
A14: 162 | B14: 162 | C14: 162 | F14: 141 | G14: 141
A15: 181 | B15: 181 | C15: 181 | F15: 142_143_144 | G15: 142_143_144
A16: 191 | B16: 191 | C16: 191 | F16: 162 | G16: 162
A17: 192 | B17: 192 | C17: 192 | F17: 181 | G17: 181
A18: 193 | B18: 193 | C18: 193 | F18: 193 | G18: 193
A19: 1940 | B19: 1940 | C19: 1940 | F19: 1941_1942 | G19: 1941_1942
A20: 1941_1942 | B20: 1941_1942 | C20: 1941_1942 | F20: 195 | G20: 195
A21: 195 | B21: 195 | C21: 195 | F21: 198 | G21: 198
A22: 1961_1962 | B22: 1961_1962 | C22: 1961_1962 | F22: 199 | G22: 199
A23: 197 | B23: 197 | C23: 197 | F23: 210 | G23: 210
A24: 199 | B24: 199 | C24: 199 | F24: 211 | G24: 211
A25: 210 | B25: 210 | C25: 210 | F25: 212 | G25: 212
A26: 211 | B26: 211 | C26: 211 | F26: 217 | G26: 217
A27: 212 | B27: 212 | C27: 212 | F27: 513 | G27: 513
A28: 213 | B28: 213 | C28: 213 | F28: 424 | G28: 424
A29: 217 | B29: 217 | C29: 217 | F29: 213 | G29: 213
A30: 218 | B30: 218 | C30: 218 | F30: 214_215_216 | G30: 214_215_216
A31: 219 | B31: 219 | C31: 219 | F31: 218 | G31: 218
A32: 220 | B32: 220 | C32: 220 | F32: 219 | G32: 219
A33: 221 | B33: 221 | C33: 221 | F33: 220 | G33: 220
A34: 222 | B34: 222 | C34: 222 | F34: 221 | G34: 221
A35: 214_215_216 | B35: 214_215_216 | C35: 214_215_216 | F35: 223 | G35: 223
A36: 223 | B36: 223 | C36: 223 | F36: 222 | G36: 222
A37: 224 | B37: 224 | C37: 224 | F37: 224 | G37: 224
A38: 228 | B38: 228 | C38: 228 | F38: 220 | G38: 220
A39: 229 | B39: 229 | C39: 229 | F39: 225 | G39: 225
A40: 231 | B40: 231 | C40: 231 | F40: 229 | G40: 229
A41: 232 | B41: 232 | C41: 232 | F41: 231 | G41: 231
A42: 233 | B42: 233 | C42: 233 | F42: 241 | G42: 241
A43: 234 | B43: 234 | C43: 234 | F43: 242 | G43: 242
A44: 235 | B44: 235 | C44: 235 | F44: 811 | G44: 811
A45: 236 | B45: 236 | C45: 236 | F45: 612 | G45: 612
A46: 241 | B46: 241 | C46: 241 | F46: 610 | G46: 610
A47: 242 | B47: 242 | C47: 242 | F47: 514 | G47: 514
A48: 311 | B48: 311 | C48: 311 | F48: 451 | G48: 451
A49: 321 | B49: 321 | C49: 321 | F49: 441 | G49: 441
A50: 331 | B50: 331 | C50: 331 | F50: 427 | G50: 427
A51: 339 | B51: 339 | C51: 339 | F51: 426 | G51: 426
A52: 3401 | B52: 3401 | C52: 3401
A53: 341_342_343 | B53: 341_342_343 | C53: 341_342_343
A54: 347 | B54: 347 | C54: 347
A55: 411_412 | B55: 411_412 | C55: 411_412
A56: 413 | B56: 413 | C56: 413
A57: 414_415_416_417 | B57: 414_415_416_417 | C57: 414_415_416_417
A58: 421 | B58: 421 | C58: 421
A59: 422 | B59: 422 | C59: 422
A60: 424 | B60: 424 | C60: 424
A61: 425 | B61: 425 | C61: 425
A62: 426 | B62: 426 | C62: 426
A63: 427 | B63: 427 | C63: 427
A64: 431 | B64: 431 | C64: 431
A65: 432 | B65: 432 | C65: 432
A66: 451 | B66: 451 | C66: 451
A67: 511 | B67: 511 | C67: 511
A68: 512 | B68: 512 | C68: 512
A69: 513 | B69: 513 | C69: 513
A70: 610 | B70: 610 | C70: 610
A71: 611 | B71: 611 | C71: 611
A72: 612 | B72: 612 | C72: 612
A73: 616_613 | B73: 616_613 | C73: 616_613
A74: 711_712_713 | B74: 711_712_713 | C74: 711_712_713
A75: 720_721_722 | B75: 720_721_722 | C75: 720_721_722
A76: 811 | B76: 811 | C76: 811
B77: 225 | C77: 225
B78: 514 | C78: 514
B79: 198 | C79: 198
B80: 441 | C80: 441
B81: 615 | C81: 615

Sheet logs (hidden)
A1: Log | B1: Question
A2: IND 1.1.0Temps d'exécution : 0,0546875 secondes.
A3: IND 1.1.1Temps d'exécution : 0,8671875 secondes.
A4: IND 1.1.4Temps d'exécution : 7,226563 secondes.
A5: IND 1.2.4Temps d'exécution : 7,476563 secondes.
A6: IND 1.3.2Temps d'exécution : 7,789063 secondes.
A7: IND 1.6.1Temps d'exécution : 8,007813 secondes.
A8: IND 1.9.1Temps d'exécution : 8,070313 secondes.
A9: IND 1.9.7Temps d'exécution : 8,59375 secondes.
A10: IND 1.2.1Temps d'exécution : 8,632813 secondes.
A11: IND 1.2.5Temps d'exécution : 12,80469 secondes.
A12: IND 1.3.1Temps d'exécution : 14,42969 secondes.
A13: IND 1.4.0Temps d'exécution : 14,67969 secondes.
A14: IND 1.4.1-1.4.2-1.4.4Temps d'exécution : 14,91016 secondes.
A15: IND 1.6.2Temps d'exécution : 15,13281 secondes.
A16: IND 1.8.1Temps d'exécution : 15,13281 secondes.
A17: IND 1.9.3Temps d'exécution : 15,63281 secondes.
A18: IND 1.9.4.1-1.9.4.2Temps d'exécution : 16,49219 secondes.
A19: IND 1.9.5 - 1.9.6.1Temps d'exécution : 16,61719 secondes.
A20: IND 1.9.8Temps d'exécution : 16,66406 secondes.
A21: IND 1.9.9Temps d'exécution : 16,75781 secondes.
A22: IND 2.1.0Temps d'exécution : 16,80078 secondes.
A23: IND 2.1.1Temps d'exécution : 16,80469 secondes.
A24: IND 2.1.2Temps d'exécution : 17,77344 secondes.
A25: IND 2.1.7Temps d'exécution : 18,63281 secondes.
A26: IND 4.2.4Temps d'exécution : 18,66406 secondes.
A27: IND 2.1.3Temps d'exécution : 18,67969 secondes.
A28: IND 2.1.4-2.1.6Temps d'exécution : 19,55469 secondes.
A29: IND 2.1.8Temps d'exécution : 19,66406 secondes.
A30: IND 2.1.9Temps d'exécution : 20,21094 secondes.
A31: IND 2.2.0Temps d'exécution : 20,22656 secondes.
A32: IND 2.2.1 et 2.2.3Temps d'exécution : 20,27344 secondes.
A33: IND 2.2.2Temps d'exécution : 20,51563 secondes.
A34: IND 2.2.4Temps d'exécution : 21,53906 secondes.
A35: IND 2.2.5Temps d'exécution : 21,55469 secondes.
A36: IND 2.2.9Temps d'exécution : 21,55469 secondes.
A37: IND 2.3.1Temps d'exécution : 21,74219 secondes.
A38: IND 2.4.1Temps d'exécution : 21,78906 secondes.
A39: IND 2.4.2Temps d'exécution : 22,42969 secondes.
A40: IND 8.1.1Temps d'exécution : 22,70313 secondes.
A41: IND 6.1.1-6.1.3Temps d'exécution : 22,93359 secondes.
A42: IND 6.1.0Temps d'exécution : 22,96875 secondes.
A43: IND 5.1.4Temps d'exécution : 23,03906 secondes.
A44: IND 4.5.1Temps d'exécution : 23,05469 secondes.
A45: IND 4.4.1Temps d'exécution : 23,17969 secondes.
A46: IND 4.2.7Temps d'exécution : 23,35938 secondes.
A47: IND 4.2.6Temps d'exécution : 23,52344 secondes.
A48: IND 5.1.3Temps d'exécution : 23,72656 secondes.
A49: IND 1.9.2Temps d'exécution : 23,83594 secondes.
A50: IND 1.9.4.0Temps d'exécution : 28,36719 secondes.
A51: IND 2.2.8Temps d'exécution : 29,11719 secondes.
A52: IND 2.3.2Temps d'exécution : 30,17969 secondes.
A53: IND 2.3.3Temps d'exécution : 31,82031 secondes.
A54: IND 2.3.4Temps d'exécution : 31,86719 secondes.
A55: IND 2.3.5Temps d'exécution : 33,55469 secondes.
A56: IND 2.3.6Temps d'exécution : 33,58594 secondes.
A57: IND 3.1.1-3.3.1 et 3.4.1-3.4.3Temps d'exécution : 33,60156 secondes.
A58: IND 3.3.9Temps d'exécution : 36,03125 secondes.
A59: IND 3.4.0.1Temps d'exécution : 38,07813 secondes.
A60: IND 3.4.7Temps d'exécution : 38,09766 secondes.
A61: IND 4.3.2Temps d'exécution : 38,10938 secondes.
A62: IND 2.3.6Temps d'exécution : 39,08594 secondes.
A63: IND 1.9.5 - 1.9.6.1Temps d'exécution : 39,10156 secondes.
A64: IND 4.1.3Temps d'exécution : 39,20313 secondes.
A65: IND 4.1.4-4.1.7Temps d'exécution : 39,20313 secondes.
A66: IND 4.2.1Temps d'exécution : 39,25391 secondes.
A67: IND 4.2.2Temps d'exécution : 42,25781 secondes.
A68: IND 4.2.5Temps d'exécution : 44,34766 secondes.
A69: IND 4.3.1Temps d'exécution : 44,35547 secondes.
A70: IND 6.1.1-6.1.3Temps d'exécution : 44,78125 secondes.
A71: IND 7.1.1-7.1.3Temps d'exécution : 44,82422 secondes.
A72: IND 7.2.0-7.2.2Temps d'exécution : 45,35156 secondes.
A73: IND 5.1.2Temps d'exécution : 45,50391 secondes.
A74: IND 5.1.1Temps d'exécution : 45,84766 secondes.
A75: IND 4.2.4Temps d'exécution : 47,20313 secondes.
A76: IND 1.1.1Temps d'exécution : 47,23438 secondes.
A77: IND 4.1.1-4.1.2Temps d'exécution : 48,98438 secondes.
A78: IND 1.2.1Temps d'exécution : 49,05078 secondes.
A79: IND 1.9.3Temps d'exécution : 49,46094 secondes.
A80: IND 1.9.6.2Temps d'exécution : 49,71484 secondes.
A81: IND 1.3.2Temps d'exécution : 49,95703 secondes.
A82: IND 6.1.6Temps d'exécution : 49,97656 secondes.
A83: IND 2.2.1 et 2.2.3Temps d'exécution : 49,98828 secondes.
A84: IND 6.1.5Temps d'exécution : 50 secondes.
A85: IND 3.4.0.1Temps d'exécution : 50,26563 secondes.
A86: IND 1.1.1Temps d'exécution : 50,27344 secondes.
A87: IND 1.2.1Temps d'exécution : 50,37891 secondes.
A88: IND 1.2.5Temps d'exécution : 50,44531 secondes.
A89: IND 1.9.2Temps d'exécution : 50,48438 secondes.
A90: IND 1.9.3Temps d'exécution : 50,55469 secondes.
A91: IND 1.9.8Temps d'exécution : 50,58594 secondes.
A92: IND 2.2.2Temps d'exécution : 50,58984 secondes.
A93: IND 2.2.8Temps d'exécution : 50,61719 secondes.
A94: IND 2.2.9Temps d'exécution : 50,62891 secondes.
A95: IND 2.3.2Temps d'exécution : 50,64063 secondes.
A96: IND 2.3.4Temps d'exécution : 50,66797 secondes.
A97: IND 3.3.9Temps d'exécution : 50,70703 secondes.
A98: IND 4.2.1Temps d'exécution : 50,74219 secondes.
A99: IND 4.2.2Temps d'exécution : 50,78906 secondes.
B143: Indicateur: IND 4.3.2 Cellule: B8 Aucune réponse à la question actuellement
B165: Indicateur: IND 6.1.6 Cellule: C9 Aucune réponse à la question actuellement
B225: Indicateur: IND 4.3.2 Cellule: B8 Aucune réponse à la question actuellement
B247: Indicateur: IND 6.1.6 Cellule: C9 Aucune réponse à la question actuellement
B307: Indicateur: IND 4.3.2 Cellule: B8 Aucune réponse à la question actuellement
B329: Indicateur: IND 6.1.6 Cellule: C9 Aucune réponse à la question actuellement
B389: Indicateur: IND 4.3.2 Cellule: B8 Aucune réponse à la question actuellement
B411: Indicateur: IND 6.1.6 Cellule: C9 Aucune réponse à la question actuellement
B471: Indicateur: IND 4.3.2 Cellule: B8 Aucune réponse à la question actuellement
B493: Indicateur: IND 6.1.6 Cellule: C9 Aucune réponse à la question actuellement
B553: Indicateur: IND 4.3.2 Cellule: B8 Aucune réponse à la question actuellement
B575: Indicateur: IND 6.1.6 Cellule: C9 Aucune réponse à la question actuellement
B635: Indicateur: IND 4.3.2 Cellule: B8 Aucune réponse à la question actuellement
B657: Indicateur: IND 6.1.6 Cellule: C9 Aucune réponse à la question actuellement
B719: Indicateur: IND 4.3.2 Cellule: B8 Aucune réponse à la question actuellement
B741: Indicateur: IND 6.1.6 Cellule: C9 Aucune réponse à la question actuellement

Sheet MAPP (hidden)
A1: Ordre | B1: Thématique (DGCL) | C1: Rubrique (Appli) | D1: Numéro de l'indicateur | E1: nom onglet TALEND IORGA | F1: nom onglet MODELE | G1: map iorga colonne | H1: map iorga ligne | I1: reprise ligne | J1: recherchev | K1: map modèle colonne | L1: map modele ligne | M1: question ? | N1: valeur défaut | O1: nb ligne | P1: vérif tableau
A2: 1 | B2: Emploi | C2: Effectifs | D2: IND 1.1.0 | E2: 110 | F2: IND 1.1.0 | G2: E | H2: 1 | I2: =IF(H2=1,J2,H2+J2-1) -> 1 | J2: =VLOOKUP(VLOOKUP(E2,Feuil1!B:C,2,FALSE),Data!AD:AG,4,FALSE) -> 1 | K2: B | L2: 13 | N2: 1 | O2: =H2 -> 1 | P2: =IF(ISNA(J2),"KO",IF(ISNA(VLOOKUP(E2&"_"&H2,Data!AH:AH,1,FALSE)),"KO","OK")) -> OK
A3: 1 | B3: Emploi | C3: Effectifs | D3: IND 1.1.0 | E3: 110 | F3: IND 1.1.0 | G3: F | H3: 1 | I3: =IF(H3=1,J3,H3+J3-1) -> 1 | J3: =VLOOKUP(VLOOKUP(E3,Feuil1!B:C,2,FALSE),Data!AD:AG,4,FALSE) -> 1 | K3: C | L3: 13 | N3: 2 | O3: =H3 -> 1 | P3: =IF(ISNA(J3),"KO",IF(ISNA(VLOOKUP(E3&"_"&H3,Data!AH:AH,1,FALSE)),"KO","OK")) -> OK
A4: 1 | B4: Emploi | C4: Effectifs | D4: IND 1.1.0 | E4: 110 | F4: IND 1.1.0 | G4: G | H4: 1 | I4: 1 | J4: =VLOOKUP(VLOOKUP(E4,Feuil1!B:C,2,FALSE),Data!AD:AG,4,FALSE) -> 1 | K4: D | L4: 13 | N4: 3 | O4: 1 | P4: =IF(ISNA(J4),"KO",IF(ISNA(VLOOKUP(E4&"_"&H4,Data!AH:AH,1,FALSE)),"KO","OK")) -> OK
A5: 1 | B5: Emploi | C5: Effectifs | D5: IND 1.1.0 | E5: 110 | F5: IND 1.1.0 | G5: H | H5: 1 | I5: 1 | J5: =VLOOKUP(VLOOKUP(E5,Feuil1!B:C,2,FALSE),Data!AD:AG,4,FALSE) -> 1 | K5: E | L5: 13 | N5: 4 | O5: 1 | P5: =IF(ISNA(J5),"KO",IF(ISNA(VLOOKUP(E5&"_"&H5,Data!AH:AH,1,FALSE)),"KO","OK")) -> OK
A6: 1 | B6: Emploi | C6: Effectifs | D6: IND 1.1.0 | E6: 110 | F6: IND 1.1.0 | G6: I | H6: 1 | I6: =IF(H6=1,J6,H6+J6-1) -> 1 | J6: =VLOOKUP(VLOOKUP(E6,Feuil1!B:C,2,FALSE),Data!AD:AG,4,FALSE) -> 1 | K6: F | L6: 13 | N6: 5 | O6: 1 | P6: =IF(ISNA(J6),"KO",IF(ISNA(VLOOKUP(E6&"_"&H6,Data!AH:AH,1,FALSE)),"KO","OK")) -> OK
A7: 1 | B7: Emploi | C7: Effectifs | D7: IND 1.1.0 | E7: 110 | F7: IND 1.1.0 | G7: J | H7: 1 | I7: 1 | J7: =VLOOKUP(VLOOKUP(E7,Feuil1!B:C,2,FALSE),Data!AD:AG,4,FALSE) -> 1 | K7: G | L7: 13 | N7: 6 | O7: 1 | P7: =IF(ISNA(J7),"KO",IF(ISNA(VLOOKUP(E7&"_"&H7,Data!AH:AH,1,FALSE)),"KO","OK")) -> OK
A8: 1 | B8: Emploi | C8: Effectifs | D8: IND 1.1.0 | E8: 110 | F8: IND 1.1.0 | G8: K | H8: 1 | I8: 1 | J8: =VLOOKUP(VLOOKUP(E8,Feuil1!B:C,2,FALSE),Data!AD:AG,4,FALSE) -> 1 | K8: H | L8: 13 | N8: 7 | O8: 1 | P8: =IF(ISNA(J8),"KO",IF(ISNA(VLOOKUP(E8&"_"&H8,Data!AH:AH,1,FALSE)),"KO","OK")) -> OK
A9: 1 | B9: Emploi | C9: Effectifs | D9: IND 1.1.0 | E9: 110 | F9: IND 1.1.0 | G9: L | H9: 1 | I9: 1 | J9: =VLOOKUP(VLOOKUP(E9,Feuil1!B:C,2,FALSE),Data!AD:AG,4,FALSE) -> 1 | K9: I | L9: 13 | N9: 8 | O9: 1 | P9: =IF(ISNA(J9),"KO",IF(ISNA(VLOOKUP(E9&"_"&H9,Data!AH:AH,1,FALSE)),"KO","OK")) -> OK
A10: 1 | B10: Emploi | C10: Effectifs | D10: IND 1.1.0 | E10: 110 | F10: IND 1.1.0 | G10: M | H10: 1 | I10: 1 | J10: =VLOOKUP(VLOOKUP(E10,Feuil1!B:C,2,FALSE),Data!AD:AG,4,FALSE) -> 1 | K10: J | L10: 13 | N10: 9 | O10: 1 | P10: =IF(ISNA(J10),"KO",IF(ISNA(VLOOKUP(E10&"_"&H10,Data!AH:AH,1,FALSE)),"KO","OK")) -> OK
A11: 1 | B11: Emploi | C11: Effectifs | D11: IND 1.1.0 | E11: 110 | F11: IND 1.1.0 | G11: N | H11: 1 | I11: 1 | J11: =VLOOKUP(VLOOKUP(E11,Feuil1!B:C,2,FALSE),Data!AD:AG,4,FALSE) -> 1 | K11: K | L11: 13 | N11: 10 | O11: 1 | P11: =IF(ISNA(J11),"KO",IF(ISNA(VLOOKUP(E11&"_"&H11,Data!AH:AH,1,FALSE)),"KO","OK")) -> OK
A12: 1 | B12: Emploi | C12: Effectifs | D12: IND 1.1.0 | E12: 110 | F12: IND 1.1.0 | G12: E | H12: 2 | I12: 2 | J12: =VLOOKUP(VLOOKUP(E12,Feuil1!B:C,2,FALSE),Data!AD:AG,4,FALSE) -> 1 | K12: B | L12: 14 | N12: 11 | O12: 2 | P12: =IF(ISNA(J12),"KO",IF(ISNA(VLOOKUP(E12&"_"&H12,Data!AH:AH,1,FALSE)),"KO","OK")) -> OK
A13: 1 | B13: Emploi | C13: Effectifs | D13: IND 1.1.0 | E13: 110 | F13: IND 1.1.0 | G13: F | H13: 2 | I13: 2 | J13: =VLOOKUP(VLOOKUP(E13,Feuil1!B:C,2,FALSE),Data!AD:AG,4,FALSE) -> 1 | K13: C | L13: 14 | N13: 12 | O13: 2 | P13: =IF(ISNA(J13),"KO",IF(ISNA(VLOOKUP(E13&"_"&H13,Data!AH:AH,1,FALSE)),"KO","OK")) -> OK
A14: 1 | B14: Emploi | C14: Effectifs | D14: IND 1.1.0 | E14: 110 | F14: IND 1.1.0 | G14: G | H14: 2 | I14: 2 | J14: =VLOOKUP(VLOOKUP(E14,Feuil1!B:C,2,FALSE),Data!AD:AG,4,FALSE) -> 1 | K14: D | L14: 14 | N14: 13 | O14: 2 | P14: =IF(ISNA(J14),"KO",IF(ISNA(VLOOKUP(E14&"_"&H14,Data!AH:AH,1,FALSE)),"KO","OK")) -> OK
A15: 1 | B15: Emploi | C15: Effectifs | D15: IND 1.1.0 | E15: 110 | F15: IND 1.1.0 | G15: H | H15: 2 | I15: 2 | J15: =VLOOKUP(VLOOKUP(E15,Feuil1!B:C,2,FALSE),Data!AD:AG,4,FALSE) -> 1 | K15: E | L15: 14 | N15: 14 | O15: 2 | P15: =IF(ISNA(J15),"KO",IF(ISNA(VLOOKUP(E15&"_"&H15,Data!AH:AH,1,FALSE)),"KO","OK")) -> OK
A16: 1 | B16: Emploi | C16: Effectifs | D16: IND 1.1.0 | E16: 110 | F16: IND 1.1.0 | G16: I | H16: 2 | I16: 2 | J16: =VLOOKUP(VLOOKUP(E16,Feuil1!B:C,2,FALSE),Data!AD:AG,4,FALSE) -> 1 | K16: F | L16: 14 | N16: 15 | O16: 2 | P16: =IF(ISNA(J16),"KO",IF(ISNA(VLOOKUP(E16&"_"&H16,Data!AH:AH,1,FALSE)),"KO","OK")) -> OK
A17: 1 | B17: Emploi | C17: Effectifs | D17: IND 1.1.0 | E17: 110 | F17: IND 1.1.0 | G17: J | H17: 2 | I17: 2 | J17: =VLOOKUP(VLOOKUP(E17,Feuil1!B:C,2,FALSE),Data!AD:AG,4,FALSE) -> 1 | K17: G | L17: 14 | N17: 16 | O17: 2 | P17: =IF(ISNA(J17),"KO",IF(ISNA(VLOOKUP(E17&"_"&H17,Data!AH:AH,1,FALSE)),"KO","OK")) -> OK
A18: 1 | B18: Emploi | C18: Effectifs | D18: IND 1.1.0 | E18: 110 | F18: IND 1.1.0 | G18: K | H18: 2 | I18: 2 | J18: =VLOOKUP(VLOOKUP(E18,Feuil1!B:C,2,FALSE),Data!AD:AG,4,FALSE) -> 1 | K18: H | L18: 14 | N18: 17 | O18: 2 | P18: =IF(ISNA(J18),"KO",IF(ISNA(VLOOKUP(E18&"_"&H18,Data!AH:AH,1,FALSE)),"KO","OK")) -> OK
A19: 1 | B19: Emploi | C19: Effectifs | D19: IND 1.1.0 | E19: 110 | F19: IND 1.1.0 | G19: L | H19: 2 | I19: 2 | J19: =VLOOKUP(VLOOKUP(E19,Feuil1!B:C,2,FALSE),Data!AD:AG,4,FALSE) -> 1 | K19: I | L19: 14 | N19: 18 | O19: 2 | P19: =IF(ISNA(J19),"KO",IF(ISNA(VLOOKUP(E19&"_"&H19,Data!AH:AH,1,FALSE)),"KO","OK")) -> OK
A20: 1 | B20: Emploi | C20: Effectifs | D20: IND 1.1.0 | E20: 110 | F20: IND 1.1.0 | G20: M | H20: 2 | I20: 2 | J20: =VLOOKUP(VLOOKUP(E20,Feuil1!B:C,2,FALSE),Data!AD:AG,4,FALSE) -> 1 | K20: J | L20: 14 | N20: 19 | O20: 2 | P20: =IF(ISNA(J20),"KO",IF(ISNA(VLOOKUP(E20&"_"&H20,Data!AH:AH,1,FALSE)),"KO","OK")) -> OK
A21: 1 | B21: Emploi | C21: Effectifs | D21: IND 1.1.0 | E21: 110 | F21: IND 1.1.0 | G21: N | H21: 2 | I21: 2 | J21: =VLOOKUP(VLOOKUP(E21,Feuil1!B:C,2,FALSE),Data!AD:AG,4,FALSE) -> 1 | K21: K | L21: 14 | N21: 20 | O21: 2 | P21: =IF(ISNA(J21),"KO",IF(ISNA(VLOOKUP(E21&"_"&H21,Data!AH:AH,1,FALSE)),"KO","OK")) -> OK
A22: 1 | B22: Emploi | C22: Effectifs | D22: IND 1.1.0 | E22: 110 | F22: IND 1.1.0 | G22: E | H22: 3 | I22: 3 | J22: =VLOOKUP(VLOOKUP(E22,Feuil1!B:C,2,FALSE),Data!AD:AG,4,FALSE) -> 1 | K22: B | L22: 16 | N22: 21 | O22: 3 | P22: =IF(ISNA(J22),"KO",IF(ISNA(VLOOKUP(E22&"_"&H22,Data!AH:AH,1,FALSE)),"KO","OK")) -> OK
A23: 1 | B23: Emploi | C23: Effectifs | D23: IND 1.1.0 | E23: 110 | F23: IND 1.1.0 | G23: F | H23: 3 | I23: 3 | J23: =VLOOKUP(VLOOKUP(E23,Feuil1!B:C,2,FALSE),Data!AD:AG,4,FALSE) -> 1 | K23: C | L23: 16 | N23: 22 | O23: 3 | P23: =IF(ISNA(J23),"KO",IF(ISNA(VLOOKUP(E23&"_"&H23,Data!AH:AH,1,FALSE)),"KO","OK")) -> OK
A24: 1 | B24: Emploi | C24: Effectifs | D24: IND 1.1.0 | E24: 110 | F24: IND 1.1.0 | G24: G | H24: 3 | I24: 3 | J24: =VLOOKUP(VLOOKUP(E24,Feuil1!B:C,2,FALSE),Data!AD:AG,4,FALSE) -> 1 | K24: D | L24: 16 | N24: 23 | O24: 3 | P24: =IF(ISNA(J24),"KO",IF(ISNA(VLOOKUP(E24&"_"&H24,Data!AH:AH,1,FALSE)),"KO","OK")) -> OK
A25: 1 | B25: Emploi | C25: Effectifs | D25: IND 1.1.0 | E25: 110 | F25: IND 1.1.0 | G25: H | H25: 3 | I25: 3 | J25: =VLOOKUP(VLOOKUP(E25,Feuil1!B:C,2,FALSE),Data!AD:AG,4,FALSE) -> 1 | K25: E | L25: 16 | N25: 24 | O25: 3 | P25: =IF(ISNA(J25),"KO",IF(ISNA(VLOOKUP(E25&"_"&H25,Data!AH:AH,1,FALSE)),"KO","OK")) -> OK
A26: 1 | B26: Emploi | C26: Effectifs | D26: IND 1.1.0 | E26: 110 | F26: IND 1.1.0 | G26: I | H26: 3 | I26: 3 | J26: =VLOOKUP(VLOOKUP(E26,Feuil1!B:C,2,FALSE),Data!AD:AG,4,FALSE) -> 1 | K26: F | L26: 16 | N26: 25 | O26: 3 | P26: =IF(ISNA(J26),"KO",IF(ISNA(VLOOKUP(E26&"_"&H26,Data!AH:AH,1,FALSE)),"KO","OK")) -> OK
A27: 1 | B27: Emploi | C27: Effectifs | D27: IND 1.1.0 | E27: 110 | F27: IND 1.1.0 | G27: J | H27: 3 | I27: 3 | J27: =VLOOKUP(VLOOKUP(E27,Feuil1!B:C,2,FALSE),Data!AD:AG,4,FALSE) -> 1 | K27: G | L27: 16 | N27: 26 | O27: 3 | P27: =IF(ISNA(J27),"KO",IF(ISNA(VLOOKUP(E27&"_"&H27,Data!AH:AH,1,FALSE)),"KO","OK")) -> OK
A28: 1 | B28: Emploi | C28: Effectifs | D28: IND 1.1.0 | E28: 110 | F28: IND 1.1.0 | G28: K | H28: 3 | I28: 3 | J28: =VLOOKUP(VLOOKUP(E28,Feuil1!B:C,2,FALSE),Data!AD:AG,4,FALSE) -> 1 | K28: H | L28: 16 | N28: 27 | O28: 3 | P28: =IF(ISNA(J28),"KO",IF(ISNA(VLOOKUP(E28&"_"&H28,Data!AH:AH,1,FALSE)),"KO","OK")) -> OK
A29: 1 | B29: Emploi | C29: Effectifs | D29: IND 1.1.0 | E29: 110 | F29: IND 1.1.0 | G29: L | H29: 3 | I29: 3 | J29: =VLOOKUP(VLOOKUP(E29,Feuil1!B:C,2,FALSE),Data!AD:AG,4,FALSE) -> 1 | K29: I | L29: 16 | N29: 28 | O29: 3 | P29: =IF(ISNA(J29),"KO",IF(ISNA(VLOOKUP(E29&"_"&H29,Data!AH:AH,1,FALSE)),"KO","OK")) -> OK
A30: 1 | B30: Emploi | C30: Effectifs | D30: IND 1.1.0 | E30: 110 | F30: IND 1.1.0 | G30: M | H30: 3 | I30: 3 | J30: =VLOOKUP(VLOOKUP(E30,Feuil1!B:C,2,FALSE),Data!AD:AG,4,FALSE) -> 1 | K30: J | L30: 16 | N30: 29 | O30: 3 | P30: =IF(ISNA(J30),"KO",IF(ISNA(VLOOKUP(E30&"_"&H30,Data!AH:AH,1,FALSE)),"KO","OK")) -> OK
A31: 1 | B31: Emploi | C31: Effectifs | D31: IND 1.1.0 | E31: 110 | F31: IND 1.1.0 | G31: N | H31: 3 | I31: 3 | J31: =VLOOKUP(VLOOKUP(E31,Feuil1!B:C,2,FALSE),Data!AD:AG,4,FALSE) -> 1 | K31: K | L31: 16 | N31: 30 | O31: 3 | P31: =IF(ISNA(J31),"KO",IF(ISNA(VLOOKUP(E31&"_"&H31,Data!AH:AH,1,FALSE)),"KO","OK")) -> OK
A32: 1 | B32: Emploi | C32: Effectifs | D32: IND 1.1.0 | E32: 110 | F32: IND 1.1.0 | G32: E | H32: 4 | I32: 4 | J32: =VLOOKUP(VLOOKUP(E32,Feuil1!B:C,2,FALSE),Data!AD:AG,4,FALSE) -> 1 | K32: B | L32: 17 | N32: 31 | O32: 4 | P32: =IF(ISNA(J32),"KO",IF(ISNA(VLOOKUP(E32&"_"&H32,Data!AH:AH,1,FALSE)),"KO","OK")) -> OK
A33: 1 | B33: Emploi | C33: Effectifs | D33: IND 1.1.0 | E33: 110 | F33: IND 1.1.0 | G33: F | H33: 4 | I33: 4 | J33: =VLOOKUP(VLOOKUP(E33,Feuil1!B:C,2,FALSE),Data!AD:AG,4,FALSE) -> 1 | K33: C | L33: 17 | N33: 32 | O33: 4 | P33: =IF(ISNA(J33),"KO",IF(ISNA(VLOOKUP(E33&"_"&H33,Data!AH:AH,1,FALSE)),"KO","OK")) -> OK
A34: 1 | B34: Emploi | C34: Effectifs | D34: IND 1.1.0 | E34: 110 | F34: IND 1.1.0 | G34: G | H34: 4 | I34: 4 | J34: =VLOOKUP(VLOOKUP(E34,Feuil1!B:C,2,FALSE),Data!AD:AG,4,FALSE) -> 1 | K34: D | L34: 17 | N34: 33 | O34: 4 | P34: =IF(ISNA(J34),"KO",IF(ISNA(VLOOKUP(E34&"_"&H34,Data!AH:AH,1,FALSE)),"KO","OK")) -> OK
A35: 1 | B35: Emploi | C35: Effectifs | D35: IND 1.1.0 | E35: 110 | F35: IND 1.1.0 | G35: H | H35: 4 | I35: 4 | J35: =VLOOKUP(VLOOKUP(E35,Feuil1!B:C,2,FALSE),Data!AD:AG,4,FALSE) -> 1 | K35: E | L35: 17 | N35: 34 | O35: 4 | P35: =IF(ISNA(J35),"KO",IF(ISNA(VLOOKUP(E35&"_"&H35,Data!AH:AH,1,FALSE)),"KO","OK")) -> OK
A36: 1 | B36: Emploi | C36: Effectifs | D36: IND 1.1.0 | E36: 110 | F36: IND 1.1.0 | G36: I | H36: 4 | I36: 4 | J36: =VLOOKUP(VLOOKUP(E36,Feuil1!B:C,2,FALSE),Data!AD:AG,4,FALSE) -> 1 | K36: F | L36: 17 | N36: 35 | O36: 4 | P36: =IF(ISNA(J36),"KO",IF(ISNA(VLOOKUP(E36&"_"&H36,Data!AH:AH,1,FALSE)),"KO","OK")) -> OK
A37: 1 | B37: Emploi | C37: Effectifs | D37: IND 1.1.0 | E37: 110 | F37: IND 1.1.0 | G37: J | H37: 4 | I37: 4 | J37: =VLOOKUP(VLOOKUP(E37,Feuil1!B:C,2,FALSE),Data!AD:AG,4,FALSE) -> 1 | K37: G | L37: 17 | N37: 36 | O37: 4 | P37: =IF(ISNA(J37),"KO",IF(ISNA(VLOOKUP(E37&"_"&H37,Data!AH:AH,1,FALSE)),"KO","OK")) -> OK
A38: 1 | B38: Emploi | C38: Effectifs | D38: IND 1.1.0 | E38: 110 | F38: IND 1.1.0 | G38: K | H38: 4 | I38: 4 | J38: =VLOOKUP(VLOOKUP(E38,Feuil1!B:C,2,FALSE),Data!AD:AG,4,FALSE) -> 1 | K38: H | L38: 17 | N38: 37 | O38: 4 | P38: =IF(ISNA(J38),"KO",IF(ISNA(VLOOKUP(E38&"_"&H38,Data!AH:AH,1,FALSE)),"KO","OK")) -> OK
A39: 1 | B39: Emploi | C39: Effectifs | D39: IND 1.1.0 | E39: 110 | F39: IND 1.1.0 | G39: L | H39: 4 | I39: 4 | J39: =VLOOKUP(VLOOKUP(E39,Feuil1!B:C,2,FALSE),Data!AD:AG,4,FALSE) -> 1 | K39: I | L39: 17 | N39: 38 | O39: 4 | P39: =IF(ISNA(J39),"KO",IF(ISNA(VLOOKUP(E39&"_"&H39,Data!AH:AH,1,FALSE)),"KO","OK")) -> OK
A40: 1 | B40: Emploi | C40: Effectifs | D40: IND 1.1.0 | E40: 110 | F40: IND 1.1.0 | G40: M | H40: 4 | I40: 4 | J40: =VLOOKUP(VLOOKUP(E40,Feuil1!B:C,2,FALSE),Data!AD:AG,4,FALSE) -> 1 | K40: J | L40: 17 | N40: 39 | O40: 4 | P40: =IF(ISNA(J40),"KO",IF(ISNA(VLOOKUP(E40&"_"&H40,Data!AH:AH,1,FALSE)),"KO","OK")) -> OK
A41: 1 | B41: Emploi | C41: Effectifs | D41: IND 1.1.0 | E41: 110 | F41: IND 1.1.0 | G41: N | H41: 4 | I41: 4 | J41: =VLOOKUP(VLOOKUP(E41,Feuil1!B:C,2,FALSE),Data!AD:AG,4,FALSE) -> 1 | K41: K | L41: 17 | N41: 40 | O41: 4 | P41: =IF(ISNA(J41),"KO",IF(ISNA(VLOOKUP(E41&"_"&H41,Data!AH:AH,1,FALSE)),"KO","OK")) -> OK
A42: 1 | B42: Emploi | C42: Effectifs | D42: IND 1.1.0 | E42: 110 | F42: IND 1.1.0 | G42: E | H42: 5 | I42: 5 | J42: =VLOOKUP(VLOOKUP(E42,Feuil1!B:C,2,FALSE),Data!AD:AG,4,FALSE) -> 1 | K42: B | L42: 19 | N42: 41 | O42: 5 | P42: =IF(ISNA(J42),"KO",IF(ISNA(VLOOKUP(E42&"_"&H42,Data!AH:AH,1,FALSE)),"KO","OK")) -> OK
A43: 1 | B43: Emploi | C43: Effectifs | D43: IND 1.1.0 | E43: 110 | F43: IND 1.1.0 | G43: F | H43: 5 | I43: 5 | J43: =VLOOKUP(VLOOKUP(E43,Feuil1!B:C,2,FALSE),Data!AD:AG,4,FALSE) -> 1 | K43: C | L43: 19 | N43: 42 | O43: 5 | P43: =IF(ISNA(J43),"KO",IF(ISNA(VLOOKUP(E43&"_"&H43,Data!AH:AH,1,FALSE)),"KO","OK")) -> OK
A44: 1 | B44: Emploi | C44: Effectifs | D44: IND 1.1.0 | E44: 110 | F44: IND 1.1.0 | G44: G | H44: 5 | I44: 5 | J44: =VLOOKUP(VLOOKUP(E44,Feuil1!B:C,2,FALSE),Data!AD:AG,4,FALSE) -> 1 | K44: D | L44: 19 | N44: 43 | O44: 5 | P44: =IF(ISNA(J44),"KO",IF(ISNA(VLOOKUP(E44&"_"&H44,Data!AH:AH,1,FALSE)),"KO","OK")) -> OK
A45: 1 | B45: Emploi | C45: Effectifs | D45: IND 1.1.0 | E45: 110 | F45: IND 1.1.0 | G45: H | H45: 5 | I45: 5 | J45: =VLOOKUP(VLOOKUP(E45,Feuil1!B:C,2,FALSE),Data!AD:AG,4,FALSE) -> 1 | K45: E | L45: 19 | N45: 44 | O45: 5 | P45: =IF(ISNA(J45),"KO",IF(ISNA(VLOOKUP(E45&"_"&H45,Data!AH:AH,1,FALSE)),"KO","OK")) -> OK
A46: 1 | B46: Emploi | C46: Effectifs | D46: IND 1.1.0 | E46: 110 | F46: IND 1.1.0 | G46: I | H46: 5 | I46: 5 | J46: =VLOOKUP(VLOOKUP(E46,Feuil1!B:C,2,FALSE),Data!AD:AG,4,FALSE) -> 1 | K46: F | L46: 19 | N46: 45 | O46: 5 | P46: =IF(ISNA(J46),"KO",IF(ISNA(VLOOKUP(E46&"_"&H46,Data!AH:AH,1,FALSE)),"KO","OK")) -> OK
A47: 1 | B47: Emploi | C47: Effectifs | D47: IND 1.1.0 | E47: 110 | F47: IND 1.1.0 | G47: J | H47: 5 | I47: 5 | J47: =VLOOKUP(VLOOKUP(E47,Feuil1!B:C,2,FALSE),Data!AD:AG,4,FALSE) -> 1 | K47: G | L47: 19 | N47: 46 | O47: 5 | P47: =IF(ISNA(J47),"KO",IF(ISNA(VLOOKUP(E47&"_"&H47,Data!AH:AH,1,FALSE)),"KO","OK")) -> OK
A48: 1 | B48: Emploi | C48: Effectifs | D48: IND 1.1.0 | E48: 110 | F48: IND 1.1.0 | G48: K | H48: 5 | I48: 5 | J48: =VLOOKUP(VLOOKUP(E48,Feuil1!B:C,2,FALSE),Data!AD:AG,4,FALSE) -> 1 | K48: H | L48: 19 | N48: 47 | O48: 5 | P48: =IF(ISNA(J48),"KO",IF(ISNA(VLOOKUP(E48&"_"&H48,Data!AH:AH,1,FALSE)),"KO","OK")) -> OK
A49: 1 | B49: Emploi | C49: Effectifs | D49: IND 1.1.0 | E49: 110 | F49: IND 1.1.0 | G49: L | H49: 5 | I49: 5 | J49: =VLOOKUP(VLOOKUP(E49,Feuil1!B:C,2,FALSE),Data!AD:AG,4,FALSE) -> 1 | K49: I | L49: 19 | N49: 48 | O49: 5 | P49: =IF(ISNA(J49),"KO",IF(ISNA(VLOOKUP(E49&"_"&H49,Data!AH:AH,1,FALSE)),"KO","OK")) -> OK
A50: 1 | B50: Emploi | C50: Effectifs | D50: IND 1.1.0 | E50: 110 | F50: IND 1.1.0 | G50: M | H50: 5 | I50: 5 | J50: =VLOOKUP(VLOOKUP(E50,Feuil1!B:C,2,FALSE),Data!AD:AG,4,FALSE) -> 1 | K50: J | L50: 19 | N50: 49 | O50: 5 | P50: =IF(ISNA(J50),"KO",IF(ISNA(VLOOKUP(E50&"_"&H50,Data!AH:AH,1,FALSE)),"KO","OK")) -> OK
A51: 1 | B51: Emploi | C51: Effectifs | D51: IND 1.1.0 | E51: 110 | F51: IND 1.1.0 | G51: N | H51: 5 | I51: 5 | J51: =VLOOKUP(VLOOKUP(E51,Feuil1!B:C,2,FALSE),Data!AD:AG,4,FALSE) -> 1 | K51: K | L51: 19 | N51: 50 | O51: 5 | P51: =IF(ISNA(J51),"KO",IF(ISNA(VLOOKUP(E51&"_"&H51,Data!AH:AH,1,FALSE)),"KO","OK")) -> OK
A52: 1 | B52: Emploi | C52: Effectifs | D52: IND 1.1.0 | E52: 110 | F52: IND 1.1.0 | G52: E | H52: 6 | I52: 6 | J52: =VLOOKUP(VLOOKUP(E52,Feuil1!B:C,2,FALSE),Data!AD:AG,4,FALSE) -> 1 | K52: B | L52: 20 | N52: 51 | O52: 6 | P52: =IF(ISNA(J52),"KO",IF(ISNA(VLOOKUP(E52&"_"&H52,Data!AH:AH,1,FALSE)),"KO","OK")) -> OK
A53: 1 | B53: Emploi | C53: Effectifs | D53: IND 1.1.0 | E53: 110 | F53: IND 1.1.0 | G53: F | H53: 6 | I53: 6 | J53: =VLOOKUP(VLOOKUP(E53,Feuil1!B:C,2,FALSE),Data!AD:AG,4,FALSE) -> 1 | K53: C | L53: 20 | N53: 52 | O53: 6 | P53: =IF(ISNA(J53),"KO",IF(ISNA(VLOOKUP(E53&"_"&H53,Data!AH:AH,1,FALSE)),"KO","OK")) -> OK
A54: 1 | B54: Emploi | C54: Effectifs | D54: IND 1.1.0 | E54: 110 | F54: IND 1.1.0 | G54: G | H54: 6 | I54: 6 | J54: =VLOOKUP(VLOOKUP(E54,Feuil1!B:C,2,FALSE),Data!AD:AG,4,FALSE) -> 1 | K54: D | L54: 20 | N54: 53 | O54: 6 | P54: =IF(ISNA(J54),"KO",IF(ISNA(VLOOKUP(E54&"_"&H54,Data!AH:AH,1,FALSE)),"KO","OK")) -> OK
A55: 1 | B55: Emploi | C55: Effectifs | D55: IND 1.1.0 | E55: 110 | F55: IND 1.1.0 | G55: H | H55: 6 | I55: 6 | J55: =VLOOKUP(VLOOKUP(E55,Feuil1!B:C,2,FALSE),Data!AD:AG,4,FALSE) -> 1 | K55: E | L55: 20 | N55: 54 | O55: 6 | P55: =IF(ISNA(J55),"KO",IF(ISNA(VLOOKUP(E55&"_"&H55,Data!AH:AH,1,FALSE)),"KO","OK")) -> OK
A56: 1 | B56: Emploi | C56: Effectifs | D56: IND 1.1.0 | E56: 110 | F56: IND 1.1.0 | G56: I | H56: 6 | I56: 6 | J56: =VLOOKUP(VLOOKUP(E56,Feuil1!B:C,2,FALSE),Data!AD:AG,4,FALSE) -> 1 | K56: F | L56: 20 | N56: 55 | O56: 6 | P56: =IF(ISNA(J56),"KO",IF(ISNA(VLOOKUP(E56&"_"&H56,Data!AH:AH,1,FALSE)),"KO","OK")) -> OK
A57: 1 | B57: Emploi | C57: Effectifs | D57: IND 1.1.0 | E57: 110 | F57: IND 1.1.0 | G57: J | H57: 6 | I57: 6 | J57: =VLOOKUP(VLOOKUP(E57,Feuil1!B:C,2,FALSE),Data!AD:AG,4,FALSE) -> 1 | K57: G | L57: 20 | N57: 56 | O57: 6 | P57: =IF(ISNA(J57),"KO",IF(ISNA(VLOOKUP(E57&"_"&H57,Data!AH:AH,1,FALSE)),"KO","OK")) -> OK
A58: 1 | B58: Emploi | C58: Effectifs | D58: IND 1.1.0 | E58: 110 | F58: IND 1.1.0 | G58: K | H58: 6 | I58: 6 | J58: =VLOOKUP(VLOOKUP(E58,Feuil1!B:C,2,FALSE),Data!AD:AG,4,FALSE) -> 1 | K58: H | L58: 20 | N58: 57 | O58: 6 | P58: =IF(ISNA(J58),"KO",IF(ISNA(VLOOKUP(E58&"_"&H58,Data!AH:AH,1,FALSE)),"KO","OK")) -> OK
A59: 1 | B59: Emploi | C59: Effectifs | D59: IND 1.1.0 | E59: 110 | F59: IND 1.1.0 | G59: L | H59: 6 | I59: 6 | J59: =VLOOKUP(VLOOKUP(E59,Feuil1!B:C,2,FALSE),Data!AD:AG,4,FALSE) -> 1 | K59: I | L59: 20 | N59: 58 | O59: 6 | P59: =IF(ISNA(J59),"KO",IF(ISNA(VLOOKUP(E59&"_"&H59,Data!AH:AH,1,FALSE)),"KO","OK")) -> OK
A60: 1 | B60: Emploi | C60: Effectifs | D60: IND 1.1.0 | E60: 110 | F60: IND 1.1.0 | G60: M | H60: 6 | I60: 6 | J60: =VLOOKUP(VLOOKUP(E60,Feuil1!B:C,2,FALSE),Data!AD:AG,4,FALSE) -> 1 | K60: J | L60: 20 | N60: 59 | O60: 6 | P60: =IF(ISNA(J60),"KO",IF(ISNA(VLOOKUP(E60&"_"&H60,Data!AH:AH,1,FALSE)),"KO","OK")) -> OK
A61: 1 | B61: Emploi | C61: Effectifs | D61: IND 1.1.0 | E61: 110 | F61: IND 1.1.0 | G61: N | H61: 6 | I61: 6 | J61: =VLOOKUP(VLOOKUP(E61,Feuil1!B:C,2,FALSE),Data!AD:AG,4,FALSE) -> 1 | K61: K | L61: 20 | N61: 60 | O61: 6 | P61: =IF(ISNA(J61),"KO",IF(ISNA(VLOOKUP(E61&"_"&H61,Data!AH:AH,1,FALSE)),"KO","OK")) -> OK
A62: 1 | B62: Emploi | C62: Effectifs | D62: IND 1.1.0 | E62: 110 | F62: IND 1.1.0 | G62: E | H62: 7 | I62: 7 | J62: =VLOOKUP(VLOOKUP(E62,Feuil1!B:C,2,FALSE),Data!AD:AG,4,FALSE) -> 1 | K62: B | L62: 28 | N62: 61 | O62: 7 | P62: =IF(ISNA(J62),"KO",IF(ISNA(VLOOKUP(E62&"_"&H62,Data!AH:AH,1,FALSE)),"KO","OK")) -> OK
A63: 1 | B63: Emploi | C63: Effectifs | D63: IND 1.1.0 | E63: 110 | F63: IND 1.1.0 | G63: F | H63: 7 | I63: 7 | J63: =VLOOKUP(VLOOKUP(E63,Feuil1!B:C,2,FALSE),Data!AD:AG,4,FALSE) -> 1 | K63: C | L63: 28 | N63: 62 | O63: 7 | P63: =IF(ISNA(J63),"KO",IF(ISNA(VLOOKUP(E63&"_"&H63,Data!AH:AH,1,FALSE)),"KO","OK")) -> OK
A64: 1 | B64: Emploi | C64: Effectifs | D64: IND 1.1.0 | E64: 110 | F64: IND 1.1.0 | G64: G | H64: 7 | I64: 7 | J64: =VLOOKUP(VLOOKUP(E64,Feuil1!B:C,2,FALSE),Data!AD:AG,4,FALSE) -> 1 | K64: D | L64: 28 | N64: 63 | O64: 7 | P64: =IF(ISNA(J64),"KO",IF(ISNA(VLOOKUP(E64&"_"&H64,Data!AH:AH,1,FALSE)),"KO","OK")) -> OK
A65: 1 | B65: Emploi | C65: Effectifs | D65: IND 1.1.0 | E65: 110 | F65: IND 1.1.0 | G65: H | H65: 7 | I65: 7 | J65: =VLOOKUP(VLOOKUP(E65,Feuil1!B:C,2,FALSE),Data!AD:AG,4,FALSE) -> 1 | K65: E | L65: 28 | N65: 64 | O65: 7 | P65: =IF(ISNA(J65),"KO",IF(ISNA(VLOOKUP(E65&"_"&H65,Data!AH:AH,1,FALSE)),"KO","OK")) -> OK
A66: 1 | B66: Emploi | C66: Effectifs | D66: IND 1.1.0 | E66: 110 | F66: IND 1.1.0 | G66: I | H66: 7 | I66: 7 | J66: =VLOOKUP(VLOOKUP(E66,Feuil1!B:C,2,FALSE),Data!AD:AG,4,FALSE) -> 1 | K66: F | L66: 28 | N66: 65 | O66: 7 | P66: =IF(ISNA(J66),"KO",IF(ISNA(VLOOKUP(E66&"_"&H66,Data!AH:AH,1,FALSE)),"KO","OK")) -> OK
A67: 1 | B67: Emploi | C67: Effectifs | D67: IND 1.1.0 | E67: 110 | F67: IND 1.1.0 | G67: J | H67: 7 | I67: =IF(H67=1,J67,H67+J67-1) -> 7 | J67: =VLOOKUP(VLOOKUP(E67,Feuil1!B:C,2,FALSE),Data!AD:AG,4,FALSE) -> 1 | K67: G | L67: 28 | N67: 66 | O67: =H67 -> 7 | P67: =IF(ISNA(J67),"KO",IF(ISNA(VLOOKUP(E67&"_"&H67,Data!AH:AH,1,FALSE)),"KO","OK")) -> OK
A68: 1 | B68: Emploi | C68: Effectifs | D68: IND 1.1.0 | E68: 110 | F68: IND 1.1.0 | G68: K | H68: 7 | I68: 7 | J68: =VLOOKUP(VLOOKUP(E68,Feuil1!B:C,2,FALSE),Data!AD:AG,4,FALSE) -> 1 | K68: H | L68: 28 | N68: 67 | O68: 7 | P68: =IF(ISNA(J68),"KO",IF(ISNA(VLOOKUP(E68&"_"&H68,Data!AH:AH,1,FALSE)),"KO","OK")) -> OK
A69: 1 | B69: Emploi | C69: Effectifs | D69: IND 1.1.0 | E69: 110 | F69: IND 1.1.0 | G69: L | H69: 7 | I69: 7 | J69: =VLOOKUP(VLOOKUP(E69,Feuil1!B:C,2,FALSE),Data!AD:AG,4,FALSE) -> 1 | K69: I | L69: 28 | N69: 68 | O69: 7 | P69: =IF(ISNA(J69),"KO",IF(ISNA(VLOOKUP(E69&"_"&H69,Data!AH:AH,1,FALSE)),"KO","OK")) -> OK
A70: 1 | B70: Emploi | C70: Effectifs | D70: IND 1.1.0 | E70: 110 | F70: IND 1.1.0 | G70: M | H70: 7 | I70: 7 | J70: =VLOOKUP(VLOOKUP(E70,Feuil1!B:C,2,FALSE),Data!AD:AG,4,FALSE) -> 1 | K70: J | L70: 28 | N70: 69 | O70: 7 | P70: =IF(ISNA(J70),"KO",IF(ISNA(VLOOKUP(E70&"_"&H70,Data!AH:AH,1,FALSE)),"KO","OK")) -> OK
A71: 1 | B71: Emploi | C71: Effectifs | D71: IND 1.1.0 | E71: 110 | F71: IND 1.1.0 | G71: N | H71: 7 | I71: 7 | J71: =VLOOKUP(VLOOKUP(E71,Feuil1!B:C,2,FALSE),Data!AD:AG,4,FALSE) -> 1 | K71: K | L71: 28 | N71: 70 | O71: 7 | P71: =IF(ISNA(J71),"KO",IF(ISNA(VLOOKUP(E71&"_"&H71,Data!AH:AH,1,FALSE)),"KO","OK")) -> OK
A72: 1 | B72: Emploi | C72: Effectifs | D72: IND 1.1.0 | E72: 110 | F72: IND 1.1.0 | G72: E | H72: 8 | I72: 8 | J72: =VLOOKUP(VLOOKUP(E72,Feuil1!B:C,2,FALSE),Data!AD:AG,4,FALSE) -> 1 | K72: B | L72: 29 | N72: 71 | O72: 8 | P72: =IF(ISNA(J72),"KO",IF(ISNA(VLOOKUP(E72&"_"&H72,Data!AH:AH,1,FALSE)),"KO","OK")) -> OK
A73: 1 | B73: Emploi | C73: Effectifs | D73: IND 1.1.0 | E73: 110 | F73: IND 1.1.0 | G73: F | H73: 8 | I73: 8 | J73: =VLOOKUP(VLOOKUP(E73,Feuil1!B:C,2,FALSE),Data!AD:AG,4,FALSE) -> 1 | K73: C | L73: 29 | N73: 72 | O73: 8 | P73: =IF(ISNA(J73),"KO",IF(ISNA(VLOOKUP(E73&"_"&H73,Data!AH:AH,1,FALSE)),"KO","OK")) -> OK
A74: 1 | B74: Emploi | C74: Effectifs | D74: IND 1.1.0 | E74: 110 | F74: IND 1.1.0 | G74: G | H74: 8 | I74: 8 | J74: =VLOOKUP(VLOOKUP(E74,Feuil1!B:C,2,FALSE),Data!AD:AG,4,FALSE) -> 1 | K74: D | L74: 29 | N74: 73 | O74: 8 | P74: =IF(ISNA(J74),"KO",IF(ISNA(VLOOKUP(E74&"_"&H74,Data!AH:AH,1,FALSE)),"KO","OK")) -> OK
A75: 1 | B75: Emploi | C75: Effectifs | D75: IND 1.1.0 | E75: 110 | F75: IND 1.1.0 | G75: H | H75: 8 | I75: 8 | J75: =VLOOKUP(VLOOKUP(E75,Feuil1!B:C,2,FALSE),Data!AD:AG,4,FALSE) -> 1 | K75: E | L75: 29 | N75: 74 | O75: 8 | P75: =IF(ISNA(J75),"KO",IF(ISNA(VLOOKUP(E75&"_"&H75,Data!AH:AH,1,FALSE)),"KO","OK")) -> OK
A76: 1 | B76: Emploi | C76: Effectifs | D76: IND 1.1.0 | E76: 110 | F76: IND 1.1.0 | G76: I | H76: 8 | I76: 8 | J76: =VLOOKUP(VLOOKUP(E76,Feuil1!B:C,2,FALSE),Data!AD:AG,4,FALSE) -> 1 | K76: F | L76: 29 | N76: 75 | O76: 8 | P76: =IF(ISNA(J76),"KO",IF(ISNA(VLOOKUP(E76&"_"&H76,Data!AH:AH,1,FALSE)),"KO","OK")) -> OK
A77: 1 | B77: Emploi | C77: Effectifs | D77: IND 1.1.0 | E77: 110 | F77: IND 1.1.0 | G77: J | H77: 8 | I77: 8 | J77: =VLOOKUP(VLOOKUP(E77,Feuil1!B:C,2,FALSE),Data!AD:AG,4,FALSE) -> 1 | K77: G | L77: 29 | N77: 76 | O77: 8 | P77: =IF(ISNA(J77),"KO",IF(ISNA(VLOOKUP(E77&"_"&H77,Data!AH:AH,1,FALSE)),"KO","OK")) -> OK
A78: 1 | B78: Emploi | C78: Effectifs | D78: IND 1.1.0 | E78: 110 | F78: IND 1.1.0 | G78: K | H78: 8 | I78: 8 | J78: =VLOOKUP(VLOOKUP(E78,Feuil1!B:C,2,FALSE),Data!AD:AG,4,FALSE) -> 1 | K78: H | L78: 29 | N78: 77 | O78: 8 | P78: =IF(ISNA(J78),"KO",IF(ISNA(VLOOKUP(E78&"_"&H78,Data!AH:AH,1,FALSE)),"KO","OK")) -> OK
A79: 1 | B79: Emploi | C79: Effectifs | D79: IND 1.1.0 | E79: 110 | F79: IND 1.1.0 | G79: L | H79: 8 | I79: 8 | J79: =VLOOKUP(VLOOKUP(E79,Feuil1!B:C,2,FALSE),Data!AD:AG,4,FALSE) -> 1 | K79: I | L79: 29 | N79: 78 | O79: 8 | P79: =IF(ISNA(J79),"KO",IF(ISNA(VLOOKUP(E79&"_"&H79,Data!AH:AH,1,FALSE)),"KO","OK")) -> OK
A80: 1 | B80: Emploi | C80: Effectifs | D80: IND 1.1.0 | E80: 110 | F80: IND 1.1.0 | G80: M | H80: 8 | I80: 8 | J80: =VLOOKUP(VLOOKUP(E80,Feuil1!B:C,2,FALSE),Data!AD:AG,4,FALSE) -> 1 | K80: J | L80: 29 | N80: 79 | O80: 8 | P80: =IF(ISNA(J80),"KO",IF(ISNA(VLOOKUP(E80&"_"&H80,Data!AH:AH,1,FALSE)),"KO","OK")) -> OK
A81: 1 | B81: Emploi | C81: Effectifs | D81: IND 1.1.0 | E81: 110 | F81: IND 1.1.0 | G81: N | H81: 8 | I81: 8 | J81: =VLOOKUP(VLOOKUP(E81,Feuil1!B:C,2,FALSE),Data!AD:AG,4,FALSE) -> 1 | K81: K | L81: 29 | N81: 80 | O81: 8 | P81: =IF(ISNA(J81),"KO",IF(ISNA(VLOOKUP(E81&"_"&H81,Data!AH:AH,1,FALSE)),"KO","OK")) -> OK
A82: 1 | B82: Emploi | C82: Effectifs | D82: IND 1.1.0 | E82: 110 | F82: IND 1.1.0 | G82: E | H82: 9 | I82: 9 | J82: =VLOOKUP(VLOOKUP(E82,Feuil1!B:C,2,FALSE),Data!AD:AG,4,FALSE) -> 1 | K82: B | L82: 31 | N82: 81 | O82: 9 | P82: =IF(ISNA(J82),"KO",IF(ISNA(VLOOKUP(E82&"_"&H82,Data!AH:AH,1,FALSE)),"KO","OK")) -> OK
A83: 1 | B83: Emploi | C83: Effectifs | D83: IND 1.1.0 | E83: 110 | F83: IND 1.1.0 | G83: F | H83: 9 | I83: 9 | J83: =VLOOKUP(VLOOKUP(E83,Feuil1!B:C,2,FALSE),Data!AD:AG,4,FALSE) -> 1 | K83: C | L83: 31 | N83: 82 | O83: 9 | P83: =IF(ISNA(J83),"KO",IF(ISNA(VLOOKUP(E83&"_"&H83,Data!AH:AH,1,FALSE)),"KO","OK")) -> OK
A84: 1 | B84: Emploi | C84: Effectifs | D84: IND 1.1.0 | E84: 110 | F84: IND 1.1.0 | G84: G | H84: 9 | I84: 9 | J84: =VLOOKUP(VLOOKUP(E84,Feuil1!B:C,2,FALSE),Data!AD:AG,4,FALSE) -> 1 | K84: D | L84: 31 | N84: 83 | O84: 9 | P84: =IF(ISNA(J84),"KO",IF(ISNA(VLOOKUP(E84&"_"&H84,Data!AH:AH,1,FALSE)),"KO","OK")) -> OK
A85: 1 | B85: Emploi | C85: Effectifs | D85: IND 1.1.0 | E85: 110 | F85: IND 1.1.0 | G85: H | H85: 9 | I85: 9 | J85: =VLOOKUP(VLOOKUP(E85,Feuil1!B:C,2,FALSE),Data!AD:AG,4,FALSE) -> 1 | K85: E | L85: 31 | N85: 84 | O85: 9 | P85: =IF(ISNA(J85),"KO",IF(ISNA(VLOOKUP(E85&"_"&H85,Data!AH:AH,1,FALSE)),"KO","OK")) -> OK
A86: 1 | B86: Emploi | C86: Effectifs | D86: IND 1.1.0 | E86: 110 | F86: IND 1.1.0 | G86: I | H86: 9 | I86: 9 | J86: =VLOOKUP(VLOOKUP(E86,Feuil1!B:C,2,FALSE),Data!AD:AG,4,FALSE) -> 1 | K86: F | L86: 31 | N86: 85 | O86: 9 | P86: =IF(ISNA(J86),"KO",IF(ISNA(VLOOKUP(E86&"_"&H86,Data!AH:AH,1,FALSE)),"KO","OK")) -> OK
A87: 1 | B87: Emploi | C87: Effectifs | D87: IND 1.1.0 | E87: 110 | F87: IND 1.1.0 | G87: J | H87: 9 | I87: 9 | J87: =VLOOKUP(VLOOKUP(E87,Feuil1!B:C,2,FALSE),Data!AD:AG,4,FALSE) -> 1 | K87: G | L87: 31 | N87: 86 | O87: 9 | P87: =IF(ISNA(J87),"KO",IF(ISNA(VLOOKUP(E87&"_"&H87,Data!AH:AH,1,FALSE)),"KO","OK")) -> OK
A88: 1 | B88: Emploi | C88: Effectifs | D88: IND 1.1.0 | E88: 110 | F88: IND 1.1.0 | G88: K | H88: 9 | I88: 9 | J88: =VLOOKUP(VLOOKUP(E88,Feuil1!B:C,2,FALSE),Data!AD:AG,4,FALSE) -> 1 | K88: H | L88: 31 | N88: 87 | O88: 9 | P88: =IF(ISNA(J88),"KO",IF(ISNA(VLOOKUP(E88&"_"&H88,Data!AH:AH,1,FALSE)),"KO","OK")) -> OK
A89: 1 | B89: Emploi | C89: Effectifs | D89: IND 1.1.0 | E89: 110 | F89: IND 1.1.0 | G89: L | H89: 9 | I89: 9 | J89: =VLOOKUP(VLOOKUP(E89,Feuil1!B:C,2,FALSE),Data!AD:AG,4,FALSE) -> 1 | K89: I | L89: 31 | N89: 88 | O89: 9 | P89: =IF(ISNA(J89),"KO",IF(ISNA(VLOOKUP(E89&"_"&H89,Data!AH:AH,1,FALSE)),"KO","OK")) -> OK
A90: 1 | B90: Emploi | C90: Effectifs | D90: IND 1.1.0 | E90: 110 | F90: IND 1.1.0 | G90: M | H90: 9 | I90: 9 | J90: =VLOOKUP(VLOOKUP(E90,Feuil1!B:C,2,FALSE),Data!AD:AG,4,FALSE) -> 1 | K90: J | L90: 31 | N90: 89 | O90: 9 | P90: =IF(ISNA(J90),"KO",IF(ISNA(VLOOKUP(E90&"_"&H90,Data!AH:AH,1,FALSE)),"KO","OK")) -> OK
A91: 1 | B91: Emploi | C91: Effectifs | D91: IND 1.1.0 | E91: 110 | F91: IND 1.1.0 | G91: N | H91: 9 | I91: 9 | J91: =VLOOKUP(VLOOKUP(E91,Feuil1!B:C,2,FALSE),Data!AD:AG,4,FALSE) -> 1 | K91: K | L91: 31 | N91: 90 | O91: 9 | P91: =IF(ISNA(J91),"KO",IF(ISNA(VLOOKUP(E91&"_"&H91,Data!AH:AH,1,FALSE)),"KO","OK")) -> OK
A92: 1 | B92: Emploi | C92: Effectifs | D92: IND 1.1.0 | E92: 110 | F92: IND 1.1.0 | G92: E | H92: 10 | I92: 10 | J92: =VLOOKUP(VLOOKUP(E92,Feuil1!B:C,2,FALSE),Data!AD:AG,4,FALSE) -> 1 | K92: B | L92: 32 | N92: 91 | O92: 10 | P92: =IF(ISNA(J92),"KO",IF(ISNA(VLOOKUP(E92&"_"&H92,Data!AH:AH,1,FALSE)),"KO","OK")) -> OK
A93: 1 | B93: Emploi | C93: Effectifs | D93: IND 1.1.0 | E93: 110 | F93: IND 1.1.0 | G93: F | H93: 10 | I93: 10 | J93: =VLOOKUP(VLOOKUP(E93,Feuil1!B:C,2,FALSE),Data!AD:AG,4,FALSE) -> 1 | K93: C | L93: 32 | N93: 92 | O93: 10 | P93: =IF(ISNA(J93),"KO",IF(ISNA(VLOOKUP(E93&"_"&H93,Data!AH:AH,1,FALSE)),"KO","OK")) -> OK
A94: 1 | B94: Emploi | C94: Effectifs | D94: IND 1.1.0 | E94: 110 | F94: IND 1.1.0 | G94: G | H94: 10 | I94: 10 | J94: =VLOOKUP(VLOOKUP(E94,Feuil1!B:C,2,FALSE),Data!AD:AG,4,FALSE) -> 1 | K94: D | L94: 32 | N94: 93 | O94: 10 | P94: =IF(ISNA(J94),"KO",IF(ISNA(VLOOKUP(E94&"_"&H94,Data!AH:AH,1,FALSE)),"KO","OK")) -> OK
A95: 1 | B95: Emploi | C95: Effectifs | D95: IND 1.1.0 | E95: 110 | F95: IND 1.1.0 | G95: H | H95: 10 | I95: 10 | J95: =VLOOKUP(VLOOKUP(E95,Feuil1!B:C,2,FALSE),Data!AD:AG,4,FALSE) -> 1 | K95: E | L95: 32 | N95: 94 | O95: 10 | P95: =IF(ISNA(J95),"KO",IF(ISNA(VLOOKUP(E95&"_"&H95,Data!AH:AH,1,FALSE)),"KO","OK")) -> OK
A96: 1 | B96: Emploi | C96: Effectifs | D96: IND 1.1.0 | E96: 110 | F96: IND 1.1.0 | G96: I | H96: 10 | I96: 10 | J96: =VLOOKUP(VLOOKUP(E96,Feuil1!B:C,2,FALSE),Data!AD:AG,4,FALSE) -> 1 | K96: F | L96: 32 | N96: 95 | O96: 10 | P96: =IF(ISNA(J96),"KO",IF(ISNA(VLOOKUP(E96&"_"&H96,Data!AH:AH,1,FALSE)),"KO","OK")) -> OK
A97: 1 | B97: Emploi | C97: Effectifs | D97: IND 1.1.0 | E97: 110 | F97: IND 1.1.0 | G97: J | H97: 10 | I97: 10 | J97: =VLOOKUP(VLOOKUP(E97,Feuil1!B:C,2,FALSE),Data!AD:AG,4,FALSE) -> 1 | K97: G | L97: 32 | N97: 96 | O97: 10 | P97: =IF(ISNA(J97),"KO",IF(ISNA(VLOOKUP(E97&"_"&H97,Data!AH:AH,1,FALSE)),"KO","OK")) -> OK
A98: 1 | B98: Emploi | C98: Effectifs | D98: IND 1.1.0 | E98: 110 | F98: IND 1.1.0 | G98: K | H98: 10 | I98: 10 | J98: =VLOOKUP(VLOOKUP(E98,Feuil1!B:C,2,FALSE),Data!AD:AG,4,FALSE) -> 1 | K98: H | L98: 32 | N98: 97 | O98: 10 | P98: =IF(ISNA(J98),"KO",IF(ISNA(VLOOKUP(E98&"_"&H98,Data!AH:AH,1,FALSE)),"KO","OK")) -> OK
A99: 1 | B99: Emploi | C99: Effectifs | D99: IND 1.1.0 | E99: 110 | F99: IND 1.1.0 | G99: L | H99: 10 | I99: 10 | J99: =VLOOKUP(VLOOKUP(E99,Feuil1!B:C,2,FALSE),Data!AD:AG,4,FALSE) -> 1 | K99: I | L99: 32 | N99: 98 | O99: 10 | P99: =IF(ISNA(J99),"KO",IF(ISNA(VLOOKUP(E99&"_"&H99,Data!AH:AH,1,FALSE)),"KO","OK")) -> OK
A100: 1 | B100: Emploi | C100: Effectifs | D100: IND 1.1.0 | E100: 110 | F100: IND 1.1.0 | G100: M | H100: 10 | I100: 10 | J100: =VLOOKUP(VLOOKUP(E100,Feuil1!B:C,2,FALSE),Data!AD:AG,4,FALSE) -> 1 | K100: J | L100: 32 | N100: 99 | O100: 10 | P100: =IF(ISNA(J100),"KO",IF(ISNA(VLOOKUP(E100&"_"&H100,Data!AH:AH,1,FALSE)),"KO","OK")) -> OK
A101: 1 | B101: Emploi | C101: Effectifs | D101: IND 1.1.0 | E101: 110 | F101: IND 1.1.0 | G101: N | H101: 10 | I101: 10 | J101: =VLOOKUP(VLOOKUP(E101,Feuil1!B:C,2,FALSE),Data!AD:AG,4,FALSE) -> 1 | K101: K | L101: 32 | N101: 100 | O101: 10 | P101: =IF(ISNA(J101),"KO",IF(ISNA(VLOOKUP(E101&"_"&H101,Data!AH:AH,1,FALSE)),"KO","OK")) -> OK
A102: 1 | B102: Emploi | C102: Effectifs | D102: IND 1.1.0 | E102: 110 | F102: IND 1.1.0 | G102: E | H102: 11 | I102: 11 | J102: =VLOOKUP(VLOOKUP(E102,Feuil1!B:C,2,FALSE),Data!AD:AG,4,FALSE) -> 1 | K102: B | L102: 34 | N102: 101 | O102: 11 | P102: =IF(ISNA(J102),"KO",IF(ISNA(VLOOKUP(E102&"_"&H102,Data!AH:AH,1,FALSE)),"KO","OK")) -> OK
A103: 1 | B103: Emploi | C103: Effectifs | D103: IND 1.1.0 | E103: 110 | F103: IND 1.1.0 | G103: F | H103: 11 | I103: 11 | J103: =VLOOKUP(VLOOKUP(E103,Feuil1!B:C,2,FALSE),Data!AD:AG,4,FALSE) -> 1 | K103: C | L103: 34 | N103: 102 | O103: 11 | P103: =IF(ISNA(J103),"KO",IF(ISNA(VLOOKUP(E103&"_"&H103,Data!AH:AH,1,FALSE)),"KO","OK")) -> OK
A104: 1 | B104: Emploi | C104: Effectifs | D104: IND 1.1.0 | E104: 110 | F104: IND 1.1.0 | G104: G | H104: 11 | I104: 11 | J104: =VLOOKUP(VLOOKUP(E104,Feuil1!B:C,2,FALSE),Data!AD:AG,4,FALSE) -> 1 | K104: D | L104: 34 | N104: 103 | O104: 11 | P104: =IF(ISNA(J104),"KO",IF(ISNA(VLOOKUP(E104&"_"&H104,Data!AH:AH,1,FALSE)),"KO","OK")) -> OK
A105: 1 | B105: Emploi | C105: Effectifs | D105: IND 1.1.0 | E105: 110 | F105: IND 1.1.0 | G105: H | H105: 11 | I105: 11 | J105: =VLOOKUP(VLOOKUP(E105,Feuil1!B:C,2,FALSE),Data!AD:AG,4,FALSE) -> 1 | K105: E | L105: 34 | N105: 104 | O105: 11 | P105: =IF(ISNA(J105),"KO",IF(ISNA(VLOOKUP(E105&"_"&H105,Data!AH:AH,1,FALSE)),"KO","OK")) -> OK
A106: 1 | B106: Emploi | C106: Effectifs | D106: IND 1.1.0 | E106: 110 | F106: IND 1.1.0 | G106: I | H106: 11 | I106: 11 | J106: =VLOOKUP(VLOOKUP(E106,Feuil1!B:C,2,FALSE),Data!AD:AG,4,FALSE) -> 1 | K106: F | L106: 34 | N106: 105 | O106: 11 | P106: =IF(ISNA(J106),"KO",IF(ISNA(VLOOKUP(E106&"_"&H106,Data!AH:AH,1,FALSE)),"KO","OK")) -> OK
A107: 1 | B107: Emploi | C107: Effectifs | D107: IND 1.1.0 | E107: 110 | F107: IND 1.1.0 | G107: J | H107: 11 | I107: 11 | J107: =VLOOKUP(VLOOKUP(E107,Feuil1!B:C,2,FALSE),Data!AD:AG,4,FALSE) -> 1 | K107: G | L107: 34 | N107: 106 | O107: 11 | P107: =IF(ISNA(J107),"KO",IF(ISNA(VLOOKUP(E107&"_"&H107,Data!AH:AH,1,FALSE)),"KO","OK")) -> OK
A108: 1 | B108: Emploi | C108: Effectifs | D108: IND 1.1.0 | E108: 110 | F108: IND 1.1.0 | G108: K | H108: 11 | I108: 11 | J108: =VLOOKUP(VLOOKUP(E108,Feuil1!B:C,2,FALSE),Data!AD:AG,4,FALSE) -> 1 | K108: H | L108: 34 | N108: 107 | O108: 11 | P108: =IF(ISNA(J108),"KO",IF(ISNA(VLOOKUP(E108&"_"&H108,Data!AH:AH,1,FALSE)),"KO","OK")) -> OK
A109: 1 | B109: Emploi | C109: Effectifs | D109: IND 1.1.0 | E109: 110 | F109: IND 1.1.0 | G109: L | H109: 11 | I109: 11 | J109: =VLOOKUP(VLOOKUP(E109,Feuil1!B:C,2,FALSE),Data!AD:AG,4,FALSE) -> 1 | K109: I | L109: 34 | N109: 108 | O109: 11 | P109: =IF(ISNA(J109),"KO",IF(ISNA(VLOOKUP(E109&"_"&H109,Data!AH:AH,1,FALSE)),"KO","OK")) -> OK
A110: 1 | B110: Emploi | C110: Effectifs | D110: IND 1.1.0 | E110: 110 | F110: IND 1.1.0 | G110: M | H110: 11 | I110: 11 | J110: =VLOOKUP(VLOOKUP(E110,Feuil1!B:C,2,FALSE),Data!AD:AG,4,FALSE) -> 1 | K110: J | L110: 34 | N110: 109 | O110: 11 | P110: =IF(ISNA(J110),"KO",IF(ISNA(VLOOKUP(E110&"_"&H110,Data!AH:AH,1,FALSE)),"KO","OK")) -> OK
A111: 1 | B111: Emploi | C111: Effectifs | D111: IND 1.1.0 | E111: 110 | F111: IND 1.1.0 | G111: N | H111: 11 | I111: 11 | J111: =VLOOKUP(VLOOKUP(E111,Feuil1!B:C,2,FALSE),Data!AD:AG,4,FALSE) -> 1 | K111: K | L111: 34 | N111: 110 | O111: 11 | P111: =IF(ISNA(J111),"KO",IF(ISNA(VLOOKUP(E111&"_"&H111,Data!AH:AH,1,FALSE)),"KO","OK")) -> OK
A112: 1 | B112: Emploi | C112: Effectifs | D112: IND 1.1.0 | E112: 110 | F112: IND 1.1.0 | G112: E | H112: 12 | I112: 12 | J112: =VLOOKUP(VLOOKUP(E112,Feuil1!B:C,2,FALSE),Data!AD:AG,4,FALSE) -> 1 | K112: B | L112: 35 | N112: 111 | O112: 12 | P112: =IF(ISNA(J112),"KO",IF(ISNA(VLOOKUP(E112&"_"&H112,Data!AH:AH,1,FALSE)),"KO","OK")) -> OK
A113: 1 | B113: Emploi | C113: Effectifs | D113: IND 1.1.0 | E113: 110 | F113: IND 1.1.0 | G113: F | H113: 12 | I113: 12 | J113: =VLOOKUP(VLOOKUP(E113,Feuil1!B:C,2,FALSE),Data!AD:AG,4,FALSE) -> 1 | K113: C | L113: 35 | N113: 112 | O113: 12 | P113: =IF(ISNA(J113),"KO",IF(ISNA(VLOOKUP(E113&"_"&H113,Data!AH:AH,1,FALSE)),"KO","OK")) -> OK
A114: 1 | B114: Emploi | C114: Effectifs | D114: IND 1.1.0 | E114: 110 | F114: IND 1.1.0 | G114: G | H114: 12 | I114: 12 | J114: =VLOOKUP(VLOOKUP(E114,Feuil1!B:C,2,FALSE),Data!AD:AG,4,FALSE) -> 1 | K114: D | L114: 35 | N114: 113 | O114: 12 | P114: =IF(ISNA(J114),"KO",IF(ISNA(VLOOKUP(E114&"_"&H114,Data!AH:AH,1,FALSE)),"KO","OK")) -> OK
A115: 1 | B115: Emploi | C115: Effectifs | D115: IND 1.1.0 | E115: 110 | F115: IND 1.1.0 | G115: H | H115: 12 | I115: 12 | J115: =VLOOKUP(VLOOKUP(E115,Feuil1!B:C,2,FALSE),Data!AD:AG,4,FALSE) -> 1 | K115: E | L115: 35 | N115: 114 | O115: 12 | P115: =IF(ISNA(J115),"KO",IF(ISNA(VLOOKUP(E115&"_"&H115,Data!AH:AH,1,FALSE)),"KO","OK")) -> OK
A116: 1 | B116: Emploi | C116: Effectifs | D116: IND 1.1.0 | E116: 110 | F116: IND 1.1.0 | G116: I | H116: 12 | I116: 12 | J116: =VLOOKUP(VLOOKUP(E116,Feuil1!B:C,2,FALSE),Data!AD:AG,4,FALSE) -> 1 | K116: F | L116: 35 | N116: 115 | O116: 12 | P116: =IF(ISNA(J116),"KO",IF(ISNA(VLOOKUP(E116&"_"&H116,Data!AH:AH,1,FALSE)),"KO","OK")) -> OK
A117: 1 | B117: Emploi | C117: Effectifs | D117: IND 1.1.0 | E117: 110 | F117: IND 1.1.0 | G117: J | H117: 12 | I117: 12 | J117: =VLOOKUP(VLOOKUP(E117,Feuil1!B:C,2,FALSE),Data!AD:AG,4,FALSE) -> 1 | K117: G | L117: 35 | N117: 116 | O117: 12 | P117: =IF(ISNA(J117),"KO",IF(ISNA(VLOOKUP(E117&"_"&H117,Data!AH:AH,1,FALSE)),"KO","OK")) -> OK
A118: 1 | B118: Emploi | C118: Effectifs | D118: IND 1.1.0 | E118: 110 | F118: IND 1.1.0 | G118: K | H118: 12 | I118: 12 | J118: =VLOOKUP(VLOOKUP(E118,Feuil1!B:C,2,FALSE),Data!AD:AG,4,FALSE) -> 1 | K118: H | L118: 35 | N118: 117 | O118: 12 | P118: =IF(ISNA(J118),"KO",IF(ISNA(VLOOKUP(E118&"_"&H118,Data!AH:AH,1,FALSE)),"KO","OK")) -> OK
A119: 1 | B119: Emploi | C119: Effectifs | D119: IND 1.1.0 | E119: 110 | F119: IND 1.1.0 | G119: L | H119: 12 | I119: 12 | J119: =VLOOKUP(VLOOKUP(E119,Feuil1!B:C,2,FALSE),Data!AD:AG,4,FALSE) -> 1 | K119: I | L119: 35 | N119: 118 | O119: 12 | P119: =IF(ISNA(J119),"KO",IF(ISNA(VLOOKUP(E119&"_"&H119,Data!AH:AH,1,FALSE)),"KO","OK")) -> OK
A120: 1 | B120: Emploi | C120: Effectifs | D120: IND 1.1.0 | E120: 110 | F120: IND 1.1.0 | G120: M | H120: 12 | I120: 12 | J120: =VLOOKUP(VLOOKUP(E120,Feuil1!B:C,2,FALSE),Data!AD:AG,4,FALSE) -> 1 | K120: J | L120: 35 | N120: 119 | O120: 12 | P120: =IF(ISNA(J120),"KO",IF(ISNA(VLOOKUP(E120&"_"&H120,Data!AH:AH,1,FALSE)),"KO","OK")) -> OK
A121: 1 | B121: Emploi | C121: Effectifs | D121: IND 1.1.0 | E121: 110 | F121: IND 1.1.0 | G121: N | H121: 12 | I121: 12 | J121: =VLOOKUP(VLOOKUP(E121,Feuil1!B:C,2,FALSE),Data!AD:AG,4,FALSE) -> 1 | K121: K | L121: 35 | N121: 120 | O121: 12 | P121: =IF(ISNA(J121),"KO",IF(ISNA(VLOOKUP(E121&"_"&H121,Data!AH:AH,1,FALSE)),"KO","OK")) -> OK
A122: 1 | B122: Emploi | C122: Effectifs | D122: IND 1.1.0 | E122: 110 | F122: IND 1.1.0 | G122: E | H122: 13 | I122: 13 | J122: =VLOOKUP(VLOOKUP(E122,Feuil1!B:C,2,FALSE),Data!AD:AG,4,FALSE) -> 1 | K122: B | L122: 43 | N122: 121 | O122: 13 | P122: =IF(ISNA(J122),"KO",IF(ISNA(VLOOKUP(E122&"_"&H122,Data!AH:AH,1,FALSE)),"KO","OK")) -> OK
A123: 1 | B123: Emploi | C123: Effectifs | D123: IND 1.1.0 | E123: 110 | F123: IND 1.1.0 | G123: E | H123: 14 | I123: 14 | J123: =VLOOKUP(VLOOKUP(E123,Feuil1!B:C,2,FALSE),Data!AD:AG,4,FALSE) -> 1 | K123: B | L123: 44 | N123: 122 | O123: 14 | P123: =IF(ISNA(J123),"KO",IF(ISNA(VLOOKUP(E123&"_"&H123,Data!AH:AH,1,FALSE)),"KO","OK")) -> OK
A124: 1 | B124: Emploi | C124: Effectifs | D124: IND 1.1.0 | E124: 110 | F124: IND 1.1.0 | G124: E | H124: 15 | I124: 15 | J124: =VLOOKUP(VLOOKUP(E124,Feuil1!B:C,2,FALSE),Data!AD:AG,4,FALSE) -> 1 | K124: B | L124: 46 | N124: 123 | O124: 15 | P124: =IF(ISNA(J124),"KO",IF(ISNA(VLOOKUP(E124&"_"&H124,Data!AH:AH,1,FALSE)),"KO","OK")) -> OK
A125: 1 | B125: Emploi | C125: Effectifs | D125: IND 1.1.0 | E125: 110 | F125: IND 1.1.0 | G125: E | H125: 16 | I125: 16 | J125: =VLOOKUP(VLOOKUP(E125,Feuil1!B:C,2,FALSE),Data!AD:AG,4,FALSE) -> 1 | K125: B | L125: 47 | N125: 124 | O125: 16 | P125: =IF(ISNA(J125),"KO",IF(ISNA(VLOOKUP(E125&"_"&H125,Data!AH:AH,1,FALSE)),"KO","OK")) -> OK
A126: 1 | B126: Emploi | C126: Effectifs | D126: IND 1.1.0 | E126: 110 | F126: IND 1.1.0 | G126: E | H126: 17 | I126: 17 | J126: =VLOOKUP(VLOOKUP(E126,Feuil1!B:C,2,FALSE),Data!AD:AG,4,FALSE) -> 1 | K126: B | L126: 49 | N126: 125 | O126: 17 | P126: =IF(ISNA(J126),"KO",IF(ISNA(VLOOKUP(E126&"_"&H126,Data!AH:AH,1,FALSE)),"KO","OK")) -> OK
A127: 1 | B127: Emploi | C127: Effectifs | D127: IND 1.1.0 | E127: 110 | F127: IND 1.1.0 | G127: E | H127: 18 | I127: 18 | J127: =VLOOKUP(VLOOKUP(E127,Feuil1!B:C,2,FALSE),Data!AD:AG,4,FALSE) -> 1 | K127: B | L127: 50 | N127: 126 | O127: 18 | P127: =IF(ISNA(J127),"KO",IF(ISNA(VLOOKUP(E127&"_"&H127,Data!AH:AH,1,FALSE)),"KO","OK")) -> OK
A128: 1 | B128: Emploi | C128: Effectifs | D128: IND 1.1.0 | E128: 110 | F128: IND 1.1.0 | G128: F | H128: 13 | I128: 13 | J128: =VLOOKUP(VLOOKUP(E128,Feuil1!B:C,2,FALSE),Data!AD:AG,4,FALSE) -> 1 | K128: C | L128: 43 | N128: 127 | O128: 13 | P128: =IF(ISNA(J128),"KO",IF(ISNA(VLOOKUP(E128&"_"&H128,Data!AH:AH,1,FALSE)),"KO","OK")) -> OK
A129: 1 | B129: Emploi | C129: Effectifs | D129: IND 1.1.0 | E129: 110 | F129: IND 1.1.0 | G129: F | H129: 14 | I129: 14 | J129: =VLOOKUP(VLOOKUP(E129,Feuil1!B:C,2,FALSE),Data!AD:AG,4,FALSE) -> 1 | K129: C | L129: 44 | N129: 128 | O129: 14 | P129: =IF(ISNA(J129),"KO",IF(ISNA(VLOOKUP(E129&"_"&H129,Data!AH:AH,1,FALSE)),"KO","OK")) -> OK
A130: 1 | B130: Emploi | C130: Effectifs | D130: IND 1.1.0 | E130: 110 | F130: IND 1.1.0 | G130: F | H130: 15 | I130: 15 | J130: =VLOOKUP(VLOOKUP(E130,Feuil1!B:C,2,FALSE),Data!AD:AG,4,FALSE) -> 1 | K130: C | L130: 46 | N130: 129 | O130: 15 | P130: =IF(ISNA(J130),"KO",IF(ISNA(VLOOKUP(E130&"_"&H130,Data!AH:AH,1,FALSE)),"KO","OK")) -> OK
A131: 1 | B131: Emploi | C131: Effectifs | D131: IND 1.1.0 | E131: 110 | F131: IND 1.1.0 | G131: F | H131: 16 | I131: =IF(H131=1,J131,H131+J131-1) -> 16 | J131: =VLOOKUP(VLOOKUP(E131,Feuil1!B:C,2,FALSE),Data!AD:AG,4,FALSE) -> 1 | K131: C | L131: 47 | N131: 130 | O131: =H131 -> 16 | P131: =IF(ISNA(J131),"KO",IF(ISNA(VLOOKUP(E131&"_"&H131,Data!AH:AH,1,FALSE)),"KO","OK")) -> OK
A132: 1 | B132: Emploi | C132: Effectifs | D132: IND 1.1.0 | E132: 110 | F132: IND 1.1.0 | G132: F | H132: 17 | I132: 17 | J132: =VLOOKUP(VLOOKUP(E132,Feuil1!B:C,2,FALSE),Data!AD:AG,4,FALSE) -> 1 | K132: C | L132: 49 | N132: 131 | O132: 17 | P132: =IF(ISNA(J132),"KO",IF(ISNA(VLOOKUP(E132&"_"&H132,Data!AH:AH,1,FALSE)),"KO","OK")) -> OK
A133: 1 | B133: Emploi | C133: Effectifs | D133: IND 1.1.0 | E133: 110 | F133: IND 1.1.0 | G133: F | H133: 18 | I133: 18 | J133: =VLOOKUP(VLOOKUP(E133,Feuil1!B:C,2,FALSE),Data!AD:AG,4,FALSE) -> 1 | K133: C | L133: 50 | N133: 132 | O133: 18 | P133: =IF(ISNA(J133),"KO",IF(ISNA(VLOOKUP(E133&"_"&H133,Data!AH:AH,1,FALSE)),"KO","OK")) -> OK
A134: 2 | B134: Emploi | C134: Effectifs | D134: IND 1.1.1 | E134: 111 | F134: IND 1.1.1 | G134: E | H134: 1 | I134: 19 | J134: =VLOOKUP(VLOOKUP(E134,Feuil1!B:C,2,FALSE),Data!AD:AG,4,FALSE) -> 19 | K134: B | L134: 19 | N134: 133 | O134: 1 | P134: =IF(ISNA(J134),"KO",IF(ISNA(VLOOKUP(E134&"_"&H134,Data!AH:AH,1,FALSE)),"KO","OK")) -> OK
A135: 2 | B135: Emploi | C135: Effectifs | D135: IND 1.1.1 | E135: 111 | F135: IND 1.1.1 | G135: E | H135: 2 | I135: 20 | J135: =VLOOKUP(VLOOKUP(E135,Feuil1!B:C,2,FALSE),Data!AD:AG,4,FALSE) -> 19 | K135: B | L135: 20 | N135: 134 | O135: 2 | P135: =IF(ISNA(J135),"KO",IF(ISNA(VLOOKUP(E135&"_"&H135,Data!AH:AH,1,FALSE)),"KO","OK")) -> OK
A136: 2 | B136: Emploi | C136: Effectifs | D136: IND 1.1.1 | E136: 111 | F136: IND 1.1.1 | G136: E | H136: 3 | I136: 21 | J136: =VLOOKUP(VLOOKUP(E136,Feuil1!B:C,2,FALSE),Data!AD:AG,4,FALSE) -> 19 | K136: B | L136: 21 | N136: 135 | O136: 3 | P136: =IF(ISNA(J136),"KO",IF(ISNA(VLOOKUP(E136&"_"&H136,Data!AH:AH,1,FALSE)),"KO","OK")) -> OK
A137: 2 | B137: Emploi | C137: Effectifs | D137: IND 1.1.1 | E137: 111 | F137: IND 1.1.1 | G137: E | H137: 4 | I137: 22 | J137: =VLOOKUP(VLOOKUP(E137,Feuil1!B:C,2,FALSE),Data!AD:AG,4,FALSE) -> 19 | K137: B | L137: 22 | N137: 136 | O137: 4 | P137: =IF(ISNA(J137),"KO",IF(ISNA(VLOOKUP(E137&"_"&H137,Data!AH:AH,1,FALSE)),"KO","OK")) -> OK
A138: 2 | B138: Emploi | C138: Effectifs | D138: IND 1.1.1 | E138: 111 | F138: IND 1.1.1 | G138: E | H138: 5 | I138: 23 | J138: =VLOOKUP(VLOOKUP(E138,Feuil1!B:C,2,FALSE),Data!AD:AG,4,FALSE) -> 19 | K138: B | L138: 25 | N138: 137 | O138: 5 | P138: =IF(ISNA(J138),"KO",IF(ISNA(VLOOKUP(E138&"_"&H138,Data!AH:AH,1,FALSE)),"KO","OK")) -> OK
A139: 2 | B139: Emploi | C139: Effectifs | D139: IND 1.1.1 | E139: 111 | F139: IND 1.1.1 | G139: E | H139: 6 | I139: 24 | J139: =VLOOKUP(VLOOKUP(E139,Feuil1!B:C,2,FALSE),Data!AD:AG,4,FALSE) -> 19 | K139: B | L139: 26 | N139: 138 | O139: 6 | P139: =IF(ISNA(J139),"KO",IF(ISNA(VLOOKUP(E139&"_"&H139,Data!AH:AH,1,FALSE)),"KO","OK")) -> OK
A140: 2 | B140: Emploi | C140: Effectifs | D140: IND 1.1.1 | E140: 111 | F140: IND 1.1.1 | G140: E | H140: 7 | I140: 25 | J140: =VLOOKUP(VLOOKUP(E140,Feuil1!B:C,2,FALSE),Data!AD:AG,4,FALSE) -> 19 | K140: B | L140: 27 | N140: 139 | O140: 7 | P140: =IF(ISNA(J140),"KO",IF(ISNA(VLOOKUP(E140&"_"&H140,Data!AH:AH,1,FALSE)),"KO","OK")) -> OK
A141: 2 | B141: Emploi | C141: Effectifs | D141: IND 1.1.1 | E141: 111 | F141: IND 1.1.1 | G141: E | H141: 8 | I141: 26 | J141: =VLOOKUP(VLOOKUP(E141,Feuil1!B:C,2,FALSE),Data!AD:AG,4,FALSE) -> 19 | K141: B | L141: 28 | N141: 140 | O141: 8 | P141: =IF(ISNA(J141),"KO",IF(ISNA(VLOOKUP(E141&"_"&H141,Data!AH:AH,1,FALSE)),"KO","OK")) -> OK
A142: 2 | B142: Emploi | C142: Effectifs | D142: IND 1.1.1 | E142: 111 | F142: IND 1.1.1 | G142: E | H142: 9 | I142: 27 | J142: =VLOOKUP(VLOOKUP(E142,Feuil1!B:C,2,FALSE),Data!AD:AG,4,FALSE) -> 19 | K142: B | L142: 29 | N142: 141 | O142: 9 | P142: =IF(ISNA(J142),"KO",IF(ISNA(VLOOKUP(E142&"_"&H142,Data!AH:AH,1,FALSE)),"KO","OK")) -> OK
A143: 2 | B143: Emploi | C143: Effectifs | D143: IND 1.1.1 | E143: 111 | F143: IND 1.1.1 | G143: E | H143: 10 | I143: 28 | J143: =VLOOKUP(VLOOKUP(E143,Feuil1!B:C,2,FALSE),Data!AD:AG,4,FALSE) -> 19 | K143: B | L143: 32 | N143: 142 | O143: 10 | P143: =IF(ISNA(J143),"KO",IF(ISNA(VLOOKUP(E143&"_"&H143,Data!AH:AH,1,FALSE)),"KO","OK")) -> OK
A144: 2 | B144: Emploi | C144: Effectifs | D144: IND 1.1.1 | E144: 111 | F144: IND 1.1.1 | G144: E | H144: 11 | I144: 29 | J144: =VLOOKUP(VLOOKUP(E144,Feuil1!B:C,2,FALSE),Data!AD:AG,4,FALSE) -> 19 | K144: B | L144: 35 | N144: 143 | O144: 11 | P144: =IF(ISNA(J144),"KO",IF(ISNA(VLOOKUP(E144&"_"&H144,Data!AH:AH,1,FALSE)),"KO","OK")) -> OK
A145: 2 | B145: Emploi | C145: Effectifs | D145: IND 1.1.1 | E145: 111 | F145: IND 1.1.1 | G145: E | H145: 12 | I145: 30 | J145: =VLOOKUP(VLOOKUP(E145,Feuil1!B:C,2,FALSE),Data!AD:AG,4,FALSE) -> 19 | K145: B | L145: 36 | N145: 144 | O145: 12 | P145: =IF(ISNA(J145),"KO",IF(ISNA(VLOOKUP(E145&"_"&H145,Data!AH:AH,1,FALSE)),"KO","OK")) -> OK
A146: 2 | B146: Emploi | C146: Effectifs | D146: IND 1.1.1 | E146: 111 | F146: IND 1.1.1 | G146: E | H146: 13 | I146: 31 | J146: =VLOOKUP(VLOOKUP(E146,Feuil1!B:C,2,FALSE),Data!AD:AG,4,FALSE) -> 19 | K146: B | L146: 37 | N146: 145 | O146: 13 | P146: =IF(ISNA(J146),"KO",IF(ISNA(VLOOKUP(E146&"_"&H146,Data!AH:AH,1,FALSE)),"KO","OK")) -> OK
A147: 2 | B147: Emploi | C147: Effectifs | D147: IND 1.1.1 | E147: 111 | F147: IND 1.1.1 | G147: E | H147: 14 | I147: 32 | J147: =VLOOKUP(VLOOKUP(E147,Feuil1!B:C,2,FALSE),Data!AD:AG,4,FALSE) -> 19 | K147: B | L147: 38 | N147: 146 | O147: 14 | P147: =IF(ISNA(J147),"KO",IF(ISNA(VLOOKUP(E147&"_"&H147,Data!AH:AH,1,FALSE)),"KO","OK")) -> OK
A148: 2 | B148: Emploi | C148: Effectifs | D148: IND 1.1.1 | E148: 111 | F148: IND 1.1.1 | G148: E | H148: 15 | I148: 33 | J148: =VLOOKUP(VLOOKUP(E148,Feuil1!B:C,2,FALSE),Data!AD:AG,4,FALSE) -> 19 | K148: B | L148: 39 | N148: 147 | O148: 15 | P148: =IF(ISNA(J148),"KO",IF(ISNA(VLOOKUP(E148&"_"&H148,Data!AH:AH,1,FALSE)),"KO","OK")) -> OK
A149: 2 | B149: Emploi | C149: Effectifs | D149: IND 1.1.1 | E149: 111 | F149: IND 1.1.1 | G149: E | H149: 16 | I149: 34 | J149: =VLOOKUP(VLOOKUP(E149,Feuil1!B:C,2,FALSE),Data!AD:AG,4,FALSE) -> 19 | K149: B | L149: 42 | N149: 148 | O149: 16 | P149: =IF(ISNA(J149),"KO",IF(ISNA(VLOOKUP(E149&"_"&H149,Data!AH:AH,1,FALSE)),"KO","OK")) -> OK
A150: 2 | B150: Emploi | C150: Effectifs | D150: IND 1.1.1 | E150: 111 | F150: IND 1.1.1 | G150: E | H150: 17 | I150: 35 | J150: =VLOOKUP(VLOOKUP(E150,Feuil1!B:C,2,FALSE),Data!AD:AG,4,FALSE) -> 19 | K150: B | L150: 43 | N150: 149 | O150: 17 | P150: =IF(ISNA(J150),"KO",IF(ISNA(VLOOKUP(E150&"_"&H150,Data!AH:AH,1,FALSE)),"KO","OK")) -> OK
A151: 2 | B151: Emploi | C151: Effectifs | D151: IND 1.1.1 | E151: 111 | F151: IND 1.1.1 | G151: E | H151: 18 | I151: 36 | J151: =VLOOKUP(VLOOKUP(E151,Feuil1!B:C,2,FALSE),Data!AD:AG,4,FALSE) -> 19 | K151: B | L151: 44 | N151: 150 | O151: 18 | P151: =IF(ISNA(J151),"KO",IF(ISNA(VLOOKUP(E151&"_"&H151,Data!AH:AH,1,FALSE)),"KO","OK")) -> OK
A152: 2 | B152: Emploi | C152: Effectifs | D152: IND 1.1.1 | E152: 111 | F152: IND 1.1.1 | G152: E | H152: 19 | I152: 37 | J152: =VLOOKUP(VLOOKUP(E152,Feuil1!B:C,2,FALSE),Data!AD:AG,4,FALSE) -> 19 | K152: B | L152: 45 | N152: 151 | O152: 19 | P152: =IF(ISNA(J152),"KO",IF(ISNA(VLOOKUP(E152&"_"&H152,Data!AH:AH,1,FALSE)),"KO","OK")) -> OK
A153: 2 | B153: Emploi | C153: Effectifs | D153: IND 1.1.1 | E153: 111 | F153: IND 1.1.1 | G153: E | H153: 20 | I153: 38 | J153: =VLOOKUP(VLOOKUP(E153,Feuil1!B:C,2,FALSE),Data!AD:AG,4,FALSE) -> 19 | K153: B | L153: 46 | N153: 152 | O153: 20 | P153: =IF(ISNA(J153),"KO",IF(ISNA(VLOOKUP(E153&"_"&H153,Data!AH:AH,1,FALSE)),"KO","OK")) -> OK
A154: 2 | B154: Emploi | C154: Effectifs | D154: IND 1.1.1 | E154: 111 | F154: IND 1.1.1 | G154: E | H154: 21 | I154: 39 | J154: =VLOOKUP(VLOOKUP(E154,Feuil1!B:C,2,FALSE),Data!AD:AG,4,FALSE) -> 19 | K154: B | L154: 52 | N154: 153 | O154: 21 | P154: =IF(ISNA(J154),"KO",IF(ISNA(VLOOKUP(E154&"_"&H154,Data!AH:AH,1,FALSE)),"KO","OK")) -> OK
A155: 2 | B155: Emploi | C155: Effectifs | D155: IND 1.1.1 | E155: 111 | F155: IND 1.1.1 | G155: E | H155: 22 | I155: 40 | J155: =VLOOKUP(VLOOKUP(E155,Feuil1!B:C,2,FALSE),Data!AD:AG,4,FALSE) -> 19 | K155: B | L155: 53 | N155: 154 | O155: 22 | P155: =IF(ISNA(J155),"KO",IF(ISNA(VLOOKUP(E155&"_"&H155,Data!AH:AH,1,FALSE)),"KO","OK")) -> OK
A156: 2 | B156: Emploi | C156: Effectifs | D156: IND 1.1.1 | E156: 111 | F156: IND 1.1.1 | G156: E | H156: 23 | I156: 41 | J156: =VLOOKUP(VLOOKUP(E156,Feuil1!B:C,2,FALSE),Data!AD:AG,4,FALSE) -> 19 | K156: B | L156: 54 | N156: 155 | O156: 23 | P156: =IF(ISNA(J156),"KO",IF(ISNA(VLOOKUP(E156&"_"&H156,Data!AH:AH,1,FALSE)),"KO","OK")) -> OK
A157: 2 | B157: Emploi | C157: Effectifs | D157: IND 1.1.1 | E157: 111 | F157: IND 1.1.1 | G157: E | H157: 24 | I157: 42 | J157: =VLOOKUP(VLOOKUP(E157,Feuil1!B:C,2,FALSE),Data!AD:AG,4,FALSE) -> 19 | K157: B | L157: 55 | N157: 156 | O157: 24 | P157: =IF(ISNA(J157),"KO",IF(ISNA(VLOOKUP(E157&"_"&H157,Data!AH:AH,1,FALSE)),"KO","OK")) -> OK
A158: 2 | B158: Emploi | C158: Effectifs | D158: IND 1.1.1 | E158: 111 | F158: IND 1.1.1 | G158: E | H158: 25 | I158: 43 | J158: =VLOOKUP(VLOOKUP(E158,Feuil1!B:C,2,FALSE),Data!AD:AG,4,FALSE) -> 19 | K158: B | L158: 58 | N158: 157 | O158: 25 | P158: =IF(ISNA(J158),"KO",IF(ISNA(VLOOKUP(E158&"_"&H158,Data!AH:AH,1,FALSE)),"KO","OK")) -> OK
A159: 2 | B159: Emploi | C159: Effectifs | D159: IND 1.1.1 | E159: 111 | F159: IND 1.1.1 | G159: E | H159: 26 | I159: 44 | J159: =VLOOKUP(VLOOKUP(E159,Feuil1!B:C,2,FALSE),Data!AD:AG,4,FALSE) -> 19 | K159: B | L159: 59 | N159: 158 | O159: 26 | P159: =IF(ISNA(J159),"KO",IF(ISNA(VLOOKUP(E159&"_"&H159,Data!AH:AH,1,FALSE)),"KO","OK")) -> OK
A160: 2 | B160: Emploi | C160: Effectifs | D160: IND 1.1.1 | E160: 111 | F160: IND 1.1.1 | G160: E | H160: 27 | I160: 45 | J160: =VLOOKUP(VLOOKUP(E160,Feuil1!B:C,2,FALSE),Data!AD:AG,4,FALSE) -> 19 | K160: B | L160: 60 | N160: 159 | O160: 27 | P160: =IF(ISNA(J160),"KO",IF(ISNA(VLOOKUP(E160&"_"&H160,Data!AH:AH,1,FALSE)),"KO","OK")) -> OK
A161: 2 | B161: Emploi | C161: Effectifs | D161: IND 1.1.1 | E161: 111 | F161: IND 1.1.1 | G161: E | H161: 28 | I161: 46 | J161: =VLOOKUP(VLOOKUP(E161,Feuil1!B:C,2,FALSE),Data!AD:AG,4,FALSE) -> 19 | K161: B | L161: 61 | N161: 160 | O161: 28 | P161: =IF(ISNA(J161),"KO",IF(ISNA(VLOOKUP(E161&"_"&H161,Data!AH:AH,1,FALSE)),"KO","OK")) -> OK
A162: 2 | B162: Emploi | C162: Effectifs | D162: IND 1.1.1 | E162: 111 | F162: IND 1.1.1 | G162: E | H162: 29 | I162: 47 | J162: =VLOOKUP(VLOOKUP(E162,Feuil1!B:C,2,FALSE),Data!AD:AG,4,FALSE) -> 19 | K162: B | L162: 64 | N162: 161 | O162: 29 | P162: =IF(ISNA(J162),"KO",IF(ISNA(VLOOKUP(E162&"_"&H162,Data!AH:AH,1,FALSE)),"KO","OK")) -> OK
A163: 2 | B163: Emploi | C163: Effectifs | D163: IND 1.1.1 | E163: 111 | F163: IND 1.1.1 | G163: E | H163: 30 | I163: 48 | J163: =VLOOKUP(VLOOKUP(E163,Feuil1!B:C,2,FALSE),Data!AD:AG,4,FALSE) -> 19 | K163: B | L163: 65 | N163: 162 | O163: 30 | P163: =IF(ISNA(J163),"KO",IF(ISNA(VLOOKUP(E163&"_"&H163,Data!AH:AH,1,FALSE)),"KO","OK")) -> OK
A164: 2 | B164: Emploi | C164: Effectifs | D164: IND 1.1.1 | E164: 111 | F164: IND 1.1.1 | G164: E | H164: 31 | I164: 49 | J164: =VLOOKUP(VLOOKUP(E164,Feuil1!B:C,2,FALSE),Data!AD:AG,4,FALSE) -> 19 | K164: B | L164: 66 | N164: 163 | O164: 31 | P164: =IF(ISNA(J164),"KO",IF(ISNA(VLOOKUP(E164&"_"&H164,Data!AH:AH,1,FALSE)),"KO","OK")) -> OK
A165: 2 | B165: Emploi | C165: Effectifs | D165: IND 1.1.1 | E165: 111 | F165: IND 1.1.1 | G165: E | H165: 32 | I165: 50 | J165: =VLOOKUP(VLOOKUP(E165,Feuil1!B:C,2,FALSE),Data!AD:AG,4,FALSE) -> 19 | K165: B | L165: 67 | N165: 164 | O165: 32 | P165: =IF(ISNA(J165),"KO",IF(ISNA(VLOOKUP(E165&"_"&H165,Data!AH:AH,1,FALSE)),"KO","OK")) -> OK
A166: 2 | B166: Emploi | C166: Effectifs | D166: IND 1.1.1 | E166: 111 | F166: IND 1.1.1 | G166: E | H166: 33 | I166: 51 | J166: =VLOOKUP(VLOOKUP(E166,Feuil1!B:C,2,FALSE),Data!AD:AG,4,FALSE) -> 19 | K166: B | L166: 68 | N166: 165 | O166: 33 | P166: =IF(ISNA(J166),"KO",IF(ISNA(VLOOKUP(E166&"_"&H166,Data!AH:AH,1,FALSE)),"KO","OK")) -> OK
A167: 2 | B167: Emploi | C167: Effectifs | D167: IND 1.1.1 | E167: 111 | F167: IND 1.1.1 | G167: E | H167: 34 | I167: 52 | J167: =VLOOKUP(VLOOKUP(E167,Feuil1!B:C,2,FALSE),Data!AD:AG,4,FALSE) -> 19 | K167: B | L167: 71 | N167: 166 | O167: 34 | P167: =IF(ISNA(J167),"KO",IF(ISNA(VLOOKUP(E167&"_"&H167,Data!AH:AH,1,FALSE)),"KO","OK")) -> OK
A168: 2 | B168: Emploi | C168: Effectifs | D168: IND 1.1.1 | E168: 111 | F168: IND 1.1.1 | G168: E | H168: 35 | I168: 53 | J168: =VLOOKUP(VLOOKUP(E168,Feuil1!B:C,2,FALSE),Data!AD:AG,4,FALSE) -> 19 | K168: B | L168: 72 | N168: 167 | O168: 35 | P168: =IF(ISNA(J168),"KO",IF(ISNA(VLOOKUP(E168&"_"&H168,Data!AH:AH,1,FALSE)),"KO","OK")) -> OK
A169: 2 | B169: Emploi | C169: Effectifs | D169: IND 1.1.1 | E169: 111 | F169: IND 1.1.1 | G169: E | H169: 36 | I169: 54 | J169: =VLOOKUP(VLOOKUP(E169,Feuil1!B:C,2,FALSE),Data!AD:AG,4,FALSE) -> 19 | K169: B | L169: 73 | N169: 168 | O169: 36 | P169: =IF(ISNA(J169),"KO",IF(ISNA(VLOOKUP(E169&"_"&H169,Data!AH:AH,1,FALSE)),"KO","OK")) -> OK
A170: 2 | B170: Emploi | C170: Effectifs | D170: IND 1.1.1 | E170: 111 | F170: IND 1.1.1 | G170: E | H170: 37 | I170: 55 | J170: =VLOOKUP(VLOOKUP(E170,Feuil1!B:C,2,FALSE),Data!AD:AG,4,FALSE) -> 19 | K170: B | L170: 76 | N170: 169 | O170: 37 | P170: =IF(ISNA(J170),"KO",IF(ISNA(VLOOKUP(E170&"_"&H170,Data!AH:AH,1,FALSE)),"KO","OK")) -> OK
A171: 2 | B171: Emploi | C171: Effectifs | D171: IND 1.1.1 | E171: 111 | F171: IND 1.1.1 | G171: E | H171: 38 | I171: 56 | J171: =VLOOKUP(VLOOKUP(E171,Feuil1!B:C,2,FALSE),Data!AD:AG,4,FALSE) -> 19 | K171: B | L171: 77 | N171: 170 | O171: 38 | P171: =IF(ISNA(J171),"KO",IF(ISNA(VLOOKUP(E171&"_"&H171,Data!AH:AH,1,FALSE)),"KO","OK")) -> OK
A172: 2 | B172: Emploi | C172: Effectifs | D172: IND 1.1.1 | E172: 111 | F172: IND 1.1.1 | G172: E | H172: 39 | I172: 57 | J172: =VLOOKUP(VLOOKUP(E172,Feuil1!B:C,2,FALSE),Data!AD:AG,4,FALSE) -> 19 | K172: B | L172: 78 | N172: 171 | O172: 39 | P172: =IF(ISNA(J172),"KO",IF(ISNA(VLOOKUP(E172&"_"&H172,Data!AH:AH,1,FALSE)),"KO","OK")) -> OK
A173: 2 | B173: Emploi | C173: Effectifs | D173: IND 1.1.1 | E173: 111 | F173: IND 1.1.1 | G173: E | H173: 40 | I173: 58 | J173: =VLOOKUP(VLOOKUP(E173,Feuil1!B:C,2,FALSE),Data!AD:AG,4,FALSE) -> 19 | K173: B | L173: 79 | N173: 172 | O173: 40 | P173: =IF(ISNA(J173),"KO",IF(ISNA(VLOOKUP(E173&"_"&H173,Data!AH:AH,1,FALSE)),"KO","OK")) -> OK
A174: 2 | B174: Emploi | C174: Effectifs | D174: IND 1.1.1 | E174: 111 | F174: IND 1.1.1 | G174: E | H174: 41 | I174: 59 | J174: =VLOOKUP(VLOOKUP(E174,Feuil1!B:C,2,FALSE),Data!AD:AG,4,FALSE) -> 19 | K174: B | L174: 80 | N174: 173 | O174: 41 | P174: =IF(ISNA(J174),"KO",IF(ISNA(VLOOKUP(E174&"_"&H174,Data!AH:AH,1,FALSE)),"KO","OK")) -> OK
A175: 2 | B175: Emploi | C175: Effectifs | D175: IND 1.1.1 | E175: 111 | F175: IND 1.1.1 | G175: E | H175: 42 | I175: 60 | J175: =VLOOKUP(VLOOKUP(E175,Feuil1!B:C,2,FALSE),Data!AD:AG,4,FALSE) -> 19 | K175: B | L175: 83 | N175: 174 | O175: 42 | P175: =IF(ISNA(J175),"KO",IF(ISNA(VLOOKUP(E175&"_"&H175,Data!AH:AH,1,FALSE)),"KO","OK")) -> OK
A176: 2 | B176: Emploi | C176: Effectifs | D176: IND 1.1.1 | E176: 111 | F176: IND 1.1.1 | G176: E | H176: 43 | I176: 61 | J176: =VLOOKUP(VLOOKUP(E176,Feuil1!B:C,2,FALSE),Data!AD:AG,4,FALSE) -> 19 | K176: B | L176: 84 | N176: 175 | O176: 43 | P176: =IF(ISNA(J176),"KO",IF(ISNA(VLOOKUP(E176&"_"&H176,Data!AH:AH,1,FALSE)),"KO","OK")) -> OK
A177: 2 | B177: Emploi | C177: Effectifs | D177: IND 1.1.1 | E177: 111 | F177: IND 1.1.1 | G177: E | H177: 44 | I177: 62 | J177: =VLOOKUP(VLOOKUP(E177,Feuil1!B:C,2,FALSE),Data!AD:AG,4,FALSE) -> 19 | K177: B | L177: 85 | N177: 176 | O177: 44 | P177: =IF(ISNA(J177),"KO",IF(ISNA(VLOOKUP(E177&"_"&H177,Data!AH:AH,1,FALSE)),"KO","OK")) -> OK
A178: 2 | B178: Emploi | C178: Effectifs | D178: IND 1.1.1 | E178: 111 | F178: IND 1.1.1 | G178: E | H178: 45 | I178: 63 | J178: =VLOOKUP(VLOOKUP(E178,Feuil1!B:C,2,FALSE),Data!AD:AG,4,FALSE) -> 19 | K178: B | L178: 86 | N178: 177 | O178: 45 | P178: =IF(ISNA(J178),"KO",IF(ISNA(VLOOKUP(E178&"_"&H178,Data!AH:AH,1,FALSE)),"KO","OK")) -> OK
A179: 2 | B179: Emploi | C179: Effectifs | D179: IND 1.1.1 | E179: 111 | F179: IND 1.1.1 | G179: E | H179: 46 | I179: 64 | J179: =VLOOKUP(VLOOKUP(E179,Feuil1!B:C,2,FALSE),Data!AD:AG,4,FALSE) -> 19 | K179: B | L179: 87 | N179: 178 | O179: 46 | P179: =IF(ISNA(J179),"KO",IF(ISNA(VLOOKUP(E179&"_"&H179,Data!AH:AH,1,FALSE)),"KO","OK")) -> OK
A180: 2 | B180: Emploi | C180: Effectifs | D180: IND 1.1.1 | E180: 111 | F180: IND 1.1.1 | G180: E | H180: 47 | I180: 65 | J180: =VLOOKUP(VLOOKUP(E180,Feuil1!B:C,2,FALSE),Data!AD:AG,4,FALSE) -> 19 | K180: B | L180: 93 | N180: 179 | O180: 47 | P180: =IF(ISNA(J180),"KO",IF(ISNA(VLOOKUP(E180&"_"&H180,Data!AH:AH,1,FALSE)),"KO","OK")) -> OK
A181: 2 | B181: Emploi | C181: Effectifs | D181: IND 1.1.1 | E181: 111 | F181: IND 1.1.1 | G181: E | H181: 48 | I181: 66 | J181: =VLOOKUP(VLOOKUP(E181,Feuil1!B:C,2,FALSE),Data!AD:AG,4,FALSE) -> 19 | K181: B | L181: 94 | N181: 180 | O181: 48 | P181: =IF(ISNA(J181),"KO",IF(ISNA(VLOOKUP(E181&"_"&H181,Data!AH:AH,1,FALSE)),"KO","OK")) -> OK
A182: 2 | B182: Emploi | C182: Effectifs | D182: IND 1.1.1 | E182: 111 | F182: IND 1.1.1 | G182: E | H182: 49 | I182: 67 | J182: =VLOOKUP(VLOOKUP(E182,Feuil1!B:C,2,FALSE),Data!AD:AG,4,FALSE) -> 19 | K182: B | L182: 95 | N182: 181 | O182: 49 | P182: =IF(ISNA(J182),"KO",IF(ISNA(VLOOKUP(E182&"_"&H182,Data!AH:AH,1,FALSE)),"KO","OK")) -> OK
A183: 2 | B183: Emploi | C183: Effectifs | D183: IND 1.1.1 | E183: 111 | F183: IND 1.1.1 | G183: E | H183: 50 | I183: 68 | J183: =VLOOKUP(VLOOKUP(E183,Feuil1!B:C,2,FALSE),Data!AD:AG,4,FALSE) -> 19 | K183: B | L183: 98 | N183: 182 | O183: 50 | P183: =IF(ISNA(J183),"KO",IF(ISNA(VLOOKUP(E183&"_"&H183,Data!AH:AH,1,FALSE)),"KO","OK")) -> OK
A184: 2 | B184: Emploi | C184: Effectifs | D184: IND 1.1.1 | E184: 111 | F184: IND 1.1.1 | G184: E | H184: 51 | I184: 69 | J184: =VLOOKUP(VLOOKUP(E184,Feuil1!B:C,2,FALSE),Data!AD:AG,4,FALSE) -> 19 | K184: B | L184: 99 | N184: 183 | O184: 51 | P184: =IF(ISNA(J184),"KO",IF(ISNA(VLOOKUP(E184&"_"&H184,Data!AH:AH,1,FALSE)),"KO","OK")) -> OK
A185: 2 | B185: Emploi | C185: Effectifs | D185: IND 1.1.1 | E185: 111 | F185: IND 1.1.1 | G185: E | H185: 52 | I185: 70 | J185: =VLOOKUP(VLOOKUP(E185,Feuil1!B:C,2,FALSE),Data!AD:AG,4,FALSE) -> 19 | K185: B | L185: 100 | N185: 184 | O185: 52 | P185: =IF(ISNA(J185),"KO",IF(ISNA(VLOOKUP(E185&"_"&H185,Data!AH:AH,1,FALSE)),"KO","OK")) -> OK
A186: 2 | B186: Emploi | C186: Effectifs | D186: IND 1.1.1 | E186: 111 | F186: IND 1.1.1 | G186: E | H186: 53 | I186: 71 | J186: =VLOOKUP(VLOOKUP(E186,Feuil1!B:C,2,FALSE),Data!AD:AG,4,FALSE) -> 19 | K186: B | L186: 103 | N186: 185 | O186: 53 | P186: =IF(ISNA(J186),"KO",IF(ISNA(VLOOKUP(E186&"_"&H186,Data!AH:AH,1,FALSE)),"KO","OK")) -> OK
A187: 2 | B187: Emploi | C187: Effectifs | D187: IND 1.1.1 | E187: 111 | F187: IND 1.1.1 | G187: E | H187: 54 | I187: 72 | J187: =VLOOKUP(VLOOKUP(E187,Feuil1!B:C,2,FALSE),Data!AD:AG,4,FALSE) -> 19 | K187: B | L187: 104 | N187: 186 | O187: 54 | P187: =IF(ISNA(J187),"KO",IF(ISNA(VLOOKUP(E187&"_"&H187,Data!AH:AH,1,FALSE)),"KO","OK")) -> OK
A188: 2 | B188: Emploi | C188: Effectifs | D188: IND 1.1.1 | E188: 111 | F188: IND 1.1.1 | G188: E | H188: 55 | I188: 73 | J188: =VLOOKUP(VLOOKUP(E188,Feuil1!B:C,2,FALSE),Data!AD:AG,4,FALSE) -> 19 | K188: B | L188: 105 | N188: 187 | O188: 55 | P188: =IF(ISNA(J188),"KO",IF(ISNA(VLOOKUP(E188&"_"&H188,Data!AH:AH,1,FALSE)),"KO","OK")) -> OK
A189: 2 | B189: Emploi | C189: Effectifs | D189: IND 1.1.1 | E189: 111 | F189: IND 1.1.1 | G189: E | H189: 56 | I189: 74 | J189: =VLOOKUP(VLOOKUP(E189,Feuil1!B:C,2,FALSE),Data!AD:AG,4,FALSE) -> 19 | K189: B | L189: 108 | N189: 188 | O189: 56 | P189: =IF(ISNA(J189),"KO",IF(ISNA(VLOOKUP(E189&"_"&H189,Data!AH:AH,1,FALSE)),"KO","OK")) -> OK
A190: 2 | B190: Emploi | C190: Effectifs | D190: IND 1.1.1 | E190: 111 | F190: IND 1.1.1 | G190: E | H190: 57 | I190: 75 | J190: =VLOOKUP(VLOOKUP(E190,Feuil1!B:C,2,FALSE),Data!AD:AG,4,FALSE) -> 19 | K190: B | L190: 109 | N190: 189 | O190: 57 | P190: =IF(ISNA(J190),"KO",IF(ISNA(VLOOKUP(E190&"_"&H190,Data!AH:AH,1,FALSE)),"KO","OK")) -> OK
A191: 2 | B191: Emploi | C191: Effectifs | D191: IND 1.1.1 | E191: 111 | F191: IND 1.1.1 | G191: E | H191: 58 | I191: 76 | J191: =VLOOKUP(VLOOKUP(E191,Feuil1!B:C,2,FALSE),Data!AD:AG,4,FALSE) -> 19 | K191: B | L191: 110 | N191: 190 | O191: 58 | P191: =IF(ISNA(J191),"KO",IF(ISNA(VLOOKUP(E191&"_"&H191,Data!AH:AH,1,FALSE)),"KO","OK")) -> OK
A192: 2 | B192: Emploi | C192: Effectifs | D192: IND 1.1.1 | E192: 111 | F192: IND 1.1.1 | G192: E | H192: 59 | I192: 77 | J192: =VLOOKUP(VLOOKUP(E192,Feuil1!B:C,2,FALSE),Data!AD:AG,4,FALSE) -> 19 | K192: B | L192: 113 | N192: 191 | O192: 59 | P192: =IF(ISNA(J192),"KO",IF(ISNA(VLOOKUP(E192&"_"&H192,Data!AH:AH,1,FALSE)),"KO","OK")) -> OK
A193: 2 | B193: Emploi | C193: Effectifs | D193: IND 1.1.1 | E193: 111 | F193: IND 1.1.1 | G193: E | H193: 60 | I193: 78 | J193: =VLOOKUP(VLOOKUP(E193,Feuil1!B:C,2,FALSE),Data!AD:AG,4,FALSE) -> 19 | K193: B | L193: 114 | N193: 192 | O193: 60 | P193: =IF(ISNA(J193),"KO",IF(ISNA(VLOOKUP(E193&"_"&H193,Data!AH:AH,1,FALSE)),"KO","OK")) -> OK
A194: 2 | B194: Emploi | C194: Effectifs | D194: IND 1.1.1 | E194: 111 | F194: IND 1.1.1 | G194: E | H194: 61 | I194: 79 | J194: =VLOOKUP(VLOOKUP(E194,Feuil1!B:C,2,FALSE),Data!AD:AG,4,FALSE) -> 19 | K194: B | L194: 115 | N194: 193 | O194: 61 | P194: =IF(ISNA(J194),"KO",IF(ISNA(VLOOKUP(E194&"_"&H194,Data!AH:AH,1,FALSE)),"KO","OK")) -> OK
A195: 2 | B195: Emploi | C195: Effectifs | D195: IND 1.1.1 | E195: 111 | F195: IND 1.1.1 | G195: E | H195: 62 | I195: =IF(H195=1,J195,H195+J195-1) -> 80 | J195: =VLOOKUP(VLOOKUP(E195,Feuil1!B:C,2,FALSE),Data!AD:AG,4,FALSE) -> 19 | K195: B | L195: 116 | N195: 194 | O195: =H195 -> 62 | P195: =IF(ISNA(J195),"KO",IF(ISNA(VLOOKUP(E195&"_"&H195,Data!AH:AH,1,FALSE)),"KO","OK")) -> OK
A196: 2 | B196: Emploi | C196: Effectifs | D196: IND 1.1.1 | E196: 111 | F196: IND 1.1.1 | G196: E | H196: 63 | I196: 81 | J196: =VLOOKUP(VLOOKUP(E196,Feuil1!B:C,2,FALSE),Data!AD:AG,4,FALSE) -> 19 | K196: B | L196: 119 | N196: 195 | O196: 63 | P196: =IF(ISNA(J196),"KO",IF(ISNA(VLOOKUP(E196&"_"&H196,Data!AH:AH,1,FALSE)),"KO","OK")) -> OK
A197: 2 | B197: Emploi | C197: Effectifs | D197: IND 1.1.1 | E197: 111 | F197: IND 1.1.1 | G197: E | H197: 64 | I197: 82 | J197: =VLOOKUP(VLOOKUP(E197,Feuil1!B:C,2,FALSE),Data!AD:AG,4,FALSE) -> 19 | K197: B | L197: 120 | N197: 196 | O197: 64 | P197: =IF(ISNA(J197),"KO",IF(ISNA(VLOOKUP(E197&"_"&H197,Data!AH:AH,1,FALSE)),"KO","OK")) -> OK
A198: 2 | B198: Emploi | C198: Effectifs | D198: IND 1.1.1 | E198: 111 | F198: IND 1.1.1 | G198: E | H198: 65 | I198: 83 | J198: =VLOOKUP(VLOOKUP(E198,Feuil1!B:C,2,FALSE),Data!AD:AG,4,FALSE) -> 19 | K198: B | L198: 121 | N198: 197 | O198: 65 | P198: =IF(ISNA(J198),"KO",IF(ISNA(VLOOKUP(E198&"_"&H198,Data!AH:AH,1,FALSE)),"KO","OK")) -> OK
A199: 2 | B199: Emploi | C199: Effectifs | D199: IND 1.1.1 | E199: 111 | F199: IND 1.1.1 | G199: E | H199: 66 | I199: 84 | J199: =VLOOKUP(VLOOKUP(E199,Feuil1!B:C,2,FALSE),Data!AD:AG,4,FALSE) -> 19 | K199: B | L199: 124 | N199: 198 | O199: 66 | P199: =IF(ISNA(J199),"KO",IF(ISNA(VLOOKUP(E199&"_"&H199,Data!AH:AH,1,FALSE)),"KO","OK")) -> OK
A200: 2 | B200: Emploi | C200: Effectifs | D200: IND 1.1.1 | E200: 111 | F200: IND 1.1.1 | G200: E | H200: 67 | I200: 85 | J200: =VLOOKUP(VLOOKUP(E200,Feuil1!B:C,2,FALSE),Data!AD:AG,4,FALSE) -> 19 | K200: B | L200: 125 | N200: 199 | O200: 67 | P200: =IF(ISNA(J200),"KO",IF(ISNA(VLOOKUP(E200&"_"&H200,Data!AH:AH,1,FALSE)),"KO","OK")) -> OK
... 4300 more rows

Sheet ref_question (hidden)
A1: ID_QMODAMALA | B1: LB_QMODAMALA | C1: ID_QMODAMALA | D1: ID_QINDECHOM2 | E1: LB_QINDECHOM2 | F1: 3411 | G1: 3421 | H1: ID_QINDECHOM | I1: ID_QMODADISPSIGN | J1: LB_QMODADISPSIGN | K1: ID_QMODADISPSIGN | L1: ID_QINDECHOM1 | M1: LB_QINDECHOM | N1: 3411 | O1: 01 | P1: 01 - Région (y compris collectivités territoriales uniques de Martinique, de Guyane et de Corse) | Q1: 01
A2: 0 | B2: Non | C2: 0 | D2: 1 | E2: Vous êtes en auto-assurance avec convention de gestion avec Pôle Emploi | F2: 1 | G2: 1 | H2: 1 | I2: 1 | J2: Assuré en propre par la collectivité | K2: 1 | L2: 1 | M2: En auto-assurance avec convention de gestion avec Pôle Emploi | N2: 1 | O2: 02 | P2: 02 - Département | Q2: 02
A3: 1 | B3: Oui | C3: 1 | D3: 2 | E3: Vous êtes en auto-assurance sans convention de gestion avec Pôle Emploi | F3: 2 | G3: 2 | H3: 2 | I3: 2 | J3: Mutualisé par voie de convention | K3: 2 | L3: 2 | M3: En auto-assurance sans convention de gestion avec Pôle Emploi | N3: 2 | O3: 03 | P3: 03 - Service départemental d'incendie et de secours | Q3: 03
A4: 2 | B4: Ne sait pas | C4: 2 | D4: 3 | E4: Ne sait pas | F4: 3 | G4: 3 | H4: 3 | I4: 3 | J4: Confié à un centre de gestion | K4: 3 | L4: 3 | M4: Ne sait pas | N4: 3 | O4: 04 | P4: 04 - Centre de gestion de la fonction publique territoriale | Q4: 04
A5: 3 | B5: En cours | C5: 3 | D5: 4 | E5: Vous avez adhéré au régime d'assurance chômage | F5: 4 | G5: 4 | H5: 4 | I5: 4 | J5: Aucun dispositif | K5: 4 | L5: 1 | M5: En auto-assurance avec convention de gestion avec Pôle Emploi | N5: 1 | O5: 05 | P5: 05 - Centre national de la fonction publique territoriale | Q5: 05
B6: (Vide) | E6: (Vide) | J6: (Vide) | L6: 2 | M6: En auto-assurance sans convention de gestion avec Pôle Emploi | N6: 2 | O6: 06 | P6: 06 - Commune (y compris commune nouvelle) | Q6: 06
A7: 0 | B7: Non | C7: 0 | D7: 1 | E7: Vous êtes en auto-assurance avec convention de gestion avec Pôle Emploi | F7: 1 | G7: 1 | H7: 1 | I7: 1 | J7: Assuré en propre par la collectivité | K7: 1 | L7: 3 | M7: Ne sait pas | N7: 3 | O7: 07 | P7: 07 - Centre communal d'action sociale (CCAS) | Q7: 07
A8: 1 | B8: Oui | C8: 1 | D8: 2 | E8: Vous êtes en auto-assurance sans convention de gestion avec Pôle Emploi | F8: 2 | G8: 2 | H8: 2 | I8: 2 | J8: Mutualisé par voie de convention | K8: 2 | O8: 08 | P8: 08 - Caisse des écoles (CDE) | Q8: 08
A9: 2 | B9: Ne sait pas | C9: 2 | D9: 3 | E9: Ne sait pas | F9: 3 | G9: 3 | H9: 3 | I9: 3 | J9: Confié à un centre de gestion | K9: 3 | O9: 09 | P9: 09 - Caisse de crédit municipal | Q9: 09
A10: 3 | B10: En cours | C10: 3 | D10: 4 | E10: Vous avez adhéré au régime d'assurance chômage | F10: 4 | G10: 4 | H10: 4 | I10: 4 | J10: Aucun dispositif | K10: 4 | O10: 10 | P10: 10 - Métropole (y compris métropole de Lyon) | Q10: 10
E11: (Vide) | J11: (Vide) | O11: 11 | P11: 11 - Communauté urbaine | Q11: 11
O12: 12 | P12: 12 - Communauté d'agglomération | Q12: 12
O13: 13 | P13: 13 - Communauté de communes | Q13: 13
O14: 14 | P14: 14 - Centre intercommunal d'action sociale (CIAS) | Q14: 14
O15: 15 | P15: 15 - Syndicat de communes à vocation multiple | Q15: 15
O16: 16 | P16: 16 - Syndicat de communes à vocation unique | Q16: 16
O17: 17 | P17: 17 - Syndicat mixte | Q17: 17
O18: 18 | P18: 18 - Pôle d'équilibre territorial et rural (PETR) | Q18: 18
O19: 19 | P19: 19 - Office public de l'habitat (OPHLM - ODHLM) | Q19: 19
O20: 20 | P20: 20 - Pôle métropolitain | Q20: 20
O21: 21 | P21: 21 - Autre établissement public intercommunal | Q21: 21
O22: 22 | P22: 22 - Autre | Q22: 22

Sheet A_LIRE
U1: 1
U2: 1
A23: Cette fiche synthétique reprend les principaux indicateurs sociaux issus du RSU 2022. Ces données ont pour objectif de bénéficier d'une vue d'ensemble sur les effectifs de la collectivité. L'outil automatisé permettant la réalisation de cette synthèse a été développé par le Comité Technique des Chargés d'études des Observatoires Régionaux des Centres de Gestion.
A33: Version 8
A45: modele_BDS_2022v12.xlsm
A46: modele_BDS_2022v12.xlsm | B46: Oui

Sheet operasiret (hidden)
A1: siret
A2: 20005650500015
A3: 44042396000010

Sheet Page de garde
A2: NOM DE LA COLLECTIVITE TERRITORIALE :
A3: COMMUNAUTE D'AGGLO DE CERGY-PONTOISE
A6: Nom du correspondant : | H6: GROSSI Florence
A8: N° Département : | G8: 95 | P8: Téléphone : | T8: 0134419121
A10: Code postal : | F10: 95000 | P10: Adresse mail : | S10: florence.grossi@cergypontoise.fr
A13: RAPPORT SOCIAL UNIQUE
A14: PRÉSENTÉ AU COMITÉ SOCIAL TERRITORIAL ET À l'ASSEMBLÉE DÉLIBÉRANTE
A15: AU 31 DECEMBRE 2022
A17: LISTE NORMALISÉE DES INFORMATIONS DISPONIBLES
A19: Conformément à la loi du 6 août 2020 et au décret n° 2020-1493 du 30 novembre 2020 relatif à la base de données sociales et au rapport social unique dans la fonction publique
A23: Informations complémentaires pour l'exploitation statistique du rapport
A26: N° SIRET de la collectivité : | H26: 24950010900015
A29: Type de collectivité : | H29: 12 - Communauté d'agglomération
A33: Veuillez préciser :
A37: * Est-elle affiliée au Centre de gestion ? | Y37: Non
A39: * Dispose-t-elle de son propre CST ? | Y39: Oui
A48: 01 - Région (y compris collectivités territoriales uniques de Martinique, de Guyane et de Corse)
A49: 02 - Département
A50: 03 - Service départemental d'incendie et de secours
A51: 04 - Centre de gestion de la fonction publique territoriale
A52: 05 - Centre national de la fonction publique territoriale
A53: 06 - Commune (y compris commune nouvelle)
A54: 07 - Centre communal d'action sociale (CCAS)
A55: 08 - Caisse des écoles (CDE)
A56: 09 - Caisse de crédit municipal
A57: 10 - Métropole (y compris métropole de Lyon)
A58: 11 - Communauté urbaine
A59: 12 - Communauté d'agglomération
A60: 13 - Communauté de communes
A61: 14 - Centre intercommunal d'action sociale (CIAS)
A62: 15 - Syndicat de communes à vocation multiple
A63: 16 - Syndicat de communes à vocation unique
A64: 17 - Syndicat mixte
A65: 18 - Pôle d'équilibre territorial et rural (PETR)
A66: 19 - Office public de l'habitat (OPHLM - ODHLM)
A67: 20 - Pôle métropolitain
A68: 21 - Autre établissement public intercommunal
A69: 22 - Autre

Sheet synthese (hidden)
B1: SYNTHÈSE DU RAPPORT SOCIAL UNIQUE 2022 | GO1: Cadre d'emploi F | GP1: Fonctionnaires | GQ1: Contractuel P | GR1: tt agent | GS1: Rang | GT1: Rang 2 | GU1: % | GV1: Cadre | GW1: Catégorie | GX1: tt agent | GY1: Fonctionnaires | GZ1: Contractuel P
GO2: Administrateurs | GP2: ='IND 1.1.1'!I23 -> 5 | GQ2: ='IND 1.2.1'!L15 -> 2 | GR2: =GP2+GQ2 -> 7 | GS2: =RANK(GR2,$GR$1:$GR$60,0)+COUNTIF(GR$1:GR2,GR2)-1 -> 11 | GT2: =GS2 -> 11 | GU2: =$GX2/SUM($GX$2:$GX$60) -> 0.01090342679 | GV2: =GO2 -> Administrateurs | GW2: A | GX2: =GR2 -> 7 | GY2: =GP2 -> 5 | GZ2: =GQ2 -> 2
L3: Æ | M3: =IF(D69+D70<2,"Répartition par temps de travail, complet ou non complet ","Répartition des agents à temps complet ou non complet") -> Répartition des agents à temps complet ou non complet | R3: Æ | S3: =IF(AND('IND 1.1.1'!B390+'IND 1.2.1'!M94=0),"Aucun agent à temps complet ", IF(D69+D70<2,"Répartition des temps travail, temps plein ou temps partiel ","Répartition des agents à temps plein ou à temps partiel")) -> Répartition des agents à temps plein ou à temps partiel | X3: Æ | Y3: ="En 2022, "& IF(AF126+AG126=0, "aucune arrivée d'agent permanent", IF(AF126+AG126<2,AF126+AG126&" arrivée d'agent permanent", TEXT(AF126+AG126,"# ##0")&" arrivées d'agents permanents")) & IF(AF106+AG106=0, " et aucun départ ", IF(AF106+AG106<2, " et "&AF106+AG106&" départ ", " et "&TEXT(AF106+AG106,"# ##0")&" départs ")) -> En 2022, 75 arrivées d'agents permanents et 104 départs | AD3: Æ | AE3: =IF(AF106+AG106=0, "Aucun départ d'agent permanent en 2022", "Principales causes de départ d'agents permanents") -> Principales causes de départ d'agents permanents | AW3: Æ | AX3: =IF(D69+D70=0,"Aucun agent dans la collectivité",IF(D69=0,BD3,IF(SUM('IND 2.1.1'!$F$15:$G$21)=0, "Aucun jour d’absence pour motif médical concernant les fonctionnaires en 2022", IF(ROUND(SUM('IND 2.1.1'!$F$15:$G$21)/D69,1)>2, "En moyenne, "&ROUND((SUM('IND 2.1.1'!$F$15:$G$21))/D69,1)&" jours d’absence pour tout motif médical en 2022 par fonctionnaire ", "En moyenne, "&ROUND((SUM('IND 2.1.1'!$F$15:$G$21))/D69,1)&" jour d’absence pour tout motif médical en 2022 par fonctionnaire")))) -> En moyenne, 16,8 jours d’absence pour tout motif médical en 2022 par fonctionnaire | BC3: =IF(D69=0,"",IF(D70=0,"",">")) -> > | BD3: =IF(D70=0,"",IF(SUM('IND 2.1.2'!$F$15:$G$20)=0,"Aucun jour d’absence pour motif médical concernant les agents contractuels en 2022", IF(SUM('IND 2.1.2'!$F$15:$G$20)/D70>1,"En moyenne, "&ROUND(SUM('IND 2.1.2'!$F$15:$G$20)/D70,1)&" jours d’absence pour tout motif médical en 2022 par agent contractuel permanent ","En moyenne, "&ROUND(SUM('IND 2.1.2'!$F$15:$G$20)/D70,1)&" jour d’absence pour tout motif médical en 2022 par agent contractuel permanent " ))) -> En moyenne, 6,6 jours d’absence pour tout motif médical en 2022 par agent contractuel permanent | BI3: Æ | BJ3: =IF('IND 5.1.1'!$F$15=0,"Aucun agent titulaire ou contractuel permanent n'a bénéficié d'un départ en formation en 2022", "En 2022, "&TEXT(BK102*100,"##,0")&"% des agents permanents ont suivi une formation "&CHAR(10)&"d'au moins un jour") -> En 2022, 65,7% des agents permanents ont suivi une formation d'au moins un jour | BP3: =IF(BQ3=" "," ","Æ") -> Æ | BQ3: =IF(D69+D70=0," ",IF(D69+D70<2, IF(BS102=0,"Aucun jour de formation suivi en 2022",IF(BS102<2,ROUND(BS102,0)&" jour de formation suivi en 2022",TEXT(ROUND(BS102,0),"# ##0")&" jours de formation suivis par l'agents permanents en 2022")), IF(BS102=0,"Aucun jour de formation suivi par des agents permanents en 2022",IF(BS102<2,ROUND(BS102,0)&" jour de formation suivi en 2022",TEXT(ROUND(BS102,0),"# ##0")&" jours de formation suivis par les agents sur emploi permanent en 2022")))) -> 1 357 jours de formation suivis par les agents sur emploi permanent en 2022 | BU3: Æ | BV3: 1Formules de calcul - Effectif théorique au 31/12/2022 | GO3: Attachés | GP3: ='IND 1.1.1'!I30 -> 54 | GQ3: ='IND 1.2.1'!L16 -> 28 | GR3: =GP3+GQ3 -> 82 | GS3: =RANK(GR3,$GR$1:$GR$60,0)+COUNTIF(GR$1:GR3,GR3)-1 -> 2 | GT3: =GS3 -> 2 | GU3: =$GX3/SUM($GX$2:$GX$60) -> 0.1277258567 | GV3: =GO3 -> Attachés | GW3: A | GX3: =GR3 -> 82 | GY3: =GP3 -> 54 | GZ3: =GQ3 -> 28
AI4: Æ | AJ4: =IF(AL6="0 €","Informations manquantes","Les charges de personnel représentent "&ROUND($AP$62,2)&" % des dépenses de fonctionnement") -> Les charges de personnel représentent 34,95 % des dépenses de fonctionnement | GJ4: Numéro | GK4: Région | GL4: Colonne2 | GO4: Secrétaires de mairie | GP4: ='IND 1.1.1'!I33 -> 0 | GQ4: ='IND 1.2.1'!L17 -> 0 | GR4: 0 | GS4: =RANK(GR4,$GR$1:$GR$60,0)+COUNTIF(GR$1:GR4,GR4)-1 -> 20 | GT4: 20 | GU4: 0 | GV4: Secrétaires de mairie | GW4: A | GX4: 0 | GY4: 0 | GZ4: 0
B5: Æ | C5: ='Page de garde'!A3 -> COMMUNAUTE D'AGGLO DE CERGY-PONTOISE | BV5: Pour les fonctionnaires : Total de l'effectif physique rémunéré des fonctionnaires au 31/12/2022 + Départs définitifs de titulaires ou de stagiaires + Départs temporaires non rémunérés - Arrivées de titulaires ou de stagiaires - Stagiairisation de contractuels de la collectivité - Retours de titulaires stagiaires | CA5: Pour les contractuels permanents : Total de l'effectif physique rémunéré des contractuels au 31/12/2022 + Départs définitifs de contractuels + Départs temporaires non rémunérés + Stagiairisation de contractuels de la collectivité - Arrivées de contractuels - Retours de contractuels | CG5: =IF(BM36="","","Santé") -> Santé | GJ5: 67 | GK5: Alsace | GL5: Centre de Gestion du Bas-Rhin | GO5: Rédacteurs | GP5: ='IND 1.1.1'!I40 -> 33 | GQ5: ='IND 1.2.1'!L18 -> 4 | GR5: 37 | GS5: =RANK(GR5,$GR$1:$GR$60,0)+COUNTIF(GR$1:GR5,GR5)-1 -> 9 | GT5: 9 | GU5: 0.05763239875 | GV5: Rédacteurs | GW5: B | GX5: 37 | GY5: 33 | GZ5: 4
Y6: =IF(AF128+AF129+AF130=0,"Aucun contractuel permanent nommé stagiaire",IF(AF128+AF129+AF130<2,AF128+AF129+AF130&" contractuel permanent nommé stagiaire",AF128+AF129+AF130&" contractuels permanents nommés stagiaires")) -> 16 contractuels permanents nommés stagiaires | AD6: 1 | AE6: =IF(ISNA(VLOOKUP(AD6,$AA$87:$AG$105,2,FALSE))=TRUE,"",VLOOKUP(AD6,$AA$87:$AG$105,2,FALSE)) -> Fin de contrats remplacants | AH6: =IF(AE6>"",VLOOKUP(AD6,$AA$86:$AE$105,5,FALSE),"") -> 0.5 | AJ6: Budget de fonctionnement* | AL6: ='IND 3.4.7'!C7 -> 101425998 | AN6: Charges de personnel* | AP6: ='IND 3.4.7'!C8 -> 35449142 | AS6: =IF(AL6="0 €","Informations manquantes","Soit "&ROUND($AP$62,2)&" % des dépenses de fonctionnement") -> Soit 34,95 % des dépenses de fonctionnement | BQ6: =IF('IND 5.1.1'!$F$14=0," ","Répartition des jours de formation"&CHAR(10)&"par catégorie hiérarchique") -> Répartition des jours de formation par catégorie hiérarchique | GJ6: 68 | GK6: Alsace | GL6: Centre de Gestion du Haut-Rhin | GO6: Adjoints administratifs | GP6: ='IND 1.1.1'!I47 -> 69 | GQ6: ='IND 1.2.1'!L19 -> 5 | GR6: 74 | GS6: =RANK(GR6,$GR$1:$GR$60,0)+COUNTIF(GR$1:GR6,GR6)-1 -> 3 | GT6: 3 | GU6: 0.1152647975 | GV6: Adjoints administratifs | GW6: C | GX6: 74 | GY6: 69 | GZ6: 5
AD7: 2 | AE7: =IF(ISNA(VLOOKUP(AD7,$AA$87:$AG$105,2,FALSE))=TRUE,"",VLOOKUP(AD7,$AA$87:$AG$105,2,FALSE)) -> Démission | AH7: =IF(AE7>"",VLOOKUP(AD7,$AA$86:$AE$105,5,FALSE),"") -> 0.1923076923 | BA7: =IF($D$69=0," ","Fonctionnaires") -> Fonctionnaires | BC7: =IF($D$70=0," ","Contractuels"& CHAR(10)& "permanents") -> Contractuels permanents | BE7: Ensemble agents permanents | BG7: =IF($D$71=0," ","Contractuels"& CHAR(10)& " non permanents") -> Contractuels non permanents | BJ7: =IF('IND 5.1.1'!$F$14=0," ","Pourcentage d'agents par catégorie et par statut ayant bénéficié d'au moins un jour de formation en 2022") -> Pourcentage d'agents par catégorie et par statut ayant bénéficié d'au moins un jour de formation en 2022 | GJ7: 24 | GK7: Aquitaine | GL7: Centre de Gestion de la Dordogne | GO7: Ingénieurs en chef | GP7: ='IND 1.1.1'!I56 -> 4 | GQ7: ='IND 1.2.1'!L22 -> 1 | GR7: 5 | GS7: =RANK(GR7,$GR$1:$GR$60,0)+COUNTIF(GR$1:GR7,GR7)-1 -> 12 | GT7: 12 | GU7: 0.007788161994 | GV7: Ingénieurs en chef | GW7: A | GX7: 5 | GY7: 4 | GZ7: 1
Y8: Emplois permanents rémunérés | AD8: 3 | AE8: =IF(ISNA(VLOOKUP(AD8,$AA$87:$AG$105,2,FALSE))=TRUE,"",VLOOKUP(AD8,$AA$87:$AG$105,2,FALSE)) -> Départ à la retraite | AH8: =IF(AE8>"",VLOOKUP(AD8,$AA$86:$AE$105,5,FALSE),"") -> 0.1634615385 | AJ8: * Montant global | GJ8: 33 | GK8: Aquitaine | GL8: Centre de Gestion de la Gironde | GO8: Ingénieurs | GP8: ='IND 1.1.1'!I62 -> 42 | GQ8: ='IND 1.2.1'!L23 -> 10 | GR8: 52 | GS8: =RANK(GR8,$GR$1:$GR$60,0)+COUNTIF(GR$1:GR8,GR8)-1 -> 6 | GT8: 6 | GU8: 0.08099688474 | GV8: Ingénieurs | GW8: A | GX8: 52 | GY8: 42 | GZ8: 10
AD9: 4 | AE9: =IF(ISNA(VLOOKUP(AD9,$AA$87:$AG$105,2,FALSE))=TRUE,"",VLOOKUP(AD9,$AA$87:$AG$105,2,FALSE)) -> Mutation | AH9: =IF(AE9>"",VLOOKUP(AD9,$AA$86:$AE$105,5,FALSE),"") -> 0.05769230769 | AX9: Taux d'absentéisme « compressible » (maladies ordinaires et accidents de travail) | BA9: =IF($D$69=0," ",SUM('IND 2.1.1'!$F$15:$G$17)/($D$69*365)) -> 0.0316924981 | BC9: =IF($D$70=0," ",SUM('IND 2.1.2'!$F$15:$G$17)/($D$70*365)) -> 0.01810870526 | BE9: =IF($D$69+$D$70=0," ",SUM('IND 2.1.1'!$F$15:$G$17,'IND 2.1.2'!$F$15:$G$17)/(($D$69+$D$70)*365)) -> 0.02841292195 | BG9: =IF($D$71=0," ",SUM('IND 2.1.3'!$F$16:$G$18)/($D$71*365)) -> 0.003497522588 | GJ9: 40 | GK9: Aquitaine | GL9: Centre de Gestion des Landes | GO9: Techniciens | GP9: ='IND 1.1.1'!I69 -> 21 | GQ9: ='IND 1.2.1'!L24 -> 8 | GR9: 29 | GS9: =RANK(GR9,$GR$1:$GR$60,0)+COUNTIF(GR$1:GR9,GR9)-1 -> 10 | GT9: 10 | GU9: 0.04517133956 | GV9: Techniciens | GW9: B | GX9: 29 | GY9: 21 | GZ9: 8
B10: =IFERROR("Cette synthèse du Rapport sur l'État de la Collectivité reprend les principaux indicateurs du Rapport Social Unique au 31 décembre 2022. Elle a été réalisée via l'application www.bs.donnees-sociales"&" des Centres de Gestion par extraction des données 2022 transmises en 2023 par la collectivité au "&VLOOKUP(VALUE('Page de garde'!G8),$GJ$4:$GL$110,3,FALSE)&".","") -> Cette synthèse du Rapport sur l'État de la Collectivité reprend les principaux indicateurs du Rapport Social Unique au 31 décembre 2022. Elle a été réalisée via l'application www.bs.donnees-sociales des Centres de Gestion par extraction des données 2022 transmises en 2023 par la collectivité au Centre Interdépartemental de Gestion de la Grande Couronne de la Région d'Ile-de-France. | Y10: Effectif physique théorique au 31/12/2021 1 | AA10: Effectif physique au 31/12/2022 | AD10: 5 | AE10: =IF(ISNA(VLOOKUP(AD10,$AA$87:$AG$105,2,FALSE))=TRUE,"",VLOOKUP(AD10,$AA$87:$AG$105,2,FALSE)) -> Détachement | AH10: =IF(AE10>"",VLOOKUP(AD10,$AA$86:$AE$105,5,FALSE),"") -> 0.02884615385 | AJ10: Rémunérations annuelles brutes - emploi permanent : | AP10: ='IND 3.1.1-3.3.1 et 3.4.1-3.4.3'!B58+'IND 3.1.1-3.3.1 et 3.4.1-3.4.3'!C58+'IND 3.1.1-3.3.1 et 3.4.1-3.4.3'!B106+'IND 3.1.1-3.3.1 et 3.4.1-3.4.3'!C106 -> 24201597 | AS10: =IF(AS12<2,"Rémunération - emploi non permanent :","Rémunérations des agents sur emploi non permanent :") -> Rémunérations des agents sur emploi non permanent : | GJ10: 47 | GK10: Aquitaine | GL10: Centre de Gestion du Lot-et-Garonne | GO10: Agents de maîtrise | GP10: ='IND 1.1.1'!I74 -> 50 | GQ10: ='IND 1.2.1'!L25 -> 1 | GR10: 51 | GS10: =RANK(GR10,$GR$1:$GR$60,0)+COUNTIF(GR$1:GR10,GR10)-1 -> 7 | GT10: 7 | GU10: 0.07943925234 | GV10: Agents de maîtrise | GW10: C | GX10: 51 | GY10: 50 | GZ10: 1
BA11: =BA9 -> 0.0316924981 | BC11: =BC9 -> 0.01810870526 | BE11: =BE9 -> 0.02841292195 | BG11: =BG9 -> 0.003497522588 | GJ11: 64 | GK11: Aquitaine | GL11: Centre de Gestion des Pyrénées-Atlantiques | GO11: Adjoints techniques | GP11: ='IND 1.1.1'!I81 -> 91 | GQ11: ='IND 1.2.1'!L26 -> 31 | GR11: 122 | GS11: =RANK(GR11,$GR$1:$GR$60,0)+COUNTIF(GR$1:GR11,GR11)-1 -> 1 | GT11: 1 | GU11: 0.1900311526 | GV11: Adjoints techniques | GW11: C | GX11: 122 | GY11: 91 | GZ11: 31
Y12: =IF(Z140< 2, TEXT(Z140, "# ##0") & " agent",TEXT(Z140, "# ##0") & " agents") -> 671 agents | AA12: =IF(D69+D70< 2, TEXT(D69+D70, "# ##0") & " agent",TEXT(D69+D70, "# ##0") & " agents") -> 642 agents | AJ12: Primes et indemnités versées : | AP12: ='IND 3.1.1-3.3.1 et 3.4.1-3.4.3'!D58+'IND 3.1.1-3.3.1 et 3.4.1-3.4.3'!E58+'IND 3.1.1-3.3.1 et 3.4.1-3.4.3'!D106+'IND 3.1.1-3.3.1 et 3.4.1-3.4.3'!E106 -> 5127905 | AS12: ='IND 3.1.1-3.3.1 et 3.4.1-3.4.3'!D122+'IND 3.1.1-3.3.1 et 3.4.1-3.4.3'!E122 -> 748932 | AX12: Taux d'absentéisme médical (toutes absences pour motif médical) | BA12: =IF($D$69=0," ",SUM('IND 2.1.1'!$F$15:$G$21)/($D$69*365)) -> 0.0459480746 | BC12: =IF($D$70=0," ",SUM('IND 2.1.2'!$F$15:$G$20)/($D$70*365)) -> 0.01810870526 | BE12: =IF($D$69+$D$70=0," ",SUM('IND 2.1.1'!$F$15:$G$21,'IND 2.1.2'!$F$15:$G$20)/(($D$69+$D$70)*365)) -> 0.03922673153 | BG12: =IF($D$71=0," ",SUM('IND 2.1.3'!$F$16:$G$21)/($D$71*365)) -> 0.003497522588 | GJ12: 3 | GK12: Auvergne | GL12: Centre de Gestion de l'Allier | GO12: Adjoints techniques des établissements d'enseignement | GP12: ='IND 1.1.1'!I88 -> 0 | GQ12: ='IND 1.2.1'!L27 -> 0 | GR12: 0 | GS12: =RANK(GR12,$GR$1:$GR$60,0)+COUNTIF(GR$1:GR12,GR12)-1 -> 21 | GT12: 21 | GU12: 0 | GV12: Adjoints techniques des établissements d'enseignement | GW12: C | GX12: 0 | GY12: 0 | GZ12: 0
AD13: Æ | AE13: =IF(AF126+AG126=0, "Aucune arrivée d'agent permanent en 2022", "Principaux modes d'arrivée d'agents permanents") -> Principaux modes d'arrivée d'agents permanents | AJ13: Heures supplémentaires et/ou complémentaires : | AP13: ='IND 3.1.1-3.3.1 et 3.4.1-3.4.3'!$J$58+'IND 3.1.1-3.3.1 et 3.4.1-3.4.3'!$K$58+'IND 3.1.1-3.3.1 et 3.4.1-3.4.3'!$H$106+'IND 3.1.1-3.3.1 et 3.4.1-3.4.3'!$I$106 -> 75342 | GJ13: 15 | GK13: Auvergne | GL13: Centre de Gestion du Cantal | GO13: Conservateurs du patrimoine | GP13: ='IND 1.1.1'!I96 -> 0 | GQ13: ='IND 1.2.1'!L30 -> 0 | GR13: 0 | GS13: =RANK(GR13,$GR$1:$GR$60,0)+COUNTIF(GR$1:GR13,GR13)-1 -> 22 | GT13: 22 | GU13: 0 | GV13: Conservateurs du patrimoine | GW13: A | GX13: 0 | GY13: 0 | GZ13: 0
AA14: 1 cf. page 7 | AJ14: Nouvelle Bonification Indiciaire : | AP14: ='IND 3.1.1-3.3.1 et 3.4.1-3.4.3'!F58+'IND 3.1.1-3.3.1 et 3.4.1-3.4.3'!G58 -> 114738 | BA14: =BA12 -> 0.0459480746 | BC14: =BC12 -> 0.01810870526 | BE14: =BE12 -> 0.03922673153 | BG14: =BG12 -> 0.003497522588 | BV14: Pour l'ensemble des agents permanents : Effectif théorique des fonctionnaires au 31/12/2022 + Effectif théorique des contractuels permanents au 31/12/2022 | GJ14: 43 | GK14: Auvergne | GL14: Centre de Gestion de la Haute-Loire | GO14: Conservateurs des bibliothèques | GP14: ='IND 1.1.1'!I101 -> 0 | GQ14: ='IND 1.2.1'!L31 -> 0 | GR14: 0 | GS14: =RANK(GR14,$GR$1:$GR$60,0)+COUNTIF(GR$1:GR14,GR14)-1 -> 23 | GT14: 23 | GU14: 0 | GV14: Conservateurs des bibliothèques | GW14: A | GX14: 0 | GY14: 0 | GZ14: 0
L15: =IF(M15="","","Æ") -> Æ | M15: =IF(SUM(V72:W72)=0,"",IF(L20="","La filière la plus concernée par le temps non complet",IF(L21="","Les 2 filières les plus concernées par le temps non complet","Les 3 filières les plus concernées par le temps non complet"))) -> La filière la plus concernée par le temps non complet | R15: =IF(S15="","","Æ") -> Æ | S15: =IF(SUM(V73:W73)=0,"","Part des agents permanents à temps partiel selon le genre") -> Part des agents permanents à temps partiel selon le genre | AJ15: Supplément familial de traitement : | AP15: ='IND 3.1.1-3.3.1 et 3.4.1-3.4.3'!L58+'IND 3.1.1-3.3.1 et 3.4.1-3.4.3'!M58 -> 166915 | AX15: Taux d'absentéisme global (toutes absences y compris maternité, paternité et autre) | BA15: =IF($D$69=0," ",SUM('IND 2.1.1'!$F$15:$G$24)/($D$69*365)) -> 0.05374813648 | BC15: =IF($D$70=0," ",SUM('IND 2.1.2'!$F$15:$G$23)/($D$70*365)) -> 0.02512593902 | BE15: =IF($D$69+$D$70=0," ",SUM('IND 2.1.1'!$F$15:$G$24,'IND 2.1.2'!$F$15:$G$23)/(($D$69+$D$70)*365)) -> 0.04683779286 | BG15: =IF($D$71=0," ",SUM('IND 2.1.3'!$F$16:$G$24)/($D$71*365)) -> 0.00408044302 | GJ15: 63 | GK15: Auvergne | GL15: Centre de Gestion du Puy-de-Dôme | GO15: Attachés de conservation du patrimoine | GP15: ='IND 1.1.1'!I106 -> 1 | GQ15: ='IND 1.2.1'!L32 -> 0 | GR15: 1 | GS15: =RANK(GR15,$GR$1:$GR$60,0)+COUNTIF(GR$1:GR15,GR15)-1 -> 16 | GT15: 16 | GU15: 0.001557632399 | GV15: Attachés de conservation du patrimoine | GW15: A | GX15: 1 | GY15: 1 | GZ15: 0
Y16: Variation des effectifs* | AD16: 1 | AE16: =IF(ISNA(VLOOKUP(AD16,$AA$115:$AB$125,2,FALSE))=TRUE,"",VLOOKUP(AD16,$AA$115:$AB$125,2,FALSE)) -> Arrivées de contractuels | AH16: =IF(AE16>"",VLOOKUP(AE16,$AB$115:$AE$124,4,FALSE),"") -> 0.6133333333 | AJ16: Indemnité de résidence : | AP16: ='IND 3.1.1-3.3.1 et 3.4.1-3.4.3'!N58+'IND 3.1.1-3.3.1 et 3.4.1-3.4.3'!O58 -> 422269 | BQ16: =IF('IND 5.1.1'!$F$15=0,"","Nombre moyen de jours de formation" & CHAR(10) & "par agent permanent : ") -> Nombre moyen de jours de formation par agent permanent : | GJ16: 14 | GK16: Basse-Normandie | GL16: Centre de Gestion du Calvados | GO16: Bibliothécaires | GP16: ='IND 1.1.1'!I111 -> 1 | GQ16: ='IND 1.2.1'!L33 -> 0 | GR16: 1 | GS16: =RANK(GR16,$GR$1:$GR$60,0)+COUNTIF(GR$1:GR16,GR16)-1 -> 17 | GT16: 17 | GU16: 0.001557632399 | GV16: Bibliothécaires | GW16: A | GX16: 1 | GY16: 1 | GZ16: 0
A17: Æ | B17: =IF(D69+D70+D71=0,"Aucun agent employé par la collectivité au 31 décembre 2022",IF(D69+D70+D71<2,D69+D70+D71&" agent employé par la collectivité au 31 décembre 2022",TEXT(D69+D70+D71,"# ##0")&" agents employés par la collectivité au 31 décembre 2022")) -> 689 agents employés par la collectivité au 31 décembre 2022 | Y17: entre le 1er janvier et le 31 décembre 2022 | AD17: 2 | AE17: =IF(ISNA(VLOOKUP(AD17,$AA$115:$AB$125,2,FALSE))=TRUE,"",VLOOKUP(AD17,$AA$115:$AB$125,2,FALSE)) -> Voie de mutation | AH17: =IF(AE17>"",VLOOKUP(AE17,$AB$115:$AE$124,4,FALSE),"") -> 0.2266666667 | AJ17: Complément de traitement indiciaire (CTI) | AP17: ='IND 3.1.1-3.3.1 et 3.4.1-3.4.3'!$H$58+'IND 3.1.1-3.3.1 et 3.4.1-3.4.3'!$I$58+'IND 3.1.1-3.3.1 et 3.4.1-3.4.3'!$F$106+'IND 3.1.1-3.3.1 et 3.4.1-3.4.3'!$G$106 -> 0 | BA17: =BA15 -> 0.05374813648 | BC17: =BC15 -> 0.02512593902 | BE17: =BE15 -> 0.04683779286 | BG17: =BG15 -> 0.00408044302 | GJ17: 61 | GK17: Basse-Normandie | GL17: Centre de Gestion de l'Orne | GO17: Directeurs d'établissements d'enseignement artistique | GP17: ='IND 1.1.1'!I117 -> 0 | GQ17: ='IND 1.2.1'!L34 -> 0 | GR17: 0 | GS17: =RANK(GR17,$GR$1:$GR$60,0)+COUNTIF(GR$1:GR17,GR17)-1 -> 24 | GT17: 24 | GU17: 0 | GV17: Directeurs d'établissements d'enseignement artistique | GW17: A | GX17: 0 | GY17: 0 | GZ17: 0
L18: =IF(M15="","","Filière") -> Filière | N18: =IF(M15="","",IF(D69=0,"","Fonctionnaires")) -> Fonctionnaires | P18: =IF(M15="","",IF(D70=0,"","Contractuels")) -> Contractuels | Y18: =IF(D69<2,"Fonctionnaire","Fonctionnaires") -> Fonctionnaires | AA18: =IF($AB$18="","",IF(AB18>0%,"æ",IF(AB18<0,"è","â"))) -> æ | AB18: =AH142 -> 0.01670146138 | AD18: 3 | AE18: =IF(ISNA(VLOOKUP(AD18,$AA$115:$AB$125,2,FALSE))=TRUE,"",VLOOKUP(AD18,$AA$115:$AB$125,2,FALSE)) -> Réintégration et retour | AH18: =IF(AE18>"",VLOOKUP(AE18,$AB$115:$AE$124,4,FALSE),"") -> 0.05333333333 | AX18: Cf. p7 Précisions méthodologiques pour les groupes d'absences Taux d'absentéisme : nombre de jours d'absence / (nombre total d'agents x 365) | BI18: =IF(BJ18=" "," ","Æ") -> Æ | BJ18: =IF('IND 5.1.4'!D16=0, " ",TEXT(ROUND('IND 5.1.4'!$D$16,0),"# ##0") &" € ont été consacrés à la formation en 2022") -> 375 916 € ont été consacrés à la formation en 2022 | BU18: Æ | BV18: 2Formules de calcul - Taux d'absentéisme | CB18: Note de lecture : Si le taux d’absentéisme est de 8 %, cela signifie que pour 100 agents de la collectivité, un équivalent de 8 agents a été absent toute l’année. | GJ18: 21 | GK18: Bourgogne | GL18: Centre de Gestion de la Côte d'Or | GO18: Professeurs d'enseignement artistique | GP18: ='IND 1.1.1'!I122 -> 49 | GQ18: ='IND 1.2.1'!L35 -> 11 | GR18: 60 | GS18: =RANK(GR18,$GR$1:$GR$60,0)+COUNTIF(GR$1:GR18,GR18)-1 -> 5 | GT18: 5 | GU18: 0.09345794393 | GV18: Professeurs d'enseignement artistique | GW18: A | GX18: 60 | GY18: 49 | GZ18: 11
L19: =IF(ISNA(VLOOKUP(1,$L$73:$O$80,2,FALSE))=FALSE,VLOOKUP(1,$L$73:$O$80,2,FALSE),"") -> Culturelle | N19: =IF(L19="","",VLOOKUP(1,$L$73:$O$80,3,FALSE)) -> 0.35 | P19: =IF(L19="","",VLOOKUP(1,$L$73:$O$80,4,FALSE)) -> 0.8431372549 | S19: =IF(S15="","",O85) -> 0.01 | T19: =IF(S15="","","des hommes à temps partiel") -> des hommes à temps partiel | AD19: 4 | AE19: =IF(ISNA(VLOOKUP(AD19,$AA$115:$AB$125,2,FALSE))=TRUE,"",VLOOKUP(AD19,$AA$115:$AB$125,2,FALSE)) -> Remplacements (contractuels) | AH19: =IF(AE19>"",VLOOKUP(AE19,$AB$115:$AE$124,4,FALSE),"") -> 0.05333333333 | AI19: Æ | AJ19: Rémunération moyenne par équivalent temps plein rémunéré des agents permanents | AW19: =IF(AX19="","","Æ") ->  | AX19: =IF('IND 2.1.0'!$B$8=0,"",IF('IND 2.1.0'!$B$8=1,"Les agents ont bénéficié d'un jour de congés au titre des droits acquis (cycles de travail antérieurs au 1er janvier 2002).","Les agents ont bénéficié de "&'IND 2.1.0'!$B$8&" jours de congés au titre des droits acquis (cycles de travail antérieurs au 1er janvier 2002).")) ->  | BR19: =IF((D69+D70)=0,"","> "& IF(AND(BS102/(D69+D70)<2,BS102/(D69+D70)>0),ROUND((BS102/(D69+D70)),1)&" jour par agent",IF(BS102/(D69+D70)>=2,ROUND((BS102/(D69+D70)),1)&" jours par agent"," Aucun jour de formation"))) -> > 2,1 jours par agent | GJ19: 58 | GK19: Bourgogne | GL19: Centre de Gestion de la Nièvre | GO19: Assistants de conservation du patrimoine et des bibliothèque | GP19: ='IND 1.1.1'!I129 -> 5 | GQ19: ='IND 1.2.1'!L36 -> 0 | GR19: 5 | GS19: =RANK(GR19,$GR$1:$GR$60,0)+COUNTIF(GR$1:GR19,GR19)-1 -> 13 | GT19: 13 | GU19: 0.007788161994 | GV19: Assistants de conservation du patrimoine et des bibliothèque | GW19: B | GX19: 5 | GY19: 5 | GZ19: 0
B20: =D69 -> 487 | D20: =IF(D69<2,"fonctionnaire","fonctionnaires") -> fonctionnaires | L20: =IF(ISNA(VLOOKUP(2,$L$73:$O$80,2,FALSE))=FALSE,VLOOKUP(2,$L$73:$O$80,2,FALSE),"") ->  | N20: =IF(L20="","",VLOOKUP(2,$L$73:$O$80,3,FALSE)) ->  | P20: =IF(L20="","",VLOOKUP(2,$L$73:$O$80,4,FALSE)) ->  | S20: =IF(S15="","",O86) -> 0.147601476 | T20: =IF(S15="","","des femmes à temps partiel") -> des femmes à temps partiel | Y20: =IF(D70<2,"Contractuel","Contractuels") -> Contractuels | AA20: =IF($AB$20="", "",IF(AB20>0%,"æ",IF(AB20<0,"è","â"))) -> è | AB20: =AH144 -> -0.1927083333 | AD20: 5 | AE20: =IF(ISNA(VLOOKUP(AD20,$AA$115:$AB$125,2,FALSE))=TRUE,"",VLOOKUP(AD20,$AA$115:$AB$125,2,FALSE)) -> Intégration directe | AH20: =IF(AE20>"",VLOOKUP(AE20,$AB$115:$AE$124,4,FALSE),"") -> 0.04 | BV20: Nombre de jours calendaires d'absence | BZ20: x 100 | GJ20: 71 | GK20: Bourgogne | GL20: Centre de Gestion de Saône-et-Loire | GO20: Assistants d'enseignement artistique | GP20: ='IND 1.1.1'!I136 -> 21 | GQ20: ='IND 1.2.1'!L37 -> 40 | GR20: 61 | GS20: =RANK(GR20,$GR$1:$GR$60,0)+COUNTIF(GR$1:GR20,GR20)-1 -> 4 | GT20: 4 | GU20: 0.09501557632 | GV20: Assistants d'enseignement artistique | GW20: B | GX20: 61 | GY20: 21 | GZ20: 40
B21: =D70 -> 155 | D21: =IF(D70<2,"contractuel permanent","contractuels permanents") -> contractuels permanents | L21: =IF(ISNA(VLOOKUP(3,$L$73:$O$80,2,FALSE))=FALSE,VLOOKUP(3,$L$73:$O$80,2,FALSE),"") ->  | N21: =IF(L21="","",VLOOKUP(3,$L$73:$O$80,3,FALSE)) ->  | P21: =IF(L21="","",VLOOKUP(3,$L$73:$O$80,4,FALSE)) ->  | AE21: * Variation des effectifs : | AK21: Catégorie A | AO21: Catégorie B | AS21: Catégorie C | AW21: Æ | AX21: =IF('IND 2.1.0'!$B$10=0,"Aucune journée de congés supplémentaires accordée au-delà des congés légaux (exemple : journée du maire)",IF('IND 2.1.0'!$B$10=1,"Une journée de congés supplémentaires accordée au-delà des congés légaux (exemple : journée du maire)",'IND 2.1.0'!$B$10 &" journées de congés supplémentaires accordées au-delà des congés légaux (exemple : journée du maire)")) -> Aucune journée de congés supplémentaires accordée au-delà des congés légaux (exemple : journée du maire) | BJ21: =IF('IND 5.1.4'!D16=0," ","Répartition des dépenses de formation") -> Répartition des dépenses de formation | BQ21: =IF(BS102=0, "","Répartition des jours de formation"&CHAR(10)&"par organisme") -> Répartition des jours de formation par organisme | BV21: Nombre d'agents au 31/12/2022 x 365 | GJ21: 89 | GK21: Bourgogne | GL21: Centre de Gestion de l'Yonne | GO21: Adjoints du patrimoine | GP21: ='IND 1.1.1'!I143 -> 3 | GQ21: ='IND 1.2.1'!L38 -> 0 | GR21: 3 | GS21: =RANK(GR21,$GR$1:$GR$60,0)+COUNTIF(GR$1:GR21,GR21)-1 -> 14 | GT21: 14 | GU21: 0.004672897196 | GV21: Adjoints du patrimoine | GW21: C | GX21: 3 | GY21: 3 | GZ21: 0
B22: =D71 -> 47 | D22: =IF(D71<2,"contractuel non permanent","contractuels non permanents") -> contractuels non permanents | Y22: Ensemble | AA22: =IF($AB$22="","",IF(AB22>0%,"æ",IF(AB22<0,"è","â"))) -> è | AB22: =AH140 -> -0.04321907601 | AE22: (effectif physique rémunéré au 31/12/2022 - effectif physique théorique rémunéré au 31/12/2021) / | AK22: Titulaire | AM22: Contractuel | AO22: Titulaire | AQ22: Contractuel | AS22: Titulaire | AU22: Contractuel | BV22: Les journées d’absence sont décomptées en jours calendaires pour respecter les saisies réalisées dans les logiciels de paie | GJ22: 22 | GK22: Bretagne | GL22: Centre de Gestion des Côtes d'Armor | GO22: Conseillers des APS | GP22: ='IND 1.1.1'!I151 -> 2 | GQ22: ='IND 1.2.1'!L41 -> 0 | GR22: 2 | GS22: =RANK(GR22,$GR$1:$GR$60,0)+COUNTIF(GR$1:GR22,GR22)-1 -> 15 | GT22: 15 | GU22: 0.003115264798 | GV22: Conseillers des APS | GW22: A | GX22: 2 | GY22: 2 | GZ22: 0
AI23: Administrative | AK23: =IF(AK161>=2,AK148/AK161,IF(AK161=0,"","s")) -> 59272.84362 | AM23: =IF(AN161>=2,AN148/AN161,IF(AN161=0,"","s")) -> 48096.99294 | AO23: =IF(AO161>=2,AO148/AO161,IF(AO161=0,"","s")) -> 35546.78074 | AQ23: =IF(AP161>=2,AP148/AP161,IF(AP161=0,"","s")) -> 31540.41096 | AS23: =IF(AR161>=2,AR148/AR161,IF(AR161=0,"","s")) -> 29073.03603 | AU23: =IF(AT161>=2,AT148/AT161,IF(AT161=0,"","s")) -> 23094.25837 | AW23: Æ | AX23: =IF(BF76=0,"Aucun jour de carence prélevé pour les agents permanents",TEXT((BF76/BF75)*100,"##0,0")&" % des agents permanents ayant été absents ont eu au moins un jour de carence prélevé") -> 31,1 % des agents permanents ayant été absents ont eu au moins un jour de carence prélevé | BJ23: =IF('IND 5.1.4'!$D$11+'IND 5.1.4'!$D$12=0,"", "CNFPT ") -> CNFPT | BN23: =IF(BM108=0,"",ROUND(((BM108/'IND 5.1.4'!$D$16)*100),0) & " %") -> 47 % | GJ23: 29 | GK23: Bretagne | GL23: Centre de Gestion du Finistère | GO23: Educateurs des APS | GP23: ='IND 1.1.1'!I158 -> 35 | GQ23: ='IND 1.2.1'!L42 -> 13 | GR23: 48 | GS23: =RANK(GR23,$GR$1:$GR$60,0)+COUNTIF(GR$1:GR23,GR23)-1 -> 8 | GT23: 8 | GU23: 0.07476635514 | GV23: Educateurs des APS | GW23: B | GX23: 48 | GY23: 35 | GZ23: 13
A24: =IF($B$24="","","Æ") -> Æ | B24: =IF($D$70=0,"",IF($I$70=0,"Aucun contractuel permanent en CDI", (IF($I$70>5,ROUND($I$70/$D$70*100,0)&" % des contractuels permanents en CDI", IF($I$70=1,"1 contractuel permanent en CDI",$I$70&" contractuels permanents en CDI"))))) -> 12 % des contractuels permanents en CDI | G24: =IF($H$24="","","Æ") -> Æ | H24: =IF($D$74=0,"",IF($D$74<2,"Un agent sur emploi fonctionnel dans la collectivité",$D$74&" agents sur emploi fonctionnel dans la collectivité"&IF($D$75>0," dont "&IF($D$75<2,"un contractuel",$D$75&" contractuels"),""))) -> 6 agents sur emploi fonctionnel dans la collectivité | AE24: (Effectif physique théorique rémunéré au 31/12/2021) | AI24: Technique | AK24: 57169.05143 | AM24: 53022.04918 | AO24: 41631.77033 | AQ24: 38250.24213 | AS24: 33554.83114 | AU24: 31229.78876 | BJ24: =IF('IND 5.1.4'!$D$15=0,"","Coût de la formation des apprentis") -> Coût de la formation des apprentis | BN24: =IF(BM111=0,"",ROUND(((BM111/'IND 5.1.4'!$D$16)*100),0) & " %") -> 9 % | BQ24: =IF(BS102=0,"",IF(BT24="","", "CNFPT")) -> CNFPT | BT24: =IF(BS107=0,"",BS107) -> 0.2129697863 | BV24: 3 « groupes d’absences » | GJ24: 35 | GK24: Bretagne | GL24: Centre de Gestion d'Ille-et-Vilaine | GO24: Opérateurs des APS | GP24: ='IND 1.1.1'!I164 -> 0 | GQ24: ='IND 1.2.1'!L43 -> 0 | GR24: 0 | GS24: =RANK(GR24,$GR$1:$GR$60,0)+COUNTIF(GR$1:GR24,GR24)-1 -> 25 | GT24: 25 | GU24: 0 | GV24: Opérateurs des APS | GW24: C | GX24: 0 | GY24: 0 | GZ24: 0
L25: Æ | M25: =IF(D69+D70=0,"Aucun agent",IF(D69+D70<2,"L'agent employé a "&G89&" ans","En moyenne, les agents de la collectivité ont "&ROUND($O$33,0)&" ans")) -> En moyenne, les agents de la collectivité ont 47 ans | AI25: Culturelle | AK25: 45169.57048 | AM25: 35231.44876 | AO25: 31463.54167 | AQ25: 24135.7906 | AS25: 28999.28571 | AW25: =IF(AX25="","","Æ") -> Æ | AX25: =IF('IND 4.2.5'!$I$5="Oui", "La collectivité adhère à un contrat d'assurance groupe pour la gestion du risque maladie",IF('IND 4.2.5'!$I$4="Non","La collectivité n'est pas assurée pour la gestion du risque maladie","")) -> La collectivité adhère à un contrat d'assurance groupe pour la gestion du risque maladie | BJ25: =IF('IND 5.1.4'!$D$14=0,"","Frais de déplacement ") -> Frais de déplacement | BN25: =IF(BM110=0,"",ROUND(((BM110/'IND 5.1.4'!$D$16)*100),0) & " %") -> 3 % | BQ25: =IF(BS102=0,"",IF(BT25="","","Autres organismes ")) -> Autres organismes | BT25: =IF(BS108=0,"",BS108) -> 0.7030213707 | GJ25: 56 | GK25: Bretagne | GL25: Centre de Gestion du Morbihan | GO25: Conseillers socio-éducatifs | GP25: ='IND 1.1.1'!I173 -> 1 | GQ25: ='IND 1.2.1'!L46 -> 0 | GR25: 1 | GS25: =RANK(GR25,$GR$1:$GR$60,0)+COUNTIF(GR$1:GR25,GR25)-1 -> 18 | GT25: 18 | GU25: 0.001557632399 | GV25: Conseillers socio-éducatifs | GW25: A | GX25: 1 | GY25: 1 | GZ25: 0
AI26: Sportive | AK26: 49036.66667 | AO26: 41221.43709 | AQ26: 30299.57537 | BJ26: =IF('IND 5.1.4'!$D$13=0,"","Autres organismes ") -> Autres organismes | BN26: =IF(BM109=0,"",ROUND(((BM109/'IND 5.1.4'!$D$16)*100),0) & " %") -> 41 % | BQ26: =IF(BS102=0,"",IF(BT26="","","Interne à la collectivité ")) -> Interne à la collectivité | BT26: =IF(BS109=0,"",BS109) -> 0.08400884304 | BV26: 1. Absences compressibles : Maladie ordinaire et accidents du travail | BY26: 2. Absences médicales : Absences compressibles + longue maladie, maladie de longue durée, grave maladie, maladie professionnelle | CC26: 3. Absences Globales : Absences médicales + maternité, paternité adoption, autres raisons* | GJ26: 18 | GK26: Centre | GL26: Centre de Gestion du Cher | GO26: Assistants socio-éducatifs | GP26: ='IND 1.1.1'!I179 -> 0 | GQ26: ='IND 1.2.1'!L47 -> 0 | GR26: 0 | GS26: =RANK(GR26,$GR$1:$GR$60,0)+COUNTIF(GR$1:GR26,GR26)-1 -> 26 | GT26: 26 | GU26: 0 | GV26: Assistants socio-éducatifs | GW26: A | GX26: 0 | GY26: 0 | GZ26: 0
A27: =IF($B$27="","","Æ") -> Æ | B27: =IF($D$71=0,"",IF($D$71<2,"Précisions emploi non permanent","Précisions emplois non permanents")) -> Précisions emplois non permanents | M27: =IF(D69+D70<2,"Tranche d'âge","Âge moyen*"&CHAR(10)&"des agents permanents") -> Âge moyen* des agents permanents | R27: Pyramide des âges des agents sur emploi permanent | X27: Æ | Y27: =IF(B20=0," ", IF((AF62+AG62)=0,"Aucun bénéficiaire d'une promotion interne sans examen professionnel",IF(AF62+AG62<2,AF62+AG62&" bénéficiaire d'une promotion interne sans examen professionnel"&IF(AF63+AG63=0,"nommé","n'ayant pas été nommé"),AF62+AG62&" bénéficiaires d'une promotion interne sans examen professionnel"&IF(AF63+AG63=0," nommés",IF(AF62+AG62=AF63+AG63," n'ayant pas été nommés"," dont "&AG63+AF63&" n'ayant pas été nommé(s)"))))) -> 6 bénéficiaires d'une promotion interne sans examen professionnel nommés | AD27: Æ | AE27: =IF(B20=0," ", IF((AF64+AG64)=0,"Aucun lauréat d'un examen professionnel",IF(AF64+AG64<2,AF64+AG64&" lauréat d'un examen professionnel "&IF(AF65+AG65=0,"nommé","n'ayant pas été nommé"),AF64+AG64&" lauréats d'un examen professionnel "&IF(AF65+AG65=0,"nommés",IF(AF64+AG64=AF65+AG65,"n'ayant pas été nommés","dont "&AG65+AF65&" n'ayant pas été nommé(s)"))))) -> Aucun lauréat d'un examen professionnel | AI27: Médico-sociale | AK27: s | AM27: s | GJ27: 28 | GK27: Centre | GL27: Centre de Gestion d'Eure-et-Loir | GO27: Educateurs de jeunes enfants | GP27: ='IND 1.1.1'!I185 -> 0 | GQ27: ='IND 1.2.1'!L48 -> 0 | GR27: 0 | GS27: =RANK(GR27,$GR$1:$GR$60,0)+COUNTIF(GR$1:GR27,GR27)-1 -> 27 | GT27: 27 | GU27: 0 | GV27: Educateurs de jeunes enfants | GW27: A | GX27: 0 | GY27: 0 | GZ27: 0
AI28: Police | GJ28: 36 | GK28: Centre | GL28: Centre de Gestion de l'Indre | GO28: Moniteurs-éducateurs et intervenants familiaux | GP28: ='IND 1.1.1'!I190 -> 0 | GQ28: ='IND 1.2.1'!L49 -> 0 | GR28: 0 | GS28: =RANK(GR28,$GR$1:$GR$60,0)+COUNTIF(GR$1:GR28,GR28)-1 -> 28 | GT28: 28 | GU28: 0 | GV28: Moniteurs-éducateurs et intervenants familiaux | GW28: B | GX28: 0 | GY28: 0 | GZ28: 0
B29: =IF($C$29="","","a") -> a | C29: =IF($D$71=0,"",IF($I$69=0,"Aucun contractuel non permanent recruté dans le cadre d’un emploi aidé ",IF($I$69>5,ROUND($I$69/$D$71*100,0)&" % des contractuels non permanents recrutés dans le cadre d’un emploi aidé ",IF($I$69<2,"1 contractuel non permanent recruté dans le cadre d’un emploi aidé",$I$69&" contractuels non permanents recrutés dans le cadre d’un emploi aidé")))) -> Aucun contractuel non permanent recruté dans le cadre d’un emploi aidé | M29: =IF($H$86=0," ",IF(D69<2,"Fonctionnaire","Fonctionnaires")) -> Fonctionnaires | O29: =IF($H$86=0," ",IF(D69<2,"de "&$H$87-2.5&" à "&$H$87+2.5,$H$87)) -> 48.74229979 | AI29: Incendie | GJ29: 37 | GK29: Centre | GL29: Centre de Gestion d'Indre-et-Loire | GO29: ATSEM | GP29: ='IND 1.1.1'!I195 -> 0 | GQ29: ='IND 1.2.1'!L50 -> 0 | GR29: 0 | GS29: =RANK(GR29,$GR$1:$GR$60,0)+COUNTIF(GR$1:GR29,GR29)-1 -> 29 | GT29: 29 | GU29: 0 | GV29: ATSEM | GW29: C | GX29: 0 | GY29: 0 | GZ29: 0
B30: =IF($C$30=" "," ","a") -> a | C30: =IF($D$71=0," ",IF($I$71=0,"Aucun contractuel non permanent recruté comme saisonnier ou occasionnel",(IF($I$71>5,ROUND($I$71/D71*100,0)&" % des contractuels non permanents recrutés comme saisonniers ou occasionnels",IF($I$71<2,$I$71&" contractuel non permanent recruté comme saisonnier ou occasionnel",$I$71&" contractuels non permanents recrutés comme saisonniers ou occasionnels"))))) -> 13 % des contractuels non permanents recrutés comme saisonniers ou occasionnels | Y30: =IF(AB71+AA71=0,"",IF(AB71=0,"Aucune nomination concerne des femmes","dont "&TEXT(AB72,"#0%")&" des nominations concernent des femmes")) -> dont 50% des nominations concernent des femmes | AE30: =IF(AB73+AA73=0,"",IF(AB73=0,"Aucune nomination concerne des femmes","dont "&TEXT(AB74,"#0%")&" des nominations concernent des femmes")) ->  | AI30: Animation | AW30: Æ | AX30: =IF(D69+D70=0,"Aucun agent dans la collectivité",IF('IND 4.2.1'!C104+'IND 4.2.1'!D104+'IND 4.2.1'!G104+'IND 4.2.1'!H104=0,"Aucun accident du travail déclaré en 2022",IF('IND 4.2.1'!C104+'IND 4.2.1'!D104+'IND 4.2.1'!G104+'IND 4.2.1'!H104>1,'IND 4.2.1'!C104+'IND 4.2.1'!D104+'IND 4.2.1'!G104+'IND 4.2.1'!H104&" accidents du travail déclarés au total en 2022",'IND 4.2.1'!C104+'IND 4.2.1'!D104+'IND 4.2.1'!G104+'IND 4.2.1'!H104&" seul accident du travail déclaré au total en 2022"))) -> 23 accidents du travail déclarés au total en 2022 | BI30: ="Æ" -> Æ | BJ30: =IF(AND(BV63=0,BX63=0),"Aucune information relative à la participation aux contrats de protection sociale complémentaire ",IF(AND(BV63=1,BX63=1),"La collectivité ne participe ni à la complémentaire santé de ses agents, ni aux contrats de prévoyance",IF(AND(BV63=2,BX63=2),"La collectivité participe à la complémentaire santé et aux contrats de prévoyance",IF(OR(BV63=2),"La collectivité participe financièrement à la complémentaire santé",IF(OR(BX63=2),"La collectivité participe aux contrats de prévoyance ",""))))) -> La collectivité participe à la complémentaire santé et aux contrats de prévoyance | BO30: ="Æ" -> Æ | BP30: =IF(AND('IND 7.1.1-7.1.3'!B13<>"Oui",'IND 7.1.1-7.1.3'!B14<>"Oui",'IND 7.1.1-7.1.3'!B15<>"Oui",'IND 7.1.1-7.1.3'!B16<>"Oui"),"Aucune prestation en faveur de l'action sociale de la collectivité","L’action sociale de la collectivité") -> L’action sociale de la collectivité | BU30: * Les absences pour "autres raisons" correspondent aux autorisations spéciales d'absences (motif familial, concours…) Ne sont pas comptabilisés les jours de formation et les absences pour motif syndical ou de représentation. | GJ30: 41 | GK30: Centre | GL30: Centre de Gestion du Loir-et-Cher | GO30: Agents sociaux | GP30: ='IND 1.1.1'!I202 -> 0 | GQ30: ='IND 1.2.1'!L51 -> 0 | GR30: 0 | GS30: =RANK(GR30,$GR$1:$GR$60,0)+COUNTIF(GR$1:GR30,GR30)-1 -> 30 | GT30: 30 | GU30: 0 | GV30: Agents sociaux | GW30: C | GX30: 0 | GY30: 0 | GZ30: 0
B31: =IF($C$30=" "," ","a") -> a | C31: ="Personnel temporaire intervenu en 2022 : "& IF(SUM('IND 1.3.2'!$E$14:$F$14)=0,"aucun agent du Centre de Gestion et ",IF(SUM('IND 1.3.2'!$E$14:$F$14)=1,"un agent du Centre de Gestion et ",IF(SUM('IND 1.3.2'!$E$14:$F$14)=1,"un agent du Centre de Gestion et ",SUM('IND 1.3.2'!$E$14:$F$14)&" agents du Centre de Gestion et ")))& IF(SUM('IND 1.3.2'!$E$26:$F$26)=0,"aucun intérimaire",IF(SUM('IND 1.3.2'!$E$26:$F$26)=1,"un intérimaire",IF(SUM('IND 1.3.2'!$E$26:$F$26)=1,"un intérimaire ",SUM('IND 1.3.2'!$E$26:$F$26)&" intérimaires"))) -> Personnel temporaire intervenu en 2022 : 2 agents du Centre de Gestion et aucun intérimaire | M31: =IF($I$86=0," ",IF(D70<2,"Contractuel permanent","Contractuels permanents")) -> Contractuels permanents | O31: =IF($I$86=0," ",IF(D70<2,"de "&$I$87-2.5&" à "&$I$87+2.5,$I$87)) -> 39.5 | AI31: Toutes filières | AK31: 53892.17515 | AM31: 47034.67504 | AO31: 37872.07156 | AQ31: 29326.20356 | AS31: 32115.70349 | AU31: 30663.39107 | BC31: Æ | BD31: =IF('IND 4.1.1-4.1.2'!B9=1,"ASSISTANT DE PRÉVENTION","ASSISTANTS DE PRÉVENTION") -> ASSISTANTS DE PRÉVENTION | GJ31: 45 | GK31: Centre | GL31: Centre de Gestion du Loiret | GO31: Médecins | GP31: ='IND 1.1.1'!I211 -> 0 | GQ31: ='IND 1.2.1'!L54 -> 0 | GR31: 0 | GS31: =RANK(GR31,$GR$1:$GR$60,0)+COUNTIF(GR$1:GR31,GR31)-1 -> 31 | GT31: 31 | GU31: 0 | GV31: Médecins | GW31: A | GX31: 0 | GY31: 0 | GZ31: 0
X32: Æ | Y32: =IF(B20=0," ", IF((AF66+AG66)=0,"Aucun lauréat d'un concours d'agents déjà fonctionnaires dans la collectivité ",IF(AF66+AG66<2,AF66+AG66&" lauréat d'un concours d'agents déjà fonctionnaires dans la collectivité "&IF(AF67+AG67=0,"nommé","n'ayant pas été nommé"),AF66+AG66&" lauréats d'un concours d'agents déjà fonctionnaires dans la collectivité "&IF(AF67+AG67=0,"nommés",IF(AF66+AG66=AF67+AG67,"n'ayant pas été nommés"," dont "&AG67+AF67&" n'ayant pas été nommés"))))) -> Aucun lauréat d'un concours d'agents déjà fonctionnaires dans la collectivité | AO32: *s : secret statistique appliqué en dessous de 2 ETPR | BD32: =IF('IND 4.1.1-4.1.2'!B9=0,"Aucun assistant de prévention désigné dans la collectivité",IF('IND 4.1.1-4.1.2'!B9<2,'IND 4.1.1-4.1.2'!B9&" assistant de prévention désigné dans la collectivité",'IND 4.1.1-4.1.2'!B9&" assistants de prévention désignés dans la collectivité")) -> 6 assistants de prévention désignés dans la collectivité | GJ32: 8 | GK32: Champagne | GL32: Centre de Gestion des Ardennes | GO32: Psychologues | GP32: ='IND 1.1.1'!I216 -> 0 | GQ32: ='IND 1.2.1'!L55 -> 1 | GR32: 1 | GS32: =RANK(GR32,$GR$1:$GR$60,0)+COUNTIF(GR$1:GR32,GR32)-1 -> 19 | GT32: 19 | GU32: 0.001557632399 | GV32: Psychologues | GW32: A | GX32: 1 | GY32: 0 | GZ32: 1
M33: =IF($K$86=0," ",IF(D69+D70<2," ","Ensemble des permanents")) -> Ensemble des permanents | O33: =IF($K$86=0," ",IF(D69+D70<2," ",$K$87)) -> 46.51090343 | AW33: =IF(AX33="","",">") -> > | AX33: =IF('IND 4.2.1'!C104+'IND 4.2.1'!D104+'IND 4.2.1'!G104+'IND 4.2.1'!H104=0,"", IF(D69+D70+D71<=100, IF('IND 4.2.1'!C104+'IND 4.2.1'!D104+'IND 4.2.1'!G104+'IND 4.2.1'!H104<2,('IND 4.2.1'!C104+'IND 4.2.1'!D104+'IND 4.2.1'!G104+'IND 4.2.1'!H104)&" accident du travail pour ",('IND 4.2.1'!C104+'IND 4.2.1'!D104+'IND 4.2.1'!G104+'IND 4.2.1'!H104)&" accidents du travail pour ")&IF(D69+D70+D71<1,D69+D70+D71 &" agent en position d'activité au 31 décembre 2022",D69+D70+D71&" agents en position d'activité au 31 décembre 2022"),IF(ROUND((('IND 4.2.1'!C104+'IND 4.2.1'!D104+'IND 4.2.1'!G104+'IND 4.2.1'!H104)/(D69+D70+D71))*100,1)<2,ROUND((('IND 4.2.1'!C104+'IND 4.2.1'!D104+'IND 4.2.1'!G104+'IND 4.2.1'!H104)/(D69+D70+D71))*100,1)&" accident du travail pour 100 agents",ROUND((('IND 4.2.1'!C104+'IND 4.2.1'!D104+'IND 4.2.1'!G104+'IND 4.2.1'!H104)/(D69+D70+D71))*100,1)&" accidents du travail pour 100 agents"))) -> 3,3 accidents du travail pour 100 agents | BP33: =BV67&BV68&BV69&BV70 -> - Prestations servies par l'intermédiaire d'une association nationale | BU33: Æ | BV33: En raison de certains arrondis, la somme des pourcentages peut ne pas être égale à 100 % | GJ33: 10 | GK33: Champagne | GL33: Centre de Gestion de l'Aube | GO33: Sages-femmes | GP33: ='IND 1.1.1'!I221 -> 0 | GQ33: ='IND 1.2.1'!L56 -> 0 | GR33: 0 | GS33: =RANK(GR33,$GR$1:$GR$60,0)+COUNTIF(GR$1:GR33,GR33)-1 -> 32 | GT33: 32 | GU33: 0 | GV33: Sages-femmes | GW33: A | GX33: 0 | GY33: 0 | GZ33: 0
AD34: Æ | AE34: =IF((B20+B21)=0," ",IF(SUM('IND 1.9.7'!$B$8:$C$10)=0,"Aucun agent n'a bénéficié d'un accompagnement par un conseiller en évolution professionnelle",IF(SUM('IND 1.9.7'!$B$8:$C$10)=1,"Un agent a bénéficié d'un accompagnement par un conseiller en évolution professionnelle",SUM('IND 1.9.7'!$B$8:$C$10)& " agents ont bénéficié d'un accompagnement par un conseiller en évolution professionnelle"))) -> Aucun agent n'a bénéficié d'un accompagnement par un conseiller en évolution professionnelle | AI34: Æ | AJ34: =IF(D69+D70=0,"Aucun agent dans la collectivité",IF(D69+D70=1,"La collectivité consacre " &TEXT((AP10/AL6)*100,"##,0")&" % de son budget de fonctionnement à la rémunération de l'agent permanent",IF(AP12=0,"La collectivité consacre " &TEXT((AP10/AL6)*100,"##,0")&" % de son budget de fonctionnement à la rémunération des agents permanents","La part du régime indemnitaire sur les rémunérations annuelles brutes pour l'ensemble des agents permanents est de " & (ROUND(AN44, 4))*100 & " %"))) -> La part du régime indemnitaire sur les rémunérations annuelles brutes pour l'ensemble des agents permanents est de 21,19 % | BD34: =IF('IND 4.1.1-4.1.2'!B10=0," ",IF('IND 4.1.1-4.1.2'!B10<2,'IND 4.1.1-4.1.2'!B10&" conseiller de prévention ",'IND 4.1.1-4.1.2'!B10&" conseillers de prévention")) -> 1 conseiller de prévention | BJ34: =IF('IND 7.2.0-7.2.2'!$B$28+'IND 7.2.0-7.2.2'!$C$28=0,"","Montants annuels") -> Montants annuels | BM34: =IF(BM36="","","Santé") -> Santé | BN34: =IF(BN36=""," ","Prévoyance") -> Prévoyance | GJ34: 51 | GK34: Champagne | GL34: Centre de Gestion de la Marne | GO34: CADRES DE SANTE PARAMEDICAUX | GP34: ='IND 1.1.1'!I227 -> 0 | GQ34: ='IND 1.2.1'!L57 -> 0 | GR34: 0 | GS34: =RANK(GR34,$GR$1:$GR$60,0)+COUNTIF(GR$1:GR34,GR34)-1 -> 33 | GT34: 33 | GU34: 0 | GV34: CADRES DE SANTE PARAMEDICAUX | GW34: A | GX34: 0 | GY34: 0 | GZ34: 0
A35: Æ | B35: =IF(D69+D70+D71<2,"Répartition par filière","Répartition par filière et par statut") -> Répartition par filière et par statut | G35: Æ | H35: =IF(D69+D70+D71<2,"Répartition par catégorie","Répartition des agents par catégorie") -> Répartition des agents par catégorie | Y35: =IF(AB75+AA75=0,"",IF(AB75=0,"Aucune nomination concerne des femmes","dont "&TEXT(AB76,"#0%")&" des nominations concernent des femmes")) ->  | GJ35: 52 | GK35: Champagne | GL35: Centre de Gestion de Haute-Marne | GO35: Puéricultrices cadres de santé | GP35: ='IND 1.1.1'!I231 -> 0 | GQ35: ='IND 1.2.1'!L58 -> 0 | GR35: 0 | GS35: =RANK(GR35,$GR$1:$GR$60,0)+COUNTIF(GR$1:GR35,GR35)-1 -> 34 | GT35: 34 | GU35: 0 | GV35: Puéricultrices cadres de santé | GW35: A | GX35: 0 | GY35: 0 | GZ35: 0
M36: =IF(D71<2,"Tranche d'âge","Âge moyen* "&CHAR(10)&"des agents non permanent") -> Âge moyen* des agents non permanent | BC36: Æ | BD36: FORMATION | BJ36: =IF('IND 7.2.0-7.2.2'!$B$28+'IND 7.2.0-7.2.2'!$C$28=0,"","Montant global des participations") -> Montant global des participations | BM36: =IF('IND 7.2.0-7.2.2'!$B$28=0,"",TEXT('IND 7.2.0-7.2.2'!$B$28,"# ### ### €")) -> 146 009 € | BN36: =IF('IND 7.2.0-7.2.2'!$C$28=0,"",TEXT('IND 7.2.0-7.2.2'!$C$28,"# ### ### €")) -> 63 352 € | GJ36: 2A | GK36: Corse | GL36: Centre de Gestion de Corse du Sud | GO36: PUERICULTRICES (décret n° 92-859 du 28 août 1992 modifié) * | GP36: ='IND 1.1.1'!I235+'IND 1.1.1'!I241 -> 0 | GQ36: ='IND 1.2.1'!L59 -> 0 | GR36: 0 | GS36: =RANK(GR36,$GR$1:$GR$60,0)+COUNTIF(GR$1:GR36,GR36)-1 -> 35 | GT36: 35 | GU36: 0 | GV36: PUERICULTRICES (décret n° 92-859 du 28 août 1992 modifié) * | GW36: A | GX36: 0 | GY36: 0 | GZ36: 0
A37: Filière | D37: Titulaire | E37: Contractuel | F37: Tous | X37: Æ | Y37: =IF(B20=0," ",IF('IND 1.9.5 - 1.9.6.1'!$B$21+'IND 1.9.5 - 1.9.6.1'!$C$21=0,"Aucun avancement d'échelon",IF('IND 1.9.5 - 1.9.6.1'!$B$21+'IND 1.9.5 - 1.9.6.1'!$C$21=1,"Un avancement d'échelon",'IND 1.9.5 - 1.9.6.1'!$B$21+'IND 1.9.5 - 1.9.6.1'!$C$21& " avancements d'échelon")))&IF(B20=0," "," et ")& CHAR(10)&IF(B20=0," ",IF('IND 1.9.5 - 1.9.6.1'!$B$24+'IND 1.9.5 - 1.9.6.1'!$C$24=0,"aucun avancement de grade",IF('IND 1.9.5 - 1.9.6.1'!$B$24+'IND 1.9.5 - 1.9.6.1'!$C$24=1,"un avancement de grade",'IND 1.9.5 - 1.9.6.1'!$B$24+'IND 1.9.5 - 1.9.6.1'!$C$24& " avancements de grade"))) -> 315 avancements d'échelon et 26 avancements de grade | AJ37: ="Part du régime indemnitaire" & CHAR(10)&" sur les rémunérations :" -> Part du régime indemnitaire sur les rémunérations : | AQ37: Part du régime indemnitaire sur les rémunérations par catégorie et par statut | AW37: =IF(OR(AX37="",AX37=" "),"",">") -> > | AX37: =IF('IND 4.2.1'!C104+'IND 4.2.1'!D104+'IND 4.2.1'!G104+'IND 4.2.1'!H104=0,"", (IF('IND 4.2.1'!C104+'IND 4.2.1'!D104+'IND 4.2.1'!G104+'IND 4.2.1'!H104<2," ",IF('IND 4.2.1'!C104+'IND 4.2.1'!D104+'IND 4.2.1'!G104+'IND 4.2.1'!H104=0,"Les accidents de travail déclarés en 2022 n'ont été suivis d'aucun jour d'arrêt de travail", IF(('IND 4.2.1'!K104+'IND 4.2.1'!L104+'IND 4.2.1'!M104+'IND 4.2.1'!N104)/('IND 4.2.1'!C104+'IND 4.2.1'!D104+'IND 4.2.1'!G104+'IND 4.2.1'!H104)>1, "En moyenne, "& ROUND(('IND 4.2.1'!K104+'IND 4.2.1'!L104+'IND 4.2.1'!M104+'IND 4.2.1'!N104)/('IND 4.2.1'!C104+'IND 4.2.1'!D104+'IND 4.2.1'!G104+'IND 4.2.1'!H104),0)&" jours d'absence consécutifs par accident du travail", "En moyenne, "&ROUND(('IND 4.2.1'!K104+'IND 4.2.1'!L104+'IND 4.2.1'!M104+'IND 4.2.1'!N104)/('IND 4.2.1'!C104+'IND 4.2.1'!D104+'IND 4.2.1'!G104+'IND 4.2.1'!H104),0)&" jour d'absence consécutif par accident du travail"))))) -> En moyenne, 51 jours d'absence consécutifs par accident du travail | BD37: =IF(SUM('IND 4.1.1-4.1.2'!C27:C29)=0,"Aucune formation liée à la prévention n'a été suivie",IF(SUM('IND 4.1.1-4.1.2'!C27:C29)>1,SUM('IND 4.1.1-4.1.2'!C27:C29)&" jours de formation liés à la prévention (habilitations et formations obligatoires)",SUM('IND 4.1.1-4.1.2'!C27:C29)&" jour de formation lié à la prévention (habilitation ou formation obligatoire)")) -> 251 jours de formation liés à la prévention (habilitations et formations obligatoires) | GJ37: 2B | GK37: Corse | GL37: Centre de Gestion de la Haute-Corse | GO37: Aides-soignants | GP37: ='IND 1.1.1'!I259 -> 0 | GQ37: ='IND 1.2.1'!L63 -> 0 | GR37: 0 | GS37: =RANK(GR37,$GR$1:$GR$60,0)+COUNTIF(GR$1:GR37,GR37)-1 -> 36 | GT37: =GS37 -> 36 | GU37: 0 | GV37: Aides-soignants | GW37: B | GX37: 0 | GY37: 0 | GZ37: 0
A38: Administrative | D38: =IFERROR('IND 1.1.1'!$I$49/$D$69,"") -> 0.3305954825 | E38: =IFERROR('IND 1.2.1'!L20/$D$70,"") -> 0.2516129032 | F38: =IFERROR(('IND 1.1.1'!I49+'IND 1.2.1'!L20)/(synthese!$D$69+synthese!$D$70),"") -> 0.3115264798 | M38: =IF($J$86=0," ",IF(D71<2,"Contractuel non permanent","Contractuels non permanents")) -> Contractuels non permanents | O38: =IF($J$86=0," ",IF(D71<2,"de "&$J$87-2.5&" à "&$J$87+2.5,$J$87)) -> 40.79787234 | AE38: =IF(SUM('IND 1.9.7'!$B$8:$C$10)=0,"","dont "&TEXT(AG74*100,"##0,0")&" % femmes") ->  | BV38: Cette fiche synthétique reprend les principaux indicateurs sociaux issus du Rapport Social Unique 2022. Les données utilisées sont extraites du Rapport sur l'État de la Collectivité 2022 transmis en 2022 par la collectivité. Ces données ont pour objectif de bénéficier d'une vue d'ensemble sur les effectifs de la collectivité. | GJ38: 25 | GK38: Franche-Comté | GL38: Centre de Gestion du Doubs | GO38: Cadres de santé infirmiers, rééducateurs et assistants médico-techniques | GP38: ='IND 1.1.1'!I244 -> 0 | GQ38: ='IND 1.2.1'!L60 -> 0 | GR38: 0 | GS38: =RANK(GR38,$GR$1:$GR$60,0)+COUNTIF(GR$1:GR38,GR38)-1 -> 37 | GT38: 37 | GU38: 0 | GV38: Cadres de santé infirmiers, rééducateurs et assistants médico-techniques | GW38: A | GX38: 0 | GY38: 0 | GZ38: 0
A39: Technique | D39: =IFERROR('IND 1.1.1'!$I$90/$D$69,"") -> 0.4271047228 | E39: =IFERROR('IND 1.2.1'!L28/$D$70,"") -> 0.3290322581 | F39: =IFERROR(('IND 1.1.1'!I90+'IND 1.2.1'!L28)/(synthese!$D$69+synthese!$D$70),"") -> 0.4034267913 | T39: * L'âge moyen est calculé sur la base des tranches d'âge | AE39: =IF(SUM('IND 1.9.7'!$B$8:$C$10)=0,"","dont "&TEXT(AH80*100,"##0,0")&" % de catégorie C") ->  | BJ39: =IF(OR('IND 7.2.0-7.2.2'!$B$28+'IND 7.2.0-7.2.2'!$C$28=0,'IND 7.2.0-7.2.2'!$B$21+'IND 7.2.0-7.2.2'!$C$21=0),"","Montant moyen par bénéficiaire") -> Montant moyen par bénéficiaire | BM39: =IF('IND 7.2.0-7.2.2'!$B$21=0," ",IF('IND 7.2.0-7.2.2'!$B$28=0, "",TEXT(ROUND('IND 7.2.0-7.2.2'!$B$28/'IND 7.2.0-7.2.2'!$B$21,0),"# ### ### €"))) -> 368 € | BN39: =IF('IND 7.2.0-7.2.2'!$C$21=0,"",IF('IND 7.2.0-7.2.2'!$C$28=0, "",TEXT(ROUND('IND 7.2.0-7.2.2'!$C$28/'IND 7.2.0-7.2.2'!$C$21,0),"# ### ### €"))) -> 212 € | GJ39: 39 | GK39: Franche-Comté | GL39: Centre de Gestion du Jura | GO39: Infirmiers en soins généraux | GP39: ='IND 1.1.1'!I250 -> 0 | GQ39: ='IND 1.2.1'!L61 -> 0 | GR39: 0 | GS39: =RANK(GR39,$GR$1:$GR$60,0)+COUNTIF(GR$1:GR39,GR39)-1 -> 38 | GT39: 38 | GU39: 0 | GV39: Infirmiers en soins généraux | GW39: A | GX39: 0 | GY39: 0 | GZ39: 0
A40: Culturelle | D40: =IFERROR('IND 1.1.1'!$I$145/$D$69,"") -> 0.1642710472 | E40: =IFERROR('IND 1.2.1'!L39/$D$70,"") -> 0.3290322581 | F40: =IFERROR(('IND 1.1.1'!I145+'IND 1.2.1'!L39)/(synthese!$D$69+synthese!$D$70),"") -> 0.2040498442 | AJ40: =IF(AP72=0, " ","Fonctionnaires") -> Fonctionnaires | AN40: =IF(AP72=0," ",AS72) -> 0.1974709318 | BD40: =IF($BG$40=" "," ","Coût total des formations :") -> Coût total des formations : | BG40: =IF(SUM('IND 4.1.1-4.1.2'!B27:B29)=0," ",SUM('IND 4.1.1-4.1.2'!B27:B29)) -> 45452 | GJ40: 70 | GK40: Franche-Comté | GL40: Centre de Gestion de Haute-Saône | GO40: Infirmiers | GP40: ='IND 1.1.1'!I254 -> 0 | GQ40: ='IND 1.2.1'!L62 -> 0 | GR40: 0 | GS40: =RANK(GR40,$GR$1:$GR$60,0)+COUNTIF(GR$1:GR40,GR40)-1 -> 39 | GT40: 39 | GU40: 0 | GV40: Infirmiers | GW40: B | GX40: 0 | GY40: 0 | GZ40: 0
A41: Sportive | D41: =IFERROR('IND 1.1.1'!$I$166/$D$69,"") -> 0.07597535934 | E41: =IFERROR('IND 1.2.1'!L44/$D$70,"") -> 0.08387096774 | F41: =IFERROR(('IND 1.1.1'!I166+'IND 1.2.1'!L44)/(synthese!$D$69+synthese!$D$70),"") -> 0.07788161994 | BD41: =IF($BG$40=" "," ","Coût par jour de formation :") -> Coût par jour de formation : | BG41: =IF($BG$40=" "," ",(IF(SUM('IND 4.1.1-4.1.2'!B27:B29)/SUM('IND 4.1.1-4.1.2'!C27:C29)=$BG$40,"- ",SUM('IND 4.1.1-4.1.2'!B27:B29)/SUM('IND 4.1.1-4.1.2'!C27:C29)))) -> 181.0836653 | GJ41: 90 | GK41: Franche-Comté | GL41: Centre de Gestion du Territoire-de-Belfort | GO41: Auxiliaires de puériculture | GP41: ='IND 1.1.1'!I263 -> 0 | GQ41: ='IND 1.2.1'!L64 -> 0 | GR41: 0 | GS41: =RANK(GR41,$GR$1:$GR$60,0)+COUNTIF(GR$1:GR41,GR41)-1 -> 40 | GT41: 40 | GU41: 0 | GV41: Auxiliaires de puériculture | GW41: B | GX41: 0 | GY41: 0 | GZ41: 0
A42: Médico-sociale | D42: =IFERROR(('IND 1.1.1'!$I$270+'IND 1.1.1'!$I$294+'IND 1.1.1'!$I$204)/$D$69,"") -> 0.00205338809 | E42: =IFERROR(('IND 1.2.1'!L52+'IND 1.2.1'!L66+'IND 1.2.1'!L72)/$D$70,"") -> 0.006451612903 | F42: =IFERROR(('IND 1.1.1'!$I$270+'IND 1.1.1'!$I$294+'IND 1.1.1'!$I$204+('IND 1.2.1'!L52+'IND 1.2.1'!L66+'IND 1.2.1'!L72))/(synthese!$D$69+synthese!$D$70),"") -> 0.003115264798 | AJ42: =IF(AR72=0," ","Contractuels sur emplois permanents") -> Contractuels sur emplois permanents | AN42: =IF(AR72=0," ",AT72) -> 0.270106469 | GJ42: 27 | GK42: Haute-Normandie | GL42: Centre de Gestion de l'Eure | GO42: Auxiliaires de soins | GP42: ='IND 1.1.1'!I268 -> 0 | GQ42: ='IND 1.2.1'!L65 -> 0 | GR42: 0 | GS42: =RANK(GR42,$GR$1:$GR$60,0)+COUNTIF(GR$1:GR42,GR42)-1 -> 41 | GT42: 41 | GU42: 0 | GV42: Auxiliaires de soins | GW42: C | GX42: 0 | GY42: 0 | GZ42: 0
A43: Police | D43: =IFERROR('IND 1.1.1'!$I$319/$D$69,"") -> 0 | E43: =IFERROR('IND 1.2.1'!L78/$D$70,"") -> 0 | F43: =IFERROR(('IND 1.1.1'!I319+'IND 1.2.1'!L78)/(synthese!$D$69+synthese!$D$70),"") -> 0 | L43: Æ | M43: =TEXT('IND 1.1.4'!$C$72+'IND 1.1.4'!$D$72+'IND 1.2.4'!$C$71+'IND 1.2.4'!$D$71+'IND 1.3.1'!$F$83,"# ##0,00")&IF('IND 1.1.4'!$C$72+'IND 1.1.4'!$D$72+'IND 1.2.4'!$C$71+'IND 1.2.4'!$D$71+'IND 1.3.1'!$F$83<2," agent en Equivalent Temps Plein Rémunéré (ETPR) sur l'année 2022"," agents en Equivalent Temps Plein Rémunéré (ETPR) sur l'année 2022") -> 653,38 agents en Equivalent Temps Plein Rémunéré (ETPR) sur l'année 2022 | X43: Æ | Y43: =IF(SUM('IND 8.1.1'!$B$11:$C$11,'IND 8.1.1'!$B$15:$C$15,'IND 8.1.1'!$B$21:$C$21,'IND 8.1.1'!$B$24:$C$24,'IND 8.1.1'!$B$31:$B$35,'IND 8.1.1'!$C$31:$C$35,'IND 8.1.1'!$B$40:$C$43)=0,"Aucune sanction disciplinaire prononcée en 2022",IF(SUM('IND 8.1.1'!$B$11:$C$11,'IND 8.1.1'!$B$15:$C$15,'IND 8.1.1'!$B$21:$C$21,'IND 8.1.1'!$B$24:$C$24,'IND 8.1.1'!$B$31:$B$35,'IND 8.1.1'!$C$31:$C$35,'IND 8.1.1'!$B$40:$C$43)=1,"Une sanction disciplinaire prononcée en 2022",SUM('IND 8.1.1'!$B$11:$C$11,'IND 8.1.1'!$B$15:$C$15,'IND 8.1.1'!$B$21:$C$21,'IND 8.1.1'!$B$24:$C$24,'IND 8.1.1'!$B$31:$B$35,'IND 8.1.1'!$C$31:$C$35,'IND 8.1.1'!$B$40:$C$43)&" sanctions disciplinaires prononcées en 2022")) -> 4 sanctions disciplinaires prononcées en 2022 | AW43: Seules les collectivités de plus de 20 agents équivalent temps plein sont soumises à l'obligation d'emploi de travailleurs handicapés à hauteur de 6 % des effectifs. | BC43: Æ | BD43: DÉPENSES | BY43: L'outil automatisé permettant la réalisation de cette synthèse a été développé par le Comité Technique des Chargés d'études des Observatoires Régionaux des Centres de Gestion. | GJ43: 76 | GK43: Haute-Normandie | GL43: Centre de Gestion de la Seine-Maritime | GO43: Masseurs-kinesitherapeutes, psychomotriciens et orthophonistes | GP43: ='IND 1.1.1'!I277 -> 0 | GQ43: ='IND 1.2.1'!L68 -> 0 | GR43: 0 | GS43: =RANK(GR43,$GR$1:$GR$60,0)+COUNTIF(GR$1:GR43,GR43)-1 -> 42 | GT43: 42 | GU43: 0 | GV43: Masseurs-kinesitherapeutes, psychomotriciens et orthophonistes | GW43: A | GX43: 0 | GY43: 0 | GZ43: 0
A44: Incendie | D44: =IFERROR('IND 1.1.1'!$I$371/$D$69,"") -> 0 | E44: =IFERROR('IND 1.2.1'!L88/$D$70,"") -> 0 | F44: =IFERROR(('IND 1.1.1'!I371+'IND 1.2.1'!L88)/(synthese!$D$69+synthese!$D$70),"") -> 0 | AJ44: =IF($B$21+$B$20=0," ","Ensemble") -> Ensemble | AN44: =IF($B$21+$B$20=0," ",AU72) -> 0.2118829183 | BD44: =IF(SUM('IND 4.1.1-4.1.2'!B30:B31)=0, "Aucune dépense en faveur de la prévention, de la sécurité et de l’amélioration des conditions de travail n'a été effectuée","La collectivité a effectué des dépenses en faveur de la prévention, de la sécurité et de l’amélioration des conditions de travail") -> La collectivité a effectué des dépenses en faveur de la prévention, de la sécurité et de l’amélioration des conditions de travail | GJ44: 75 | GK44: Ile-de-France | GL44: Centre Interdépartemental de Gestion de la Grande Couronne de la Région d'Ile-de-France | GO44: Pedicures-podologues, ergotherapeutes, orthoptistes et manipulateurs d'electroradiologie medicale | GP44: ='IND 1.1.1'!I282 -> 0 | GQ44: ='IND 1.2.1'!L69 -> 0 | GR44: 0 | GS44: =RANK(GR44,$GR$1:$GR$60,0)+COUNTIF(GR$1:GR44,GR44)-1 -> 43 | GT44: 43 | GU44: 0 | GV44: Pedicures-podologues, ergotherapeutes, orthoptistes et manipulateurs d'electroradiologie medicale | GW44: A | GX44: 0 | GY44: 0 | GZ44: 0
A45: Animation | D45: =IFERROR('IND 1.1.1'!$I$388/$D$69,"") -> 0 | E45: =IFERROR('IND 1.2.1'!L92/$D$70,"") -> 0 | F45: =IFERROR(('IND 1.1.1'!I388+'IND 1.2.1'!L92)/(synthese!$D$69+synthese!$D$70),"") -> 0 | M45: ="> " & TEXT('IND 1.1.4'!C72+'IND 1.1.4'!D72,"# ##0,00") -> > 480,34 | O45: =IF('IND 1.1.4'!$C$72+'IND 1.1.4'!$D$72<2,"fonctionnaire","fonctionnaires") -> fonctionnaires | S45: Répartition des ETPR permanents par catégorie | Y45: Nombre de sanctions prononcées concernant les fonctionnaires en 2022 | BI45: ="Æ" -> Æ | BJ45: Jours de grève | BN45: =IF(BO45=" "," ","Æ") -> Æ | BO45: =IF('IND 6.1.1-6.1.3'!B7=0," ","Comité Technique Territorial") -> Comité Technique Territorial | GJ45: 77 | GK45: Ile-de-France | GL45: Centre de Gestion de Seine-et-Marne | GO45: Biologistes-vétérinaires-pharmaciens | GP45: ='IND 1.1.1'!I287 -> 0 | GQ45: ='IND 1.2.1'!L70 -> 0 | GR45: =GP45+GQ45 -> 0 | GS45: =RANK(GR45,$GR$1:$GR$60,0)+COUNTIF(GR$1:GR45,GR45)-1 -> 44 | GT45: 44 | GU45: 0 | GV45: =GO45 -> Biologistes-vétérinaires-pharmaciens | GW45: A | GX45: 0 | GY45: 0 | GZ45: 0
A46: Total | D46: =SUM($D$38:$D$45) -> 1 | E46: =SUM($E$38:$E$45) -> 1 | F46: =SUM($F$38:$F$45) -> 1 | M46: ="> " &TEXT('IND 1.2.4'!C71+'IND 1.2.4'!D71,"# ##0,00") -> > 129,67 | O46: =IF('IND 1.2.4'!$C$71+'IND 1.2.4'!$D$71<2,"contractuel permanent","contractuels permanents") -> contractuels permanents | AE46: =IF(SUM('IND 8.1.1'!$B$11:$C$11,'IND 8.1.1'!$B$15:$C$15,'IND 8.1.1'!$B$21:$C$21,'IND 8.1.1'!$B$24:$C$24,'IND 8.1.1'!$B$31:$B$35,'IND 8.1.1'!$C$31:$C$35,'IND 8.1.1'!$B$40:$C$43)=0,"",IF(SUM('IND 8.1.1'!$B$31:$C$35)=0,"Aucune sanction prononcée à l'encontre de fonctionnaires stagiaires ",IF(SUM('IND 8.1.1'!$B$31:$C$35)=1,"Une sanction prononcée à l'encontre d'un fonctionnaire stagiaire",SUM('IND 8.1.1'!$B$31:$C$35)&" sanctions prononcées à l'encontre de fonctionnaires stagiaires"))) -> Aucune sanction prononcée à l'encontre de fonctionnaires stagiaires | GJ46: 78 | GK46: Ile-de-France | GL46: Centre Interdépartemental de Gestion de la Grande Couronne de la Région d'Ile-de-France | GO46: Techniciens paramédicaux | GP46: ='IND 1.1.1'!I292 -> 0 | GQ46: ='IND 1.2.1'!L71 -> 0 | GR46: 0 | GS46: =RANK(GR46,$GR$1:$GR$60,0)+COUNTIF(GR$1:GR46,GR46)-1 -> 45 | GT46: 45 | GU46: 0 | GV46: Techniciens paramédicaux | GW46: B | GX46: 0 | GY46: 0 | GZ46: 0
M47: ="> " &TEXT('IND 1.3.1'!F83,"# ##0,00") -> > 43,37 | O47: =IF('IND 1.3.1'!$F$83<2,"contractuel non permanent","contractuels non permanents") -> contractuels non permanents | AA47: Hommes | AB47: Femmes | AW47: =IF(SUM('IND 1.6.1'!B17:E19)=0,"Aucun travailleur handicapé employé sur emploi permanent ", IF(SUM('IND 1.6.1'!B17:E19)<2,SUM('IND 1.6.1'!B17:E19) &" travailleur handicapé employé sur emploi permanent ", SUM('IND 1.6.1'!B17:E19) &" travailleurs handicapés employés sur emploi permanent ")) -> 43 travailleurs handicapés employés sur emploi permanent | BJ47: =IF('IND 6.1.1-6.1.3'!B59=0,"Aucun jour de grève recensé en 2022",IF('IND 6.1.1-6.1.3'!B59<2,'IND 6.1.1-6.1.3'!B59&" jour de grève recensé en 2022",'IND 6.1.1-6.1.3'!B59&" jours de grève recensés en 2022")) -> 1 jour de grève recensé en 2022 | BO47: =IF('IND 6.1.1-6.1.3'!B7=0," ",IF('IND 6.1.1-6.1.3'!B7<2,'IND 6.1.1-6.1.3'!B7&" réunion en 2022 dans la collectivité",'IND 6.1.1-6.1.3'!B7&" réunions en 2022 dans la collectivité")) -> 5 réunions en 2022 dans la collectivité | GJ47: 91 | GK47: Ile-de-France | GL47: Centre Interdépartemental de Gestion de la Grande Couronne de la Région d'Ile-de-France | GO47: Directeurs de police municipale | GP47: ='IND 1.1.1'!I300 -> 0 | GQ47: ='IND 1.2.1'!L74 -> 0 | GR47: 0 | GS47: =RANK(GR47,$GR$1:$GR$60,0)+COUNTIF(GR$1:GR47,GR47)-1 -> 46 | GT47: 46 | GU47: 0 | GV47: Directeurs de police municipale | GW47: A | GX47: 0 | GY47: 0 | GZ47: 0
A48: Æ | B48: Répartition par genre et par statut | G48: Æ | H48: =IF(H52="","Cadre d'emplois","Les principaux cadres d’emplois") -> Les principaux cadres d’emplois | M48: =TEXT('IND 4.2.1'!$C$10,"# ##0") & IF('IND 4.2.1'!$C$10<2," heure travaillée rémunérée en 2022"," heures travaillées rémunérées en 2022") -> 1 189 152 heures travaillées rémunérées en 2022 | Y48: Sanctions 1er groupe | AA48: ='IND 8.1.1'!$B$11 -> 3 | AB48: ='IND 8.1.1'!$C$11 -> 1 | AI48: =IF($C$30=" "," ","a") -> a | AJ48: =IF(OR('IND 3.1.1-3.3.1 et 3.4.1-3.4.3'!$F$10="(vide)",'IND 3.1.1-3.3.1 et 3.4.1-3.4.3'!$F$10="Ne sait pas",'IND 3.1.1-3.3.1 et 3.4.1-3.4.3'!$F$10=""),"Aucune information concernant la mise en place du RIFSEEP",IF('IND 3.1.1-3.3.1 et 3.4.1-3.4.3'!$F$10="Oui","Le RIFSEEP a été mis en place pour les fonctionnaires"&IF('IND 3.1.1-3.3.1 et 3.4.1-3.4.3'!$F$61="Oui"," et pour les contractuels"&IF('IND 3.1.1-3.3.1 et 3.4.1-3.4.3'!$F$13="Oui"," ainsi que le CIA",""),""),IF('IND 3.1.1-3.3.1 et 3.4.1-3.4.3'!$F$10="Non","Le RIFSEEP n'a pas été mis en place"))) -> Le RIFSEEP a été mis en place pour les fonctionnaires et pour les contractuels ainsi que le CIA | AP48: =IF($C$30=" "," ","a") -> a | AQ48: =IF(SUM('IND 2.2.8'!$B$89:$C$89,'IND 2.2.8'!$F$89:$G$89,'IND 2.2.8'!$H$89:$I$89,'IND 2.2.8'!$L$89:$M$89)=0,"Aucune heure supplémentaire réalisée et rémunérée en 2022",IF(SUM('IND 2.2.8'!$B$89:$C$89,'IND 2.2.8'!$F$89:$G$89,'IND 2.2.8'!$H$89:$I$89,'IND 2.2.8'!$L$89:$M$89)=1,"Une heure supplémentaire réalisée et rémunérée en 2022",SUM('IND 2.2.8'!$B$89:$C$89,'IND 2.2.8'!$F$89:$G$89,'IND 2.2.8'!$H$89:$I$89,'IND 2.2.8'!$L$89:$M$89)&" heures supplémentaires réalisées et rémunérées en 2022")) -> 9542,45 heures supplémentaires réalisées et rémunérées en 2022 | BO48: =IF('IND 6.1.1-6.1.3'!B18=0," ",IF('IND 6.1.1-6.1.3'!B18<2,'IND 6.1.1-6.1.3'!B18&" réunion du CHSCT",'IND 6.1.1-6.1.3'!B18&" réunions du CHSCT")) ->  | GJ48: 92 | GK48: Ile-de-France | GL48: Centre Interdépartemental de Gestion de la Petite Couronne de la Région d'Ile-de-France | GO48: Chefs de service de police municipale | GP48: ='IND 1.1.1'!I306 -> 0 | GQ48: ='IND 1.2.1'!L75 -> 0 | GR48: 0 | GS48: =RANK(GR48,$GR$1:$GR$60,0)+COUNTIF(GR$1:GR48,GR48)-1 -> 47 | GT48: 47 | GU48: 0 | GV48: Chefs de service de police municipale | GW48: B | GX48: 0 | GY48: 0 | GZ48: 0
Y49: Sanctions 2ème groupe | AA49: ='IND 8.1.1'!$B$15 -> 0 | AB49: ='IND 8.1.1'!$C$15 -> 0 | AE49: =IF(SUM('IND 8.1.1'!$B$11:$C$11,'IND 8.1.1'!$B$15:$C$15,'IND 8.1.1'!$B$21:$C$21,'IND 8.1.1'!$B$24:$C$24,'IND 8.1.1'!$B$31:$B$35,'IND 8.1.1'!$C$31:$C$35,'IND 8.1.1'!$B$40:$C$43)=0,"",IF(SUM('IND 8.1.1'!$B$40:$C$43)=0,"Aucune sanction prononcée à l'encontre d'agents contractuels",IF(SUM('IND 8.1.1'!$B$40:$C$43)=1,"Une sanction prononcée à l'encontre d'un agent contractuel ",SUM('IND 8.1.1'!$B$40:$C$43)&" sanctions prononcées à l'encontre d'agents contractuels"))) -> Aucune sanction prononcée à l'encontre d'agents contractuels | BD49: =IF(SUM('IND 4.1.1-4.1.2'!B30:B31) = 0, " ","Total des dépenses : ") -> Total des dépenses : | BG49: =IF(SUM('IND 4.1.1-4.1.2'!B30:B31)= 0, " ",SUM('IND 4.1.1-4.1.2'!B30:B31)) -> 85247 | BI49: =IF(BJ49=" "," ","Æ") -> Æ | BJ49: =IF('IND 6.1.1-6.1.3'!B8=0, " ", "Commissions Administratives Paritaires ") -> Commissions Administratives Paritaires | GJ49: 93 | GK49: Ile-de-France | GL49: Centre Interdépartemental de Gestion de la Petite Couronne de la Région d'Ile-de-France | GO49: Agents de police municipale | GP49: ='IND 1.1.1'!I312 -> 0 | GQ49: ='IND 1.2.1'!L76 -> 0 | GR49: 0 | GS49: =RANK(GR49,$GR$1:$GR$60,0)+COUNTIF(GR$1:GR49,GR49)-1 -> 48 | GT49: 48 | GU49: 0 | GV49: Agents de police municipale | GW49: C | GX49: 0 | GY49: 0 | GZ49: 0
H50: Cadres d'emplois | K50: % d'agents | Y50: Sanctions 3ème groupe | AA50: ='IND 8.1.1'!$B$21 -> 0 | AB50: ='IND 8.1.1'!$C$21 -> 0 | AI50: =IF($C$30=" "," ","a") -> a | AJ50: =IF('IND 3.1.1-3.3.1 et 3.4.1-3.4.3'!$F$145="Oui","Les primes sont maintenues en cas de congé de maladie ordinaire",IF('IND 3.1.1-3.3.1 et 3.4.1-3.4.3'!$F$145="Non","Les primes ne sont pas maintenues en cas de congé de maladie ordinaire","Aucune information sur le maintien des primes en cas de congé de maladie ordinaire")) -> Les primes sont maintenues en cas de congé de maladie ordinaire | AP50: =IF($C$30=" "," ","a") -> a | AQ50: =IF(SUM('IND 2.2.8'!$D$89:$E$89,'IND 2.2.8'!$J$89:$K$89)=0,"Aucune heure complémentaire réalisée et rémunérée en 2022",IF(SUM('IND 2.2.8'!$D$89:$E$89,'IND 2.2.8'!$J$89:$K$89)=1,"Une heure complémentaire réalisée et rémunérée en 2022",SUM('IND 2.2.8'!$D$89:$E$89,'IND 2.2.8'!$J$89:$K$89)&" heures complémentaires réalisées et rémunérées en 2022")) -> 92,75 heures complémentaires réalisées et rémunérées en 2022 | AW50: =IF(AX50=" "," ","a") -> a | AX50: =IF(SUM('IND 1.6.1'!B27:C27)=0, "Aucun travailleur handicapé recruté sur emploi non permanent",IF(SUM('IND 1.6.1'!B27:C27)<2,SUM('IND 1.6.1'!B27:C27)& " travailleur handicapé recruté sur emploi non permanent",SUM('IND 1.6.1'!B27:C27) & " travailleurs handicapés recrutés sur emploi non permanent")) -> Aucun travailleur handicapé recruté sur emploi non permanent | BX50: Date de publication : | BZ50: =TODAY() -> 2023-10-31 | CD50: Version 4 | GJ50: 94 | GK50: Ile-de-France | GL50: Centre Interdépartemental de Gestion de la Petite Couronne de la Région d'Ile-de-France | GO50: Gardes-champêtres | GP50: ='IND 1.1.1'!I317 -> 0 | GQ50: ='IND 1.2.1'!L77 -> 0 | GR50: 0 | GS50: =RANK(GR50,$GR$1:$GR$60,0)+COUNTIF(GR$1:GR50,GR50)-1 -> 49 | GT50: 49 | GU50: 0 | GV50: Gardes-champêtres | GW50: C | GX50: 0 | GY50: 0 | GZ50: 0
H51: =IF(OR(K51=0,K51=""),"",VLOOKUP(1,$GT$2:$GV$60,3,FALSE)) -> Adjoints techniques | K51: =IF(D69+D70=0,"",VLOOKUP(1,$GT$2:$GU$604,2,FALSE)) -> 0.1900311526 | R51: =U134&U120&U112&U108 -> > 2 agents détachés dans la collectivité et originaires d'une autre structure > 6 agents détachés au sein de la collectivité > 12 agents détachés dans une autre structure | Y51: Sanctions 4ème groupe | AA51: ='IND 8.1.1'!$B$24 -> 0 | AB51: ='IND 8.1.1'!$C$24 -> 0 | BC51: =IF(BD52=" "," ","Æ") -> Æ | BD51: =IF(BD52=" "," ","DOCUMENT DE PRÉVENTION") -> DOCUMENT DE PRÉVENTION | BI51: =IF(BJ53=" "," ","Æ") -> Æ | BJ51: =IF('IND 6.1.1-6.1.3'!B8=0," ",IF('IND 6.1.1-6.1.3'!B8<2,'IND 6.1.1-6.1.3'!B8&" réunion en 2022 dans la collectivité",'IND 6.1.1-6.1.3'!B8&" réunions en 2022 dans la collectivité")) -> 1 réunion en 2022 dans la collectivité | GJ51: 95 | GK51: Ile-de-France | GL51: Centre Interdépartemental de Gestion de la Grande Couronne de la Région d'Ile-de-France | GO51: CONTRÔLEURS, COLONELS | GP51: ='IND 1.1.1'!I326 -> 0 | GQ51: ='IND 1.2.1'!L80 -> 0 | GR51: 0 | GS51: =RANK(GR51,$GR$1:$GR$60,0)+COUNTIF(GR$1:GR51,GR51)-1 -> 50 | GT51: 50 | GU51: 0 | GV51: CONTRÔLEURS, COLONELS | GW51: A | GX51: 0 | GY51: 0 | GZ51: 0
H52: =IF(OR(K52=0,K52=""),"",VLOOKUP(2,$GT$2:$GV$60,3,FALSE)) -> Attachés | K52: =IF(D69+D70=0,"",VLOOKUP(2,$GT$2:$GU$60,2,FALSE)) -> 0.1277258567 | M52: =IF(U147&U126&U105&U106="","Aucune position particulière",U147&U126&U105&U106) -> > 7 agents mis à disposition dans une autre structure > 2 agents en congés parental > 28 agents en disponibilité | AW52: =IF(AX52=" "," ","a") -> a | AX52: =IF(AZ63=0," ", (IF(AZ63>5,ROUND(((AZ63)/(AZ66))*100,0)&" % sont fonctionnaires*",IF(AZ63<2,AZ63&" travailleur handicapé fonctionnaire ",AZ63&" travailleurs handicapés fonctionnaires ")))) -> 93 % sont fonctionnaires* | BD52: =IF('IND 4.1.4-4.1.7'!$F$9=""," ",(IF('IND 4.1.4-4.1.7'!$F$9="Non","La collectivité ne dispose pas d'un document unique d'évaluation des risques professionnels",IF('IND 4.1.4-4.1.7'!$F$9="En cours","Le document unique d'évaluation des risques professionnels est en cours d'élaboration","La collectivité dispose d'un document unique d'évaluation des risques professionnels")))) -> La collectivité dispose d'un document unique d'évaluation des risques professionnels | GJ52: 11 | GK52: Languedoc | GL52: Centre de Gestion de l'Aude | GO52: Capitaines, commandants, lieutenants-colonels, colonels | GP52: ='IND 1.1.1'!I332 -> 0 | GQ52: ='IND 1.2.1'!L81 -> 0 | GR52: 0 | GS52: =RANK(GR52,$GR$1:$GR$60,0)+COUNTIF(GR$1:GR52,GR52)-1 -> 51 | GT52: 51 | GU52: 0 | GV52: Capitaines, commandants, lieutenants-colonels, colonels | GW52: A | GX52: 0 | GY52: 0 | GZ52: 0
H53: =IF(OR(K53=0,K53=""),"",VLOOKUP(3,$GT$2:$GV$60,3,FALSE)) -> Adjoints administratifs | K53: =IF(D69+D70=0,"",VLOOKUP(3,$GT$2:$GU$60,2,FALSE)) -> 0.1152647975 | X53: =IF(Y53="","","Æ") -> Æ | Y53: =IF(SUM('IND 8.1.1'!$B$48:$C$58)=0,"",IF(Y56="","Motif de la sanction prononcée (fonctionnaires et contractuels en 2022)","Principaux motifs des sanctions prononcées (fonctionnaires et contractuels en 2022)")) -> Motif de la sanction prononcée (fonctionnaires et contractuels en 2022) | AI53: =IF(AJ53=" "," ","a") -> a | AJ53: =IF($D$70=0," ",AL76) -> La collectivité a adhéré au régime général d'assurance chômage pour l'assurance chômage de ses agents contractuels | AP53: =IF(AQ53=" ","","a") -> a | AQ53: =IF($D$70=0," ",AL81) -> En 2022, 1 allocataire a bénéficié de l'indemnisation du chômage (ancien contractuel) | AW53: =IF(AX53=" "," ","a") -> a | AX53: =IF((AY72)=0," ", IF(AY71>5,ROUND((AY71/(AY72))*100,0) &" % sont en catégorie C*", IF(AY69<2,AY69& " travailleur handicapé en catégorie A, " & AY70 & " en catégorie B, " & AY71 &" en catégorie C", AY69 & " travailleurs handicapés en catégorie A, " & AY70 & " en catégorie B, " & AY71 &" en catégorie C"))) -> 67 % sont en catégorie C* | BJ53: =IF('IND 6.1.1-6.1.3'!B9=0, " ", "Commissions Consultatives Paritaires ") -> Commissions Consultatives Paritaires | GJ53: 30 | GK53: Languedoc | GL53: Centre de Gestion du Gard | GO53: Médecins, pharmaciens | GP53: ='IND 1.1.1'!I338 -> 0 | GQ53: ='IND 1.2.1'!L82 -> 0 | GR53: 0 | GS53: =RANK(GR53,$GR$1:$GR$60,0)+COUNTIF(GR$1:GR53,GR53)-1 -> 52 | GT53: 52 | GU53: 0 | GV53: Médecins, pharmaciens | GW53: A | GX53: 0 | GY53: 0 | GZ53: 0
H54: =IF(OR(K54=0,K54=""),"",VLOOKUP(4,$GT$2:$GV$60,3,FALSE)) -> Assistants d'enseignement artistique | K54: =IF(D69+D70=0,"",VLOOKUP(4,$GT$2:$GU$60,2,FALSE)) -> 0.09501557632 | GJ54: 34 | GK54: Languedoc | GL54: Centre de Gestion de l'Hérault | GO54: Lieutenants de sapeurs-pompiers professionnels | GP54: ='IND 1.1.1'!I345 -> 0 | GQ54: ='IND 1.2.1'!L83 -> 0 | GR54: 0 | GS54: =RANK(GR54,$GR$1:$GR$60,0)+COUNTIF(GR$1:GR54,GR54)-1 -> 53 | GT54: 53 | GU54: 0 | GV54: Lieutenants de sapeurs-pompiers professionnels | GW54: B | GX54: 0 | GY54: 0 | GZ54: 0
H55: =IF(OR(K55=0,K55=""),"",VLOOKUP(5,$GT$2:$GV$60,3,FALSE)) -> Professeurs d'enseignement artistique | K55: =IF(D69+D70=0,"",VLOOKUP(5,$GT$2:$GU$60,2,FALSE)) -> 0.09345794393 | Y55: =IF(ISNA(VLOOKUP(1,$BJ$115:$BM$125,2,FALSE))=TRUE,"",VLOOKUP(1,$BJ$115:$BM$125,2,FALSE)) -> Qualité de service (manquement aux sujétions du service, négligence, désobéissance hiérarchique, absence irrégulière, abandon de poste) | AH55: =IF(ISNA(VLOOKUP(1,$BJ$115:$BM$125,4,FALSE))=TRUE,"",VLOOKUP(1,$BJ$115:$BM$125,4,FALSE)) -> 1 | BJ55: =IF('IND 6.1.1-6.1.3'!B9=0," ",IF('IND 6.1.1-6.1.3'!B9<2,'IND 6.1.1-6.1.3'!B9&" réunion en 2022 dans la collectivité",'IND 6.1.1-6.1.3'!B9&" réunions en 2022 dans la collectivité")) -> 1 réunion en 2022 dans la collectivité | GJ55: 48 | GK55: Languedoc | GL55: Centre de Gestion de la Lozère | GO55: CADRES DE SANTE DES SAPEURS POMPIERS PROFESSIONNELS | GP55: ='IND 1.1.1'!I351 -> 0 | GQ55: ='IND 1.2.1'!L84 -> 0 | GR55: 0 | GS55: =RANK(GR55,$GR$1:$GR$60,0)+COUNTIF(GR$1:GR55,GR55)-1 -> 54 | GT55: 54 | GU55: 0 | GV55: CADRES DE SANTE DES SAPEURS POMPIERS PROFESSIONNELS | GW55: A | GX55: 0 | GY55: 0 | GZ55: 0
Y56: =IF(ISNA(VLOOKUP(2,$BJ$115:$BM$125,2,FALSE))=TRUE,"",VLOOKUP(2,$BJ$115:$BM$125,2,FALSE)) ->  | AH56: =IF(ISNA(VLOOKUP(2,$BJ$115:$BM$125,4,FALSE))=TRUE,"",VLOOKUP(2,$BJ$115:$BM$125,4,FALSE)) ->  | AW56: =IF(AX56=" "," ","a") -> a | AX56: =IF(SUM('IND 1.6.2'!B12:B15)=0," ",TEXT(SUM('IND 1.6.2'!B12:B15),"# ##")& " € de dépenses réalisées couvrant partiellement l’obligation d’emploi ") -> 8 386 € de dépenses réalisées couvrant partiellement l’obligation d’emploi | BD56: =IF(BG56="","","Dernière mise à jour :") -> Dernière mise à jour : | BG56: =IF('IND 4.1.4-4.1.7'!$F$12=0,"",'IND 4.1.4-4.1.7'!$F$12) -> 2022 | GJ56: 66 | GK56: Languedoc | GL56: Centre de Gestion des Pyrénées-Orientales | GO56: Infirmiers de sapeurs-pompiers professionnels | GP56: ='IND 1.1.1'!I357 -> 0 | GQ56: ='IND 1.2.1'!L85 -> 0 | GR56: 0 | GS56: =RANK(GR56,$GR$1:$GR$60,0)+COUNTIF(GR$1:GR56,GR56)-1 -> 55 | GT56: 55 | GU56: 0 | GV56: Infirmiers de sapeurs-pompiers professionnels | GW56: A | GX56: 0 | GY56: 0 | GZ56: 0
A57: Synthèse des principaux indicateurs du Rapport Social Unique 2022 | Y57: =IF(ISNA(VLOOKUP(3,$BJ$115:$BM$125,2,FALSE))=TRUE,"",VLOOKUP(3,$BJ$115:$BM$125,2,FALSE)) ->  | AH57: =IF(ISNA(VLOOKUP(3,$BJ$115:$BM$125,4,FALSE))=TRUE,"",VLOOKUP(3,$BJ$115:$BM$125,4,FALSE)) ->  | AJ57: =IF($D$70=0," ",AL86) ->  | GJ57: 19 | GK57: Limousin | GL57: Centre de Gestion de la Corrèze | GO57: Sous officiers de sapeurs-pompiers professionnels | GP57: ='IND 1.1.1'!I362 -> 0 | GQ57: ='IND 1.2.1'!L86 -> 0 | GR57: 0 | GS57: =RANK(GR57,$GR$1:$GR$60,0)+COUNTIF(GR$1:GR57,GR57)-1 -> 56 | GT57: 56 | GU57: 0 | GV57: Sous officiers de sapeurs-pompiers professionnels | GW57: C | GX57: 0 | GY57: 0 | GZ57: 0
GJ58: 23 | GK58: Limousin | GL58: Centre de Gestion de la Creuse | GO58: Sapeurs et caporaux de sapeurs-pompiers professionnels | GP58: ='IND 1.1.1'!I369 -> 0 | GQ58: ='IND 1.2.1'!L87 -> 0 | GR58: 0 | GS58: =RANK(GR58,$GR$1:$GR$60,0)+COUNTIF(GR$1:GR58,GR58)-1 -> 57 | GT58: 57 | GU58: 0 | GV58: Sapeurs et caporaux de sapeurs-pompiers professionnels | GW58: C | GX58: 0 | GY58: 0 | GZ58: 0
GJ59: 87 | GK59: Limousin | GL59: Centre de Gestion de Haute-Vienne | GO59: Animateurs | GP59: ='IND 1.1.1'!I379 -> 0 | GQ59: ='IND 1.2.1'!L90 -> 0 | GR59: 0 | GS59: =RANK(GR59,$GR$1:$GR$60,0)+COUNTIF(GR$1:GR59,GR59)-1 -> 58 | GT59: 58 | GU59: 0 | GV59: Animateurs | GW59: B | GX59: 0 | GY59: 0 | GZ59: 0
GJ60: 54 | GK60: Lorraine | GL60: Centre de Gestion de Meurthe-et-Moselle | GO60: Adjoints d'animation | GP60: ='IND 1.1.1'!I386 -> 0 | GQ60: ='IND 1.2.1'!L91 -> 0 | GR60: 0 | GS60: =RANK(GR60,$GR$1:$GR$60,0)+COUNTIF(GR$1:GR60,GR60)-1 -> 59 | GT60: 59 | GU60: 0 | GV60: Adjoints d'animation | GW60: C | GX60: 0 | GY60: 0 | GZ60: 0
AE61: Nombre de fonctionnaires ayant connu au cours de l'année un avancement de grade à la suite d'une : | AF61: ='IND 1.9.5 - 1.9.6.1'!B29 -> Hommes | AG61: ='IND 1.9.5 - 1.9.6.1'!C29 -> Femmes | BV61: Participation Santé ou prévoyance | GJ61: 55 | GK61: Lorraine | GL61: Centre de Gestion de la Meuse | GO61: SOMME | GP61: =SUM(GP2:GP60) -> 487 | GQ61: =SUM(GQ2:GQ60) -> 155 | GR61: =SUM(GR2:GR60) -> 642 | GU61: =SUM(GU2:GU60) -> 1 | GV61: 0 | GW61: 0 | GX61: 642 | GY61: 487 | GZ61: 155
H62: Permanent | I62: % | J62: Nombre | M62: , | N62: Hommes | O62: Femmes | U62: Temps complet | V62: Temps non complet | AE62: Promotion interne sans examen professionnel | AF62: ='IND 1.9.5 - 1.9.6.1'!B30 -> 3 | AG62: ='IND 1.9.5 - 1.9.6.1'!C30 -> 3 | AL62: % masse salariale sur dép de fonc | AP62: =IF($AL$6=0,0,(AP6/$AL$6)*100) -> 34.95074507 | AX62: Travailleurs handicapés | BV62: Santé | BX62: Prévoyance | GJ62: 57 | GK62: Lorraine | GL62: Centre de Gestion de la Moselle
B63: Catégorie A | D63: =SUMIF(GW2:GW60,"A",GX2:GX60)/GX61 -> 0.3302180685 | H63: Hommes | I63: Femmes | J63: Hommes | K63: Femmes | L63: T | M63: moins de 30 ans | N63: =-SUM('IND 1.4.0'!$C$16:$D$18)/('IND 1.4.0'!$D$51+'IND 1.4.0'!$C$51) -> -0.04672897196 | O63: =SUM('IND 1.4.0'!C28:D30)/('IND 1.4.0'!$D$51+'IND 1.4.0'!$C$51) -> 0.03115264798 | S63: =IF(D70=0," ","Contractuels") -> Contractuels | U63: ='IND 1.2.1'!M94/$D$70 -> 0.7225806452 | V63: ='IND 1.2.1'!N94/$D$70 -> 0.2774193548 | AE63: - n'ayant pas entrainé une "nomination stagiaire" | AF63: ='IND 1.9.5 - 1.9.6.1'!B31 -> 0 | AG63: ='IND 1.9.5 - 1.9.6.1'!C31 -> 0 | AX63: Fonctionnaires | AZ63: =SUM('IND 1.6.1'!B17:C19) -> 40 | BV63: =IF(SUM('IND 7.2.0-7.2.2'!$B$24:$B$27)>0,2,IF(AND('IND 7.2.0-7.2.2'!B10="",'IND 7.2.0-7.2.2'!B11="",'IND 7.2.0-7.2.2'!B12=""),0,IF(OR('IND 7.2.0-7.2.2'!B10="Oui",'IND 7.2.0-7.2.2'!B11="Oui",'IND 7.2.0-7.2.2'!B12="Oui"),2,IF(OR('IND 7.2.0-7.2.2'!B10="Non",'IND 7.2.0-7.2.2'!B11="Non",'IND 7.2.0-7.2.2'!B12="Non"),1)))) -> 2 | BX63: =IF(SUM('IND 7.2.0-7.2.2'!$C$24:$C$27)>0,2,IF(AND('IND 7.2.0-7.2.2'!C10="",'IND 7.2.0-7.2.2'!C11="",'IND 7.2.0-7.2.2'!C12=""),0,IF(OR('IND 7.2.0-7.2.2'!C10="Oui",'IND 7.2.0-7.2.2'!C11="Oui",'IND 7.2.0-7.2.2'!C12="Oui"),2,IF(OR('IND 7.2.0-7.2.2'!C10="Non",'IND 7.2.0-7.2.2'!C11="Non",'IND 7.2.0-7.2.2'!C12="Non"),1)))) -> 2 | GJ63: 88 | GK63: Lorraine | GL63: Centre de Gestion des Vosges
B64: Catégorie B | D64: =SUMIF(GW2:GW60,"B",GX2:GX60)/GX61 -> 0.2803738318 | G64: Ensemble | H64: =(('IND 1.1.1'!G390+'IND 1.2.1'!R94+'IND 1.2.1'!T94)/($D$69+$D$70)) -> 0.5373831776 | I64: =(('IND 1.1.1'!H390+'IND 1.2.1'!S94+'IND 1.2.1'!U94)/($D$69+$D$70)) -> 0.4626168224 | J64: =('IND 1.1.1'!G390+'IND 1.2.1'!R94+'IND 1.2.1'!T94) -> 345 | K64: =('IND 1.1.1'!H390+'IND 1.2.1'!S94+'IND 1.2.1'!U94) -> 297 | M64: Entre 30 et 50 ans | N64: =-SUM('IND 1.4.0'!C19:D22)/('IND 1.4.0'!$D$51+'IND 1.4.0'!$C$51) -> -0.2570093458 | O64: =SUM('IND 1.4.0'!C31:D34)/('IND 1.4.0'!$D$51+'IND 1.4.0'!$C$51) -> 0.2601246106 | S64: =IF(D69=0," ","Fonctionnaires") -> Fonctionnaires | U64: ='IND 1.1.1'!$B$390/synthese!$D$69 -> 0.9425051335 | V64: ='IND 1.1.1'!$F$390/synthese!$D$69 -> 0.05749486653 | AE64: Promotion interne suite à un examen professionnel | AF64: ='IND 1.9.5 - 1.9.6.1'!B32 -> 0 | AG64: ='IND 1.9.5 - 1.9.6.1'!C32 -> 0 | AX64: Emploi permanent | AZ64: =SUM('IND 1.6.1'!D17:E19) -> 3 | GJ64: 9 | GK64: Midi-Pyrénées | GL64: Centre de Gestion de l'Ariège
B65: Catégorie C | D65: =SUMIF(GW2:GW60,"C",GX2:GX60)/GX61 -> 0.3894080997 | G65: Contractuels | H65: =('IND 1.2.1'!R94+'IND 1.2.1'!T94)/$D$70 -> 0.6516129032 | I65: =('IND 1.2.1'!S94+'IND 1.2.1'!U94)/$D$70 -> 0.3483870968 | J65: =('IND 1.2.1'!R94+'IND 1.2.1'!T94) -> 101 | K65: =('IND 1.2.1'!S94+'IND 1.2.1'!U94) -> 54 | M65: Plus de 50 ans | N65: =-SUM('IND 1.4.0'!C23:D26)/('IND 1.4.0'!$D$51+'IND 1.4.0'!$C$51) -> -0.2336448598 | O65: =SUM('IND 1.4.0'!C35:D38)/('IND 1.4.0'!$D$51+'IND 1.4.0'!$C$51) -> 0.1713395639 | AE65: - n'ayant pas entrainé une "nomination stagiaire" | AF65: ='IND 1.9.5 - 1.9.6.1'!B33 -> 0 | AG65: ='IND 1.9.5 - 1.9.6.1'!C33 -> 0 | AN65: Part des primes sur rémunérations annuelles butes | AX65: Non permanent | AZ65: =SUM('IND 1.6.1'!B27:C27) -> 0 | GJ65: 12 | GK65: Midi-Pyrénées | GL65: Centre de Gestion de l'Aveyron
G66: Fonctionnaires | H66: ='IND 1.1.1'!$G$390/$D$69 -> 0.501026694 | I66: ='IND 1.1.1'!$H$390/$D$69 -> 0.498973306 | J66: ='IND 1.1.1'!$G$390 -> 244 | K66: ='IND 1.1.1'!$H$390 -> 243 | U66: Temps plein | V66: Temps partiel | AE66: Réussite à un concours d'agents déjà fonctionnaires dans la collectivité | AF66: ='IND 1.9.5 - 1.9.6.1'!B34 -> 0 | AG66: ='IND 1.9.5 - 1.9.6.1'!C34 -> 0 | AY66: Total | AZ66: =SUM(AZ63:AZ64) -> 43 | GJ66: 31 | GK66: Midi-Pyrénées | GL66: Centre de Gestion de Haute-Garonne
M67: Total départ de fonctionnaires | Q67: ='IND 1.9.4.0'!F41+'IND 1.9.4.0'!J41 -> 1 | S67: =IF(D70=0," ","Contractuels") -> Contractuels | U67: =SUM('IND 2.3.4'!B94:C94)/SUM('IND 2.3.4'!J94:K94) -> 0.9375 | V67: =SUM('IND 2.3.4'!D94:I94)/SUM('IND 2.3.4'!J94:K94) -> 0.0625 | AE67: - n'ayant pas entrainé "une nomination stagiaire" | AF67: ='IND 1.9.5 - 1.9.6.1'!B35 -> 0 | AG67: ='IND 1.9.5 - 1.9.6.1'!C35 -> 0 | AN67: Prime | AP67: Rémunération ann B | AS67: % | BV67: =IF('IND 7.1.1-7.1.3'!B13="Oui","- "&"Prestations servies directement par la collectivité"&CHAR(10),"") ->  | GJ67: 32 | GK67: Midi-Pyrénées | GL67: Centre de Gestion du Gers
B68: Total Agents au 31/12 | M68: Total départ de contractuels | Q68: ='IND 1.9.4.0'!F64+'IND 1.9.4.0'!J64 -> 0 | S68: =IF(D69=0," ","Fonctionnaires") -> Fonctionnaires | U68: =SUM('IND 2.3.2'!B93:C93)/SUM('IND 2.3.2'!J93:K93) -> 0.9215686275 | V68: =SUM('IND 2.3.2'!D93:I93)/SUM('IND 2.3.2'!J93:K93) -> 0.07843137255 | AN68: Fonctionnaires | AO68: Contractuels | AP68: Fonctionnaires | AR68: Contractuels | AS68: Fonctionnaires | AT68: Contractuels | AU68: Ensemble | AX68: Travailleurs handicapés par catégorie | BV68: =IF('IND 7.1.1-7.1.3'!B14="Oui","- "&"Prestations servies par l'intermédiaire d'un centre de gestion"&CHAR(10),"") ->  | GJ68: 46 | GK68: Midi-Pyrénées | GL68: Centre de Gestion du Lot
B69: Fonct° | D69: ='IND 1.1.1'!$I$390 -> 487 | H69: Emploi aidé | I69: ='IND 1.3.1'!F26 -> 0 | AL69: Catégorie A | AN69: ='IND 3.1.1-3.3.1 et 3.4.1-3.4.3'!D20+'IND 3.1.1-3.3.1 et 3.4.1-3.4.3'!E20+'IND 3.1.1-3.3.1 et 3.4.1-3.4.3'!D24+'IND 3.1.1-3.3.1 et 3.4.1-3.4.3'!E24+'IND 3.1.1-3.3.1 et 3.4.1-3.4.3'!D28+'IND 3.1.1-3.3.1 et 3.4.1-3.4.3'!E28+'IND 3.1.1-3.3.1 et 3.4.1-3.4.3'!D32+'IND 3.1.1-3.3.1 et 3.4.1-3.4.3'!E32+'IND 3.1.1-3.3.1 et 3.4.1-3.4.3'!D36+'IND 3.1.1-3.3.1 et 3.4.1-3.4.3'!E36+'IND 3.1.1-3.3.1 et 3.4.1-3.4.3'!D40+'IND 3.1.1-3.3.1 et 3.4.1-3.4.3'!E40+'IND 3.1.1-3.3.1 et 3.4.1-3.4.3'!D44+'IND 3.1.1-3.3.1 et 3.4.1-3.4.3'!E44+'IND 3.1.1-3.3.1 et 3.4.1-3.4.3'!D48+'IND 3.1.1-3.3.1 et 3.4.1-3.4.3'!E48+'IND 3.1.1-3.3.1 et 3.4.1-3.4.3'!D52+'IND 3.1.1-3.3.1 et 3.4.1-3.4.3'!E52 -> 1752830 | AO69: ='IND 3.1.1-3.3.1 et 3.4.1-3.4.3'!D68+'IND 3.1.1-3.3.1 et 3.4.1-3.4.3'!E68+'IND 3.1.1-3.3.1 et 3.4.1-3.4.3'!D72+'IND 3.1.1-3.3.1 et 3.4.1-3.4.3'!E72+'IND 3.1.1-3.3.1 et 3.4.1-3.4.3'!D76+'IND 3.1.1-3.3.1 et 3.4.1-3.4.3'!E76+'IND 3.1.1-3.3.1 et 3.4.1-3.4.3'!D80+'IND 3.1.1-3.3.1 et 3.4.1-3.4.3'!E80+'IND 3.1.1-3.3.1 et 3.4.1-3.4.3'!D84+'IND 3.1.1-3.3.1 et 3.4.1-3.4.3'!E84+'IND 3.1.1-3.3.1 et 3.4.1-3.4.3'!D88+'IND 3.1.1-3.3.1 et 3.4.1-3.4.3'!E88+'IND 3.1.1-3.3.1 et 3.4.1-3.4.3'!D92+'IND 3.1.1-3.3.1 et 3.4.1-3.4.3'!E92+'IND 3.1.1-3.3.1 et 3.4.1-3.4.3'!D96+'IND 3.1.1-3.3.1 et 3.4.1-3.4.3'!E96+'IND 3.1.1-3.3.1 et 3.4.1-3.4.3'!D100+'IND 3.1.1-3.3.1 et 3.4.1-3.4.3'!E100 -> 722765 | AP69: ='IND 3.1.1-3.3.1 et 3.4.1-3.4.3'!B20+'IND 3.1.1-3.3.1 et 3.4.1-3.4.3'!C20+'IND 3.1.1-3.3.1 et 3.4.1-3.4.3'!B24+'IND 3.1.1-3.3.1 et 3.4.1-3.4.3'!C24+'IND 3.1.1-3.3.1 et 3.4.1-3.4.3'!B28+'IND 3.1.1-3.3.1 et 3.4.1-3.4.3'!C28+'IND 3.1.1-3.3.1 et 3.4.1-3.4.3'!B32+'IND 3.1.1-3.3.1 et 3.4.1-3.4.3'!C32+'IND 3.1.1-3.3.1 et 3.4.1-3.4.3'!B36+'IND 3.1.1-3.3.1 et 3.4.1-3.4.3'!C36+'IND 3.1.1-3.3.1 et 3.4.1-3.4.3'!B40+'IND 3.1.1-3.3.1 et 3.4.1-3.4.3'!C40+'IND 3.1.1-3.3.1 et 3.4.1-3.4.3'!B44+'IND 3.1.1-3.3.1 et 3.4.1-3.4.3'!C44+'IND 3.1.1-3.3.1 et 3.4.1-3.4.3'!B48+'IND 3.1.1-3.3.1 et 3.4.1-3.4.3'!C48+'IND 3.1.1-3.3.1 et 3.4.1-3.4.3'!B52+'IND 3.1.1-3.3.1 et 3.4.1-3.4.3'!C52 -> 8319874 | AR69: ='IND 3.1.1-3.3.1 et 3.4.1-3.4.3'!B68+'IND 3.1.1-3.3.1 et 3.4.1-3.4.3'!C68+'IND 3.1.1-3.3.1 et 3.4.1-3.4.3'!B72+'IND 3.1.1-3.3.1 et 3.4.1-3.4.3'!C72+'IND 3.1.1-3.3.1 et 3.4.1-3.4.3'!B76+'IND 3.1.1-3.3.1 et 3.4.1-3.4.3'!C76+'IND 3.1.1-3.3.1 et 3.4.1-3.4.3'!B80+'IND 3.1.1-3.3.1 et 3.4.1-3.4.3'!C80+'IND 3.1.1-3.3.1 et 3.4.1-3.4.3'!B84+'IND 3.1.1-3.3.1 et 3.4.1-3.4.3'!C84+'IND 3.1.1-3.3.1 et 3.4.1-3.4.3'!B88+'IND 3.1.1-3.3.1 et 3.4.1-3.4.3'!C88+'IND 3.1.1-3.3.1 et 3.4.1-3.4.3'!B92+'IND 3.1.1-3.3.1 et 3.4.1-3.4.3'!C92+'IND 3.1.1-3.3.1 et 3.4.1-3.4.3'!B96+'IND 3.1.1-3.3.1 et 3.4.1-3.4.3'!C96+'IND 3.1.1-3.3.1 et 3.4.1-3.4.3'!B100+'IND 3.1.1-3.3.1 et 3.4.1-3.4.3'!C100 -> 2547398 | AS69: =IF(AP69=0,"",AN69/AP69) -> 0.2106798733 | AT69: =IF(AR69=0,"",AO69/AR69) -> 0.2837267675 | AU69: =IF((AP69+AR69)=0,"",(AN69+AO69)/(AP69+AR69)) -> 0.2278028009 | AX69: Catégorie A | AY69: =SUM('IND 1.6.1'!B17:E17) -> 9 | BV69: =IF('IND 7.1.1-7.1.3'!B15="Oui","- "&"Prestations servies par l'intermédiaire d'une association nationale"&CHAR(10),"") -> - Prestations servies par l'intermédiaire d'une association nationale | GJ69: 65 | GK69: Midi-Pyrénées | GL69: Centre de Gestion des Hautes-Pyrénées
B70: Cont Perm | D70: ='IND 1.2.1'!L94 -> 155 | H70: CDI | I70: ='IND 1.2.1'!R94+'IND 1.2.1'!S94 -> 19 | M70: Graphique % de temps non complet par filières et par statut | AA70: H | AB70: F | AL70: Catégorie B | AN70: ='IND 3.1.1-3.3.1 et 3.4.1-3.4.3'!D21+'IND 3.1.1-3.3.1 et 3.4.1-3.4.3'!E21+'IND 3.1.1-3.3.1 et 3.4.1-3.4.3'!D25+'IND 3.1.1-3.3.1 et 3.4.1-3.4.3'!E25+'IND 3.1.1-3.3.1 et 3.4.1-3.4.3'!D29+'IND 3.1.1-3.3.1 et 3.4.1-3.4.3'!E29+'IND 3.1.1-3.3.1 et 3.4.1-3.4.3'!D33+'IND 3.1.1-3.3.1 et 3.4.1-3.4.3'!E33+'IND 3.1.1-3.3.1 et 3.4.1-3.4.3'!D37+'IND 3.1.1-3.3.1 et 3.4.1-3.4.3'!E37+'IND 3.1.1-3.3.1 et 3.4.1-3.4.3'!D41+'IND 3.1.1-3.3.1 et 3.4.1-3.4.3'!E41+'IND 3.1.1-3.3.1 et 3.4.1-3.4.3'!D45+'IND 3.1.1-3.3.1 et 3.4.1-3.4.3'!E45+'IND 3.1.1-3.3.1 et 3.4.1-3.4.3'!D49+'IND 3.1.1-3.3.1 et 3.4.1-3.4.3'!E49+'IND 3.1.1-3.3.1 et 3.4.1-3.4.3'!D53+'IND 3.1.1-3.3.1 et 3.4.1-3.4.3'!E53+'IND 3.1.1-3.3.1 et 3.4.1-3.4.3'!D56+'IND 3.1.1-3.3.1 et 3.4.1-3.4.3'!E56 -> 774860 | AO70: ='IND 3.1.1-3.3.1 et 3.4.1-3.4.3'!D69+'IND 3.1.1-3.3.1 et 3.4.1-3.4.3'!E69+'IND 3.1.1-3.3.1 et 3.4.1-3.4.3'!D73+'IND 3.1.1-3.3.1 et 3.4.1-3.4.3'!E73+'IND 3.1.1-3.3.1 et 3.4.1-3.4.3'!D77+'IND 3.1.1-3.3.1 et 3.4.1-3.4.3'!E77+'IND 3.1.1-3.3.1 et 3.4.1-3.4.3'!D81+'IND 3.1.1-3.3.1 et 3.4.1-3.4.3'!E81+'IND 3.1.1-3.3.1 et 3.4.1-3.4.3'!D85+'IND 3.1.1-3.3.1 et 3.4.1-3.4.3'!E85+'IND 3.1.1-3.3.1 et 3.4.1-3.4.3'!D89+'IND 3.1.1-3.3.1 et 3.4.1-3.4.3'!E89+'IND 3.1.1-3.3.1 et 3.4.1-3.4.3'!D93+'IND 3.1.1-3.3.1 et 3.4.1-3.4.3'!E93+'IND 3.1.1-3.3.1 et 3.4.1-3.4.3'!D97+'IND 3.1.1-3.3.1 et 3.4.1-3.4.3'!E97+'IND 3.1.1-3.3.1 et 3.4.1-3.4.3'!D101+'IND 3.1.1-3.3.1 et 3.4.1-3.4.3'!E101+'IND 3.1.1-3.3.1 et 3.4.1-3.4.3'!D104+'IND 3.1.1-3.3.1 et 3.4.1-3.4.3'!E104 -> 303812 | AP70: ='IND 3.1.1-3.3.1 et 3.4.1-3.4.3'!B21+'IND 3.1.1-3.3.1 et 3.4.1-3.4.3'!C21+'IND 3.1.1-3.3.1 et 3.4.1-3.4.3'!B25+'IND 3.1.1-3.3.1 et 3.4.1-3.4.3'!C25+'IND 3.1.1-3.3.1 et 3.4.1-3.4.3'!B29+'IND 3.1.1-3.3.1 et 3.4.1-3.4.3'!C29+'IND 3.1.1-3.3.1 et 3.4.1-3.4.3'!B33+'IND 3.1.1-3.3.1 et 3.4.1-3.4.3'!C33+'IND 3.1.1-3.3.1 et 3.4.1-3.4.3'!B37+'IND 3.1.1-3.3.1 et 3.4.1-3.4.3'!C37+'IND 3.1.1-3.3.1 et 3.4.1-3.4.3'!B41+'IND 3.1.1-3.3.1 et 3.4.1-3.4.3'!C41+'IND 3.1.1-3.3.1 et 3.4.1-3.4.3'!B45+'IND 3.1.1-3.3.1 et 3.4.1-3.4.3'!C45+'IND 3.1.1-3.3.1 et 3.4.1-3.4.3'!B49+'IND 3.1.1-3.3.1 et 3.4.1-3.4.3'!C49+'IND 3.1.1-3.3.1 et 3.4.1-3.4.3'!B53+'IND 3.1.1-3.3.1 et 3.4.1-3.4.3'!C53+'IND 3.1.1-3.3.1 et 3.4.1-3.4.3'!B56+'IND 3.1.1-3.3.1 et 3.4.1-3.4.3'!C56 -> 4022014 | AR70: ='IND 3.1.1-3.3.1 et 3.4.1-3.4.3'!B69+'IND 3.1.1-3.3.1 et 3.4.1-3.4.3'!C69+'IND 3.1.1-3.3.1 et 3.4.1-3.4.3'!B73+'IND 3.1.1-3.3.1 et 3.4.1-3.4.3'!C73+'IND 3.1.1-3.3.1 et 3.4.1-3.4.3'!B77+'IND 3.1.1-3.3.1 et 3.4.1-3.4.3'!C77+'IND 3.1.1-3.3.1 et 3.4.1-3.4.3'!B81+'IND 3.1.1-3.3.1 et 3.4.1-3.4.3'!C81+'IND 3.1.1-3.3.1 et 3.4.1-3.4.3'!B85+'IND 3.1.1-3.3.1 et 3.4.1-3.4.3'!C85+'IND 3.1.1-3.3.1 et 3.4.1-3.4.3'!B89+'IND 3.1.1-3.3.1 et 3.4.1-3.4.3'!C89+'IND 3.1.1-3.3.1 et 3.4.1-3.4.3'!B93+'IND 3.1.1-3.3.1 et 3.4.1-3.4.3'!C93+'IND 3.1.1-3.3.1 et 3.4.1-3.4.3'!B97+'IND 3.1.1-3.3.1 et 3.4.1-3.4.3'!C97+'IND 3.1.1-3.3.1 et 3.4.1-3.4.3'!B101+'IND 3.1.1-3.3.1 et 3.4.1-3.4.3'!C101+'IND 3.1.1-3.3.1 et 3.4.1-3.4.3'!B104+'IND 3.1.1-3.3.1 et 3.4.1-3.4.3'!C104 -> 1334049 | AS70: =IF(AP70=0,"",AN70/AP70) -> 0.1926547247 | AT70: =IF(AR70=0,"",AO70/AR70) -> 0.2277367623 | AU70: =IF((AP70+AR70)=0,"",(AN70+AO70)/(AP70+AR70)) -> 0.2013927021 | AX70: Catégorie B | AY70: =SUM('IND 1.6.1'!B18:E18) -> 5 | BV70: =IF('IND 7.1.1-7.1.3'!B16="Oui","- "&"Prestations servies par l'intermédiaire d'un organisme à but non lucratif ou d'une association locale"&CHAR(10),"") ->  | GJ70: 81 | GK70: Midi-Pyrénées | GL70: Centre de Gestion du Tarn
B71: Cont N Perm | D71: ='IND 1.3.1'!F38 -> 47 | H71: saisonniers | I71: ='IND 1.3.1'!F24 -> 6 | V71: Titulaire | W71: Contractuel | Y71: Promotion choix | AA71: =AF62-AF63 -> 3 | AB71: =AG62-AG63 -> 3 | AF71: H | AG71: F | AL71: Catégorie C | AN71: ='IND 3.1.1-3.3.1 et 3.4.1-3.4.3'!D22+'IND 3.1.1-3.3.1 et 3.4.1-3.4.3'!E22+'IND 3.1.1-3.3.1 et 3.4.1-3.4.3'!D26+'IND 3.1.1-3.3.1 et 3.4.1-3.4.3'!E26+'IND 3.1.1-3.3.1 et 3.4.1-3.4.3'!D30+'IND 3.1.1-3.3.1 et 3.4.1-3.4.3'!E30+'IND 3.1.1-3.3.1 et 3.4.1-3.4.3'!D34+'IND 3.1.1-3.3.1 et 3.4.1-3.4.3'!E34+'IND 3.1.1-3.3.1 et 3.4.1-3.4.3'!D38+'IND 3.1.1-3.3.1 et 3.4.1-3.4.3'!E38+'IND 3.1.1-3.3.1 et 3.4.1-3.4.3'!D42+'IND 3.1.1-3.3.1 et 3.4.1-3.4.3'!E42+'IND 3.1.1-3.3.1 et 3.4.1-3.4.3'!D46+'IND 3.1.1-3.3.1 et 3.4.1-3.4.3'!E46+'IND 3.1.1-3.3.1 et 3.4.1-3.4.3'!D50+'IND 3.1.1-3.3.1 et 3.4.1-3.4.3'!E50+'IND 3.1.1-3.3.1 et 3.4.1-3.4.3'!D54+'IND 3.1.1-3.3.1 et 3.4.1-3.4.3'!E54+'IND 3.1.1-3.3.1 et 3.4.1-3.4.3'!D57+'IND 3.1.1-3.3.1 et 3.4.1-3.4.3'!E57 -> 1303174 | AO71: ='IND 3.1.1-3.3.1 et 3.4.1-3.4.3'!D70+'IND 3.1.1-3.3.1 et 3.4.1-3.4.3'!E70+'IND 3.1.1-3.3.1 et 3.4.1-3.4.3'!D74+'IND 3.1.1-3.3.1 et 3.4.1-3.4.3'!E74+'IND 3.1.1-3.3.1 et 3.4.1-3.4.3'!D78+'IND 3.1.1-3.3.1 et 3.4.1-3.4.3'!E78+'IND 3.1.1-3.3.1 et 3.4.1-3.4.3'!D82+'IND 3.1.1-3.3.1 et 3.4.1-3.4.3'!E82+'IND 3.1.1-3.3.1 et 3.4.1-3.4.3'!E86+'IND 3.1.1-3.3.1 et 3.4.1-3.4.3'!D86+'IND 3.1.1-3.3.1 et 3.4.1-3.4.3'!D90+'IND 3.1.1-3.3.1 et 3.4.1-3.4.3'!E90+'IND 3.1.1-3.3.1 et 3.4.1-3.4.3'!D94+'IND 3.1.1-3.3.1 et 3.4.1-3.4.3'!E94+'IND 3.1.1-3.3.1 et 3.4.1-3.4.3'!D98+'IND 3.1.1-3.3.1 et 3.4.1-3.4.3'!E98+'IND 3.1.1-3.3.1 et 3.4.1-3.4.3'!D102+'IND 3.1.1-3.3.1 et 3.4.1-3.4.3'!E102+'IND 3.1.1-3.3.1 et 3.4.1-3.4.3'!D105+'IND 3.1.1-3.3.1 et 3.4.1-3.4.3'!E105 -> 270464 | AP71: ='IND 3.1.1-3.3.1 et 3.4.1-3.4.3'!B22+'IND 3.1.1-3.3.1 et 3.4.1-3.4.3'!C22+'IND 3.1.1-3.3.1 et 3.4.1-3.4.3'!B26+'IND 3.1.1-3.3.1 et 3.4.1-3.4.3'!C26+'IND 3.1.1-3.3.1 et 3.4.1-3.4.3'!B30+'IND 3.1.1-3.3.1 et 3.4.1-3.4.3'!C30+'IND 3.1.1-3.3.1 et 3.4.1-3.4.3'!B34+'IND 3.1.1-3.3.1 et 3.4.1-3.4.3'!C34+'IND 3.1.1-3.3.1 et 3.4.1-3.4.3'!B38+'IND 3.1.1-3.3.1 et 3.4.1-3.4.3'!C38+'IND 3.1.1-3.3.1 et 3.4.1-3.4.3'!B42+'IND 3.1.1-3.3.1 et 3.4.1-3.4.3'!C42+'IND 3.1.1-3.3.1 et 3.4.1-3.4.3'!B46+'IND 3.1.1-3.3.1 et 3.4.1-3.4.3'!C46+'IND 3.1.1-3.3.1 et 3.4.1-3.4.3'!B50+'IND 3.1.1-3.3.1 et 3.4.1-3.4.3'!C50+'IND 3.1.1-3.3.1 et 3.4.1-3.4.3'!B54+'IND 3.1.1-3.3.1 et 3.4.1-3.4.3'!C54+'IND 3.1.1-3.3.1 et 3.4.1-3.4.3'!B57+'IND 3.1.1-3.3.1 et 3.4.1-3.4.3'!C57 -> 7057747 | AR71: ='IND 3.1.1-3.3.1 et 3.4.1-3.4.3'!B70+'IND 3.1.1-3.3.1 et 3.4.1-3.4.3'!C70+'IND 3.1.1-3.3.1 et 3.4.1-3.4.3'!B74+'IND 3.1.1-3.3.1 et 3.4.1-3.4.3'!C74+'IND 3.1.1-3.3.1 et 3.4.1-3.4.3'!B78+'IND 3.1.1-3.3.1 et 3.4.1-3.4.3'!C78+'IND 3.1.1-3.3.1 et 3.4.1-3.4.3'!B82+'IND 3.1.1-3.3.1 et 3.4.1-3.4.3'!C82+'IND 3.1.1-3.3.1 et 3.4.1-3.4.3'!B86+'IND 3.1.1-3.3.1 et 3.4.1-3.4.3'!C86+'IND 3.1.1-3.3.1 et 3.4.1-3.4.3'!B90+'IND 3.1.1-3.3.1 et 3.4.1-3.4.3'!C90+'IND 3.1.1-3.3.1 et 3.4.1-3.4.3'!B94+'IND 3.1.1-3.3.1 et 3.4.1-3.4.3'!C94+'IND 3.1.1-3.3.1 et 3.4.1-3.4.3'!B98+'IND 3.1.1-3.3.1 et 3.4.1-3.4.3'!C98+'IND 3.1.1-3.3.1 et 3.4.1-3.4.3'!B102+'IND 3.1.1-3.3.1 et 3.4.1-3.4.3'!C102+'IND 3.1.1-3.3.1 et 3.4.1-3.4.3'!B105+'IND 3.1.1-3.3.1 et 3.4.1-3.4.3'!C105 -> 920515 | AS71: 0.1846444765 | AT71: 0.2938181344 | AU71: 0.1972407023 | AX71: Catégorie C | AY71: =SUM('IND 1.6.1'!B19:E19) -> 29 | GJ71: 82 | GK71: Midi-Pyrénées | GL71: Centre de Gestion du Tarn-et-Garonne
L72: Rang | M72: Filière | N72: Titulaire | O72: Contractuel | S72: Nb agent Temps non complet | V72: ='IND 1.1.1'!$F$390 -> 28 | W72: ='IND 1.2.1'!N94 -> 43 | Y72: % | AB72: =AB71/(AA71+AB71) -> 0.5 | AE72: CEP | AF72: =SUM('IND 1.9.7'!$B$8:$B$10) -> 0 | AG72: =SUM('IND 1.9.7'!$C$8:$C$10) -> 0 | AL72: Total | AN72: =SUM(AN69:AN71) -> 3830864 | AO72: =SUM(AO69:AO71) -> 1297041 | AP72: =SUM(AP69:AQ71) -> 19399635 | AR72: =SUM(AR69:AR71) -> 4801962 | AS72: 0.1974709318 | AT72: 0.270106469 | AU72: 0.2118829183 | AX72: Total | AY72: =SUM(AY69:AY71) -> 43 | BV72: (*) Chèques vacances, restauration, aide à la famille, subventions pour séjours d'enfants, prestation pour enfant en situation de handicap, autres… | GJ72: 59 | GK72: Nord | GL72: Centre de Gestion du Nord
H73: Ensemble | L73: =IF(N73>0,RANK(N73,$N$72:$N$80,0)+COUNTIF(N$73:N74,N73)-1,"") ->  | M73: Administrative | N73: =IFERROR('IND 1.1.1'!$F$49/('IND 1.1.1'!$F$49+'IND 1.1.1'!$B$49),"") -> 0 | O73: =IFERROR('IND 1.2.1'!$N$20/('IND 1.2.1'!$M$20+'IND 1.2.1'!$N$20),"") -> 0 | S73: Nb agent Temps partiel | V73: =SUM('IND 2.3.2'!$D$93:$I$93) -> 36 | W73: =SUM('IND 2.3.4'!$D$94:$I$94) -> 7 | Y73: examen pro | AA73: =AF64-AF65 -> 0 | AB73: =AG64-AG65 -> 0 | AE73: Permanent | GJ73: 62 | GK73: Nord | GL73: Centre de Gestion du Pas-de-Calais
B74: Emploi fonctionnel | D74: =SUM('IND 1.1.0'!B21:K21,'IND 1.1.0'!B36:K36,'IND 1.1.0'!B51:C51) -> 6 | G74: Tranche d'âge | H74: Titulaires | I74: Permanents | J74: N-perma | K74: Ensemble | L74: =IF(N74>0,RANK(N74,$N$72:$N$80,0)+COUNTIF(N$73:N75,N74)-1,"") ->  | M74: Technique | N74: =IFERROR('IND 1.1.1'!$F$90/('IND 1.1.1'!$F$90+'IND 1.1.1'!$B$90),"") -> 0 | O74: =IFERROR('IND 1.2.1'!$N$28/('IND 1.2.1'!$M$28+'IND 1.2.1'!$N$28),"") -> 0 | Y74: % | AB74: =AB73/(AA73+AB73) ->  | AE74: % | AG74: =+AG72/SUM(AF72:AG72) ->  | AX74: Jours de carence | BF74: N | GJ74: 50 | GK74: Normandie | GL74: Centre de Gestion de la Manche
B75: dt cont | D75: ='IND 1.1.0'!B51+'IND 1.1.0'!C51 -> 0 | G75: moins de 20 ans | H75: =17.5*'IND 1.4.0'!$C$40 -> 0 | I75: =17.5*'IND 1.4.0'!$D$40 -> 35 | J75: =17.5*'IND 1.4.0'!$E$40 -> 87.5 | K75: =SUM($H75:$I75) -> 35 | L75: =IF(N75>0,RANK(N75,$N$72:$N$80,0)+COUNTIF(N$73:N76,N75)-1,"") -> 1 | M75: Culturelle | N75: =IFERROR('IND 1.1.1'!$F$145/('IND 1.1.1'!$F$145+'IND 1.1.1'!$B$145),"") -> 0.35 | O75: =IFERROR('IND 1.2.1'!$N$39/('IND 1.2.1'!$M$39+'IND 1.2.1'!$N$39),"") -> 0.8431372549 | Y75: Concours | AA75: =AF66-AF67 -> 0 | AB75: =AG66-AG67 -> 0 | AX75: Nombre total d'agents rémunérés et potentiellement soumis au jour de carence | BF75: =SUM('IND 2.1.8'!E10:E15,'IND 2.1.8'!E19:E24) -> 531 | GJ75: 44 | GK75: Pays-de-la-Loire | GL75: Centre de Gestion de Loire-Atlantique
B76: dt femme | D76: ='IND 1.1.0'!C21+'IND 1.1.0'!E21+'IND 1.1.0'!G21+'IND 1.1.0'!I21+'IND 1.1.0'!K21+'IND 1.1.0'!C35+'IND 1.1.0'!E36+'IND 1.1.0'!G36+'IND 1.1.0'!I36+'IND 1.1.0'!K36+'IND 1.1.0'!C51 -> 4 | G76: 20 à 24 ans | H76: =22.5*'IND 1.4.0'!$C$41 -> 90 | I76: =22.5*'IND 1.4.0'!$D$41 -> 202.5 | J76: =22.5*'IND 1.4.0'!$E$41 -> 180 | K76: 292.5 | L76: =IF(N76>0,RANK(N76,$N$72:$N$80,0)+COUNTIF(N$73:N77,N76)-1,"") ->  | M76: Sportive | N76: =IFERROR('IND 1.1.1'!$F$166/('IND 1.1.1'!$F$166+'IND 1.1.1'!$B$166),"") -> 0 | O76: =IFERROR('IND 1.2.1'!$N$44/('IND 1.2.1'!$M$44+'IND 1.2.1'!$N$44),"") -> 0 | Y76: % | AB76: =AB75/(AA75+AB75) ->  | AK76: Cotise ass chomage | AL76: =IF('IND 3.1.1-3.3.1 et 3.4.1-3.4.3'!$A$138="Vous êtes en auto-assurance avec convention de gestion avec Pôle Emploi","La collectivité est en auto-assurance avec convention de gestion avec Pôle Emploi pour l'assurance chômage de ses agents contractuels",IF('IND 3.1.1-3.3.1 et 3.4.1-3.4.3'!$A$138="Vous êtes en auto-assurance sans convention de gestion avec Pôle Emploi","La collectivité est en auto-assurance sans convention de gestion avec Pôle Emploi pour l'assurance chômage de ses agents contractuels",IF('IND 3.1.1-3.3.1 et 3.4.1-3.4.3'!$A$138="Vous avez adhéré au régime d'assurance chômage","La collectivité a adhéré au régime général d'assurance chômage pour l'assurance chômage de ses agents contractuels"," "))) -> La collectivité a adhéré au régime général d'assurance chômage pour l'assurance chômage de ses agents contractuels | AX76: Nombre d'agents auxquels a été appliqué au moins un jour de carence | BF76: =SUM('IND 2.1.8'!F10:F15,'IND 2.1.8'!F19:F24) -> 165 | GJ76: 49 | GK76: Pays-de-la-Loire | GL76: Centre de Gestion de Maine-et-Loire
G77: 25 - 29 ans | H77: =27.5*'IND 1.4.0'!$C$42 -> 275 | I77: =27.5*'IND 1.4.0'!$D$42 -> 687.5 | J77: =27.5*'IND 1.4.0'!$E$42 -> 82.5 | K77: 962.5 | L77: =IF(N77>0,RANK(N77,$N$72:$N$80,0)+COUNTIF(N$73:N78,N77)-1,"") ->  | M77: Médico-sociale | N77: =IFERROR(('IND 1.1.1'!$F$204+'IND 1.1.1'!$F$270+'IND 1.1.1'!$F$294)/('IND 1.1.1'!$F$204+'IND 1.1.1'!$F$270+'IND 1.1.1'!$F$294+'IND 1.1.1'!$B$204+'IND 1.1.1'!$B$270+'IND 1.1.1'!$B$294),"") -> 0 | O77: =IFERROR(('IND 1.2.1'!$N$52+'IND 1.2.1'!$N$66+'IND 1.2.1'!$N$72)/('IND 1.2.1'!$N$52+'IND 1.2.1'!$N$66+'IND 1.2.1'!$N$72+'IND 1.2.1'!$M$52+'IND 1.2.1'!$M$66+'IND 1.2.1'!$M$72),"") -> 0 | Y77: fonc | AA77: ='IND 1.1.1'!$G$390 -> 244 | AB77: ='IND 1.1.1'!$H$390 -> 243 | AF77: A | AG77: B | AH77: C | GJ77: 53 | GK77: Pays-de-la-Loire | GL77: Centre de Gestion de la Mayenne
G78: 30 - 34 ans | H78: =32.5*'IND 1.4.0'!$C$43 -> 910 | I78: =32.5*'IND 1.4.0'!$D$43 -> 942.5 | J78: =32.5*'IND 1.4.0'!$E$43 -> 97.5 | K78: 1852.5 | L78: =IF(N78>0,RANK(N78,$N$72:$N$80,0)+COUNTIF(N$73:N79,N78)-1,"") ->  | M78: Police | N78: =IFERROR('IND 1.1.1'!$F$319/('IND 1.1.1'!$F$319+'IND 1.1.1'!$B$319),"") ->  | O78: =IFERROR('IND 1.2.1'!$N$78/('IND 1.2.1'!$M$78+'IND 1.2.1'!$N$78),"") ->  | AE78: CEP | AF78: =SUM('IND 1.9.7'!$B$8:$C$8) -> 0 | AG78: =SUM('IND 1.9.7'!$B$9:$C$9) -> 0 | AH78: =SUM('IND 1.9.7'!$B$10:$C$10) -> 0 | GJ78: 72 | GK78: Pays-de-la-Loire | GL78: Centre de Gestion de la Sarthe
G79: 35 - 39 ans | H79: =37.5*'IND 1.4.0'!$C$44 -> 2025 | I79: =37.5*'IND 1.4.0'!$D$44 -> 750 | J79: =37.5*'IND 1.4.0'!$E$44 -> 37.5 | K79: 2775 | L79: =IF(N79>0,RANK(N79,$N$72:$N$80,0)+COUNTIF(N$73:N80,N79)-1,"") ->  | M79: Incendie | N79: =IFERROR('IND 1.1.1'!$F$371/('IND 1.1.1'!$F$371+'IND 1.1.1'!$B$371),"") ->  | O79: =IFERROR('IND 1.2.1'!$N$88/('IND 1.2.1'!$M$88+'IND 1.2.1'!$N$88),"") ->  | AE79: Permanent | GJ79: 85 | GK79: Pays-de-la-Loire | GL79: Centre de Gestion de la Vendée
B80: ETPR | G80: 40 - 44 ans | H80: =42.5*'IND 1.4.0'!$C$45 -> 2805 | I80: =42.5*'IND 1.4.0'!$D$45 -> 765 | J80: =42.5*'IND 1.4.0'!$E$45 -> 127.5 | K80: 3570 | L80: =IF(N80>0,RANK(N80,$N$72:$N$80,0)+COUNTIF(N$73:N81,N80)-1,"") ->  | M80: Animation | N80: =IFERROR('IND 1.1.1'!$F$388/('IND 1.1.1'!$F$388+'IND 1.1.1'!$B$388),"") ->  | O80: =IFERROR('IND 1.2.1'!$N$92/('IND 1.2.1'!$M$92+'IND 1.2.1'!$N$92),"") ->  | AE80: % | AH80: =AH78/SUM(AF78:AH78) ->  | GJ80: 2 | GK80: Picardie | GL80: Centre de Gestion de l'Aisne
D81: H | E81: F | F81: T | G81: 45 - 49 ans | H81: =47.5*'IND 1.4.0'!$C$46 -> 4607.5 | I81: =47.5*'IND 1.4.0'!$D$46 -> 950 | J81: =47.5*'IND 1.4.0'!$E$46 -> 332.5 | K81: 5557.5 | AK81: Nbre d'allocataire (contractuels | AL81: =IF('IND 3.1.1-3.3.1 et 3.4.1-3.4.3'!$B$141=0," ", IF('IND 3.1.1-3.3.1 et 3.4.1-3.4.3'!$B$141=1,"En 2022, "&'IND 3.1.1-3.3.1 et 3.4.1-3.4.3'!$B$141&" allocataire a bénéficié de l'indemnisation du chômage (ancien contractuel)", IF('IND 3.1.1-3.3.1 et 3.4.1-3.4.3'!$B$141>1,"En 2022, "&'IND 3.1.1-3.3.1 et 3.4.1-3.4.3'!$B$141&" allocataires ont bénéficié de l'indemnisation du chômage (anciens contractuels)"))) -> En 2022, 1 allocataire a bénéficié de l'indemnisation du chômage (ancien contractuel) | GJ81: 60 | GK81: Picardie | GL81: Centre de Gestion de l'Oise
B82: Catégorie C | D82: ='IND 1.1.4'!$C$35+'IND 1.1.4'!$C$39+'IND 1.1.4'!$C$43+'IND 1.1.4'!$C$47+'IND 1.1.4'!$C$51+'IND 1.1.4'!$C$55+'IND 1.1.4'!$C$59+'IND 1.1.4'!$C$63+'IND 1.1.4'!$C$67+'IND 1.1.4'!$C$70+'IND 1.2.4'!$C$34+'IND 1.2.4'!$C$38+'IND 1.2.4'!$C$42+'IND 1.2.4'!$C$46+'IND 1.2.4'!$C$50+'IND 1.2.4'!$C$54+'IND 1.2.4'!$C$58+'IND 1.2.4'!$C$62+'IND 1.2.4'!$C$66+'IND 1.2.4'!$C$69 -> 148.09 | E82: ='IND 1.1.4'!$D$35+'IND 1.1.4'!$D$39+'IND 1.1.4'!$D$43+'IND 1.1.4'!$D$47+'IND 1.1.4'!$D$51+'IND 1.1.4'!$D$55+'IND 1.1.4'!$D$59+'IND 1.1.4'!$D$63+'IND 1.1.4'!$D$67+'IND 1.1.4'!$D$70+'IND 1.2.4'!$D$34+'IND 1.2.4'!$D$38+'IND 1.2.4'!$D$42+'IND 1.2.4'!$D$46+'IND 1.2.4'!$D$50+'IND 1.2.4'!$D$54+'IND 1.2.4'!$D$58+'IND 1.2.4'!$D$62+'IND 1.2.4'!$D$66+'IND 1.2.4'!$D$69 -> 101.69 | F82: =SUM(D82:E82) -> 249.78 | G82: 50 - 54 ans | H82: =52.5*'IND 1.4.0'!$C$47 -> 4410 | I82: =52.5*'IND 1.4.0'!$D$47 -> 787.5 | J82: =52.5*'IND 1.4.0'!$E$47 -> 420 | K82: 5197.5 | M82: Graphique % Temps partiel hommes / femmes | Y82: Départs | GJ82: 80 | GK82: Picardie | GL82: Centre de Gestion de la Somme
B83: Catégorie B | D83: ='IND 1.1.4'!$C$34+'IND 1.1.4'!$C$38+'IND 1.1.4'!$C$42+'IND 1.1.4'!$C$46+'IND 1.1.4'!$C$50+'IND 1.1.4'!$C$54+'IND 1.1.4'!$C$58+'IND 1.1.4'!$C$62+'IND 1.1.4'!$C$66+'IND 1.1.4'!$C$69+'IND 1.2.4'!$C$33+'IND 1.2.4'!$C$37+'IND 1.2.4'!$C$41+'IND 1.2.4'!$C$45+'IND 1.2.4'!$C$49+'IND 1.2.4'!$C$53+'IND 1.2.4'!$C$57+'IND 1.2.4'!$C$61+'IND 1.2.4'!$C$65+'IND 1.2.4'!$C$68 -> 76.83 | E83: ='IND 1.1.4'!$D$34+'IND 1.1.4'!$D$38+'IND 1.1.4'!$D$42+'IND 1.1.4'!$D$46+'IND 1.1.4'!$D$50+'IND 1.1.4'!$D$54+'IND 1.1.4'!$D$58+'IND 1.1.4'!$D$62+'IND 1.1.4'!$D$66+'IND 1.1.4'!$D$69+'IND 1.2.4'!$D$33+'IND 1.2.4'!$D$37+'IND 1.2.4'!$D$41+'IND 1.2.4'!$D$45+'IND 1.2.4'!$D$49+'IND 1.2.4'!$D$53+'IND 1.2.4'!$D$57+'IND 1.2.4'!$D$61+'IND 1.2.4'!$D$65+'IND 1.2.4'!$D$68 -> 74.86 | F83: =SUM(D83:E83) -> 151.69 | G83: 55 - 59 ans | H83: =57.5*'IND 1.4.0'!$C$48 -> 4772.5 | I83: =57.5*'IND 1.4.0'!$D$48 -> 690 | J83: =57.5*'IND 1.4.0'!$E$48 -> 172.5 | K83: 5462.5 | AA83: Rang | AE83: % - FC +C | AF83: Fonctionnaires | AG83: Contractuels | GJ83: 16 | GK83: Poitou-Charente | GL83: Centre de Gestion de la Charente
B84: Catégorie A | D84: ='IND 1.1.4'!$C$33+'IND 1.1.4'!$C$37+'IND 1.1.4'!$C$41+'IND 1.1.4'!$C$45+'IND 1.1.4'!$C$49+'IND 1.1.4'!$C$53+'IND 1.1.4'!$C$57+'IND 1.1.4'!$C$61+'IND 1.1.4'!$C$65+'IND 1.2.4'!$C$32+'IND 1.2.4'!$C$36+'IND 1.2.4'!$C$40+'IND 1.2.4'!$C$44+'IND 1.2.4'!$C$48+'IND 1.2.4'!$C$52+'IND 1.2.4'!$C$56+'IND 1.2.4'!$C$60+'IND 1.2.4'!$C$64 -> 102.03 | E84: ='IND 1.1.4'!$D$33+'IND 1.1.4'!$D$37+'IND 1.1.4'!$D$41+'IND 1.1.4'!$D$45+'IND 1.1.4'!$D$49+'IND 1.1.4'!$D$53+'IND 1.1.4'!$D$57+'IND 1.1.4'!$D$61+'IND 1.1.4'!$D$65+'IND 1.2.4'!$D$32+'IND 1.2.4'!$D$36+'IND 1.2.4'!$D$40+'IND 1.2.4'!$D$44+'IND 1.2.4'!$D$48+'IND 1.2.4'!$D$52+'IND 1.2.4'!$D$56+'IND 1.2.4'!$D$60+'IND 1.2.4'!$D$64 -> 106.51 | F84: =SUM(D84:E84) -> 208.54 | G84: 60 - 64 ans | H84: =62.5*'IND 1.4.0'!$C$49 -> 3437.5 | I84: =62.5*'IND 1.4.0'!$D$49 -> 312.5 | J84: =62.5*'IND 1.4.0'!$E$49 -> 312.5 | K84: 3750 | N84: Temps plein | O84: Temps partiel | Y84: Départs "temporaires" | Z84: Rémunéré | AB84: Mise à disposition | AE84: =IF($D$69+$D$70>0,(AF84+AG84)/($AF$106+$AG$106),"") -> 0 | GJ84: 17 | GK84: Poitou-Charente | GL84: Centre de Gestion de la Charente Maritime
G85: 65 ans ou plus | H85: =67.5*'IND 1.4.0'!$C$50 -> 405 | I85: =67.5*'IND 1.4.0'!$D$50 -> 0 | J85: =67.5*'IND 1.4.0'!$E$50 -> 67.5 | K85: 405 | M85: Hommes | N85: =IF(('IND 2.3.2'!J93+'IND 2.3.4'!J94)=0,0,('IND 2.3.2'!B93+'IND 2.3.4'!B94)/('IND 2.3.2'!J93+'IND 2.3.4'!J94)) -> 0.99 | O85: =IF(('IND 2.3.2'!J93+'IND 2.3.4'!J94)=0,0,1-N85) -> 0.01 | AB85: Décharge de service | AE85: 0 | GJ85: 79 | GK85: Poitou-Charente | GL85: Centre de Gestion des Deux-Sèvres
F86: =TEXT(F82,"#,00")&" ETPR" -> 249,78 ETPR | G86: TOTAL | H86: =SUM(H75:H85) -> 23737.5 | I86: =SUM(I75:I85) -> 6122.5 | J86: 1917.5 | K86: 29860 | M86: Femmes | N86: =IF(('IND 2.3.2'!K93+'IND 2.3.4'!K94)=0,0,(('IND 2.3.2'!C93+'IND 2.3.4'!C94)/('IND 2.3.2'!K93+'IND 2.3.4'!K94))) -> 0.852398524 | O86: =IF(('IND 2.3.2'!K93+'IND 2.3.4'!K94)=0,0,1-N86) -> 0.147601476 | AB86: Congé spécial | AE86: 0 | AK86: Nbre d'allocataire (fonctionaires) | AL86: =IF('IND 3.1.1-3.3.1 et 3.4.1-3.4.3'!$B$131+'IND 3.1.1-3.3.1 et 3.4.1-3.4.3'!$B$132=0," ", IF('IND 3.1.1-3.3.1 et 3.4.1-3.4.3'!$B$131+'IND 3.1.1-3.3.1 et 3.4.1-3.4.3'!$B$132=1,"En 2022, "&'IND 3.1.1-3.3.1 et 3.4.1-3.4.3'!$B$131+'IND 3.1.1-3.3.1 et 3.4.1-3.4.3'!$B$132&" allocataire a bénéficié de l'indemnisation du chômage (ancien fonctionnaire)", IF('IND 3.1.1-3.3.1 et 3.4.1-3.4.3'!$B$131+'IND 3.1.1-3.3.1 et 3.4.1-3.4.3'!$B$132>1,"En 2022, "&'IND 3.1.1-3.3.1 et 3.4.1-3.4.3'!$B$131+'IND 3.1.1-3.3.1 et 3.4.1-3.4.3'!$B$132&" allocataires ont bénéficié de l'indemnisation du chômage (anciens fonctionnaires)"))) ->  | GJ86: 86 | GK86: Poitou-Charente | GL86: Centre de Gestion de la Vienne
F87: =TEXT(F83,"#,00")&" ETPR" -> 151,69 ETPR | G87: MOYENNE | H87: =$H$86/'IND 1.4.0'!$C$51 -> 48.74229979 | I87: =$I$86/'IND 1.4.0'!$D$51 -> 39.5 | J87: =$J$86/'IND 1.4.0'!$E$51 -> 40.79787234 | K87: =$K$86/('IND 1.4.0'!$C$51+'IND 1.4.0'!$D$51) -> 46.51090343 | Z87: Non rémunéré | AA87: =IF(AE87=0,"",RANK(AE87,$AE$87:$AE$105,0)+COUNTIF($AE$87:AE87,AE87)-1) ->  | AB87: Congé formation indemnisé | AE87: 0 | AF87: ='IND 1.9.4.0'!F23+'IND 1.9.4.0'!J23 -> 0 | AG87: ='IND 1.9.4.0'!F52+'IND 1.9.4.0'!J52 -> 0 | GJ87: 4 | GK87: Provence-Alpes-Côte d'Azur | GL87: Centre de Gestion des Alpes de Haute-Provence
F88: =TEXT(F84,"#,00")&" ETPR" -> 208,54 ETPR | AA88: =IF(AE88=0,"",RANK(AE88,$AE$87:$AE$105,0)+COUNTIF($AE$87:AE88,AE88)-1) ->  | AB88: Congé formation > à un an | AE88: 0 | AF88: ='IND 1.9.4.0'!F24+'IND 1.9.4.0'!J24 -> 0 | AG88: ='IND 1.9.4.0'!F53+'IND 1.9.4.0'!J53 -> 0 | GJ88: 5 | GK88: Provence-Alpes-Côte d'Azur | GL88: Centre de Gestion des Hautes-Alpes
G89: =IF(O29<>"",O29,O31) -> 48.74229979 | AA89: =IF(AE89=0,"",RANK(AE89,$AE$87:$AE$105,0)+COUNTIF($AE$87:AE89,AE89)-1) -> 5 | AB89: Détachement | AE89: 0.02884615385 | AF89: ='IND 1.9.4.0'!F25+'IND 1.9.4.0'!J25 -> 3 | BR89: Répartition des jours de formation | GJ89: 6 | GK89: Provence-Alpes-Côte d'Azur | GL89: Centre de Gestion des Alpes-Maritimes
AA90: =IF(AE90=0,"",RANK(AE90,$AE$87:$AE$105,0)+COUNTIF($AE$87:AE90,AE90)-1) ->  | AB90: Mise en disponibilité | AE90: 0 | AF90: ='IND 1.9.4.0'!F26+'IND 1.9.4.0'!J26 -> 0 | BR90: Catégorie A | BS90: =IF($D$69+$D$70=0, " ",BS97/BS102) -> 0.3655121592 | GJ90: 13 | GK90: Provence-Alpes-Côte d'Azur | GL90: Centre de Gestion des Bouches du Rhône
AA91: =IF(AE91=0,"",RANK(AE91,$AE$87:$AE$105,0)+COUNTIF($AE$87:AE91,AE91)-1) ->  | AB91: Congé parental | AE91: 0 | AF91: ='IND 1.9.4.0'!F29+'IND 1.9.4.0'!J29 -> 0 | AG91: ='IND 1.9.4.0'!F54+'IND 1.9.4.0'!J54 -> 0 | BR91: Catégorie B | BS91: =IF($D$69+$D$70=0, " ",BS98/BS102) -> 0.2358142962 | GJ91: 83 | GK91: Provence-Alpes-Côte d'Azur | GL91: Centre de Gestion du Var
AA92: =IF(AE92=0,"",RANK(AE92,$AE$87:$AE$105,0)+COUNTIF($AE$87:AE92,AE92)-1) ->  | AB92: Congés sans traitement | AE92: 0 | AG92: ='IND 1.9.4.0'!F55+'IND 1.9.4.0'!J55 -> 0 | BJ92: AJOUT RIFSEEP ? | BK92: CIA ? | BL92: HS / HC | BR92: Catégorie C | BS92: =IF($D$69+$D$70=0, " ",BS99/BS102) -> 0.3986735446 | GJ92: 84 | GK92: Provence-Alpes-Côte d'Azur | GL92: Centre de Gestion du Vaucluse
Y93: Départs "définitifs" | AA93: =IF(AE93=0,"",RANK(AE93,$AE$87:$AE$105,0)+COUNTIF($AE$87:AE93,AE93)-1) -> 4 | AB93: Mutation | AE93: 0.05769230769 | AF93: ='IND 1.9.4.0'!F30+'IND 1.9.4.0'!J30 -> 6 | GJ93: 1 | GK93: Rhône-Alpes | GL93: Centre de Gestion de l'Ain
AA94: =IF(AE94=0,"",RANK(AE94,$AE$87:$AE$105,0)+COUNTIF($AE$87:AE94,AE94)-1) ->  | AB94: Fin de détachement | AE94: 0 | AF94: ='IND 1.9.4.0'!F31+'IND 1.9.4.0'!J31 -> 0 | GJ94: 7 | GK94: Rhône-Alpes | GL94: Centre de Gestion de l'Ardèche
AA95: =IF(AE95=0,"",RANK(AE95,$AE$87:$AE$105,0)+COUNTIF($AE$87:AE95,AE95)-1) ->  | AB95: Décharge d'emploi et de fonction | AE95: 0 | AF95: ='IND 1.9.4.0'!F32+'IND 1.9.4.0'!J32 -> 0 | BR95: Nombre de jours de formation | GJ95: 26 | GK95: Rhône-Alpes | GL95: Centre de Gestion de la Drôme
AA96: =IF(AE96=0,"",RANK(AE96,$AE$87:$AE$105,0)+COUNTIF($AE$87:AE96,AE96)-1) ->  | AB96: Agent pris en charge par le CNFPT ou le CDG | AE96: 0 | AF96: ='IND 1.9.4.0'!F33+'IND 1.9.4.0'!J33 -> 0 | BJ96: Agent sur emploi permanent ayant participé à au moins une formation | BR96: Emploi permanent | GJ96: 38 | GK96: Rhône-Alpes | GL96: Centre de Gestion de l'Isère
AA97: =IF(AE97=0,"",RANK(AE97,$AE$87:$AE$105,0)+COUNTIF($AE$87:AE97,AE97)-1) -> 2 | AB97: Démission | AE97: 0.1923076923 | AF97: ='IND 1.9.4.0'!F34+'IND 1.9.4.0'!J34 -> 1 | AG97: ='IND 1.9.4.0'!F56+'IND 1.9.4.0'!J56 -> 19 | BQ97: Catégorie A | BS97: =IF($D$69+$D$70=0,0,('IND 5.1.1'!$F$35+'IND 5.1.1'!$F$69)) -> 496 | GJ97: 42 | GK97: Rhône-Alpes | GL97: Centre de Gestion de la Loire
AA98: =IF(AE98=0,"",RANK(AE98,$AE$87:$AE$105,0)+COUNTIF($AE$87:AE98,AE98)-1) -> 1 | AB98: Fin de contrats remplacants | AE98: 0.5 | AG98: =IF('IND 1.9.4.0'!F57=0,'IND 1.9.4.0'!F58,'IND 1.9.4.0'!F57)+IF('IND 1.9.4.0'!J57=0,'IND 1.9.4.0'!J58,'IND 1.9.4.0'!J57) -> 52 | BK98: Fonctionnaires | BL98: Contractuels | BQ98: Catégorie B | BS98: =IF($D$69+$D$70=0,0,('IND 5.1.1'!$F$43+'IND 5.1.1'!$F$77)) -> 320 | GJ98: 69 | GK98: Rhône-Alpes | GL98: Centre de Gestion du Rhône
AA99: =IF(AE99=0,"",RANK(AE99,$AE$87:$AE$105,0)+COUNTIF($AE$87:AE99,AE99)-1) ->  | BJ99: Catégorie A | BK99: =IF($D$69=0," ",IF(('IND 5.1.1'!$B$12+'IND 5.1.1'!$C$12)/SUMIF(GW2:GW60,"A",GY2:GY60)>100%,100%,('IND 5.1.1'!$B$12+'IND 5.1.1'!$C$12)/SUMIF(GW2:GW60,"A",GY2:GY60))) -> 0.6477987421 | BL99: =IF($D$70=0," ",IF(('IND 5.1.1'!$D$12+'IND 5.1.1'!$E$12)/SUMIF(GW2:GW60,"A",GZ2:GZ60)>100%,100%,('IND 5.1.1'!$D$12+'IND 5.1.1'!$E$12)/SUMIF(GW2:GW60,"A",GZ2:GZ60))) -> 0.679245283 | BQ99: Catégorie C | BS99: =IF($D$69+$D$70=0,0,('IND 5.1.1'!$F$51+'IND 5.1.1'!$F$85)) -> 541 | GJ99: 73 | GK99: Rhône-Alpes | GL99: Centre de Gestion de la Savoie
AA100: =IF(AE100=0,"",RANK(AE100,$AE$87:$AE$105,0)+COUNTIF($AE$87:AE100,AE100)-1) -> 3 | AB100: Départ à la retraite | AE100: =IF($D$69+$D$70>0,(AF100+AG100)/($AF$106+$AG$106),"") -> 0.1634615385 | AF100: ='IND 1.9.4.0'!F35+'IND 1.9.4.0'!J35 -> 17 | AG100: ='IND 1.9.4.0'!F59+'IND 1.9.4.0'!J59 -> 0 | BJ100: Catégorie B | BK100: =IF($D$69=0," ",IF(('IND 5.1.1'!$B$13+'IND 5.1.1'!$C$13)/SUMIF(GW2:GW60,"B",GY2:GY60)>100%,100%,('IND 5.1.1'!$B$13+'IND 5.1.1'!$C$13)/SUMIF(GW2:GW60,"B",GY2:GY60))) -> 0.7826086957 | BL100: =IF($D$70=0," ",IF(('IND 5.1.1'!$D$13+'IND 5.1.1'!$E$13)/SUMIF(GW2:GW60,"B",GZ2:GZ60)>100%,100%,('IND 5.1.1'!$D$13+'IND 5.1.1'!$E$13)/SUMIF(GW2:GW60,"B",GZ2:GZ60))) -> 0.3846153846 | BQ100: Total jours format° hors hors catégorie | BS100: =SUM(BS97:BS99) -> 1357 | GJ100: 74 | GK100: Rhône-Alpes | GL100: Centre de Gestion de la Haute-Savoie
AA101: =IF(AE101=0,"",RANK(AE101,$AE$87:$AE$105,0)+COUNTIF($AE$87:AE101,AE101)-1) -> 8 | AB101: Licenciement | AE101: 0.009615384615 | AF101: ='IND 1.9.4.0'!F36+'IND 1.9.4.0'!J36 -> 0 | AG101: ='IND 1.9.4.0'!F60+'IND 1.9.4.0'!J60 -> 1 | BJ101: Catégorie C | BK101: =IF($D$69=0," ",IF(('IND 5.1.1'!$B$14+'IND 5.1.1'!$C$14)/SUMIF(GW2:GW60,"c",GY2:GY60)>100%,100%,('IND 5.1.1'!$B$14+'IND 5.1.1'!$C$14)/SUMIF(GW2:GW60,"c",GY2:GY60))) -> 0.7089201878 | BL101: =IF($D$70=0," ",IF(('IND 5.1.1'!$D$14+'IND 5.1.1'!$E$14)/SUMIF(GW2:GW60,"C",GZ2:GZ60)>100%,100%,('IND 5.1.1'!$D$14+'IND 5.1.1'!$E$14)/SUMIF(GW2:GW60,"C",GZ2:GZ60))) -> 0.4594594595 | GJ101: 971 | GK101: Guadeloupe | GL101: Centre de Gestion de la Guadeloupe
M102: 1.4.1 Nombre d'agents originaires de la collectivité | AA102: =IF(AE102=0,"",RANK(AE102,$AE$87:$AE$105,0)+COUNTIF($AE$87:AE102,AE102)-1) ->  | AB102: Décès | AE102: 0 | AF102: ='IND 1.9.4.0'!F37+'IND 1.9.4.0'!J37 -> 0 | AG102: ='IND 1.9.4.0'!F61+'IND 1.9.4.0'!J61 -> 0 | BJ102: Total | BK102: =IF((D69+D70)=0,"",'IND 5.1.1'!$F$15/(D69+D70)) -> 0.6573208723 | BQ102: Total toutes catégories | BS102: =('IND 5.1.1'!$F$55+'IND 5.1.1'!$F$89) -> 1357 | GJ102: 972 | GK102: Martinique | GL102: Centre dee Gestion de la Martinique
N103: 1 | O103: 2 | P103: 0 | Q103: sexe | AA103: =IF(AE103=0,"",RANK(AE103,$AE$87:$AE$105,0)+COUNTIF($AE$87:AE103,AE103)-1) -> 7 | AB103: Autres cas | AE103: 0.01923076923 | AF103: ='IND 1.9.4.0'!F41+'IND 1.9.4.0'!J41 -> 1 | AG103: ='IND 1.9.4.0'!F65+'IND 1.9.4.0'!J65 -> 1 | GJ103: 973 | GK103: Guyane | GL103: Centre de Gestion de la Guyane
M104: au 31/12/2021 | N104: Hommes | O104: Femmes | P104: Total | Q104: position1 | T104: 7 lignes | AA104: =IF(AE104=0,"",RANK(AE104,$AE$87:$AE$105,0)+COUNTIF($AE$87:AE104,AE104)-1) -> 6 | AB104: Transfert de compétence | AE104: 0.02884615385 | AF104: ='IND 1.9.4.0'!F38+'IND 1.9.4.0'!J38 -> 3 | AG104: ='IND 1.9.4.0'!F62+'IND 1.9.4.0'!J62 -> 0 | BJ104: VAE | GJ104: 974 | GK104: Réunion | GL104: Centre de Gestion de la Réunion
M105: En congé parental (article 75) Fonctionnaires et contractuels | Q105: 10 | T105: 3 | U105: =IF(SUM('IND 1.4.1-1.4.2-1.4.4'!$B$10:$C$10)=0,"",IF(SUM('IND 1.4.1-1.4.2-1.4.4'!$B$10:$C$10)=1,"> Un agent en congés parental"&CHAR(10),"> "&SUM('IND 1.4.1-1.4.2-1.4.4'!$B$10:$C$10)&" agents en congés parental"&CHAR(10))) -> > 2 agents en congés parental | AA105: =IF(AE105=0,"",RANK(AE105,$AE$87:$AE$105,0)+COUNTIF($AE$87:AE105,AE105)-1) ->  | AB105: Rupture conventionnelle | AE105: 0 | AF105: ='IND 1.9.4.0'!F39+'IND 1.9.4.0'!J39 -> 0 | AG105: ='IND 1.9.4.0'!F64+'IND 1.9.4.0'!J64 -> 0 | GJ105: 976 | GK105: Mayotte | GL105: Centre de Gestion de Mayotte
M106: En disponibilité (article 72) hors ceux mis en disponibilité d'office ou bénéficiaires d'un congé équivalent pour les contractuels Fonctionnaires et contractuels | Q106: 20 | T106: 4 | U106: =IF(SUM('IND 1.4.1-1.4.2-1.4.4'!$B$11:$C$11)=0,"",IF(SUM('IND 1.4.1-1.4.2-1.4.4'!$B$11:$C$11)=1,"> Un agent en disponibilité"&CHAR(10),"> "&SUM('IND 1.4.1-1.4.2-1.4.4'!$B$11:$C$11)&" agents en disponibilité"&CHAR(10))) -> > 28 agents en disponibilité | AB106: Totaux | AF106: =SUM(AF86:AF105) -> 31 | AG106: =SUM(AG86:AG105) -> 73 | BR106: Répartition des jours de formations
AB107: Légende | AC107: 3 | AD107: Départs fonctionnaire | BL107: Coûts de formation | BQ107: CNFPT | BS107: =IF(BS102=0,"",('IND 5.1.1'!$B$55+'IND 5.1.1'!$C$55+'IND 5.1.1'!$B$89+'IND 5.1.1'!$C$89)/('IND 5.1.1'!$F$55+'IND 5.1.1'!$F$89)) -> 0.2129697863
M108: En disponibilité d'office ou bénéficiaires d'un congé équivalent Fonctionnaires et contractuels | P108: =N108+O108 -> 0 | Q108: 22 | T108: 8 | U108: =IF(SUM('IND 1.4.1-1.4.2-1.4.4'!$B$13:$C$15)=0,"",IF(SUM('IND 1.4.1-1.4.2-1.4.4'!$B$13:$C$15)=1,"> Un agent dans une autre situation (disponibilité d'office, congés spécial ou hors cadre)"&CHAR(10),"> "&SUM(SUM('IND 1.4.1-1.4.2-1.4.4'!$B$13:$C$15))&" agents dans d'autres situations (disponibilité d'office, congés spécial et hors cadre)"&CHAR(10))) ->  | AB108: Légende | AC108: 4 | AD108: Départs de contractuels | BK108: CNFPT | BM108: ='IND 5.1.4'!$D$11+'IND 5.1.4'!$D$12 -> 177951.9 | BQ108: Autres organismes | BS108: =IF(BS102=0,"",('IND 5.1.1'!$E$55+'IND 5.1.1'!$E$89)/('IND 5.1.1'!$F$55+'IND 5.1.1'!$F$89)) -> 0.7030213707
M109: En position hors cadres (article 70) Fonctionnaires uniquement | P109: 0 | Q109: 79 | BK109: Autres organismes | BM109: ='IND 5.1.4'!$D$13 -> 154445 | BQ109: Interne | BS109: =IF(BS102=0,"",('IND 5.1.1'!$D$55+'IND 5.1.1'!$D$89)/('IND 5.1.1'!$F$55+'IND 5.1.1'!$F$89)) -> 0.08400884304
M110: En congé spécial (article 99) Fonctionnaires uniquement | P110: 0 | Q110: 80 | Y110: 1.5.4 | Z110: Nomimation stagiaire au sein de la collectivité (Contractuel permanent) | AG110: ='IND 1.9.5 - 1.9.6.1'!B17+'IND 1.9.5 - 1.9.6.1'!C17 -> 16 | BK110: Frais | BM110: ='IND 5.1.4'!$D$14 -> 9988
Z111: Nomimation stagiaire au sein de la collectivité (Contractuel non permanent) | AG111: ='IND 1.9.5 - 1.9.6.1'!B18+'IND 1.9.5 - 1.9.6.1'!C18 -> 0 | BK111: Coût de la formation des apprentis | BM111: ='IND 5.1.4'!D15 -> 33531
M112: Détachés dans une autre structure (article 64) Fonctionnaires uniquement : | N112: Hommes | O112: Femmes | P112: Total | T112: 7 | U112: =IF(SUM('IND 1.4.1-1.4.2-1.4.4'!$B$18:$C$22)=0,"",IF(SUM('IND 1.4.1-1.4.2-1.4.4'!$B$18:$C$22)=1,"> Un agent détaché dans une autre structure"&CHAR(10),"> "&SUM('IND 1.4.1-1.4.2-1.4.4'!$B$18:$C$22)&" agents détachés dans une autre structure"&CHAR(10))) -> > 12 agents détachés dans une autre structure | BK112: total max | BM112: =SUM(BM108:BM111) -> 375915.9
M113: Fonction publique d'Etat | P113: =N113+O113 -> 0 | Q113: 41 | Y113: Arrivées hors conctractuels déjà présents
M114: Fonction publique hospitalière | P114: =N114+O114 -> 0 | Q114: 42 | AA114: Rang | AE114: % FC + C | AF114: Fonctionnaires | AG114: Contractuels | BJ114: Rang
M115: Autre collectivité | P115: =N115+O115 -> 0 | Q115: 43 | Y115: Arrivée de fonctionnaires hors contractuels permanents déjà présents | Z115: agents non rémunérés | AA115: =IF(AE115=0,"",RANK(AE115,$AE$115:$AE$124,0)+COUNTIF($AE$115:AE115,AE115)-1) ->  | AB115: Recrutement direct | AE115: =(AF115+AG115)/($AF$126+$AG$126) -> 0 | AF115: ='IND 1.9.2'!B96+'IND 1.9.2'!F96 -> 0 | BJ115: =IF(BL115=0,"",RANK(BL115,$BL$114:$BL$125,0)+COUNTIF(BL$114:BL115,BL115)-1) ->  | BK115: Probité, intégrité (détournement, conservation de fonds, malversation, vol, dégradation, dettes, chèque sans provision) | BL115: ='IND 8.1.1'!B48+'IND 8.1.1'!C48 -> 0 | BM115: =BL115/SUM($BL$115:$BL$125) -> 0
M116: Autres structures* | P116: =N116+O116 -> 0 | Q116: 44 | AA116: =IF(AE116=0,"",RANK(AE116,$AE$115:$AE$124,0)+COUNTIF($AE$115:AE116,AE116)-1) ->  | AB116: Voie de concours, sélection professionnelle | AE116: =(AF116+AG116)/($AF$126+$AG$126) -> 0 | AF116: ='IND 1.9.2'!H96+'IND 1.9.2'!J96 -> 0 | BJ116: =IF(BL116=0,"",RANK(BL116,$BL$114:$BL$125,0)+COUNTIF(BL$114:BL116,BL116)-1) -> 1 | BK116: Qualité de service (manquement aux sujétions du service, négligence, désobéissance hiérarchique, absence irrégulière, abandon de poste) | BL116: ='IND 8.1.1'!B49+'IND 8.1.1'!C49 -> 4 | BM116: =BL116/SUM($BL$115:$BL$125) -> 1
AA117: =IF(AE117=0,"",RANK(AE117,$AE$115:$AE$124,0)+COUNTIF($AE$115:AE117,AE117)-1) ->  | BJ117: =IF(BL117=0,"",RANK(BL117,$BL$114:$BL$125,0)+COUNTIF(BL$114:BL117,BL117)-1) ->  | BK117: Atteinte à la discrétion professionnelle, au secret professionnel, au secret des correspondances, à la vie privée, à la liberté individuelle | BL117: ='IND 8.1.1'!B50+'IND 8.1.1'!C50 -> 0 | BM117: 0
M118: *Par exemple : fonction publique d'un Etat de l'Union européenne (FPEUE). | AA118: =IF(AE118=0,"",RANK(AE118,$AE$115:$AE$124,0)+COUNTIF($AE$115:AE118,AE118)-1) -> 5 | AB118: Intégration directe | AE118: =(AF118+AG118)/($AF$126+$AG$126) -> 0.04 | AF118: ='IND 1.9.2'!M96 -> 3 | BJ118: =IF(BL118=0,"",RANK(BL118,$BL$114:$BL$125,0)+COUNTIF(BL$114:BL118,BL118)-1) ->  | BK118: Incorrections, violences, insultes, harcèlement moral | BL118: ='IND 8.1.1'!B51+'IND 8.1.1'!C51 -> 0 | BM118: 0
AA119: =IF(AE119=0,"",RANK(AE119,$AE$115:$AE$124,0)+COUNTIF($AE$115:AE119,AE119)-1) -> 2 | AB119: Voie de mutation | AE119: 0.2266666667 | AF119: ='IND 1.9.2'!N96 -> 17 | BJ119: =IF(BL119=0,"",RANK(BL119,$BL$114:$BL$125,0)+COUNTIF(BL$114:BL119,BL119)-1) ->  | BK119: Ivresse | BL119: ='IND 8.1.1'!B52+'IND 8.1.1'!C52 -> 0 | BM119: 0
M120: Détachés au sein de leur propre collectivité : Fonctionnaires uniquement | N120: Hommes | O120: Femmes | P120: Total | T120: 6 | U120: =IF(SUM('IND 1.4.1-1.4.2-1.4.4'!$B$26:$C$28)=0,"",IF(SUM('IND 1.4.1-1.4.2-1.4.4'!$B$26:$C$28)=1,"> Un agent détaché au sein de la collectivité"&CHAR(10),"> "&SUM('IND 1.4.1-1.4.2-1.4.4'!$B$26:$C$28)&" agents détachés au sein de la collectivité"&CHAR(10))) -> > 6 agents détachés au sein de la collectivité | AA120: =IF(AE120=0,"",RANK(AE120,$AE$115:$AE$124,0)+COUNTIF($AE$115:AE120,AE120)-1) -> 6 | AB120: Voie de détachement | AE120: 0.01333333333 | AF120: =SUM('IND 1.9.2'!O96:R96) -> 1 | BJ120: =IF(BL120=0,"",RANK(BL120,$BL$114:$BL$125,0)+COUNTIF(BL$114:BL120,BL120)-1) ->  | BK120: Mœurs (dont harcèlement sexuel) | BL120: ='IND 8.1.1'!B53+'IND 8.1.1'!C53 -> 0 | BM120: 0
M121: Détachés sur un emploi fonctionnel dans leur collectivité | P121: =N121+O121 -> 0 | Q121: 51 | AA121: =IF(AE121=0,"",RANK(AE121,$AE$115:$AE$124,0)+COUNTIF($AE$115:AE121,AE121)-1) ->  | AB121: Transfert de compétence | AE121: 0 | AF121: ='IND 1.9.2'!S96 -> 0 | BJ121: =IF(BL121=0,"",RANK(BL121,$BL$114:$BL$125,0)+COUNTIF(BL$114:BL121,BL121)-1) ->  | BK121: Manquement à l'obligation de laïcité, atteinte au principe de neutralité, discrimination, manquement à l'obligation de réserve | BL121: ='IND 8.1.1'!B54+'IND 8.1.1'!C54 -> 0 | BM121: 0
M122: Détachés sur un emploi de cabinet dans leur collectivité | P122: =N122+O122 -> 0 | Q122: 52 | AA122: =IF(AE122=0,"",RANK(AE122,$AE$115:$AE$124,0)+COUNTIF($AE$115:AE122,AE122)-1) -> 3 | AB122: Réintégration et retour | AE122: 0.05333333333 | AF122: ='IND 1.9.2'!T96+'IND 1.9.2'!U96 -> 2 | AG122: ='IND 1.9.3'!F13 -> 2 | BJ122: =IF(BL122=0,"",RANK(BL122,$BL$114:$BL$125,0)+COUNTIF(BL$114:BL122,BL122)-1) ->  | BK122: Conflit d'intérêt, trafic d'influence, prise illégale d'intérêts | BL122: ='IND 8.1.1'!B55+'IND 8.1.1'!C55 -> 0 | BM122: 0
M123: Changement de filière | P123: =N123+O123 -> 0 | Q123: 53 | AA123: =IF(AE123=0,"",RANK(AE123,$AE$115:$AE$124,0)+COUNTIF($AE$115:AE123,AE123)-1) -> 1 | AB123: Arrivées de contractuels | AE123: 0.6133333333 | AG123: ='IND 1.9.3'!F101 -> 46 | BJ123: =IF(BL123=0,"",RANK(BL123,$BL$114:$BL$125,0)+COUNTIF(BL$114:BL123,BL123)-1) ->  | BK123: Exercice d'une activité privée rémunérée sans autorisation | BL123: ='IND 8.1.1'!B56+'IND 8.1.1'!C56 -> 0 | BM123: 0
AA124: =IF(AE124=0,"",RANK(AE124,$AE$115:$AE$124,0)+COUNTIF($AE$115:AE124,AE124)-1) -> 4 | AB124: Remplacements (contractuels) | AE124: 0.05333333333 | AG124: ='IND 1.9.3'!F12 -> 4 | BJ124: =IF(BL124=0,"",RANK(BL124,$BL$114:$BL$125,0)+COUNTIF(BL$114:BL124,BL124)-1) ->  | BK124: Comportement privé affectant le renom du service, condamnation pénale (pour manquements non mentionnés dans les colonnes précédentes) | BL124: ='IND 8.1.1'!B57+'IND 8.1.1'!C57 -> 0 | BM124: 0
M125: Mis à disposition dans une autre structure (articles 61 et 136) Fonctionnaires et contractuels | N125: Hommes | O125: Femmes | P125: Total | Z125: agents rémunérés | AB125: Retours d'agents en positions particulières ayant été rémunérés pendant la période d'absence | AE125: 0 | AF125: ='IND 1.9.2'!V96 -> 0 | AG125: ='IND 1.9.3'!F14 -> 0 | BJ125: =IF(BL125=0,"",RANK(BL125,$BL$114:$BL$125,0)+COUNTIF(BL$114:BL125,BL125)-1) ->  | BK125: Autres | BL125: ='IND 8.1.1'!B58+'IND 8.1.1'!C58 -> 0 | BM125: 0
M126: Ensemble | P126: =N126+O126 -> 0 | Q126: 70 | T126: 2 | U126: =IF(SUM('IND 1.4.1-1.4.2-1.4.4'!$B$31:$C$31)=0,"",IF(SUM('IND 1.4.1-1.4.2-1.4.4'!$B$31:$C$31)=1,"> Un agent mis à disposition dans une autre structure"&CHAR(10),"> "&SUM('IND 1.4.1-1.4.2-1.4.4'!$B$31:$C$31)&" agents mis à disposition dans une autre structure"&CHAR(10))) -> > 7 agents mis à disposition dans une autre structure | AB126: Totaux | AF126: =SUM(AF115:AF124) -> 23 | AG126: =SUM(AG115:AG124) -> 52
M127: dont mis à disposition d'une organisation syndicale | P127: =N127+O127 -> 0 | Q127: 71
Y128: 1.5.2 | AA128: 5 | AB128: recrutement direct | AF128: ='IND 1.9.2'!D96 -> 12
AB129: lauréat concours | AF129: ='IND 1.9.2'!I96 -> 4
AB130: Article 38 | AF130: ='IND 1.9.2'!K96+'IND 1.9.2'!L96 -> 0
M131: 1.4.2 Nombre d'agents originaires d'une autre structure
AB132: Légende | AC132: 1 | AD132: Arrivées fonctionnaire
M133: au 31/12/2021 | N133: Emploi non fonctionnel | P133: Emploi fonctionnel | R133: Emploi de cabinet | AB133: Légende | AC133: 2 | AD133: Arrivées de contractuels
N134: Hommes | O134: Femmes | P134: Hommes | Q134: Femmes | R134: Hommes | S134: Femmes | T134: 5 | U134: =IF(SUM(synthese!Valeur_142)=0,"",IF(SUM(synthese!Valeur_142)=1,"> Un agent détaché dans la collectivité et originaire d'une autre structure"&CHAR(10),"> "&SUM(synthese!Valeur_142)&" agents détachés dans la collectivité et originaires d'une autre structure"&CHAR(10))) -> > 2 agents détachés dans la collectivité et originaires d'une autre structure
M135: Détachés dans votre collectivité et issus de :
M136: Fonction publique d'Etat
M137: Fonction publique hospitalière
M138: Autre collectivité | Z138: Effectif 31/12/N-1 | AA138: Arrivée | AC138: Contractuels nommés stagiaires | AE138: Départ | AG138: Effectif 31/12/N | AH138: Variation
M139: Autres structures*
N140: 1 | O140: 2 | P140: 1 | Q140: 2 | R140: 1 | S140: 2 | X140: Emploi permanent | Z140: =AG140+AE140-AA140 -> 671 | AA140: =SUM(AF115:AG124) -> 75 | AC140: - | AE140: =SUM(AF87:AG105) -> 104 | AG140: =D69+D70 -> 642 | AH140: =IF(AND(Z140=0,AG140=0),"",IF(AND(Z140=0,AG140<>0),IF(AG140<2,"1 agent",AG140 & " agents"),(AG140-Z140)/Z140)) -> -0.04321907601
M141: *par exemple : fonction publique d'un Etat de l'Union européenne (FPEUE).
X142: Fonctionnaire | Z142: =AG142+AE142-AC142-AA142 -> 479 | AA142: =SUM(AF115:AF124) -> 23 | AC142: =SUM(AF128:AF130) -> 16 | AE142: =SUM(AF87:AF105) -> 31 | AG142: =D69 -> 487 | AH142: =IF(AND(Z142=0,AG142=0),"",IF(AND(Z142=0,AG142<>0),IF(AG142<2,"1 agent",AG142 & " agents"),(AG142-Z142)/Z142)) -> 0.01670146138
M143: 1.4.3 Nombre d'agents originaires d'une autre structure mis à disposition (*)
N144: 1 | O144: 1 | P144: 2 | Q144: 2 | R144: statut1 | X144: Contractuels | Z144: =AG144+AC144+AE144-AA144 -> 192 | AA144: =SUM(AG115:AG124) -> 52 | AC144: =SUM(AF128:AF130) -> 16 | AE144: =SUM(AG87:AG105) -> 73 | AG144: =D70 -> 155 | AH144: =IF(AND(Z144=0,AG144=0),"",IF(AND(Z144=0,AG144<>0),IF(AG144<2,"1 agent",AG144 & " agents"),(AG144-Z144)/Z144)) -> -0.1927083333
M145: au 31/12/2021 | N145: Fonctionnaires | P145: Contractuels sur emploi permanent | R145: position3 | AI145: Rémunération
N146: Hommes | O146: Femmes | P146: Hommes | Q146: Femmes | AK146: Catégorie A | AO146: Catégorie B | AR146: Catégorie C
M147: Mis à disposition de votre collectivité | R147: 1 | T147: 1 | U147: =IF(SUM('IND 1.4.1-1.4.2-1.4.4'!$B$52:$E$52)=0,"",IF(SUM('IND 1.4.1-1.4.2-1.4.4'!$B$52:$E$52)=1,"> Un agent mis à disposition dans la collectivité"&CHAR(10),"> "&SUM('IND 1.4.1-1.4.2-1.4.4'!$B$52:$E$52)&" agents mis à disposition dans la collectivité"&CHAR(10))) ->  | AK147: Titulaire | AN147: Contractuel | AO147: Titulaire | AP147: Contractuel | AR147: Titulaire | AT147: Contractuel
M148: dont originaire de la fonction publique d'Etat | R148: 2 | AI148: Administrative | AK148: =SUM('IND 3.1.1-3.3.1 et 3.4.1-3.4.3'!$B$20:$C$20) -> 3380923 | AN148: =SUM('IND 3.1.1-3.3.1 et 3.4.1-3.4.3'!$B$68:$C$68) -> 1567481 | AO148: =SUM('IND 3.1.1-3.3.1 et 3.4.1-3.4.3'!$B$21:$C$21) -> 1225653 | AP148: =SUM('IND 3.1.1-3.3.1 et 3.4.1-3.4.3'!$B$69:$C$69) -> 138147 | AR148: =SUM('IND 3.1.1-3.3.1 et 3.4.1-3.4.3'!$B$22:$C$22) -> 1968826 | AT148: =SUM('IND 3.1.1-3.3.1 et 3.4.1-3.4.3'!$B$70:$C$70) -> 48267
N149: 1 | O149: 2 | P149: 1 | Q149: 2 | R149: sexe | AI149: Technique | AK149: =SUM('IND 3.1.1-3.3.1 et 3.4.1-3.4.3'!$B$24:$C$24) -> 2501146 | AN149: =SUM('IND 3.1.1-3.3.1 et 3.4.1-3.4.3'!$B$72:$C$72) -> 646869 | AO149: =SUM('IND 3.1.1-3.3.1 et 3.4.1-3.4.3'!$B$25:$C$25) -> 870104 | AP149: =SUM('IND 3.1.1-3.3.1 et 3.4.1-3.4.3'!$B$73:$C$73) -> 315947 | AR149: =SUM('IND 3.1.1-3.3.1 et 3.4.1-3.4.3'!$B$26:$C$26) -> 5007723 | AT149: =SUM('IND 3.1.1-3.3.1 et 3.4.1-3.4.3'!$B$74:$C$74) -> 872248
M150: (*) Décret n° 2008-580 du 18 juin 2008 relatif au régime de la mise à disposition applicable aux collectivités territoriales et aux établissements publics administratifs locaux. | AI150: Culturelle | AK150: =SUM('IND 3.1.1-3.3.1 et 3.4.1-3.4.3'!$B$28:$C$28) -> 2239959 | AN150: =SUM('IND 3.1.1-3.3.1 et 3.4.1-3.4.3'!$B$76:$C$76) -> 299115 | AO150: =SUM('IND 3.1.1-3.3.1 et 3.4.1-3.4.3'!$B$29:$C$29) -> 543690 | AP150: =SUM('IND 3.1.1-3.3.1 et 3.4.1-3.4.3'!$B$77:$C$77) -> 451822 | AR150: =SUM('IND 3.1.1-3.3.1 et 3.4.1-3.4.3'!$B$30:$C$30) -> 81198 | AT150: =SUM('IND 3.1.1-3.3.1 et 3.4.1-3.4.3'!$B$78:$C$78) -> 0
AI151: Sportive | AK151: =SUM('IND 3.1.1-3.3.1 et 3.4.1-3.4.3'!$B$32:$C$32) -> 147110 | AN151: =SUM('IND 3.1.1-3.3.1 et 3.4.1-3.4.3'!$B$80:$C$80) -> 0 | AO151: =SUM('IND 3.1.1-3.3.1 et 3.4.1-3.4.3'!$B$33:$C$33) -> 1382567 | AP151: =SUM('IND 3.1.1-3.3.1 et 3.4.1-3.4.3'!$B$81:$C$81) -> 428133 | AR151: =SUM('IND 3.1.1-3.3.1 et 3.4.1-3.4.3'!$B$34:$C$34) -> 0 | AT151: =SUM('IND 3.1.1-3.3.1 et 3.4.1-3.4.3'!$B$82:$C$82) -> 0
M152: 1.4.4 Fonctionnaires pris en charge par le CDG ou le CNFPT (articles 53 et 97) | AI152: Médico-sociale | AK152: =SUM('IND 3.1.1-3.3.1 et 3.4.1-3.4.3'!$B$36:$C$36)+SUM('IND 3.1.1-3.3.1 et 3.4.1-3.4.3'!$B40:$C$40)+SUM('IND 3.1.1-3.3.1 et 3.4.1-3.4.3'!$B$44:$C$44) -> 50736 | AN152: =SUM('IND 3.1.1-3.3.1 et 3.4.1-3.4.3'!$B$84:$C$84)+SUM('IND 3.1.1-3.3.1 et 3.4.1-3.4.3'!$B88:$C$88)+SUM('IND 3.1.1-3.3.1 et 3.4.1-3.4.3'!$B$92:$C$92) -> 33933 | AO152: =SUM('IND 3.1.1-3.3.1 et 3.4.1-3.4.3'!$B$37:$C$37)+SUM('IND 3.1.1-3.3.1 et 3.4.1-3.4.3'!$B41:$C$41)+SUM('IND 3.1.1-3.3.1 et 3.4.1-3.4.3'!$B$45:$C$45) -> 0 | AP152: =SUM('IND 3.1.1-3.3.1 et 3.4.1-3.4.3'!$B$85:$C$85)+SUM('IND 3.1.1-3.3.1 et 3.4.1-3.4.3'!$B89:$C$89)+SUM('IND 3.1.1-3.3.1 et 3.4.1-3.4.3'!$B$93:$C$93) -> 0 | AR152: =SUM('IND 3.1.1-3.3.1 et 3.4.1-3.4.3'!$B$38:$C$38)+SUM('IND 3.1.1-3.3.1 et 3.4.1-3.4.3'!$B42:$C$42)+SUM('IND 3.1.1-3.3.1 et 3.4.1-3.4.3'!$B$46:$C$46) -> 0 | AT152: =SUM('IND 3.1.1-3.3.1 et 3.4.1-3.4.3'!$B$86:$C$86)+SUM('IND 3.1.1-3.3.1 et 3.4.1-3.4.3'!$B90:$C$90)+SUM('IND 3.1.1-3.3.1 et 3.4.1-3.4.3'!$B$94:$C$94) -> 0
AI153: Police | AK153: =SUM('IND 3.1.1-3.3.1 et 3.4.1-3.4.3'!$B$48:$C$48) -> 0 | AN153: =SUM('IND 3.1.1-3.3.1 et 3.4.1-3.4.3'!$B$96:$C$96) -> 0 | AO153: =SUM('IND 3.1.1-3.3.1 et 3.4.1-3.4.3'!$B$49:$C$49) -> 0 | AP153: =SUM('IND 3.1.1-3.3.1 et 3.4.1-3.4.3'!$B$97:$C$97) -> 0 | AR153: =SUM('IND 3.1.1-3.3.1 et 3.4.1-3.4.3'!$B$50:$C$50) -> 0 | AT153: =SUM('IND 3.1.1-3.3.1 et 3.4.1-3.4.3'!$B$98:$C$98) -> 0
M154: Remarque : seuls le CNFPT et les CDG doivent renseigner cet indicateur | AI154: Incendie | AK154: =SUM('IND 3.1.1-3.3.1 et 3.4.1-3.4.3'!$B$52:$C$52) -> 0 | AN154: =SUM('IND 3.1.1-3.3.1 et 3.4.1-3.4.3'!$B$100:$C$100) -> 0 | AO154: =SUM('IND 3.1.1-3.3.1 et 3.4.1-3.4.3'!$B$53:$C$53) -> 0 | AP154: =SUM('IND 3.1.1-3.3.1 et 3.4.1-3.4.3'!$B$101:$C$101) -> 0 | AR154: =SUM('IND 3.1.1-3.3.1 et 3.4.1-3.4.3'!$B$54:$C$54) -> 0 | AT154: =SUM('IND 3.1.1-3.3.1 et 3.4.1-3.4.3'!$B$102:$C$102) -> 0
N155: 1 | O155: 2 | P155: 0 | Q155: sexe | AI155: Animation | AO155: =SUM('IND 3.1.1-3.3.1 et 3.4.1-3.4.3'!$B$56:$C$56) -> 0 | AP155: =SUM('IND 3.1.1-3.3.1 et 3.4.1-3.4.3'!$B$104:$C$104) -> 0 | AR155: =SUM('IND 3.1.1-3.3.1 et 3.4.1-3.4.3'!$B$57:$C$57) -> 0 | AT155: =SUM('IND 3.1.1-3.3.1 et 3.4.1-3.4.3'!$B$105:$C$105) -> 0
M156: au 31/12/2021 | N156: Hommes | O156: Femmes | P156: Total | Q156: position4 | AI156: total | AK156: =SUM(AK148:AL155) -> 8319874 | AN156: =SUM(AN148:AN155) -> 2547398 | AO156: =SUM(AO148:AO155) -> 4022014 | AP156: =SUM(AP148:AQ155) -> 1334049 | AR156: =SUM(AR148:AR155) -> 7057747 | AT156: =SUM(AT148:AT155) -> 920515 | AU156: =SUM(AU148:AU155) -> 0
M157: Depuis moins d'1 an | P157: =SUM(N157:O157) -> 0 | Q157: 1
M158: De 1 an à moins de 2 ans | P158: =SUM(N158:O158) -> 0 | Q158: 2 | AI158: ETPR
M159: De 2 ans à moins de 5 ans | P159: =SUM(N159:O159) -> 0 | Q159: 3 | AK159: Catégorie A | AO159: Catégorie B | AR159: Catégorie C
M160: 5 ans et plus | P160: =SUM(N160:O160) -> 0 | Q160: 4 | AK160: Titulaire | AN160: Contractuel | AO160: Titulaire | AP160: Contractuel | AR160: Titulaire | AT160: Contractuel
AI161: Administrative | AK161: =SUM('IND 1.1.4'!$C$33:$D$33) -> 57.04 | AN161: =SUM('IND 1.2.4'!$C$32:$D$32) -> 32.59 | AO161: =SUM('IND 1.1.4'!$C$34:$D$34) -> 34.48 | AP161: =SUM('IND 1.2.4'!$C$33:$D$33) -> 4.38 | AR161: =SUM('IND 1.1.4'!$C$35:$D$35) -> 67.72 | AT161: =SUM('IND 1.2.4'!$C$34:$D$34) -> 2.09
AI162: Technique | AK162: =SUM('IND 1.1.4'!$C$37:$D$37) -> 43.75 | AN162: =SUM('IND 1.2.4'!$C$36:$D$36) -> 12.2 | AO162: =SUM('IND 1.1.4'!$C$38:$D$38) -> 20.9 | AP162: =SUM('IND 1.2.4'!$C$37:$D$37) -> 8.26 | AR162: =SUM('IND 1.1.4'!$C$39:$D$39) -> 149.24 | AT162: =SUM('IND 1.2.4'!$C$38:$D$38) -> 27.93
AI163: Culturelle | AK163: =SUM('IND 1.1.4'!$C$41:$D$41) -> 49.59 | AN163: =SUM('IND 1.2.4'!$C$40:$D$40) -> 8.49 | AO163: =SUM('IND 1.1.4'!$C$42:$D$42) -> 17.28 | AP163: =SUM('IND 1.2.4'!$C$41:$D$41) -> 18.72 | AR163: =SUM('IND 1.1.4'!$C$43:$D$43) -> 2.8 | AT163: =SUM('IND 1.2.4'!$C$42:$D$42) -> 0
AI164: Sportive | AK164: =SUM('IND 1.1.4'!$C$45:$D$45) -> 3 | AN164: =SUM('IND 1.2.4'!$C$44:$D$44) -> 0 | AO164: =SUM('IND 1.1.4'!$C$46:$D$46) -> 33.54 | AP164: =SUM('IND 1.2.4'!$C$45:$D$45) -> 14.13 | AR164: =SUM('IND 1.1.4'!$C$47:$D$47) -> 0 | AT164: =SUM('IND 1.2.4'!$C$46:$D$46) -> 0
AI165: Médico-sociale | AK165: =SUM('IND 1.1.4'!$C$49:$D$49)+SUM('IND 1.1.4'!$C$53:$D$53)+SUM('IND 1.1.4'!$C$57:$D$57) -> 1 | AN165: =SUM('IND 1.2.4'!$C$48:$D$48)+SUM('IND 1.2.4'!$C$52:$D$52)+SUM('IND 1.2.4'!$C$56:$D$56) -> 0.88 | AO165: =SUM('IND 1.1.4'!$C$50:$D$50)+SUM('IND 1.1.4'!$C$54:$D$54)+SUM('IND 1.1.4'!$C$58:$D$58) -> 0 | AP165: =SUM('IND 1.2.4'!$C$49:$D$49)+SUM('IND 1.2.4'!$C$53:$D$53)+SUM('IND 1.2.4'!$C$57:$D$57) -> 0 | AR165: =SUM('IND 1.1.4'!$C$51:$D$51)+SUM('IND 1.1.4'!$C$55:$D$55)+SUM('IND 1.1.4'!$C$59:$D$59) -> 0 | AT165: =SUM('IND 1.2.4'!$C$50:$D$50)+SUM('IND 1.2.4'!$C$54:$D$54)+SUM('IND 1.2.4'!$C$58:$D$58) -> 0
AI166: Police | AK166: =SUM('IND 1.1.4'!$C$61:$D$61) -> 0 | AN166: =SUM('IND 1.2.4'!$C$60:$D$60) -> 0 | AO166: =SUM('IND 1.1.4'!$C$62:$D$62) -> 0 | AP166: =SUM('IND 1.2.4'!$C$61:$D$61) -> 0 | AR166: =SUM('IND 1.1.4'!$C$63:$D$63) -> 0 | AT166: =SUM('IND 1.2.4'!$C$62:$D$62) -> 0
AI167: Incendie | AK167: =SUM('IND 1.1.4'!$C$65:$D$65) -> 0 | AN167: =SUM('IND 1.2.4'!$C$64:$D$64) -> 0 | AO167: =SUM('IND 1.1.4'!$C$66:$D$66) -> 0 | AP167: =SUM('IND 1.2.4'!$C$65:$D$65) -> 0 | AR167: =SUM('IND 1.1.4'!$C$67:$D$67) -> 0 | AT167: =SUM('IND 1.2.4'!$C$66:$D$66) -> 0
AI168: Animation | AO168: =SUM('IND 1.1.4'!$C$69:$D$69) -> 0 | AP168: =SUM('IND 1.2.4'!$C$68:$D$68) -> 0 | AR168: =SUM('IND 1.1.4'!$C$70:$D$70) -> 0 | AT168: =SUM('IND 1.2.4'!$C$69:$D$69) -> 0
AI169: total | AK169: =SUM(AK161:AL168) -> 154.38 | AN169: =SUM(AN161:AN168) -> 54.16 | AO169: =SUM(AO161:AO168) -> 106.2 | AP169: =SUM(AP161:AQ168) -> 45.49 | AR169: =SUM(AR161:AR168) -> 219.76 | AT169: =SUM(AT161:AT168) -> 30.02 | AU169: =SUM(AU161:AU168) -> 0
AJ173: RIFSEEP
AJ174: Contractuels | AK174: =IF('IND 3.1.1-3.3.1 et 3.4.1-3.4.3'!$F$61="Oui","et pour les contractuels","") -> et pour les contractuels

Sheet notes_version (hidden)
A1: version | B1: titre modification | C1: commentaires | D1: dates
A2: v2 | B2: Corrections ETPR format cellule | C2: Permettre la visualisation des décimales sur les cellules des tableaux relatifs aux ETPR | D2: 25 07 2022
A3: v2 | B3: Référentiel chom2 et 1 | C3: Correction du référentiel mapping questions liées à l'assurance chômage | D3: 25 07 2022

Sheet Infos_col
A1: LB_COLL | B1: CD_DEPA | C1: CD_POST | D1: NM_SIRE | E1: LB_TYPE_COLL | F1: CD_DGCL | G1: BL_AFFI_COLL | H1: BL_CT_CDG | I1: LB_NOM | J1: LB_PREN | K1: LB_TELE | L1: LB_MAIL | M1: FICHIER | N1: BSC
D2: 11111111111111
A3: COMMUNAUTE D'AGGLO DE CERGY-PONTOISE | B3: 95 | C3: 95000 | D3: 24950010900015 | E3: Communauté d'agglomération | F3: 12 | G3: Non | H3: Oui | I3: GROSSI | J3: Florence | K3: 0134419121 | L3: florence.grossi@cergypontoise.fr | M3: RSU_2022_24950010900015 | N3: 2589

Sheet Handitorial (hidden)

Sheet RASSCT (hidden)

Sheet RASSCT (actions) (2) (hidden)

Sheet RASSCT (actions) (3) (hidden)

Sheet RASSCT (actions) (4) (hidden)

Sheet RASSCT (actions) (5) (hidden)

Sheet GPEEC (hidden)

Sheet Sommaire
A1: Sommaire
A3: Cliquez dans la colonne "onglet" pour accéder directement à l'onglet désiré. | B3: Onglet
A5: A - L'EMPLOI
A7: Agents sur des emplois fonctionnels de direction
A8: - IND 1.1.0 - Nombre d'agents occupant un emploi fonctionnel rémunérés au 31/12/2022, par statut d'origine, cadre d'emplois, sexe et grade de détachement | B8: IND 1.1.0
A10: Les effectifs physiques et les effectifs en équivalent temps plein de fonctionnaires et caractéristiques des emplois
A11: - IND 1.1.1 - Nombre de fonctionnaires occupant un emploi permanent rémunérés au 31/12/2022 par filière, cadre d'emploi et grade, selon les caractéristiques de l'emploi et selon le sexe | B11: IND 1.1.1
A12: - IND 1.1.4 - Nombre de fonctionnaires en Equivalent Temps Plein Rémunéré (ETPR) en 2022 par filière déclinée par catégorie hiérarchique et par sexe | B12: IND 1.1.4
A14: Les effectifs physiques et les effectifs en équivalent temps plein des contractuels et caractéristiques des emplois
A15: - IND 1.2.1 - Nombre d'agents contractuels occupant un emploi permanent rémunérés au 31/12/2022 par filière et cadre d'emplois, selon le type de contrat et le type de recrutement | B15: IND 1.2.1
A16: - IND 1.2.4 - Nombre de contractuels en Equivalent Temps Plein Rémunéré (ETPR) en 2022 par filière déclinée par catégorie et par sexe | B16: IND 1.2.4
A17: - IND 1.2.5 - Nombre de CDI conclus au cours de l'année 2022 | B17: IND 1.2.5
A18: - IND 1.3.1 - Autres contractuels sur emploi non permanent, en effectif physique et en ETPR, selon le sexe | B18: IND 1.3.1
A20: Les autres personnels
A21: - IND 1.3.2 - Recours à du personnel temporaire, mis à disposition par les CDG par filière ou intérimaires, selon le sexe | B21: IND 1.3.2
A23: Pyramide des âges des agents
A24: - IND 1.4.0 - Répartition par sexe et tranche d'âge des effectifs des fonctionnaires et des contractuels présents dans les effectifs au 31/12/2022 | B24: IND 1.4.0
A26: Positions statutaires particulières au 31 décembre 2022 des agents gérés par la collectivité territoriale
A27: - IND 1.4.1 - Nombre d'agents originaires de la collectivité | B27: IND 1.4.1-1.4.4
A28: - IND 1.4.2 - Nombre d'agents originaires d'une autre structure | B28: IND 1.4.1-1.4.4
A29: - IND 1.4.3 - Nombre d'agents originaires d'une autre structure mis à disposition | B29: IND 1.4.1-1.4.4
A30: - IND 1.4.4 - Fonctionnaires pris en charge par le CDG ou le CNFPT (articles 53 et 97) | B30: IND 1.4.1-1.4.4
A32: Bénéficiaires de l'obligation d'emploi (travailleurs en situation de handicap)
A33: - IND 1.6.1 - Nombre d'agents en situation de handicap bénéficiant de l'obligation d'emploi des travailleurs handicapés (y compris reclassés) par catégorie hiérarchique, statut et sexe | B33: IND 1.6.1
A34: - IND 1.6.2 - Respect des obligations d'emploi : dépenses couvrant partiellement l'obligation d'emploi et taux d'emploi | B34: IND 1.6.2
A36: Autorisation d'exercice d'une activité accessoire
A37: - IND 1.8.1 - Nombre de fonctionnaires et de contractuels sur emploi permanent autorisés à exercer une activité accessoire | B37: IND 1.8.1
A40: B - RECRUTEMENT
A43: - IND 1.9.0 - Bilan des arrivées et départs dans l'année 2022 | B43: IND 1.9.0
A44: - IND 1.9.1 - Arrivées d'agents sur emploi fonctionnel au cours de l'année 2022, par statut d'origine, selon le grade de détachement et le sexe | B44: IND 1.9.1
A45: - IND 1.9.2 - Arrivées de fonctionnaires dans l'année 2022, par cadre d'emplois, selon le motif de recrutement | B45: IND 1.9.2
A46: - IND 1.9.3 - Arrivées de contractuels sur emploi permanent dans l'année 2022, par filière et cadre d'emplois, selon les caractéristiques de l'emploi et le sexe | B46: IND 1.9.3
A50: C - PARCOURS PROFESSIONNEL
A52: Flux de sortie des agents occupant un emploi permanent
A53: - IND 1.9.4.0 - Départs dans l'année 2022, par motif de départ et selon le sexe et la catégorie | B53: IND 1.9.4.0
A54: - IND 1.9.4.1 - Nombre de procédure de rupture conventionnelle au cours de l'année 2022, par sexe et catégorie hiérarchique | B54: IND 1.9.4.1-1.9.4.2
A55: - IND 1.9.4.2 - Nombre de conventions de rupture conventionnelle signées au cours de l'année 2022, par sexe et par catégorie hiérarchique | B55: IND 1.9.4.1-1.9.4.2
A57: Evolution de carrière
A58: - IND 1.9.5 - Titularisation et stages au cours de l'année 2022 | B58: IND 1.9.5-1.9.6.1
A59: - IND 1.9.6.1. - Avancements et promotion interne dans l'année 2022 | B59: IND 1.9.5-1.9.6.1
A60: - IND 1.9.6.2 - Avancements de grade dans l'année 2022 par filière et catégorie hiérarchique | B60: IND 1.9.6.2
A61: - IND 1.9.7 - Nombre d'agents fonctionnaires et contractuels sur emploi permanent ayant bénéficié d'un accompagnement par un conseiller en évolution professionnelle en 2022 | B61: IND 1.9.7
A62: - IND 1.9.8 - Nombre de lauréats sur les listes d’aptitude des concours et examens professionnels, par filière, cadre d’emplois, sexe | B62: IND 1.9.8
A63: - IND 1.9.9 - Nombre de fonctionnaires bénéficiaires des modalités dérogatoires d'accès par la voie du détachement à un cadre d'emplois de niveau supérieur ou de catégorie supérieure | B63: IND 1.9.9
A68: D - ORGANISATION DU TRAVAIL
A70: Congés et absences
A71: - IND 2.1.0 - Nombre de journées de congés supplémentaires accordées à l'ensemble des agents | B71: IND 2.1.0
A72: - IND 2.1.1 - Nombre de fonctionnaires ayant été absents au moins un jour dans l'année par motif (hors formation, journées de grève et absences syndicales), présents dans les effectifs au 31/12/2022 | B72: IND 2.1.1
A73: - IND 2.1.2 - Nombre de contractuels sur emploi permanent ayant été absents au moins un jour dans l'année par motif (hors formation, journées de grève et absences syndicales), présents au 31/12/2022 | B73: IND 2.1.2
A74: - IND 2.1.3 - Nombre de contractuels sur emploi non permanent ayant été absents au moins un jour dans l'année, par motif (hors formation, journées de grève et absences syndicales), présents au 31/12/2022 | B74: IND 2.1.3
A75: - IND 2.1.4 - Congés de paternité et d'accueil de l'enfant des agents fonctionnaires et contractuels sur emploi permanent, par catégorie hiérarchique | B75: IND 2.1.4-2.1.6
A76: - IND 2.1.5 - Congés de présence parentale des fonctionnaires et contractuels sur emploi permanent, par sexe et par catégorie hiérarchique | B76: IND 2.1.4-2.1.6
A77: - IND 2.1.6 - Congés de solidarité familiale des fonctionnaires et contractuels sur emploi permanent, par sexe et catégorie hiérarchique | B77: IND 2.1.4-2.1.6
A78: - IND 2.1.10 - Congés de proche aidant des fonctionnaires et contractuels sur emploi permanent, par sexe et par catégorie hiérarchique | B78: IND 2.1.10
A79: - IND 2.1.7 - Entretiens avant et après des congés de six mois ou plus | B79: IND 2.1.7
A80: - IND 2.1.8 - Nombre de jours de carence par sexe,par tranche d'âge, par catégorie hiérarchique et montants des sommes brutes retenues | B80: IND 2.1.8
A81: - IND 2.1.9 - Modalités de contrôle des arrêts maladie | B81: IND 2.1.9
A83: Temps de travail
A84: - IND 2.2.0 - Congés de proche aidant des fonctionnaires et contractuels sur emploi permanent, par sexe et par catégorie hiérarchique | B84: IND 2.2.0
A85: - IND 2.2.1 - Modalités d'organisation du temps de travail | B85: IND 2.2.1-2.2.3
A86: - IND 2.2.2 - Contraintes particulières concernant le temps de travail | B86: IND 2.2.1-2.2.3
A87: - IND 2.2.3 - Compte épargne-temps | B87: IND 2.2.1-2.2.3
A88: - IND 2.2.4 - Nombre de jours donnés dans le cadre du dispositif de don de jours par type de jours | B88: IND 2.2.4
A89: - IND 2.2.5 - Charte du temps | B89: IND 2.2.5
A90: - IND 2.2.8 - Nombre d'heures supplémentaires et complémentaires réalisées et rémunérées en 2022, par sexe, filière et cadre d'emplois | B90: IND 2.2.8
A91: - IND 2.2.9 - Nombre d’heures réalisées au-delà des bornes horaires définies par le cycle de travail n’ayant donné lieu ni à rémunération ni à récupération en 2022 | B91: IND 2.2.9
A94: Temps partiel
A95: - IND 2.3.1 - Informations relatives au temps partiel prévu par l'article 60 de la loi du 26 janvier 1984 | B95: IND 2.3.1
A96: - IND 2.3.2 - Quotité de temps de travail des fonctionnaires occupant un emploi à temps complet rémunérés au 31/12/2022 par filière, cadre d'emplois et selon le sexe | B96: IND 2.3.2
A97: - IND 2.3.3 - Nombre de fonctionnaires bénéficiaires d'un temps partiel de droit ou sur autorisation par catégorie et sexe | B97: IND 2.3.3
A98: - IND 2.3.4 - Nombre d'agents contractuels occupant un emploi permanent à temps complet rémunérés au 31/12/2022 par filière, cadre d'emplois et selon la quotité de temps de travail et le sexe | B98: IND 2.3.4
A99: - IND 2.3.5 - Nombre d'agents contractuels bénéficiaires d'un temps partiel de droit ou sur autorisation par catégorie et sexe | B99: IND 2.3.5
A100: - IND 2.3.6 - Nombre de fonctionnaires et d’agents contractuels bénéficiaires de plein droit d’un temps partiel annualisé à l'issue de leur congé de maternité, d'adoption ou de paternité et d'accueil de l'enfant | B100: IND 2.3.6
A102: Télétravail
A103: - IND 2.4.1 - Nombre de demandes d’exercice des fonctions dans le cadre du télétravail, de refus prononcés et d'agents exerçant leur fonctions dans le cadre du télétravail par sexe, par catégorie hiérarchique et par filière | B103: IND 2.4.1
A104: - IND 2.4.2 - Modalités d'exercice des fonctions exercées dans le cadre du télétravail | B104: IND 2.4.2
A108: E - REMUNERATIONS
A110: Rémunérations
A111: - IND 3.1.1 - Rémunérations des fonctionnaires ayant travaillé au moins un jour durant l'année 2022 | B111: IND 3.1.1-3.3.1 et 3.4.1-3.4.3
A112: - IND 3.2.1 - Rémunérations des contractuels occupant un emploi permanent ayant travaillé au moins un jour durant l'année 2022 | B112: IND 3.1.1-3.3.1 et 3.4.1-3.4.3
A113: - IND 3.3.1 - Rémunérations des agents sur emploi non permanent ayant travaillé au moins un jour durant l'année 2022 | B113: IND 3.1.1-3.3.1 et 3.4.1-3.4.3
A114: - IND 3.3.9 - Nombre de contractuels ayant bénéficié d’une indemnité de fin de contrat | B114: IND 3.3.9
A115: - IND 3.4.0 - Ecart de rémunération hommes-femmes | B115: IND 3.4.0
A116: - IND 3.4.0.1 - Masse salariale brute annuelle cumulée des dix rémunérations les plus élevées en 2022 | B116: IND 3.4.0.1
A118: Indemnisation chômage
A119: - IND 3.4.1 - Indemnisation du chômage pour les titulaires | B119: IND 3.1.1-3.3.1 et 3.4.1-3.4.3
A120: - IND 3.4.2 - Indemnisation du chômage pour les contractuels | B120: IND 3.1.1-3.3.1 et 3.4.1-3.4.3
A121: - IND 3.4.3 - Maintien des primes en cas de congé de maladie ordinaire | B121: IND 3.1.1-3.3.1 et 3.4.1-3.4.3
A123: Dépenses de fonctionnement
A124: - IND 3.4.7 - Dépenses de fonctionnement de la collectivité et dépenses de personnel | B124: IND 3.4.7
A126: F - SANTE ET SECURITE AU TRAVAIL
A128: Risques professionnels et mesures en matière de sécurité
A129: - IND 4.1.1 - Agents affectés à la prévention | B129: IND 4.1.1-4.1.2
A130: - IND 4.1.2 - Actions liées à la prévention dans l'année 2022 | B130: IND 4.1.1-4.1.2
A131: - IND 4.1.3 - Nombre de visites médicales sur demande de l'agent | B131: IND 4.1.3
A132: - IND 4.1.4 - Existence d'un document unique d'évaluation des risques professionnels | B132: IND 4.1.4-4.1.7
A133: - IND 4.1.5 - Existence d'un plan de prévention des Risques psychosociaux | B133: IND 4.1.4-4.1.7
A134: - IND 4.1.6 - Existence de démarche de prévention des risques | B134: IND 4.1.4-4.1.7
A135: - IND 4.1.7 - Existence d'un registre de santé et sécurité | B135: IND 4.1.4-4.1.7
A136: - IND 4.2.5 - Contrat d'assurance statutaire pour la prise en charge du risque maladie | B136: IND 4.2.5
A137: - IND 4.2.6 - Nombre d'agents bénéficiant d'une surveillance médicale particulière et nombre d'agents occupant des postes dans des services comportant des risques spéciaux | B137: IND 4.2.6
A139: Protection fonctionnelle
A140: - IND 4.2.7 - Nombre de demandes de protection fonctionnelle et nombre de décisions accordant la protection fonctionnelle selon que l’agent soit mis en cause ou qu’il soit victime. | B140: IND 4.2.7
A142: Accidents du travail, maladies professionnelles et violences physiques sur agents
A143: - IND 4.2.1 - Accidents du travail reconnus dans l'année 2022 et jours d'arrêts de travail liés aux accidents survenus en 2022 ou avant | B143: IND 4.2.1
A144: - IND 4.2.2 - Maladies professionnelles reconnues en 2022 et jours d'arrêts de travail liés à l'ensemble des maladies professionnelles reconnues | B144: IND 4.2.2
A145: - IND 4.2.4 - Nombre d'allocations temporaires d'invalidité (ATI) attribuées au cours de l'année 2022 | B145: IND 4.2.4
A146: - IND 4.3.1 - Nombre de signalements pour actes de violences physiques, de violences sexuelles, de discrimination, harcèlement moral et harcèlement sexuel, agissement sexistes, menaces ou actes d'intimidation envers le personnel au cours de l'année 2022 | B146: IND 4.3.1
A147: - IND 4.3.2 - Modalités de mise en œuvre du dispositif de signalement | B147: IND 4.3.2
A149: Inaptitudes
A150: - IND 4.4.1 - Inaptitudes au cours de l'année 2022 | B150: IND 4.4.1
A152: Suicides
A153: - IND 4.5.1 - Suicides au cours de l'année 2022 | B153: IND 4.5.1
A155: G - FORMATION
A157: - IND 5.1.1.1 - Tableau récapitulatif - Fonctionnaires et contractuels sur un emploi permanent présents dans les effectifs au 31/12/2022 ayant participé à au moins une formation en 2022 | B157: IND 5.1.1
A158: - IND 5.1.1.2 - Journées de formation suivies par les fonctionnaires et contractuels sur un emploi permanent présents au 31/12/2022 et nombre d'agents sur emploi permanent ayant participé à au moins une journée de formation en 2022 | B158: IND 5.1.1
A160: - IND 5.1.2.1 - Journées de formation suivies par les agents sur un emploi non permanent au cours de l'année 2022 | B160: IND 5.1.2
A161: - IND 5.1.3 - Validation de l'expérience, bilan de compétence et congé de formation dans l'année 2022 | B161: IND 5.1.3
A162: - IND 5.1.4 - Coûts de formation | B162: IND 5.1.4
A164: H - ACTION SOCIALE ET PROTECTION SOCIALE
A166: Action Sociale
A167: - IND 7.1.1 - Dépenses engagées pour la réalisation des prestations d'action sociale | B167: IND 7.1.1-7.1.3
A168: - IND 7.1.2 - Modalités de mise en œuvre de l'action sociale | B168: IND 7.1.1-7.1.3
A169: - IND 7.1.3 - Nombre de bénéficiaires des prestations d'action sociale par type de prestation | B169: IND 7.1.1-7.1.3
A171: Protection Sociale
A172: - IND 7.2.0 - Existence d'un accord collectif sur la protection sociale complémentaire | B172: IND 7.2.0-7.2.2
A173: - IND 7.2.1 - Procédure retenue par la collectivité pour la protection sociale complémentaire santé et prévoyance | B173: IND 7.2.0-7.2.2
A174: - IND 7.2.2 - Nombre de bénéficiaires et montants de participations | B174: IND 7.2.0-7.2.2
A176: I - DIALOGUE SOCIAL
A178: Réunions statutaires
A179: - IND 6.1.0 - Nombre de représentants du personnel par type d'instance | B179: IND 6.1.0
A180: - IND 6.1.1 - Nombre de réunions au cours de l'année | B180: IND 6.1.1-6.1.3
A181: - IND 6.1.1.4 - Nombre de saisine de la CAP ou de la CCP | B181: IND 6.1.1-6.1.3
A183: Droits syndicaux
A184: - IND 6.1.2 - Droits syndicaux | B184: IND 6.1.1-6.1.3
A186: Négociations et accords collectifs
A187: - IND 6.1.5 Nombre de négociations engagées et nombre d’accords collectifs conclus et signés au cours de l’année | B187: IND 6.1.5
A189: Conflits du travail
A190: - IND 6.1.6 - Existence d’un accord visant à assurer la continuité des services publics en cas de grève des agents ou, à défaut, d’une délibération de l’organe délibérant. | B190: IND 6.1.6
A191: - IND 6.1.3 - Nombre de jours de grêves en heure agent | B191: IND 6.1.1-6.1.3
A194: J - DISCIPLINE
A196: - IND 8.1.1 - Nombre de sanctions disciplinaires prononcées dans l'année | B196: IND 8.1.1

Sheet IND 1.1.0
A1: 1.1.0 | B1: Nombre d'agents occupant un emploi fonctionnel rémunérés au 31/12/2022, par statut d'origine, cadre d'emplois, sexe et grade de détachement
A2: Champ : les tableaux qui suivent concernent les fonctionnaires et contractuels occupant un emploi permanent fonctionnel rémunérés au 31/12/2022.
C5: Répartition par sexe et tranche d'âge des effectifs des fonctionnaires et des contractuels présents dans les effectifs au 31/12/2022
A8: Tableau 1.1.0.a : Fonctionnaires de la Fonction Publique Territoriale | L8: Retour au sommaire
A9: Emplois fonctionnels | B9: Fonctionnaires de la Fonction Publique Territoriale
B10: Administrateurs | D10: Attachés | F10: Ingénieurs en chef | H10: Ingénieurs | J10: Autres
B11: Hommes | C11: Femmes | D11: Hommes | E11: Femmes | F11: Hommes | G11: Femmes | H11: Hommes | I11: Femmes | J11: Hommes | K11: Femmes
A12: Emplois fonctionnels administratifs :
A13: Directeur général des services ou directeur | B13: 0 | C13: 1 | D13: 0 | E13: 0 | F13: 0 | G13: 0 | H13: 0 | I13: 0 | J13: 0 | K13: 0
A14: Directeur général adjoint des services ou directeur adjoint | B14: 2 | C14: 2 | D14: 0 | E14: 0 | F14: 0 | G14: 1 | H14: 0 | I14: 0 | J14: 0 | K14: 0
A15: Emplois fonctionnels techniques :
A16: Directeur général des services techniques | B16: 0 | C16: 0 | D16: 0 | E16: 0 | F16: 0 | G16: 0 | H16: 0 | I16: 0 | J16: 0 | K16: 0
A17: Directeur des services techniques | B17: 0 | C17: 0 | D17: 0 | E17: 0 | F17: 0 | G17: 0 | H17: 0 | I17: 0 | J17: 0 | K17: 0
A18: Emplois fonctionnels d'incendie et secours :
A19: Directeur départemental des services d'incendie et secours | B19: 0 | C19: 0 | D19: 0 | E19: 0 | F19: 0 | G19: 0 | H19: 0 | I19: 0 | J19: 0 | K19: 0
A20: Directeur départemental adjoint des services d'incendie et secours | B20: 0 | C20: 0 | D20: 0 | E20: 0 | F20: 0 | G20: 0 | H20: 0 | I20: 0 | J20: 0 | K20: 0
A21: TOTAL | B21: =B13+B14+B16+B17+B19+B20 -> 2 | C21: =C13+C14+C16+C17+C19+C20 -> 3 | D21: 0 | E21: 0 | F21: 0 | G21: 1 | H21: 0 | I21: 0 | J21: 0 | K21: 0
A23: Tableau 1.1.0.b : Fonctionnaires issus d'une autre administration (FPE, FPH)
A24: Emplois fonctionnels | B24: Fonctionnaires issus d'une autre administration (FPE, FPH)
B25: Administrateurs | D25: Attachés | F25: Ingénieurs en chef | H25: Ingénieurs | J25: Autres
B26: Hommes | C26: Femmes | D26: Hommes | E26: Femmes | F26: Hommes | G26: Femmes | H26: Hommes | I26: Femmes | J26: Hommes | K26: Femmes
A27: Emplois fonctionnels administratifs :
A28: Directeur général des services ou directeur | B28: 0 | C28: 0 | D28: 0 | E28: 0 | F28: 0 | G28: 0 | H28: 0 | I28: 0 | J28: 0 | K28: 0
A29: Directeur général adjoint des services ou directeur adjoint | B29: 0 | C29: 0 | D29: 0 | E29: 0 | F29: 0 | G29: 0 | H29: 0 | I29: 0 | J29: 0 | K29: 0
A30: Emplois fonctionnels techniques :
A31: Directeur général des services techniques | B31: 0 | C31: 0 | D31: 0 | E31: 0 | F31: 0 | G31: 0 | H31: 0 | I31: 0 | J31: 0 | K31: 0
A32: Directeur des services techniques | B32: 0 | C32: 0 | D32: 0 | E32: 0 | F32: 0 | G32: 0 | H32: 0 | I32: 0 | J32: 0 | K32: 0
A33: Emplois fonctionnels d'incendie et secours :
A34: Directeur départemental des services d'incendie et secours | B34: 0 | C34: 0 | D34: 0 | E34: 0 | F34: 0 | G34: 0 | H34: 0 | I34: 0 | J34: 0 | K34: 0
A35: Directeur départemental adjoint des services d'incendie et secours | B35: 0 | C35: 0 | D35: 0 | E35: 0 | F35: 0 | G35: 0 | H35: 0 | I35: 0 | J35: 0 | K35: 0
A36: TOTAL | B36: =B28+B29+B31+B32+B34+B35 -> 0 | C36: =C28+C29+C31+C32+C34+C35 -> 0 | D36: 0 | E36: 0 | F36: 0 | G36: 0 | H36: 0 | I36: 0 | J36: 0 | K36: 0
A38: Tableau 1.1.0.c : Contractuels sur emplois permanents
A39: Emplois fonctionnels | B39: Contractuels sur emplois permanents
B41: Hommes
A42: Emplois fonctionnels administratifs :
A43: Directeur général des services ou directeur | B43: 0 | C43: 0
A44: Directeur général adjoint des services ou directeur adjoint | B44: 0 | C44: 0
A45: Emplois fonctionnels techniques :
A46: Directeur général des services techniques | B46: 0 | C46: 0
A47: Directeur des services techniques | B47: 0 | C47: 0
A48: Emplois fonctionnels d'incendie et secours :
A49: Directeur départemental des services d'incendie et secours | B49: 0 | C49: 0
A50: Directeur départemental adjoint des services d'incendie et secours | B50: 0 | C50: 0
A51: TOTAL | B51: =B43+B44+B46+B47+B49+B50 -> 0 | C51: =C43+C44+C46+C47+C49+C50 -> 0

Sheet IND 1.1.1
A1: 1.1.1 | B1: Nombre de fonctionnaires occupant un emploi permanent rémunérés au 31/12/2022 par filière, cadre d'emplois et grade, selon les caractéristiques de l'emploi et selon le sexe
A2: Champ : le tableau qui suit concerne les agents titulaires et stagiaires occupant un emploi permanent rémunérés au 31/12/2022.
A4: Remarque importante : les agents occupant un emploi fonctionnel sont également comptés ici, mais uniquement dans leurs cadres d'emplois et grades respectifs.
A5: Exemple : un attaché principal qui est en poste sur un emploi fonctionnel de directeur général adjoint, doit être comptabilisé en tant qu’attaché principal. | J5: Retour au sommaire
J6: *Uniquement pour les SDIS
B12: Tous emplois | G12: Tous emplois | I12: Total | J12: Dont SPV*
A13: Grades | B13: Temps complet | C13: Temps non complet | G13: Hommes | H13: Femmes | J13: Hommes | K13: Femmes
A14: Cadres d'emplois | C14: Temps de travail hebdomadaire | F14: Sous-Total
A15: FILIERES | C15: moins de | D15: 17 H 30 à | E15: 28 H
C16: 17 H 30 | D16: - DE 28 H | E16: ou plus
B17: 1.1.1(1) | C17: 1.1.1(2) | D17: 1.1.1(3) | E17: 1.1.1(4) | G17: 1.1.1(5) | H17: 1.1.1(6)
A18: FILIERE ADMINISTRATIVE
A19: Administrateur général | B19: 1 | C19: 0 | D19: 0 | E19: 0 | F19: =SUM(C19:E19) -> 0 | G19: 1 | H19: 0 | I19: =SUM(G19:H19) -> 1 | J19: 0 | K19: 0
A20: Administrateur hors classe | B20: 2 | C20: 0 | D20: 0 | E20: 0 | F20: =SUM(C20:E20) -> 0 | G20: 0 | H20: 2 | I20: =SUM(G20:H20) -> 2 | J20: 0 | K20: 0
A21: Administrateur | B21: 2 | C21: 0 | D21: 0 | E21: 0 | F21: =SUM(C21:E21) -> 0 | G21: 2 | H21: 0 | I21: =SUM(G21:H21) -> 2 | J21: 0 | K21: 0
A22: Administrateur stagiaire | B22: 0 | C22: 0 | D22: 0 | E22: 0 | F22: =SUM(C22:E22) -> 0 | G22: 0 | H22: 0 | I22: =SUM(G22:H22) -> 0 | J22: 0 | K22: 0
A23: ADMINISTRATEURS | B23: =SUM(B19:B22) -> 5 | C23: 0 | D23: 0 | E23: 0 | F23: 0 | G23: 3 | H23: 2 | I23: 5 | J23: 0 | K23: 0
A25: Attaché hors classe | B25: 5 | C25: 0 | D25: 0 | E25: 0 | F25: =SUM(C25:E25) -> 0 | G25: 2 | H25: 3 | I25: =SUM(G25:H25) -> 5 | J25: 0 | K25: 0
A26: Directeur territorial | B26: 1 | C26: 0 | D26: 0 | E26: 0 | F26: =SUM(C26:E26) -> 0 | G26: 1 | H26: 0 | I26: =SUM(G26:H26) -> 1 | J26: 0 | K26: 0
A27: Attaché principal | B27: 25 | C27: 0 | D27: 0 | E27: 0 | F27: =SUM(C27:E27) -> 0 | G27: 8 | H27: 17 | I27: =SUM(G27:H27) -> 25 | J27: 0 | K27: 0
A28: Attaché | B28: 20 | C28: 0 | D28: 0 | E28: 0 | F28: =SUM(C28:E28) -> 0 | G28: 5 | H28: 15 | I28: =SUM(G28:H28) -> 20 | J28: 0 | K28: 0
A29: Attaché stagiaire | B29: 3 | C29: 0 | D29: 0 | E29: 0 | F29: =SUM(C29:E29) -> 0 | G29: 1 | H29: 2 | I29: =SUM(G29:H29) -> 3 | J29: 0 | K29: 0
A30: ATTACHES | B30: =SUM(B25:B29) -> 54 | C30: 0 | D30: 0 | E30: 0 | F30: 0 | G30: 17 | H30: 37 | I30: 54 | J30: 0 | K30: 0
A32: Secrétaire de mairie | B32: 0 | C32: 0 | D32: 0 | E32: 0 | F32: =SUM(C32:E32) -> 0 | G32: 0 | H32: 0 | I32: =SUM(G32:H32) -> 0 | J32: 0 | K32: 0
A33: SECRETAIRES DE MAIRIE | B33: =SUM(B32:B32) -> 0 | C33: 0 | D33: 0 | E33: 0 | F33: 0 | G33: 0 | H33: 0 | I33: 0 | J33: 0 | K33: 0
A35: Rédacteur principal de 1ère classe | B35: 11 | C35: 0 | D35: 0 | E35: 0 | F35: =SUM(C35:E35) -> 0 | G35: 1 | H35: 10 | I35: =SUM(G35:H35) -> 11 | J35: 0 | K35: 0
A36: Rédacteur principal de 2ème classe | B36: 8 | C36: 0 | D36: 0 | E36: 0 | F36: =SUM(C36:E36) -> 0 | G36: 1 | H36: 7 | I36: =SUM(G36:H36) -> 8 | J36: 0 | K36: 0
A37: Rédacteur principal de 2ème classe stagiaire | B37: 0 | C37: 0 | D37: 0 | E37: 0 | F37: =SUM(C37:E37) -> 0 | G37: 0 | H37: 0 | I37: =SUM(G37:H37) -> 0 | J37: 0 | K37: 0
A38: Rédacteur | B38: 11 | C38: 0 | D38: 0 | E38: 0 | F38: =SUM(C38:E38) -> 0 | G38: 1 | H38: 10 | I38: =SUM(G38:H38) -> 11 | J38: 0 | K38: 0
A39: Rédacteur stagiaire | B39: 3 | C39: 0 | D39: 0 | E39: 0 | F39: =SUM(C39:E39) -> 0 | G39: 0 | H39: 3 | I39: =SUM(G39:H39) -> 3 | J39: 0 | K39: 0
A40: REDACTEURS | B40: =SUM(B35:B39) -> 33 | C40: 0 | D40: 0 | E40: 0 | F40: 0 | G40: 3 | H40: 30 | I40: 33 | J40: 0 | K40: 0
A42: Adjoint administratif principal de 1ère classe | B42: 24 | C42: 0 | D42: 0 | E42: 0 | F42: =SUM(C42:E42) -> 0 | G42: 2 | H42: 22 | I42: =SUM(G42:H42) -> 24 | J42: 0 | K42: 0
A43: Adjoint administratif principal de 2ème classe | B43: 25 | C43: 0 | D43: 0 | E43: 0 | F43: =SUM(C43:E43) -> 0 | G43: 2 | H43: 23 | I43: =SUM(G43:H43) -> 25 | J43: 0 | K43: 0
A44: Adjoint administratif principal de 2ème classe stagiaire | B44: 3 | C44: 0 | D44: 0 | E44: 0 | F44: =SUM(C44:E44) -> 0 | G44: 0 | H44: 3 | I44: =SUM(G44:H44) -> 3 | J44: 0 | K44: 0
A45: Adjoint administratif | B45: 14 | C45: 0 | D45: 0 | E45: 0 | F45: =SUM(C45:E45) -> 0 | G45: 2 | H45: 12 | I45: =SUM(G45:H45) -> 14 | J45: 0 | K45: 0
A46: Adjoint administratif stagiaire | B46: 3 | C46: 0 | D46: 0 | E46: 0 | F46: =SUM(C46:E46) -> 0 | G46: 0 | H46: 3 | I46: =SUM(G46:H46) -> 3 | J46: 0 | K46: 0
A47: ADJOINTS ADMINISTRATIFS | B47: =SUM(B42:B46) -> 69 | C47: 0 | D47: 0 | E47: 0 | F47: 0 | G47: 6 | H47: 63 | I47: 69 | J47: 0 | K47: 0
A49: FILIERE ADMINISTRATIVE | B49: =B23+B30+B33+B40+B47 -> 161 | C49: 0 | D49: 0 | E49: 0 | F49: 0 | G49: 29 | H49: 132 | I49: 161 | J49: 0 | K49: 0
A51: FILIERE TECHNIQUE
A52: Ingénieur général | B52: 0 | C52: 0 | D52: 0 | E52: 0 | F52: =SUM(C52:E52) -> 0 | G52: 0 | H52: 0 | I52: =SUM(G52:H52) -> 0 | J52: 0 | K52: 0
A53: Ingénieur en chef hors classe | B53: 2 | C53: 0 | D53: 0 | E53: 0 | F53: =SUM(C53:E53) -> 0 | G53: 1 | H53: 1 | I53: =SUM(G53:H53) -> 2 | J53: 0 | K53: 0
A54: Ingénieur en chef | B54: 2 | C54: 0 | D54: 0 | E54: 0 | F54: =SUM(C54:E54) -> 0 | G54: 1 | H54: 1 | I54: =SUM(G54:H54) -> 2 | J54: 0 | K54: 0
A55: Ingénieur en chef stagiaire | B55: 0 | C55: 0 | D55: 0 | E55: 0 | F55: =SUM(C55:E55) -> 0 | G55: 0 | H55: 0 | I55: =SUM(G55:H55) -> 0 | J55: 0 | K55: 0
A56: INGENIEURS EN CHEF | B56: =SUM(B52:B55) -> 4 | C56: 0 | D56: 0 | E56: 0 | F56: 0 | G56: 2 | H56: 2 | I56: 4 | J56: 0 | K56: 0
A58: Ingénieur hors classe | B58: 2 | C58: 0 | D58: 0 | E58: 0 | F58: =SUM(C58:E58) -> 0 | G58: 1 | H58: 1 | I58: =SUM(G58:H58) -> 2 | J58: 0 | K58: 0
A59: Ingénieur principal | B59: 22 | C59: 0 | D59: 0 | E59: 0 | F59: =SUM(C59:E59) -> 0 | G59: 10 | H59: 12 | I59: =SUM(G59:H59) -> 22 | J59: 0 | K59: 0
A60: Ingénieur | B60: 17 | C60: 0 | D60: 0 | E60: 0 | F60: =SUM(C60:E60) -> 0 | G60: 10 | H60: 7 | I60: =SUM(G60:H60) -> 17 | J60: 0 | K60: 0
A61: Ingénieur stagiaire | B61: 1 | C61: 0 | D61: 0 | E61: 0 | F61: =SUM(C61:E61) -> 0 | G61: 1 | H61: 0 | I61: =SUM(G61:H61) -> 1 | J61: 0 | K61: 0
A62: INGENIEURS | B62: =SUM(B58:B61) -> 42 | C62: 0 | D62: 0 | E62: 0 | F62: 0 | G62: 22 | H62: 20 | I62: 42 | J62: 0 | K62: 0
A64: Technicien principal de 1ère classe | B64: 4 | C64: 0 | D64: 0 | E64: 0 | F64: =SUM(C64:E64) -> 0 | G64: 2 | H64: 2 | I64: =SUM(G64:H64) -> 4 | J64: 0 | K64: 0
A65: Technicien principal de 2ème classe | B65: 8 | C65: 0 | D65: 0 | E65: 0 | F65: =SUM(C65:E65) -> 0 | G65: 8 | H65: 0 | I65: =SUM(G65:H65) -> 8 | J65: 0 | K65: 0
A66: Technicien principal de 2ème classe stagiaire | B66: 0 | C66: 0 | D66: 0 | E66: 0 | F66: =SUM(C66:E66) -> 0 | G66: 0 | H66: 0 | I66: =SUM(G66:H66) -> 0 | J66: 0 | K66: 0
A67: Technicien | B67: 6 | C67: 0 | D67: 0 | E67: 0 | F67: =SUM(C67:E67) -> 0 | G67: 6 | H67: 0 | I67: =SUM(G67:H67) -> 6 | J67: 0 | K67: 0
A68: Technicien stagiaire | B68: 3 | C68: 0 | D68: 0 | E68: 0 | F68: =SUM(C68:E68) -> 0 | G68: 3 | H68: 0 | I68: =SUM(G68:H68) -> 3 | J68: 0 | K68: 0
A69: TECHNICIENS | B69: =SUM(B64:B68) -> 21 | C69: 0 | D69: 0 | E69: 0 | F69: 0 | G69: 19 | H69: 2 | I69: 21 | J69: 0 | K69: 0
A71: Agent de maîtrise principal | B71: 32 | C71: 0 | D71: 0 | E71: 0 | F71: =SUM(C71:E71) -> 0 | G71: 27 | H71: 5 | I71: =SUM(G71:H71) -> 32 | J71: 0 | K71: 0
A72: Agent de maîtrise | B72: 18 | C72: 0 | D72: 0 | E72: 0 | F72: =SUM(C72:E72) -> 0 | G72: 14 | H72: 4 | I72: =SUM(G72:H72) -> 18 | J72: 0 | K72: 0
A73: Agent de maîtrise stagiaire | B73: 0 | C73: 0 | D73: 0 | E73: 0 | F73: =SUM(C73:E73) -> 0 | G73: 0 | H73: 0 | I73: =SUM(G73:H73) -> 0 | J73: 0 | K73: 0
A74: AGENTS DE MAITRISE | B74: =SUM(B71:B73) -> 50 | C74: 0 | D74: 0 | E74: 0 | F74: 0 | G74: 41 | H74: 9 | I74: 50 | J74: 0 | K74: 0
A76: Adjoint technique principal de 1ère classe | B76: 17 | C76: 0 | D76: 0 | E76: 0 | F76: =SUM(C76:E76) -> 0 | G76: 13 | H76: 4 | I76: =SUM(G76:H76) -> 17 | J76: 0 | K76: 0
A77: Adjoint technique principal de 2ème classe | B77: 44 | C77: 0 | D77: 0 | E77: 0 | F77: =SUM(C77:E77) -> 0 | G77: 36 | H77: 8 | I77: =SUM(G77:H77) -> 44 | J77: 0 | K77: 0
A78: Adjoint technique principal de 2ème classe stagiaire | B78: 0 | C78: 0 | D78: 0 | E78: 0 | F78: =SUM(C78:E78) -> 0 | G78: 0 | H78: 0 | I78: =SUM(G78:H78) -> 0 | J78: 0 | K78: 0
A79: Adjoint technique | B79: 21 | C79: 0 | D79: 0 | E79: 0 | F79: =SUM(C79:E79) -> 0 | G79: 16 | H79: 5 | I79: =SUM(G79:H79) -> 21 | J79: 0 | K79: 0
A80: Adjoint technique stagiaire | B80: 9 | C80: 0 | D80: 0 | E80: 0 | F80: =SUM(C80:E80) -> 0 | G80: 7 | H80: 2 | I80: =SUM(G80:H80) -> 9 | J80: 0 | K80: 0
A81: ADJOINTS TECHNIQUES | B81: =SUM(B76:B80) -> 91 | C81: 0 | D81: 0 | E81: 0 | F81: 0 | G81: 72 | H81: 19 | I81: 91 | J81: 0 | K81: 0
A83: Adjoint technique principal des établissements d'enseignement de 1ère classe | B83: 0 | C83: 0 | D83: 0 | E83: 0 | F83: =SUM(C83:E83) -> 0 | G83: 0 | H83: 0 | I83: =SUM(G83:H83) -> 0 | J83: 0 | K83: 0
A84: Adjoint technique principal des établissements d'enseignement de 2ème classe | B84: 0 | C84: 0 | D84: 0 | E84: 0 | F84: =SUM(C84:E84) -> 0 | G84: 0 | H84: 0 | I84: =SUM(G84:H84) -> 0 | J84: 0 | K84: 0
A85: Adjoint technique principal des établissements d'enseignement de 2ème classe stagiaire | B85: 0 | C85: 0 | D85: 0 | E85: 0 | F85: =SUM(C85:E85) -> 0 | G85: 0 | H85: 0 | I85: =SUM(G85:H85) -> 0 | J85: 0 | K85: 0
A86: Adjoint technique des établissements d'enseignement | B86: 0 | C86: 0 | D86: 0 | E86: 0 | F86: =SUM(C86:E86) -> 0 | G86: 0 | H86: 0 | I86: =SUM(G86:H86) -> 0 | J86: 0 | K86: 0
A87: Adjoint technique des établissements d'enseignement stagiaire | B87: 0 | C87: 0 | D87: 0 | E87: 0 | F87: =SUM(C87:E87) -> 0 | G87: 0 | H87: 0 | I87: =SUM(G87:H87) -> 0 | J87: 0 | K87: 0
A88: ADJOINTS TECHNIQUES DES ETABLISSEMENTS D'ENSEIGNEMENT | B88: =SUM(B83:B87) -> 0 | C88: 0 | D88: 0 | E88: 0 | F88: 0 | G88: 0 | H88: 0 | I88: 0 | J88: 0 | K88: 0
A90: FILIERE TECHNIQUE | B90: =B56+B62+B69+B74+B81+B88 -> 208 | C90: 0 | D90: 0 | E90: 0 | F90: 0 | G90: 156 | H90: 52 | I90: 208 | J90: 0 | K90: 0
A92: FILIERE CULTURELLE
A93: Conservateur en chef | B93: 0 | C93: 0 | D93: 0 | E93: 0 | F93: =SUM(C93:E93) -> 0 | G93: 0 | H93: 0 | I93: =SUM(G93:H93) -> 0 | J93: 0 | K93: 0
A94: Conservateur | B94: 0 | C94: 0 | D94: 0 | E94: 0 | F94: =SUM(C94:E94) -> 0 | G94: 0 | H94: 0 | I94: =SUM(G94:H94) -> 0 | J94: 0 | K94: 0
A95: Conservateur stagiaire | B95: 0 | C95: 0 | D95: 0 | E95: 0 | F95: =SUM(C95:E95) -> 0 | G95: 0 | H95: 0 | I95: =SUM(G95:H95) -> 0 | J95: 0 | K95: 0
A96: CONSERVATEURS DU PATRIMOINE | B96: =SUM(B93:B95) -> 0 | C96: 0 | D96: 0 | E96: 0 | F96: 0 | G96: 0 | H96: 0 | I96: 0
A98: Conservateur en chef | B98: 0 | C98: 0 | D98: 0 | E98: 0 | F98: =SUM(C98:E98) -> 0 | G98: 0 | H98: 0 | I98: =SUM(G98:H98) -> 0 | J98: 0 | K98: 0
A99: Conservateur | B99: 0 | C99: 0 | D99: 0 | E99: 0 | F99: =SUM(C99:E99) -> 0 | G99: 0 | H99: 0 | I99: =SUM(G99:H99) -> 0 | J99: 0 | K99: 0
A100: Conservateur stagiaire | B100: 0 | C100: 0 | D100: 0 | E100: 0 | F100: =SUM(C100:E100) -> 0 | G100: 0 | H100: 0 | I100: =SUM(G100:H100) -> 0 | J100: 0 | K100: 0
A101: CONSERVATEURS DES BIBLIOTHEQUES | B101: =SUM(B98:B100) -> 0 | C101: 0 | D101: 0 | E101: 0 | F101: 0 | G101: 0 | H101: 0 | I101: 0
A103: Attaché principal de conservation du patrimoine | B103: 0 | C103: 0 | D103: 0 | E103: 0 | F103: =SUM(C103:E103) -> 0 | G103: 0 | H103: 0 | I103: =SUM(G103:H103) -> 0 | J103: 0 | K103: 0
A104: Attaché de conservation du patrimoine | B104: 1 | C104: 0 | D104: 0 | E104: 0 | F104: =SUM(C104:E104) -> 0 | G104: 0 | H104: 1 | I104: =SUM(G104:H104) -> 1 | J104: 0 | K104: 0
A105: Attaché de conservation du patrimoine stagiaire | B105: 0 | C105: 0 | D105: 0 | E105: 0 | F105: =SUM(C105:E105) -> 0 | G105: 0 | H105: 0 | I105: =SUM(G105:H105) -> 0 | J105: 0 | K105: 0
A106: ATTACHES DE CONSERVATION DU PATRIMOINE | B106: =SUM(B103:B105) -> 1 | C106: 0 | D106: 0 | E106: 0 | F106: 0 | G106: 0 | H106: 1 | I106: 1 | J106: 0 | K106: 0
A108: Bibliothécaire principal | B108: 1 | C108: 0 | D108: 0 | E108: 0 | F108: =SUM(C108:E108) -> 0 | G108: 0 | H108: 1 | I108: =SUM(G108:H108) -> 1 | J108: 0 | K108: 0
A109: Bibliothécaire | B109: 0 | C109: 0 | D109: 0 | E109: 0 | F109: =SUM(C109:E109) -> 0 | G109: 0 | H109: 0 | I109: =SUM(G109:H109) -> 0 | J109: 0 | K109: 0
A110: Bibliothécaire stagiaire | B110: 0 | C110: 0 | D110: 0 | E110: 0 | F110: =SUM(C110:E110) -> 0 | G110: 0 | H110: 0 | I110: =SUM(G110:H110) -> 0 | J110: 0 | K110: 0
A111: BIBLIOTHECAIRES | B111: =SUM(B108:B110) -> 1 | C111: 0 | D111: 0 | E111: 0 | F111: 0 | G111: 0 | H111: 1 | I111: 1 | J111: 0 | K111: 0
A113: Directeur d'établissement d'enseignement artistique de 1ère catégorie | B113: 0 | C113: 0 | D113: 0 | E113: 0 | F113: =SUM(C113:E113) -> 0 | G113: 0 | H113: 0 | I113: =SUM(G113:H113) -> 0 | J113: 0 | K113: 0
A114: Directeur d'établissement d'enseignement artistique de 1ère catégorie stagiaire | B114: 0 | C114: 0 | D114: 0 | E114: 0 | F114: =SUM(C114:E114) -> 0 | G114: 0 | H114: 0 | I114: =SUM(G114:H114) -> 0 | J114: 0 | K114: 0
A115: Directeur d'établissement d'enseignement artistique de 2ème catégorie | B115: 0 | C115: 0 | D115: 0 | E115: 0 | F115: =SUM(C115:E115) -> 0 | G115: 0 | H115: 0 | I115: =SUM(G115:H115) -> 0 | J115: 0 | K115: 0
A116: Directeur d'établissement d'enseignement artistique de 2ème catégorie stagiaire | B116: 0 | C116: 0 | D116: 0 | E116: 0 | F116: =SUM(C116:E116) -> 0 | G116: 0 | H116: 0 | I116: =SUM(G116:H116) -> 0 | J116: 0 | K116: 0
A117: DIRECTEURS D'ETABLISSEMENTS D'ENSEIGNEMENT ARTISTIQUE | B117: =SUM(B113:B116) -> 0 | C117: 0 | D117: 0 | E117: 0 | F117: 0 | G117: 0 | H117: 0 | I117: 0 | J117: 0 | K117: 0
A119: Professeur d'enseignement artistique hors classe | B119: 25 | C119: 1 | D119: 3 | E119: 3 | F119: =SUM(C119:E119) -> 7 | G119: 17 | H119: 15 | I119: =SUM(G119:H119) -> 32 | J119: 0 | K119: 0
A120: Professeur d'enseignement artistique classe normale | B120: 11 | C120: 2 | D120: 0 | E120: 3 | F120: =SUM(C120:E120) -> 5 | G120: 8 | H120: 8 | I120: =SUM(G120:H120) -> 16 | J120: 0 | K120: 0
A121: Professeur d'enseignement artistique stagiaire | B121: 1 | C121: 0 | D121: 0 | E121: 0 | F121: =SUM(C121:E121) -> 0 | G121: 0 | H121: 1 | I121: =SUM(G121:H121) -> 1 | J121: 0 | K121: 0
A122: PROFESSEURS D'ENSEIGNEMENT ARTISTIQUE | B122: =SUM(B119:B121) -> 37 | C122: 3 | D122: 3 | E122: 6 | F122: 12 | G122: 25 | H122: 24 | I122: 49 | J122: 0 | K122: 0
A124: Assistant de conservation principal de 1ère classe | B124: 3 | C124: 0 | D124: 0 | E124: 0 | F124: =SUM(C124:E124) -> 0 | G124: 0 | H124: 3 | I124: =SUM(G124:H124) -> 3 | J124: 0 | K124: 0
A125: Assistant de conservation principal de 2ème classe | B125: 0 | C125: 0 | D125: 0 | E125: 0 | F125: =SUM(C125:E125) -> 0 | G125: 0 | H125: 0 | I125: =SUM(G125:H125) -> 0 | J125: 0 | K125: 0
A126: Assistant de conservation principal de 2ème classe stagiaire | B126: 0 | C126: 0 | D126: 0 | E126: 0 | F126: =SUM(C126:E126) -> 0 | G126: 0 | H126: 0 | I126: =SUM(G126:H126) -> 0 | J126: 0 | K126: 0
A127: Assistant de conservation | B127: 2 | C127: 0 | D127: 0 | E127: 0 | F127: =SUM(C127:E127) -> 0 | G127: 1 | H127: 1 | I127: =SUM(G127:H127) -> 2 | J127: 0 | K127: 0
A128: Assistant de conservation stagiaire | B128: 0 | C128: 0 | D128: 0 | E128: 0 | F128: =SUM(C128:E128) -> 0 | G128: 0 | H128: 0 | I128: =SUM(G128:H128) -> 0 | J128: 0 | K128: 0
A129: ASSISTANTS DE CONSERVATION DU PATRIMOINE ET DES BIBLIOTHEQUES | B129: =SUM(B124:B128) -> 5 | C129: 0 | D129: 0 | E129: 0 | F129: 0 | G129: 1 | H129: 4 | I129: 5 | J129: 0 | K129: 0
A131: Assistant d'enseignement artistique principal de 1ère classe | B131: 4 | C131: 7 | D131: 2 | E131: 0 | F131: =SUM(C131:E131) -> 9 | G131: 9 | H131: 4 | I131: =SUM(G131:H131) -> 13 | J131: 0 | K131: 0
A132: Assistant d'enseignement artistique principal de 2ème classe | B132: 1 | C132: 5 | D132: 1 | E132: 1 | F132: =SUM(C132:E132) -> 7 | G132: 4 | H132: 4 | I132: =SUM(G132:H132) -> 8 | J132: 0 | K132: 0
A133: Assistant d'enseignement artistique principal de 2ème classe stagiaire | B133: 0 | C133: 0 | D133: 0 | E133: 0 | F133: =SUM(C133:E133) -> 0 | G133: 0 | H133: 0 | I133: =SUM(G133:H133) -> 0 | J133: 0 | K133: 0
A134: Assistant d'enseignement artistique | B134: 0 | C134: 0 | D134: 0 | E134: 0 | F134: =SUM(C134:E134) -> 0 | G134: 0 | H134: 0 | I134: =SUM(G134:H134) -> 0 | J134: 0 | K134: 0
A135: Assistant d'enseignement artistique stagiaire | B135: 0 | C135: 0 | D135: 0 | E135: 0 | F135: =SUM(C135:E135) -> 0 | G135: 0 | H135: 0 | I135: =SUM(G135:H135) -> 0 | J135: 0 | K135: 0
A136: ASSISTANTS D'ENSEIGNEMENT ARTISTIQUE | B136: =SUM(B131:B135) -> 5 | C136: 12 | D136: 3 | E136: 1 | F136: 16 | G136: 13 | H136: 8 | I136: 21 | J136: 0 | K136: 0
A138: Adjoint territorial du patrimoine principal de 1ère classe | B138: 2 | C138: 0 | D138: 0 | E138: 0 | F138: =SUM(C138:E138) -> 0 | G138: 0 | H138: 2 | I138: =SUM(G138:H138) -> 2 | J138: 0 | K138: 0
A139: Adjoint territorial du patrimoine principal de 2ème classe | B139: 0 | C139: 0 | D139: 0 | E139: 0 | F139: =SUM(C139:E139) -> 0 | G139: 0 | H139: 0 | I139: =SUM(G139:H139) -> 0 | J139: 0 | K139: 0
A140: Adjoint territorial du patrimoine principal de 2ème classe stagiaire | B140: 0 | C140: 0 | D140: 0 | E140: 0 | F140: =SUM(C140:E140) -> 0 | G140: 0 | H140: 0 | I140: =SUM(G140:H140) -> 0 | J140: 0 | K140: 0
A141: Adjoint territorial du patrimoine | B141: 1 | C141: 0 | D141: 0 | E141: 0 | F141: =SUM(C141:E141) -> 0 | G141: 0 | H141: 1 | I141: =SUM(G141:H141) -> 1 | J141: 0 | K141: 0
A142: Adjoint territorial du patrimoine stagiaire | B142: 0 | C142: 0 | D142: 0 | E142: 0 | F142: =SUM(C142:E142) -> 0 | G142: 0 | H142: 0 | I142: =SUM(G142:H142) -> 0 | J142: 0 | K142: 0
A143: ADJOINTS TERRITORIAUX DU PATRIMOINE | B143: =SUM(B138:B142) -> 3 | C143: 0 | D143: 0 | E143: 0 | F143: 0 | G143: 0 | H143: 3 | I143: 3 | J143: 0 | K143: 0
A145: FILIERE CULTURELLE | B145: =B96+B101+B106+B111+B117+B122+B129+B136+B143 -> 52 | C145: 15 | D145: 6 | E145: 7 | F145: 28 | G145: 39 | H145: 41 | I145: 80 | J145: 0 | K145: 0
A147: FILIERE SPORTIVE
A148: Conseiller principal | B148: 0 | C148: 0 | D148: 0 | E148: 0 | F148: =SUM(C148:E148) -> 0 | G148: 0 | H148: 0 | I148: =SUM(G148:H148) -> 0 | J148: 0 | K148: 0
A149: Conseiller | B149: 2 | C149: 0 | D149: 0 | E149: 0 | F149: =SUM(C149:E149) -> 0 | G149: 1 | H149: 1 | I149: =SUM(G149:H149) -> 2 | J149: 0 | K149: 0
A150: Conseiller stagiaire | B150: 0 | C150: 0 | D150: 0 | E150: 0 | F150: =SUM(C150:E150) -> 0 | G150: 0 | H150: 0 | I150: =SUM(G150:H150) -> 0 | J150: 0 | K150: 0
A151: CONSEILLERS DES APS | B151: =SUM(B148:B150) -> 2 | C151: 0 | D151: 0 | E151: 0 | F151: 0 | G151: 1 | H151: 1 | I151: 2 | J151: 0 | K151: 0
A153: Educateur principal de 1ère classe | B153: 16 | C153: 0 | D153: 0 | E153: 0 | F153: =SUM(C153:E153) -> 0 | G153: 10 | H153: 6 | I153: =SUM(G153:H153) -> 16 | J153: 0 | K153: 0
A154: Educateur principal de 2ème classe | B154: 15 | C154: 0 | D154: 0 | E154: 0 | F154: =SUM(C154:E154) -> 0 | G154: 5 | H154: 10 | I154: =SUM(G154:H154) -> 15 | J154: 0 | K154: 0
A155: Educateur principal stagiaire de 2ème classe | B155: 0 | C155: 0 | D155: 0 | E155: 0 | F155: =SUM(C155:E155) -> 0 | G155: 0 | H155: 0 | I155: =SUM(G155:H155) -> 0 | J155: 0 | K155: 0
A156: Educateur | B156: 4 | C156: 0 | D156: 0 | E156: 0 | F156: =SUM(C156:E156) -> 0 | G156: 3 | H156: 1 | I156: =SUM(G156:H156) -> 4 | J156: 0 | K156: 0
A157: Educateur stagiaire | B157: 0 | C157: 0 | D157: 0 | E157: 0 | F157: =SUM(C157:E157) -> 0 | G157: 0 | H157: 0 | I157: =SUM(G157:H157) -> 0 | J157: 0 | K157: 0
A158: EDUCATEURS DES APS | B158: =SUM(B153:B157) -> 35 | C158: 0 | D158: 0 | E158: 0 | F158: 0 | G158: 18 | H158: 17 | I158: 35 | J158: 0 | K158: 0
A160: Opérateur principal | B160: 0 | C160: 0 | D160: 0 | E160: 0 | F160: =SUM(C160:E160) -> 0 | G160: 0 | H160: 0 | I160: =SUM(G160:H160) -> 0 | J160: 0 | K160: 0
A161: Opérateur qualifié | B161: 0 | C161: 0 | D161: 0 | E161: 0 | F161: =SUM(C161:E161) -> 0 | G161: 0 | H161: 0 | I161: =SUM(G161:H161) -> 0 | J161: 0 | K161: 0
A162: Opérateur qualifié stagiaire | B162: 0 | C162: 0 | D162: 0 | E162: 0 | F162: =SUM(C162:E162) -> 0 | G162: 0 | H162: 0 | I162: =SUM(G162:H162) -> 0 | J162: 0 | K162: 0
A163: Opérateur | B163: 0 | C163: 0 | D163: 0 | E163: 0 | F163: =SUM(C163:E163) -> 0 | G163: 0 | H163: 0 | I163: =SUM(G163:H163) -> 0 | J163: 0 | K163: 0
A164: OPERATEURS DES APS | B164: =SUM(B160:B163) -> 0 | C164: 0 | D164: 0 | E164: 0 | F164: 0 | G164: 0 | H164: 0 | I164: 0 | J164: 0 | K164: 0
A166: FILIERE SPORTIVE | B166: =B151+B158+B164 -> 37 | C166: 0 | D166: 0 | E166: 0 | F166: 0 | G166: 19 | H166: 18 | I166: 37 | J166: 0 | K166: 0
A168: FILIERE SOCIALE
A169: Conseiller hors classe socio-éducatif | B169: 0 | C169: 0 | D169: 0 | E169: 0 | F169: =SUM(C169:E169) -> 0 | G169: 0 | H169: 0 | I169: =SUM(G169:H169) -> 0 | J169: 0 | K169: 0
A170: Conseiller supérieur socio-éducatif | B170: 1 | C170: 0 | D170: 0 | E170: 0 | F170: =SUM(C170:E170) -> 0 | G170: 1 | H170: 0 | I170: =SUM(G170:H170) -> 1 | J170: 0 | K170: 0
A171: Conseiller socio-éducatif | B171: 0 | C171: 0 | D171: 0 | E171: 0 | F171: =SUM(C171:E171) -> 0 | G171: 0 | H171: 0 | I171: =SUM(G171:H171) -> 0 | J171: 0 | K171: 0
A172: Conseiller socio-éducatif stagiaire | B172: 0 | C172: 0 | D172: 0 | E172: 0 | F172: =SUM(C172:E172) -> 0 | G172: 0 | H172: 0 | I172: =SUM(G172:H172) -> 0 | J172: 0 | K172: 0
A173: CONSEILLERS SOCIO-EDUCATIFS | B173: =SUM(B169:B172) -> 1 | C173: 0 | D173: 0 | E173: 0 | F173: 0 | G173: 1 | H173: 0 | I173: 1 | J173: 0 | K173: 0
A175: Assistant socio-éducatif de classe exceptionnelle | B175: 0 | C175: 0 | D175: 0 | E175: 0 | F175: =SUM(C175:E175) -> 0 | G175: 0 | H175: 0 | I175: =SUM(G175:H175) -> 0 | J175: 0 | K175: 0
A176: Assistant socio-éducatif | B176: 0 | C176: 0 | D176: 0 | E176: 0 | F176: =SUM(C176:E176) -> 0 | G176: 0 | H176: 0 | I176: =SUM(G176:H176) -> 0 | J176: 0 | K176: 0
A178: Assistant socio-éducatif de 2ème classe stagiaire | B178: 0 | C178: 0 | D178: 0 | E178: 0 | F178: =SUM(C178:E178) -> 0 | G178: 0 | H178: 0 | I178: =SUM(G178:H178) -> 0 | J178: 0 | K178: 0
A179: ASSISTANTS SOCIO-EDUCATIFS | B179: =SUM(B175:B178) -> 0 | C179: 0 | D179: 0 | E179: 0 | F179: 0 | G179: 0 | H179: 0 | I179: 0 | J179: 0 | K179: 0
A181: Educateur de jeunes enfants de classe exceptionnelle | B181: 0 | C181: 0 | D181: 0 | E181: 0 | F181: =SUM(C181:E181) -> 0 | G181: 0 | H181: 0 | I181: =SUM(G181:H181) -> 0 | J181: 0 | K181: 0
A182: Educateur de jeunes enfants | B182: 0 | C182: 0 | D182: 0 | E182: 0 | F182: =SUM(C182:E182) -> 0 | G182: 0 | H182: 0 | I182: =SUM(G182:H182) -> 0 | J182: 0 | K182: 0
A184: Educateur de jeunes enfants de 2ème classe stagiaire | B184: 0 | C184: 0 | D184: 0 | E184: 0 | F184: =SUM(C184:E184) -> 0 | G184: 0 | H184: 0 | I184: =SUM(G184:H184) -> 0 | J184: 0 | K184: 0
A185: EDUCATEURS DE JEUNES ENFANTS | B185: =SUM(B181:B184) -> 0 | C185: 0 | D185: 0 | E185: 0 | F185: 0 | G185: 0 | H185: 0 | I185: 0 | J185: 0 | K185: 0
A187: Moniteur-éducateur et intervenant familial principal | B187: 0 | C187: 0 | D187: 0 | E187: 0 | F187: =SUM(C187:E187) -> 0 | G187: 0 | H187: 0 | I187: =SUM(G187:H187) -> 0 | J187: 0 | K187: 0
A188: Moniteur-éducateur et intervenant familial | B188: 0 | C188: 0 | D188: 0 | E188: 0 | F188: =SUM(C188:E188) -> 0 | G188: 0 | H188: 0 | I188: =SUM(G188:H188) -> 0 | J188: 0 | K188: 0
A189: Moniteur-éducateur et intervenant familial stagiaire | B189: 0 | C189: 0 | D189: 0 | E189: 0 | F189: =SUM(C189:E189) -> 0 | G189: 0 | H189: 0 | I189: =SUM(G189:H189) -> 0 | J189: 0 | K189: 0
A190: MONITEURS EDUCATEURS ET INTERVENANTS FAMILIAUX | B190: =SUM(B187:B189) -> 0 | C190: 0 | D190: 0 | E190: 0 | F190: 0 | G190: 0 | H190: 0 | I190: 0 | J190: 0 | K190: 0
A192: Agent spécialisé principal de 1ère classe des écoles maternelles | B192: 0 | C192: 0 | D192: 0 | E192: 0 | F192: =SUM(C192:E192) -> 0 | G192: 0 | H192: 0 | I192: =SUM(G192:H192) -> 0 | J192: 0 | K192: 0
A193: Agent spécialisé principal de 2ème classe des écoles maternelles | B193: 0 | C193: 0 | D193: 0 | E193: 0 | F193: =SUM(C193:E193) -> 0 | G193: 0 | H193: 0 | I193: =SUM(G193:H193) -> 0 | J193: 0 | K193: 0
A194: Agent spécialisé principal de 2ème classe des écoles maternelles stagiaire | B194: 0 | C194: 0 | D194: 0 | E194: 0 | F194: =SUM(C194:E194) -> 0 | G194: 0 | H194: 0 | I194: =SUM(G194:H194) -> 0 | J194: 0 | K194: 0
A195: ASEM | B195: =SUM(B192:B194) -> 0 | C195: 0 | D195: 0 | E195: 0 | F195: 0 | G195: 0 | H195: 0 | I195: 0 | J195: 0 | K195: 0
A197: Agent social principal de 1ère classe | B197: 0 | C197: 0 | D197: 0 | E197: 0 | F197: =SUM(C197:E197) -> 0 | G197: 0 | H197: 0 | I197: =SUM(G197:H197) -> 0 | J197: 0 | K197: 0
A198: Agent social principal de 2ème classe | B198: 0 | C198: 0 | D198: 0 | E198: 0 | F198: =SUM(C198:E198) -> 0 | G198: 0 | H198: 0 | I198: =SUM(G198:H198) -> 0 | J198: 0 | K198: 0
A199: Agent social principal de 2ème classe stagiaire | B199: 0 | C199: 0 | D199: 0 | E199: 0 | F199: =SUM(C199:E199) -> 0 | G199: 0 | H199: 0 | I199: =SUM(G199:H199) -> 0 | J199: 0 | K199: 0
A200: Agent social | B200: 0 | C200: 0 | D200: 0 | E200: 0 | F200: =SUM(C200:E200) -> 0 | G200: 0 | H200: 0 | I200: =SUM(G200:H200) -> 0 | J200: 0 | K200: 0
A201: Agent social stagiaire | B201: 0 | C201: 0 | D201: 0 | E201: 0 | F201: =SUM(C201:E201) -> 0 | G201: 0 | H201: 0 | I201: =SUM(G201:H201) -> 0 | J201: 0 | K201: 0
A202: AGENTS SOCIAUX | B202: =SUM(B197:B201) -> 0 | C202: 0 | D202: 0 | E202: 0 | F202: 0 | G202: 0 | H202: 0 | I202: 0 | J202: 0 | K202: 0
A204: FILIERE SOCIALE | B204: =B173+B179+B185+B190+B195+B202 -> 1 | C204: 0 | D204: 0 | E204: 0 | F204: 0 | G204: 1 | H204: 0 | I204: 1 | J204: 0 | K204: 0
A206: FILIERE MEDICO-SOCIALE
A207: Médecin hors classe | B207: 0 | C207: 0 | D207: 0 | E207: 0 | F207: =SUM(C207:E207) -> 0 | G207: 0 | H207: 0 | I207: =SUM(G207:H207) -> 0 | J207: 0 | K207: 0
A208: Médecin de 1ère classe | B208: 0 | C208: 0 | D208: 0 | E208: 0 | F208: =SUM(C208:E208) -> 0 | G208: 0 | H208: 0 | I208: =SUM(G208:H208) -> 0 | J208: 0 | K208: 0
A209: Médecin de 2ème classe | B209: 0 | C209: 0 | D209: 0 | E209: 0 | F209: =SUM(C209:E209) -> 0 | G209: 0 | H209: 0 | I209: =SUM(G209:H209) -> 0 | J209: 0 | K209: 0
A210: Médecin de 2ème classe stagiaire | B210: 0 | C210: 0 | D210: 0 | E210: 0 | F210: =SUM(C210:E210) -> 0 | G210: 0 | H210: 0 | I210: =SUM(G210:H210) -> 0 | J210: 0 | K210: 0
A211: MEDECINS | B211: =SUM(B207:B210) -> 0 | C211: 0 | D211: 0 | E211: 0 | F211: 0 | G211: 0 | H211: 0 | I211: 0 | J211: =SUM(J207:J210) -> 0 | K211: 0
A213: Psychologue hors classe | B213: 0 | C213: 0 | D213: 0 | E213: 0 | F213: =SUM(C213:E213) -> 0 | G213: 0 | H213: 0 | I213: =SUM(G213:H213) -> 0 | J213: 0 | K213: 0
A214: Psychologue de classe normale | B214: 0 | C214: 0 | D214: 0 | E214: 0 | F214: =SUM(C214:E214) -> 0 | G214: 0 | H214: 0 | I214: =SUM(G214:H214) -> 0 | J214: 0 | K214: 0
A215: Psycholoque de classe normale stagiaire | B215: 0 | C215: 0 | D215: 0 | E215: 0 | F215: =SUM(C215:E215) -> 0 | G215: 0 | H215: 0 | I215: =SUM(G215:H215) -> 0 | J215: 0 | K215: 0
A216: PSYCHOLOGUES | B216: =SUM(B213:B215) -> 0 | C216: 0 | D216: 0 | E216: 0 | F216: 0 | G216: 0 | H216: 0 | I216: 0 | J216: =SUM(J213:J215) -> 0 | K216: 0
A218: Sage-femme hors classe | B218: 0 | C218: 0 | D218: 0 | E218: 0 | F218: =SUM(C218:E218) -> 0 | G218: 0 | H218: 0 | I218: =SUM(G218:H218) -> 0 | J218: 0 | K218: 0
A219: Sage-femme de classe normale | B219: 0 | C219: 0 | D219: 0 | E219: 0 | F219: =SUM(C219:E219) -> 0 | G219: 0 | H219: 0 | I219: =SUM(G219:H219) -> 0 | J219: 0 | K219: 0
A220: Sage-femme de classe normale stagiaire | B220: 0 | C220: 0 | D220: 0 | E220: 0 | F220: =SUM(C220:E220) -> 0 | G220: 0 | H220: 0 | I220: =SUM(G220:H220) -> 0 | J220: 0 | K220: 0
A221: SAGES-FEMMES | B221: =SUM(B218:B220) -> 0 | C221: 0 | D221: 0 | E221: 0 | F221: 0 | G221: 0 | H221: 0 | I221: 0 | J221: =SUM(J218:J220) -> 0 | K221: 0
A223: Cadre supérieur de santé | B223: 0 | C223: 0 | D223: 0 | E223: 0 | F223: =SUM(C223:E223) -> 0 | G223: 0 | H223: 0 | I223: =SUM(G223:H223) -> 0 | J223: 0 | K223: 0
A224: Cadré de santé de 1ère classe | B224: 0 | C224: 0 | D224: 0 | E224: 0 | F224: =SUM(C224:E224) -> 0 | G224: 0 | H224: 0 | I224: =SUM(G224:H224) -> 0 | J224: 0 | K224: 0
A225: Cadre de santé de 2ème classe | B225: 0 | C225: 0 | D225: 0 | E225: 0 | F225: =SUM(C225:E225) -> 0 | G225: 0 | H225: 0 | I225: =SUM(G225:H225) -> 0 | J225: 0 | K225: 0
A226: Cadre de santé de 2ème classe stagiaire | B226: 0 | C226: 0 | D226: 0 | E226: 0 | F226: =SUM(C226:E226) -> 0 | G226: 0 | H226: 0 | I226: =SUM(G226:H226) -> 0 | J226: 0 | K226: 0
A227: CADRES DE SANTE PARAMEDICAUX | B227: =SUM(B223:B226) -> 0 | C227: 0 | D227: 0 | E227: 0 | F227: 0 | G227: 0 | H227: 0 | I227: 0 | J227: =SUM(J223:J226) -> 0 | K227: 0
A229: Puéricultrice-cadre supérieur de santé | B229: 0 | C229: 0 | D229: 0 | E229: 0 | F229: =SUM(C229:E229) -> 0 | G229: 0 | H229: 0 | I229: =SUM(G229:H229) -> 0 | J229: 0 | K229: 0
A230: Puéricultrice-cadre de santé | B230: 0 | C230: 0 | D230: 0 | E230: 0 | F230: =SUM(C230:E230) -> 0 | G230: 0 | H230: 0 | I230: =SUM(G230:H230) -> 0 | J230: 0 | K230: 0
A231: PUERICULTRICES-CADRES DE SANTE | B231: =SUM(B229:B230) -> 0 | C231: 0 | D231: 0 | E231: 0 | F231: 0 | G231: 0 | H231: 0 | I231: 0 | J231: =SUM(J229:J230) -> 0 | K231: 0
A233: Puéricultrice de classe supérieure | B233: 0 | C233: 0 | D233: 0 | E233: 0 | F233: =SUM(C233:E233) -> 0 | G233: 0 | H233: 0 | I233: =SUM(G233:H233) -> 0 | J233: 0 | K233: 0
A234: Puéricultrice de classe normale | B234: 0 | C234: 0 | D234: 0 | E234: 0 | F234: =SUM(C234:E234) -> 0 | G234: 0 | H234: 0 | I234: =SUM(G234:H234) -> 0 | J234: 0 | K234: 0
A235: PUERICULTRICES (décret n° 92-859 du 28 août 1992 modifié) * | B235: =SUM(B233:B234) -> 0 | C235: 0 | D235: 0 | E235: 0 | F235: 0 | G235: 0 | H235: 0 | I235: 0 | J235: =SUM(J233:J234) -> 0 | K235: 0
A237: Puéricultrice hors classe | B237: 0 | C237: 0 | D237: 0 | E237: 0 | F237: =SUM(C237:E237) -> 0 | G237: 0 | H237: 0 | I237: =SUM(G237:H237) -> 0 | J237: 0 | K237: 0
A238: Puéricultrice de classe supérieure | B238: 0 | C238: 0 | D238: 0 | E238: 0 | F238: =SUM(C238:E238) -> 0 | G238: 0 | H238: 0 | I238: =SUM(G238:H238) -> 0 | J238: 0 | K238: 0
A239: Puéricultrice de classe normale | B239: 0 | C239: 0 | D239: 0 | E239: 0 | F239: =SUM(C239:E239) -> 0 | G239: 0 | H239: 0 | I239: =SUM(G239:H239) -> 0 | J239: 0 | K239: 0
A240: Puéricultrice de classe normale stagiaire | B240: 0 | C240: 0 | D240: 0 | E240: 0 | F240: =SUM(C240:E240) -> 0 | G240: 0 | H240: 0 | I240: =SUM(G240:H240) -> 0 | J240: 0 | K240: 0
A241: PUERICULTRICES (décret n° 2014-923 du 18 août 2014) * | B241: =SUM(B237:B240) -> 0 | C241: 0 | D241: 0 | E241: 0 | F241: 0 | G241: 0 | H241: 0 | I241: 0 | J241: =SUM(J237:J240) -> 0 | K241: 0
A243: Cadre de santé | B243: 0 | C243: 0 | D243: 0 | E243: 0 | F243: =SUM(C243:E243) -> 0 | G243: 0 | H243: 0 | I243: =SUM(G243:H243) -> 0 | J243: 0 | K243: 0
A244: CADRES DE SANTE INFIRMIERS, REEDUCATEURS ET ASSISTANTS MEDICO-TECHNIQUES | B244: =SUM(B243:B243) -> 0 | C244: 0 | D244: 0 | E244: 0 | F244: 0 | G244: 0 | H244: 0 | I244: 0 | J244: =SUM(J243:J243) -> 0 | K244: 0
A246: Infirmier en soins généraux hors classe | B246: 0 | C246: 0 | D246: 0 | E246: 0 | F246: =SUM(C246:E246) -> 0 | G246: 0 | H246: 0 | I246: =SUM(G246:H246) -> 0 | J246: 0 | K246: 0
A247: Infirmier en soins généraux de classe supérieure | B247: 0 | C247: 0 | D247: 0 | E247: 0 | F247: =SUM(C247:E247) -> 0 | G247: 0 | H247: 0 | I247: =SUM(G247:H247) -> 0 | J247: 0 | K247: 0
A248: infirmier en soins généraux de classe normale | B248: 0 | C248: 0 | D248: 0 | E248: 0 | F248: =SUM(C248:E248) -> 0 | G248: 0 | H248: 0 | I248: =SUM(G248:H248) -> 0 | J248: 0 | K248: 0
A249: Infirmier en soins généraux de classe normale stagiaire | B249: 0 | C249: 0 | D249: 0 | E249: 0 | F249: =SUM(C249:E249) -> 0 | G249: 0 | H249: 0 | I249: =SUM(G249:H249) -> 0 | J249: 0 | K249: 0
A250: INFIRMIERS EN SOINS GENERAUX | B250: =SUM(B246:B249) -> 0 | C250: 0 | D250: 0 | E250: 0 | F250: 0 | G250: 0 | H250: 0 | I250: 0 | J250: =SUM(J246:J249) -> 0 | K250: 0
... 115 more rows

Sheet 111 (hidden)
A1: 11111111111111 | B1: 2022 | C1: 111 | D1: TAD3 | E1: 0 | F1: 0 | G1: 0 | H1: 0 | I1: 0 | J1: 0 | K1: 0 | L1: 0
A2: 11111111111111 | B2: 2022 | C2: 111 | D2: TAD2 | E2: 0 | F2: 0 | G2: 0 | H2: 0 | I2: 0 | J2: 0 | K2: 0 | L2: 0
A3: 11111111111111 | B3: 2022 | C3: 111 | D3: TAD1 | E3: 0 | F3: 0 | G3: 0 | H3: 0 | I3: 0 | J3: 0 | K3: 0 | L3: 0
A4: 11111111111111 | B4: 2022 | C4: 111 | D4: SAD1 | E4: 0 | F4: 0 | G4: 0 | H4: 0 | I4: 0 | J4: 0 | K4: 0 | L4: 0
A5: 11111111111111 | B5: 2022 | C5: 111 | D5: TAT4 | E5: 0 | F5: 0 | G5: 0 | H5: 0 | I5: 0 | J5: 0 | K5: 0 | L5: 0
A6: 11111111111111 | B6: 2022 | C6: 111 | D6: TAT3 | E6: 0 | F6: 0 | G6: 0 | H6: 0 | I6: 0 | J6: 0 | K6: 0 | L6: 0
A7: 11111111111111 | B7: 2022 | C7: 111 | D7: TAT2 | E7: 0 | F7: 0 | G7: 0 | H7: 0 | I7: 0 | J7: 0 | K7: 0 | L7: 0
A8: 11111111111111 | B8: 2022 | C8: 111 | D8: TAT1 | E8: 0 | F8: 0 | G8: 0 | H8: 0 | I8: 0 | J8: 0 | K8: 0 | L8: 0
A9: 11111111111111 | B9: 2022 | C9: 111 | D9: SAT1 | E9: 0 | F9: 0 | G9: 0 | H9: 0 | I9: 0 | J9: 0 | K9: 0 | L9: 0
A10: 11111111111111 | B10: 2022 | C10: 111 | D10: TAS1 | E10: 0 | F10: 0 | G10: 0 | H10: 0 | I10: 0 | J10: 0 | K10: 0 | L10: 0
A11: 11111111111111 | B11: 2022 | C11: 111 | D11: TAR3 | E11: 0 | F11: 0 | G11: 0 | H11: 0 | I11: 0 | J11: 0 | K11: 0 | L11: 0
A12: 11111111111111 | B12: 2022 | C12: 111 | D12: TAR2 | E12: 0 | F12: 0 | G12: 0 | H12: 0 | I12: 0 | J12: 0 | K12: 0 | L12: 0
A13: 11111111111111 | B13: 2022 | C13: 111 | D13: SAR2 | E13: 0 | F13: 0 | G13: 0 | H13: 0 | I13: 0 | J13: 0 | K13: 0 | L13: 0
A14: 11111111111111 | B14: 2022 | C14: 111 | D14: TAR1 | E14: 0 | F14: 0 | G14: 0 | H14: 0 | I14: 0 | J14: 0 | K14: 0 | L14: 0
A15: 11111111111111 | B15: 2022 | C15: 111 | D15: SAR1 | E15: 0 | F15: 0 | G15: 0 | H15: 0 | I15: 0 | J15: 0 | K15: 0 | L15: 0
A16: 11111111111111 | B16: 2022 | C16: 111 | D16: TAJ4 | E16: 0 | F16: 0 | G16: 0 | H16: 0 | I16: 0 | J16: 0 | K16: 0 | L16: 0
A17: 11111111111111 | B17: 2022 | C17: 111 | D17: TAJ3 | E17: 0 | F17: 0 | G17: 0 | H17: 0 | I17: 0 | J17: 0 | K17: 0 | L17: 0
A18: 11111111111111 | B18: 2022 | C18: 111 | D18: SAJ3 | E18: 0 | F18: 0 | G18: 0 | H18: 0 | I18: 0 | J18: 0 | K18: 0 | L18: 0
A19: 11111111111111 | B19: 2022 | C19: 111 | D19: TAJ1 | E19: 0 | F19: 0 | G19: 0 | H19: 0 | I19: 0 | J19: 0 | K19: 0 | L19: 0
A20: 11111111111111 | B20: 2022 | C20: 111 | D20: SAJ1 | E20: 0 | F20: 0 | G20: 0 | H20: 0 | I20: 0 | J20: 0 | K20: 0 | L20: 0
A21: 11111111111111 | B21: 2022 | C21: 111 | D21: TTN3 | E21: 0 | F21: 0 | G21: 0 | H21: 0 | I21: 0 | J21: 0 | K21: 0 | L21: 0
A22: 11111111111111 | B22: 2022 | C22: 111 | D22: TTN2 | E22: 0 | F22: 0 | G22: 0 | H22: 0 | I22: 0 | J22: 0 | K22: 0 | L22: 0
A23: 11111111111111 | B23: 2022 | C23: 111 | D23: TTN1 | E23: 0 | F23: 0 | G23: 0 | H23: 0 | I23: 0 | J23: 0 | K23: 0 | L23: 0
A24: 11111111111111 | B24: 2022 | C24: 111 | D24: STN1 | E24: 0 | F24: 0 | G24: 0 | H24: 0 | I24: 0 | J24: 0 | K24: 0 | L24: 0
A25: 11111111111111 | B25: 2022 | C25: 111 | D25: TTP3 | E25: 0 | F25: 0 | G25: 0 | H25: 0 | I25: 0 | J25: 0 | K25: 0 | L25: 0
A26: 11111111111111 | B26: 2022 | C26: 111 | D26: TTP2 | E26: 0 | F26: 0 | G26: 0 | H26: 0 | I26: 0 | J26: 0 | K26: 0 | L26: 0
A27: 11111111111111 | B27: 2022 | C27: 111 | D27: TTP1 | E27: 0 | F27: 0 | G27: 0 | H27: 0 | I27: 0 | J27: 0 | K27: 0 | L27: 0
A28: 11111111111111 | B28: 2022 | C28: 111 | D28: STP1 | E28: 0 | F28: 0 | G28: 0 | H28: 0 | I28: 0 | J28: 0 | K28: 0 | L28: 0
A29: 11111111111111 | B29: 2022 | C29: 111 | D29: TTT3 | E29: 0 | F29: 0 | G29: 0 | H29: 0 | I29: 0 | J29: 0 | K29: 0 | L29: 0
A30: 11111111111111 | B30: 2022 | C30: 111 | D30: TTT2 | E30: 0 | F30: 0 | G30: 0 | H30: 0 | I30: 0 | J30: 0 | K30: 0 | L30: 0
A31: 11111111111111 | B31: 2022 | C31: 111 | D31: STT2 | E31: 0 | F31: 0 | G31: 0 | H31: 0 | I31: 0 | J31: 0 | K31: 0 | L31: 0
A32: 11111111111111 | B32: 2022 | C32: 111 | D32: TTT1 | E32: 0 | F32: 0 | G32: 0 | H32: 0 | I32: 0 | J32: 0 | K32: 0 | L32: 0
A33: 11111111111111 | B33: 2022 | C33: 111 | D33: STT1 | E33: 0 | F33: 0 | G33: 0 | H33: 0 | I33: 0 | J33: 0 | K33: 0 | L33: 0
A34: 11111111111111 | B34: 2022 | C34: 111 | D34: TTM2 | E34: 0 | F34: 0 | G34: 0 | H34: 0 | I34: 0 | J34: 0 | K34: 0 | L34: 0
A35: 11111111111111 | B35: 2022 | C35: 111 | D35: TTM1 | E35: 0 | F35: 0 | G35: 0 | H35: 0 | I35: 0 | J35: 0 | K35: 0 | L35: 0
A36: 11111111111111 | B36: 2022 | C36: 111 | D36: STM1 | E36: 0 | F36: 0 | G36: 0 | H36: 0 | I36: 0 | J36: 0 | K36: 0 | L36: 0
A37: 11111111111111 | B37: 2022 | C37: 111 | D37: TTH4 | E37: 0 | F37: 0 | G37: 0 | H37: 0 | I37: 0 | J37: 0 | K37: 0 | L37: 0
A38: 11111111111111 | B38: 2022 | C38: 111 | D38: TTH3 | E38: 0 | F38: 0 | G38: 0 | H38: 0 | I38: 0 | J38: 0 | K38: 0 | L38: 0
A39: 11111111111111 | B39: 2022 | C39: 111 | D39: STH3 | E39: 0 | F39: 0 | G39: 0 | H39: 0 | I39: 0 | J39: 0 | K39: 0 | L39: 0
A40: 11111111111111 | B40: 2022 | C40: 111 | D40: TTH1 | E40: 0 | F40: 0 | G40: 0 | H40: 0 | I40: 0 | J40: 0 | K40: 0 | L40: 0
A41: 11111111111111 | B41: 2022 | C41: 111 | D41: STH1 | E41: 0 | F41: 0 | G41: 0 | H41: 0 | I41: 0 | J41: 0 | K41: 0 | L41: 0
A42: 11111111111111 | B42: 2022 | C42: 111 | D42: TTA4 | E42: 0 | F42: 0 | G42: 0 | H42: 0 | I42: 0 | J42: 0 | K42: 0 | L42: 0
A43: 11111111111111 | B43: 2022 | C43: 111 | D43: TTA3 | E43: 0 | F43: 0 | G43: 0 | H43: 0 | I43: 0 | J43: 0 | K43: 0 | L43: 0
A44: 11111111111111 | B44: 2022 | C44: 111 | D44: STA3 | E44: 0 | F44: 0 | G44: 0 | H44: 0 | I44: 0 | J44: 0 | K44: 0 | L44: 0
A45: 11111111111111 | B45: 2022 | C45: 111 | D45: TTA2 | E45: 0 | F45: 0 | G45: 0 | H45: 0 | I45: 0 | J45: 0 | K45: 0 | L45: 0
A46: 11111111111111 | B46: 2022 | C46: 111 | D46: STA2 | E46: 0 | F46: 0 | G46: 0 | H46: 0 | I46: 0 | J46: 0 | K46: 0 | L46: 0
A47: 11111111111111 | B47: 2022 | C47: 111 | D47: TCM3 | E47: 0 | F47: 0 | G47: 0 | H47: 0 | I47: 0 | J47: 0 | K47: 0 | L47: 0
A48: 11111111111111 | B48: 2022 | C48: 111 | D48: TCM2 | E48: 0 | F48: 0 | G48: 0 | H48: 0 | I48: 0 | J48: 0 | K48: 0 | L48: 0
A49: 11111111111111 | B49: 2022 | C49: 111 | D49: SCM1 | E49: 0 | F49: 0 | G49: 0 | H49: 0 | I49: 0 | J49: 0 | K49: 0 | L49: 0
A50: 11111111111111 | B50: 2022 | C50: 111 | D50: TCH2 | E50: 0 | F50: 0 | G50: 0 | H50: 0 | I50: 0 | J50: 0 | K50: 0 | L50: 0
A51: 11111111111111 | B51: 2022 | C51: 111 | D51: TCH1 | E51: 0 | F51: 0 | G51: 0 | H51: 0 | I51: 0 | J51: 0 | K51: 0 | L51: 0
A52: 11111111111111 | B52: 2022 | C52: 111 | D52: SCH1 | E52: 0 | F52: 0 | G52: 0 | H52: 0 | I52: 0 | J52: 0 | K52: 0 | L52: 0
A53: 11111111111111 | B53: 2022 | C53: 111 | D53: TCA2 | E53: 0 | F53: 0 | G53: 0 | H53: 0 | I53: 0 | J53: 0 | K53: 0 | L53: 0
A54: 11111111111111 | B54: 2022 | C54: 111 | D54: TCA1 | E54: 0 | F54: 0 | G54: 0 | H54: 0 | I54: 0 | J54: 0 | K54: 0 | L54: 0
A55: 11111111111111 | B55: 2022 | C55: 111 | D55: SCA1 | E55: 0 | F55: 0 | G55: 0 | H55: 0 | I55: 0 | J55: 0 | K55: 0 | L55: 0
A56: 11111111111111 | B56: 2022 | C56: 111 | D56: TCB2 | E56: 0 | F56: 0 | G56: 0 | H56: 0 | I56: 0 | J56: 0 | K56: 0 | L56: 0
A57: 11111111111111 | B57: 2022 | C57: 111 | D57: TCB1 | E57: 0 | F57: 0 | G57: 0 | H57: 0 | I57: 0 | J57: 0 | K57: 0 | L57: 0
A58: 11111111111111 | B58: 2022 | C58: 111 | D58: SCB1 | E58: 0 | F58: 0 | G58: 0 | H58: 0 | I58: 0 | J58: 0 | K58: 0 | L58: 0
A59: 11111111111111 | B59: 2022 | C59: 111 | D59: TCD2 | E59: 0 | F59: 0 | G59: 0 | H59: 0 | I59: 0 | J59: 0 | K59: 0 | L59: 0
A60: 11111111111111 | B60: 2022 | C60: 111 | D60: SCD2 | E60: 0 | F60: 0 | G60: 0 | H60: 0 | I60: 0 | J60: 0 | K60: 0 | L60: 0
A61: 11111111111111 | B61: 2022 | C61: 111 | D61: TCD1 | E61: 0 | F61: 0 | G61: 0 | H61: 0 | I61: 0 | J61: 0 | K61: 0 | L61: 0
A62: 11111111111111 | B62: 2022 | C62: 111 | D62: SCD1 | E62: 0 | F62: 0 | G62: 0 | H62: 0 | I62: 0 | J62: 0 | K62: 0 | L62: 0
A63: 11111111111111 | B63: 2022 | C63: 111 | D63: TCP2 | E63: 0 | F63: 0 | G63: 0 | H63: 0 | I63: 0 | J63: 0 | K63: 0 | L63: 0
A64: 11111111111111 | B64: 2022 | C64: 111 | D64: TCP1 | E64: 0 | F64: 0 | G64: 0 | H64: 0 | I64: 0 | J64: 0 | K64: 0 | L64: 0
A65: 11111111111111 | B65: 2022 | C65: 111 | D65: SCP1 | E65: 0 | F65: 0 | G65: 0 | H65: 0 | I65: 0 | J65: 0 | K65: 0 | L65: 0
A66: 11111111111111 | B66: 2022 | C66: 111 | D66: TCG3 | E66: 0 | F66: 0 | G66: 0 | H66: 0 | I66: 0 | J66: 0 | K66: 0 | L66: 0
A67: 11111111111111 | B67: 2022 | C67: 111 | D67: TCG2 | E67: 0 | F67: 0 | G67: 0 | H67: 0 | I67: 0 | J67: 0 | K67: 0 | L67: 0
A68: 11111111111111 | B68: 2022 | C68: 111 | D68: SCG2 | E68: 0 | F68: 0 | G68: 0 | H68: 0 | I68: 0 | J68: 0 | K68: 0 | L68: 0
A69: 11111111111111 | B69: 2022 | C69: 111 | D69: TCG1 | E69: 0 | F69: 0 | G69: 0 | H69: 0 | I69: 0 | J69: 0 | K69: 0 | L69: 0
A70: 11111111111111 | B70: 2022 | C70: 111 | D70: SCG1 | E70: 0 | F70: 0 | G70: 0 | H70: 0 | I70: 0 | J70: 0 | K70: 0 | L70: 0
A71: 11111111111111 | B71: 2022 | C71: 111 | D71: TCS3 | E71: 0 | F71: 0 | G71: 0 | H71: 0 | I71: 0 | J71: 0 | K71: 0 | L71: 0
A72: 11111111111111 | B72: 2022 | C72: 111 | D72: TCS2 | E72: 0 | F72: 0 | G72: 0 | H72: 0 | I72: 0 | J72: 0 | K72: 0 | L72: 0
A73: 11111111111111 | B73: 2022 | C73: 111 | D73: SCS2 | E73: 0 | F73: 0 | G73: 0 | H73: 0 | I73: 0 | J73: 0 | K73: 0 | L73: 0
A74: 11111111111111 | B74: 2022 | C74: 111 | D74: TCS1 | E74: 0 | F74: 0 | G74: 0 | H74: 0 | I74: 0 | J74: 0 | K74: 0 | L74: 0
A75: 11111111111111 | B75: 2022 | C75: 111 | D75: SCS1 | E75: 0 | F75: 0 | G75: 0 | H75: 0 | I75: 0 | J75: 0 | K75: 0 | L75: 0
A76: 11111111111111 | B76: 2022 | C76: 111 | D76: TCJ4 | E76: 0 | F76: 0 | G76: 0 | H76: 0 | I76: 0 | J76: 0 | K76: 0 | L76: 0
A77: 11111111111111 | B77: 2022 | C77: 111 | D77: TCJ3 | E77: 0 | F77: 0 | G77: 0 | H77: 0 | I77: 0 | J77: 0 | K77: 0 | L77: 0
A78: 11111111111111 | B78: 2022 | C78: 111 | D78: SCJ3 | E78: 0 | F78: 0 | G78: 0 | H78: 0 | I78: 0 | J78: 0 | K78: 0 | L78: 0
A79: 11111111111111 | B79: 2022 | C79: 111 | D79: TCJ1 | E79: 0 | F79: 0 | G79: 0 | H79: 0 | I79: 0 | J79: 0 | K79: 0 | L79: 0
A80: 11111111111111 | B80: 2022 | C80: 111 | D80: SCJ1 | E80: 0 | F80: 0 | G80: 0 | H80: 0 | I80: 0 | J80: 0 | K80: 0 | L80: 0
A81: 11111111111111 | B81: 2022 | C81: 111 | D81: TSC2 | E81: 0 | F81: 0 | G81: 0 | H81: 0 | I81: 0 | J81: 0 | K81: 0 | L81: 0
A82: 11111111111111 | B82: 2022 | C82: 111 | D82: TSC1 | E82: 0 | F82: 0 | G82: 0 | H82: 0 | I82: 0 | J82: 0 | K82: 0 | L82: 0
A83: 11111111111111 | B83: 2022 | C83: 111 | D83: SSC1 | E83: 0 | F83: 0 | G83: 0 | H83: 0 | I83: 0 | J83: 0 | K83: 0 | L83: 0
A84: 11111111111111 | B84: 2022 | C84: 111 | D84: TSE3 | E84: 0 | F84: 0 | G84: 0 | H84: 0 | I84: 0 | J84: 0 | K84: 0 | L84: 0
A85: 11111111111111 | B85: 2022 | C85: 111 | D85: TSE2 | E85: 0 | F85: 0 | G85: 0 | H85: 0 | I85: 0 | J85: 0 | K85: 0 | L85: 0
A86: 11111111111111 | B86: 2022 | C86: 111 | D86: SSE2 | E86: 0 | F86: 0 | G86: 0 | H86: 0 | I86: 0 | J86: 0 | K86: 0 | L86: 0
A87: 11111111111111 | B87: 2022 | C87: 111 | D87: TSE1 | E87: 0 | F87: 0 | G87: 0 | H87: 0 | I87: 0 | J87: 0 | K87: 0 | L87: 0
A88: 11111111111111 | B88: 2022 | C88: 111 | D88: SSE1 | E88: 0 | F88: 0 | G88: 0 | H88: 0 | I88: 0 | J88: 0 | K88: 0 | L88: 0
A89: 11111111111111 | B89: 2022 | C89: 111 | D89: TSP4 | E89: 0 | F89: 0 | G89: 0 | H89: 0 | I89: 0 | J89: 0 | K89: 0 | L89: 0
A90: 11111111111111 | B90: 2022 | C90: 111 | D90: TSP3 | E90: 0 | F90: 0 | G90: 0 | H90: 0 | I90: 0 | J90: 0 | K90: 0 | L90: 0
A91: 11111111111111 | B91: 2022 | C91: 111 | D91: SSP3 | E91: 0 | F91: 0 | G91: 0 | H91: 0 | I91: 0 | J91: 0 | K91: 0 | L91: 0
A92: 11111111111111 | B92: 2022 | C92: 111 | D92: TSP2 | E92: 0 | F92: 0 | G92: 0 | H92: 0 | I92: 0 | J92: 0 | K92: 0 | L92: 0
A93: 11111111111111 | B93: 2022 | C93: 111 | D93: TMM3 | E93: 0 | F93: 0 | G93: 0 | H93: 0 | I93: 0 | J93: 0 | K93: 0 | L93: 0
A94: 11111111111111 | B94: 2022 | C94: 111 | D94: TMM2 | E94: 0 | F94: 0 | G94: 0 | H94: 0 | I94: 0 | J94: 0 | K94: 0 | L94: 0
A95: 11111111111111 | B95: 2022 | C95: 111 | D95: TMM1 | E95: 0 | F95: 0 | G95: 0 | H95: 0 | I95: 0 | J95: 0 | K95: 0 | L95: 0
A96: 11111111111111 | B96: 2022 | C96: 111 | D96: SMM1 | E96: 0 | F96: 0 | G96: 0 | H96: 0 | I96: 0 | J96: 0 | K96: 0 | L96: 0
A97: 11111111111111 | B97: 2022 | C97: 111 | D97: TMT3 | E97: 0 | F97: 0 | G97: 0 | H97: 0 | I97: 0 | J97: 0 | K97: 0 | L97: 0
A98: 11111111111111 | B98: 2022 | C98: 111 | D98: TMT2 | E98: 0 | F98: 0 | G98: 0 | H98: 0 | I98: 0 | J98: 0 | K98: 0 | L98: 0
A99: 11111111111111 | B99: 2022 | C99: 111 | D99: SMT2 | E99: 0 | F99: 0 | G99: 0 | H99: 0 | I99: 0 | J99: 0 | K99: 0 | L99: 0
A100: 11111111111111 | B100: 2022 | C100: 111 | D100: TME3 | E100: 0 | F100: 0 | G100: 0 | H100: 0 | I100: 0 | J100: 0 | K100: 0 | L100: 0
A101: 11111111111111 | B101: 2022 | C101: 111 | D101: TME1 | E101: 0 | F101: 0 | G101: 0 | H101: 0 | I101: 0 | J101: 0 | K101: 0 | L101: 0
A102: 11111111111111 | B102: 2022 | C102: 111 | D102: SME1 | E102: 0 | F102: 0 | G102: 0 | H102: 0 | I102: 0 | J102: 0 | K102: 0 | L102: 0
A103: 11111111111111 | B103: 2022 | C103: 111 | D103: TMB2 | E103: 0 | F103: 0 | G103: 0 | H103: 0 | I103: 0 | J103: 0 | K103: 0 | L103: 0
A104: 11111111111111 | B104: 2022 | C104: 111 | D104: TMB1 | E104: 0 | F104: 0 | G104: 0 | H104: 0 | I104: 0 | J104: 0 | K104: 0 | L104: 0
A105: 11111111111111 | B105: 2022 | C105: 111 | D105: SMB1 | E105: 0 | F105: 0 | G105: 0 | H105: 0 | I105: 0 | J105: 0 | K105: 0 | L105: 0
A106: 11111111111111 | B106: 2022 | C106: 111 | D106: TMD3 | E106: 0 | F106: 0 | G106: 0 | H106: 0 | I106: 0 | J106: 0 | K106: 0 | L106: 0
A107: 11111111111111 | B107: 2022 | C107: 111 | D107: TMD2 | E107: 0 | F107: 0 | G107: 0 | H107: 0 | I107: 0 | J107: 0 | K107: 0 | L107: 0
A108: 11111111111111 | B108: 2022 | C108: 111 | D108: SMD2 | E108: 0 | F108: 0 | G108: 0 | H108: 0 | I108: 0 | J108: 0 | K108: 0 | L108: 0
A109: 11111111111111 | B109: 2022 | C109: 111 | D109: TMP4 | E109: 0 | F109: 0 | G109: 0 | H109: 0 | I109: 0 | J109: 0 | K109: 0 | L109: 0
A110: 11111111111111 | B110: 2022 | C110: 111 | D110: TMP3 | E110: 0 | F110: 0 | G110: 0 | H110: 0 | I110: 0 | J110: 0 | K110: 0 | L110: 0
A111: 11111111111111 | B111: 2022 | C111: 111 | D111: SMP3 | E111: 0 | F111: 0 | G111: 0 | H111: 0 | I111: 0 | J111: 0 | K111: 0 | L111: 0
A112: 11111111111111 | B112: 2022 | C112: 111 | D112: TMP1 | E112: 0 | F112: 0 | G112: 0 | H112: 0 | I112: 0 | J112: 0 | K112: 0 | L112: 0
A113: 11111111111111 | B113: 2022 | C113: 111 | D113: SMP1 | E113: 0 | F113: 0 | G113: 0 | H113: 0 | I113: 0 | J113: 0 | K113: 0 | L113: 0
A114: 11111111111111 | B114: 2022 | C114: 111 | D114: TOD3 | E114: 0 | F114: 0 | G114: 0 | H114: 0 | I114: 0 | J114: 0 | K114: 0 | L114: 0
A115: 11111111111111 | B115: 2022 | C115: 111 | D115: TOD2 | E115: 0 | F115: 0 | G115: 0 | H115: 0 | I115: 0 | J115: 0 | K115: 0 | L115: 0
A116: 11111111111111 | B116: 2022 | C116: 111 | D116: TOD1 | E116: 0 | F116: 0 | G116: 0 | H116: 0 | I116: 0 | J116: 0 | K116: 0 | L116: 0
A117: 11111111111111 | B117: 2022 | C117: 111 | D117: SOD1 | E117: 0 | F117: 0 | G117: 0 | H117: 0 | I117: 0 | J117: 0 | K117: 0 | L117: 0
A118: 11111111111111 | B118: 2022 | C118: 111 | D118: TOH2 | E118: 0 | F118: 0 | G118: 0 | H118: 0 | I118: 0 | J118: 0 | K118: 0 | L118: 0
A119: 11111111111111 | B119: 2022 | C119: 111 | D119: TOH1 | E119: 0 | F119: 0 | G119: 0 | H119: 0 | I119: 0 | J119: 0 | K119: 0 | L119: 0
A120: 11111111111111 | B120: 2022 | C120: 111 | D120: SOH1 | E120: 0 | F120: 0 | G120: 0 | H120: 0 | I120: 0 | J120: 0 | K120: 0 | L120: 0
A121: 11111111111111 | B121: 2022 | C121: 111 | D121: TOF3 | E121: 0 | F121: 0 | G121: 0 | H121: 0 | I121: 0 | J121: 0 | K121: 0 | L121: 0
A122: 11111111111111 | B122: 2022 | C122: 111 | D122: TOF1 | E122: 0 | F122: 0 | G122: 0 | H122: 0 | I122: 0 | J122: 0 | K122: 0 | L122: 0
A123: 11111111111111 | B123: 2022 | C123: 111 | D123: SOF1 | E123: 0 | F123: 0 | G123: 0 | H123: 0 | I123: 0 | J123: 0 | K123: 0 | L123: 0
A124: 11111111111111 | B124: 2022 | C124: 111 | D124: TOG3 | E124: 0 | F124: 0 | G124: 0 | H124: 0 | I124: 0 | J124: 0 | K124: 0 | L124: 0
A125: 11111111111111 | B125: 2022 | C125: 111 | D125: TOG2 | E125: 0 | F125: 0 | G125: 0 | H125: 0 | I125: 0 | J125: 0 | K125: 0 | L125: 0
A126: 11111111111111 | B126: 2022 | C126: 111 | D126: TOG1 | E126: 0 | F126: 0 | G126: 0 | H126: 0 | I126: 0 | J126: 0 | K126: 0 | L126: 0
A127: 11111111111111 | B127: 2022 | C127: 111 | D127: SOG1 | E127: 0 | F127: 0 | G127: 0 | H127: 0 | I127: 0 | J127: 0 | K127: 0 | L127: 0
A128: 11111111111111 | B128: 2022 | C128: 111 | D128: TOC2 | E128: 0 | F128: 0 | G128: 0 | H128: 0 | I128: 0 | J128: 0 | K128: 0 | L128: 0
A129: 11111111111111 | B129: 2022 | C129: 111 | D129: TOC1 | E129: 0 | F129: 0 | G129: 0 | H129: 0 | I129: 0 | J129: 0 | K129: 0 | L129: 0
A130: 11111111111111 | B130: 2022 | C130: 111 | D130: TOP2 | E130: 0 | F130: 0 | G130: 0 | H130: 0 | I130: 0 | J130: 0 | K130: 0 | L130: 0
A131: 11111111111111 | B131: 2022 | C131: 111 | D131: TOP1 | E131: 0 | F131: 0 | G131: 0 | H131: 0 | I131: 0 | J131: 0 | K131: 0 | L131: 0
A132: 11111111111111 | B132: 2022 | C132: 111 | D132: TOU3 | E132: 0 | F132: 0 | G132: 0 | H132: 0 | I132: 0 | J132: 0 | K132: 0 | L132: 0
A133: 11111111111111 | B133: 2022 | C133: 111 | D133: TOU2 | E133: 0 | F133: 0 | G133: 0 | H133: 0 | I133: 0 | J133: 0 | K133: 0 | L133: 0
A134: 11111111111111 | B134: 2022 | C134: 111 | D134: TOU1 | E134: 0 | F134: 0 | G134: 0 | H134: 0 | I134: 0 | J134: 0 | K134: 0 | L134: 0
A135: 11111111111111 | B135: 2022 | C135: 111 | D135: SOU1 | E135: 0 | F135: 0 | G135: 0 | H135: 0 | I135: 0 | J135: 0 | K135: 0 | L135: 0
A136: 11111111111111 | B136: 2022 | C136: 111 | D136: TOA1 | E136: 0 | F136: 0 | G136: 0 | H136: 0 | I136: 0 | J136: 0 | K136: 0 | L136: 0
A137: 11111111111111 | B137: 2022 | C137: 111 | D137: TOB3 | E137: 0 | F137: 0 | G137: 0 | H137: 0 | I137: 0 | J137: 0 | K137: 0 | L137: 0
A138: 11111111111111 | B138: 2022 | C138: 111 | D138: TOB2 | E138: 0 | F138: 0 | G138: 0 | H138: 0 | I138: 0 | J138: 0 | K138: 0 | L138: 0
A139: 11111111111111 | B139: 2022 | C139: 111 | D139: TOB1 | E139: 0 | F139: 0 | G139: 0 | H139: 0 | I139: 0 | J139: 0 | K139: 0 | L139: 0
A140: 11111111111111 | B140: 2022 | C140: 111 | D140: SOB1 | E140: 0 | F140: 0 | G140: 0 | H140: 0 | I140: 0 | J140: 0 | K140: 0 | L140: 0
A141: 11111111111111 | B141: 2022 | C141: 111 | D141: TON2 | E141: 0 | F141: 0 | G141: 0 | H141: 0 | I141: 0 | J141: 0 | K141: 0 | L141: 0
A142: 11111111111111 | B142: 2022 | C142: 111 | D142: TON1 | E142: 0 | F142: 0 | G142: 0 | H142: 0 | I142: 0 | J142: 0 | K142: 0 | L142: 0
A143: 11111111111111 | B143: 2022 | C143: 111 | D143: TOS2 | E143: 0 | F143: 0 | G143: 0 | H143: 0 | I143: 0 | J143: 0 | K143: 0 | L143: 0
A144: 11111111111111 | B144: 2022 | C144: 111 | D144: TOS1 | E144: 0 | F144: 0 | G144: 0 | H144: 0 | I144: 0 | J144: 0 | K144: 0 | L144: 0
A145: 11111111111111 | B145: 2022 | C145: 111 | D145: SOS1 | E145: 0 | F145: 0 | G145: 0 | H145: 0 | I145: 0 | J145: 0 | K145: 0 | L145: 0
A146: 11111111111111 | B146: 2022 | C146: 111 | D146: TOR2 | E146: 0 | F146: 0 | G146: 0 | H146: 0 | I146: 0 | J146: 0 | K146: 0 | L146: 0
A147: 11111111111111 | B147: 2022 | C147: 111 | D147: TOR1 | E147: 0 | F147: 0 | G147: 0 | H147: 0 | I147: 0 | J147: 0 | K147: 0 | L147: 0
A148: 11111111111111 | B148: 2022 | C148: 111 | D148: SOR1 | E148: 0 | F148: 0 | G148: 0 | H148: 0 | I148: 0 | J148: 0 | K148: 0 | L148: 0
A149: 11111111111111 | B149: 2022 | C149: 111 | D149: TOK3 | E149: 0 | F149: 0 | G149: 0 | H149: 0 | I149: 0 | J149: 0 | K149: 0 | L149: 0
A150: 11111111111111 | B150: 2022 | C150: 111 | D150: TOK2 | E150: 0 | F150: 0 | G150: 0 | H150: 0 | I150: 0 | J150: 0 | K150: 0 | L150: 0
A151: 11111111111111 | B151: 2022 | C151: 111 | D151: SOK2 | E151: 0 | F151: 0 | G151: 0 | H151: 0 | I151: 0 | J151: 0 | K151: 0 | L151: 0
A152: 11111111111111 | B152: 2022 | C152: 111 | D152: TEM3 | E152: 0 | F152: 0 | G152: 0 | H152: 0 | I152: 0 | J152: 0 | K152: 0 | L152: 0
A153: 11111111111111 | B153: 2022 | C153: 111 | D153: TEM1 | E153: 0 | F153: 0 | G153: 0 | H153: 0 | I153: 0 | J153: 0 | K153: 0 | L153: 0
A154: 11111111111111 | B154: 2022 | C154: 111 | D154: SEM1 | E154: 0 | F154: 0 | G154: 0 | H154: 0 | I154: 0 | J154: 0 | K154: 0 | L154: 0
A155: 11111111111111 | B155: 2022 | C155: 111 | D155: TEP3 | E155: 0 | F155: 0 | G155: 0 | H155: 0 | I155: 0 | J155: 0 | K155: 0 | L155: 0
A156: 11111111111111 | B156: 2022 | C156: 111 | D156: TEP1 | E156: 0 | F156: 0 | G156: 0 | H156: 0 | I156: 0 | J156: 0 | K156: 0 | L156: 0
A157: 11111111111111 | B157: 2022 | C157: 111 | D157: SEP1 | E157: 0 | F157: 0 | G157: 0 | H157: 0 | I157: 0 | J157: 0 | K157: 0 | L157: 0
A158: 11111111111111 | B158: 2022 | C158: 111 | D158: TEB3 | E158: 0 | F158: 0 | G158: 0 | H158: 0 | I158: 0 | J158: 0 | K158: 0 | L158: 0
A159: 11111111111111 | B159: 2022 | C159: 111 | D159: TEB2 | E159: 0 | F159: 0 | G159: 0 | H159: 0 | I159: 0 | J159: 0 | K159: 0 | L159: 0
A160: 11111111111111 | B160: 2022 | C160: 111 | D160: TEB1 | E160: 0 | F160: 0 | G160: 0 | H160: 0 | I160: 0 | J160: 0 | K160: 0 | L160: 0
A161: 11111111111111 | B161: 2022 | C161: 111 | D161: SEB1 | E161: 0 | F161: 0 | G161: 0 | H161: 0 | I161: 0 | J161: 0 | K161: 0 | L161: 0
A162: 11111111111111 | B162: 2022 | C162: 111 | D162: TET2 | E162: 0 | F162: 0 | G162: 0 | H162: 0 | I162: 0 | J162: 0 | K162: 0 | L162: 0
A163: 11111111111111 | B163: 2022 | C163: 111 | D163: TET1 | E163: 0 | F163: 0 | G163: 0 | H163: 0 | I163: 0 | J163: 0 | K163: 0 | L163: 0
A164: 11111111111111 | B164: 2022 | C164: 111 | D164: SET1 | E164: 0 | F164: 0 | G164: 0 | H164: 0 | I164: 0 | J164: 0 | K164: 0 | L164: 0
A165: 11111111111111 | B165: 2022 | C165: 111 | D165: TPU2 | E165: 0 | F165: 0 | G165: 0 | H165: 0 | I165: 0 | J165: 0 | K165: 0 | L165: 0
A166: 11111111111111 | B166: 2022 | C166: 111 | D166: TPU1 | E166: 0 | F166: 0 | G166: 0 | H166: 0 | I166: 0 | J166: 0 | K166: 0 | L166: 0
A167: 11111111111111 | B167: 2022 | C167: 111 | D167: SPU1 | E167: 0 | F167: 0 | G167: 0 | H167: 0 | I167: 0 | J167: 0 | K167: 0 | L167: 0
A168: 11111111111111 | B168: 2022 | C168: 111 | D168: TPC3 | E168: 0 | F168: 0 | G168: 0 | H168: 0 | I168: 0 | J168: 0 | K168: 0 | L168: 0
A169: 11111111111111 | B169: 2022 | C169: 111 | D169: TPC2 | E169: 0 | F169: 0 | G169: 0 | H169: 0 | I169: 0 | J169: 0 | K169: 0 | L169: 0
A170: 11111111111111 | B170: 2022 | C170: 111 | D170: TPC1 | E170: 0 | F170: 0 | G170: 0 | H170: 0 | I170: 0 | J170: 0 | K170: 0 | L170: 0
A171: 11111111111111 | B171: 2022 | C171: 111 | D171: SPC1 | E171: 0 | F171: 0 | G171: 0 | H171: 0 | I171: 0 | J171: 0 | K171: 0 | L171: 0
A172: 11111111111111 | B172: 2022 | C172: 111 | D172: TPG4 | E172: 0 | F172: 0 | G172: 0 | H172: 0 | I172: 0 | J172: 0 | K172: 0 | L172: 0
A173: 11111111111111 | B173: 2022 | C173: 111 | D173: TPG3 | E173: 0 | F173: 0 | G173: 0 | H173: 0 | I173: 0 | J173: 0 | K173: 0 | L173: 0
A174: 11111111111111 | B174: 2022 | C174: 111 | D174: TPG1 | E174: 0 | F174: 0 | G174: 0 | H174: 0 | I174: 0 | J174: 0 | K174: 0 | L174: 0
A175: 11111111111111 | B175: 2022 | C175: 111 | D175: SPG1 | E175: 0 | F175: 0 | G175: 0 | H175: 0 | I175: 0 | J175: 0 | K175: 0 | L175: 0
A176: 11111111111111 | B176: 2022 | C176: 111 | D176: TPH3 | E176: 0 | F176: 0 | G176: 0 | H176: 0 | I176: 0 | J176: 0 | K176: 0 | L176: 0
A177: 11111111111111 | B177: 2022 | C177: 111 | D177: TPH2 | E177: 0 | F177: 0 | G177: 0 | H177: 0 | I177: 0 | J177: 0 | K177: 0 | L177: 0
A178: 11111111111111 | B178: 2022 | C178: 111 | D178: SPH2 | E178: 0 | F178: 0 | G178: 0 | H178: 0 | I178: 0 | J178: 0 | K178: 0 | L178: 0
A179: 11111111111111 | B179: 2022 | C179: 111 | D179: TNN3 | E179: 0 | F179: 0 | G179: 0 | H179: 0 | I179: 0 | J179: 0 | K179: 0 | L179: 0
A180: 11111111111111 | B180: 2022 | C180: 111 | D180: TNN2 | E180: 0 | F180: 0 | G180: 0 | H180: 0 | I180: 0 | J180: 0 | K180: 0 | L180: 0
A181: 11111111111111 | B181: 2022 | C181: 111 | D181: SNN2 | E181: 0 | F181: 0 | G181: 0 | H181: 0 | I181: 0 | J181: 0 | K181: 0 | L181: 0
A182: 11111111111111 | B182: 2022 | C182: 111 | D182: TNN1 | E182: 0 | F182: 0 | G182: 0 | H182: 0 | I182: 0 | J182: 0 | K182: 0 | L182: 0
A183: 11111111111111 | B183: 2022 | C183: 111 | D183: SNN1 | E183: 0 | F183: 0 | G183: 0 | H183: 0 | I183: 0 | J183: 0 | K183: 0 | L183: 0
A184: 11111111111111 | B184: 2022 | C184: 111 | D184: TNJ4 | E184: 0 | F184: 0 | G184: 0 | H184: 0 | I184: 0 | J184: 0 | K184: 0 | L184: 0
A185: 11111111111111 | B185: 2022 | C185: 111 | D185: TNJ3 | E185: 0 | F185: 0 | G185: 0 | H185: 0 | I185: 0 | J185: 0 | K185: 0 | L185: 0
A186: 11111111111111 | B186: 2022 | C186: 111 | D186: SNJ3 | E186: 0 | F186: 0 | G186: 0 | H186: 0 | I186: 0 | J186: 0 | K186: 0 | L186: 0
A187: 11111111111111 | B187: 2022 | C187: 111 | D187: TNJ1 | E187: 0 | F187: 0 | G187: 0 | H187: 0 | I187: 0 | J187: 0 | K187: 0 | L187: 0
A188: 11111111111111 | B188: 2022 | C188: 111 | D188: SNJ1 | E188: 0 | F188: 0 | G188: 0 | H188: 0 | I188: 0 | J188: 0 | K188: 0 | L188: 0
A189: 11111111111111 | B189: 2022 | C189: 111 | D189: TRH3 | E189: 0 | F189: 0 | G189: 0 | H189: 0 | I189: 0 | J189: 0 | K189: 0 | L189: 0
A190: 11111111111111 | B190: 2022 | C190: 111 | D190: TRH2 | E190: 0 | F190: 0 | G190: 0 | H190: 0 | I190: 0 | J190: 0 | K190: 0 | L190: 0
A191: 11111111111111 | B191: 2022 | C191: 111 | D191: TRH1 | E191: 0 | F191: 0 | G191: 0 | H191: 0 | I191: 0 | J191: 0 | K191: 0 | L191: 0
A192: 11111111111111 | B192: 2022 | C192: 111 | D192: SRH1 | E192: 0 | F192: 0 | G192: 0 | H192: 0 | I192: 0 | J192: 0 | K192: 0 | L192: 0
A193: 11111111111111 | B193: 2022 | C193: 111 | D193: TRC3 | E193: 0 | F193: 0 | G193: 0 | H193: 0 | I193: 0 | J193: 0 | K193: 0 | L193: 0
A194: 11111111111111 | B194: 2022 | C194: 111 | D194: TRC2 | E194: 0 | F194: 0 | G194: 0 | H194: 0 | I194: 0 | J194: 0 | K194: 0 | L194: 0
A195: 11111111111111 | B195: 2022 | C195: 111 | D195: TRC1 | E195: 0 | F195: 0 | G195: 0 | H195: 0 | I195: 0 | J195: 0 | K195: 0 | L195: 0
A196: 11111111111111 | B196: 2022 | C196: 111 | D196: SRC1 | E196: 0 | F196: 0 | G196: 0 | H196: 0 | I196: 0 | J196: 0 | K196: 0 | L196: 0
A197: 11111111111111 | B197: 2022 | C197: 111 | D197: TRD4 | E197: 0 | F197: 0 | G197: 0 | H197: 0 | I197: 0 | J197: 0 | K197: 0 | L197: 0
A198: 11111111111111 | B198: 2022 | C198: 111 | D198: TRD3 | E198: 0 | F198: 0 | G198: 0 | H198: 0 | I198: 0 | J198: 0 | K198: 0 | L198: 0
A199: 11111111111111 | B199: 2022 | C199: 111 | D199: TRD2 | E199: 0 | F199: 0 | G199: 0 | H199: 0 | I199: 0 | J199: 0 | K199: 0 | L199: 0
A200: 11111111111111 | B200: 2022 | C200: 111 | D200: SRD2 | E200: 0 | F200: 0 | G200: 0 | H200: 0 | I200: 0 | J200: 0 | K200: 0 | L200: 0
... 21 more rows

Sheet IND 1.1.4
B1: 1.1.4 | C1: Nombre de fonctionnaires en Equivalent Temps Plein Rémunéré (ETPR) en 2022 par filière déclinée par catégorie hiérarchique et par sexe
B3: Champ : le tableau qui suit concerne les fonctionnaires, occupant un emploi à temps complet ou non complet et ayant été rémunérés au moins un jour durant l'année 2022 (hors heures supplémentaires et/ou complémentaires).
E4: Retour au sommaire
C5: Répartition par sexe et tranche d'âge des effectifs des fonctionnaires et des contractuels présents dans les effectifs au 31/12/2022
B31: Filières | C31: Hommes 1.1.4(1) | D31: Femmes 1.1.4(2)
B32: FILIERE ADMINISTRATIVE | C32: =+SUM(C33:C35) -> 28.59 | D32: =+SUM(D33:D35) -> 130.65
B33: Catégorie A | C33: 19.08 | D33: 37.96
B34: Catégorie B | C34: 3.71 | D34: 30.77
A35: Version 1 | B35: Catégorie C | C35: 5.8 | D35: 61.92
B36: FILIERE TECHNIQUE | C36: =SUM(C37:C39) -> 159.94 | D36: =SUM(D37:D39) -> 53.95
B37: Catégorie A | C37: 23.2 | D37: 20.55
B38: Catégorie B | C38: 17.75 | D38: 3.15
B39: Catégorie C | C39: 118.99 | D39: 30.25
B40: FILIERE CULTURELLE | C40: =SUM(C41:C43) -> 34.87 | D40: =SUM(D41:D43) -> 34.8
B41: Catégorie A | C41: 26.63 | D41: 22.96
B42: Catégorie B | C42: 8.24 | D42: 9.04
B43: Catégorie C | C43: 0 | D43: 2.8
B44: FILIERE SPORTIVE | C44: =SUM(C45:C47) -> 18.41 | D44: =SUM(D45:D47) -> 18.13
B45: Catégorie A | C45: 2 | D45: 1
B46: Catégorie B | C46: 16.41 | D46: 17.13
B47: Catégorie C | C47: 0 | D47: 0
B48: FILIERE SOCIALE | C48: =SUM(C49:C51) -> 1 | D48: =SUM(D49:D51) -> 0
B49: Catégorie A | C49: 1 | D49: 0
B50: Catégorie B | C50: 0 | D50: 0
B51: Catégorie C | C51: 0 | D51: 0
B52: FILIERE MEDICO-SOCIALE | C52: =SUM(C53:C55) -> 0 | D52: =SUM(D53:D55) -> 0
B53: Catégorie A | C53: 0 | D53: 0
B54: Catégorie B | C54: 0 | D54: 0
B55: Catégorie C | C55: 0 | D55: 0
B56: FILIERE MEDICO-TECHNIQUE | C56: =SUM(C57:C59) -> 0 | D56: =SUM(D57:D59) -> 0
B57: Catégorie A | C57: 0 | D57: 0
B58: Catégorie B | C58: 0 | D58: 0
B59: Catégorie C | C59: 0 | D59: 0
B60: FILIERE POLICE MUNICIPALE | C60: =SUM(C61:C63) -> 0 | D60: =SUM(D61:D63) -> 0
B61: Catégorie A | C61: 0 | D61: 0
B62: Catégorie B | C62: 0 | D62: 0
B63: Catégorie C | C63: 0 | D63: 0
B64: FILIERE INCENDIE ET SECOURS | C64: =SUM(C65:C67) -> 0 | D64: =SUM(D65:D67) -> 0
B65: Catégorie A | C65: 0 | D65: 0
B66: Catégorie B | C66: 0 | D66: 0
B67: Catégorie C | C67: 0 | D67: 0
B68: FILIERE ANIMATION | C68: =SUM(C69:C70) -> 0 | D68: =SUM(D69:D70) -> 0
B69: Catégorie B | C69: 0 | D69: 0
B70: Catégorie C | C70: 0 | D70: 0
B72: TOTAL | C72: =SUM(C32,C36,C40,C44,C48,C52,C56,C60,C64,C68) -> 242.81 | D72: =SUM(D32,D36,D40,D44,D48,D52,D56,D60,D64,D68) -> 237.53

Sheet IND 1.2.1
A1: 1.2.1 | B1: Effectifs des agents contractuels occupant un emploi permanent rémunérés au 31/12/2022 par filière et cadre d'emplois, selon le type de contrat et le type de recrutement
A5: Champ : le tableau qui suit concerne les agents contractuels sur un emploi permanent rémunérés au 31/12/2022. | X5: Retour au sommaire
A6: Remarque importante : les agents occupant un emploi fonctionnel doivent être uniquement comptabilisés dans leurs cadres d'emplois respectifs.
B8: Type de contrat
B9: CDD | K9: CDI | V9: *Sapeur-pompier volontaire
B10: Type de recrutement Ordonnance n°2021-1574 du 24 novembre 2021 - art | J10: Autres contractuels (articles 38, 38bis, 47,136...) | L10: Total | M10: Tous emplois exerçant à | O10: Ancienneté dans la collectivité | R10: CDI | T10: CDD | V10: Dont SPV
B11: Article L332-13 | C11: Article L332-14 | D11: Article L332-8,1 | E11: Article L332-8,2° | F11: Article L332-8,3° | G11: Article L332-8,4° | H11: Article L332-8, 5° | I11: Article L332-8,6°
A12: CADRE D'EMPLOIS | B12: Remplaçants | C12: Affectés sur un poste vacant | D12: Pas de cadre d'emplois existant | E12: Les besoins des services ou la nature des fonctions le justifient | F12: Tous les emplois pour les communes de moins de 1 000 habitants et les groupements de communes de moins de 15 000 habitants | G12: Tous les emplois pour les communes nouvelles issues de la fusion de communes de moins de 1 000 habitants | H12: Temps non complet des autres collectivités territoriales ou établissements mentionnés à l'article 2, lorsque la quotité de temps de travail est inférieure à 50 % | I12: Communes de moins de 2000 hab. et groupements de communes de moins de 10 000 hab. dont la création ou la suppression dépend de la décision d'une autorité qui s'impose à la collectivité | M12: Temps complet | N12: Temps non complet | O12: Moins de 3 ans | P12: de 3 ans à moins de 6 ans | Q12: 6 ans et plus | R12: Hommes | S12: Femmes | T12: Hommes | U12: Femmes | V12: Hommes | W12: Femmes
B13: 1.2.1(1) | C13: 1.2.1(2) | D13: 1.2.1(3) | E13: 1.2.1(4) | F13: 1.2.1(5) | G13: 1.2.1(6) | H13: 1.2.1(7) | I13: 1.2.1(8) | J13: 1.2.1(9) | K13: 1.2.1(10) | M13: 1.2.1(11) | N13: 1.2.1(12) | O13: 1.2.1(13) | P13: 1.2.1(14) | Q13: 1.2.1(15) | R13: 1.2.1(16) | S13: 1.2.1(17) | T13: 1.2.1(18) | U13: 1.2.1(19) | V13: 1.2.1(18) | W13: 1.2.1(19)
A14: FILIERE ADMINISTRATIVE
